{"text_format":"1","workbook":"xlsx","n_sheets":11,"sheets":["LD","Fundacion","Representante Legal","Doc Habilitantes","Datos Firmas Auditoras Externas","Listado de miembros","Datos de la Directiva","Datos de Auditor Interno","Parámetros","PDF","Datos"],"not_rendered":{"charts":0,"images":3,"macros":1,"external_links":0,"defined_names":0,"comments":0,"pivot_tables":0},"unopened":[],"bounds":{"document_bytes":16777216,"sheet_cells":100000,"rows_first":2000,"rows_last":500,"rows_between":2000,"halvings":0,"cell_chars":16384,"cell_head_chars":4096},"cells_cut":0,"cells_raw":0,"read":"whole","date_system":"1900"}

{"sheet":"LD","index":0,"n_rows":3924,"n_cols":9,"rows_kept":3924,"cut":false,"hidden":true,"merged":[]}
["CÉDULA","AFGANISTAN","Azuay","24 DE MAYO                    "," 10 DE AGOSTO","COPIA SIMPLE","RESOLUCIÓN","PRESIDENTE","CORREO ELECTRÓNICO"]
["RUC","ALBANIA","Bolivar","24 DE MAYO                    "," 10 DE AGOSTO","COPIA CERTIFICADA","ACUERDO MINISTERIAL","VICEPRESIDENTE","CELULAR"]
["PASAPORTE","ALEMANIA","Cañar","AGUARICO                      "," 10 DE AGOSTO",null,"OTRO","SECRETARIO","TELEFONO"]
["IDENTIFICACION DEL EXTRANJERO","ANDORRA","Carchi","AGUARICO                      "," 10 DE AGOSTO",null,null,"TESORERO"]
["REFUGIADO","ANGOLA","Chimborazo","ALAUSI                        "," 11 DE NOVIEMBRE (ILINCHI",null,null,"DIRECTOR"]
[null,"ANGUILLA","Cotopaxi","ALAUSI                        "," 11 DE NOVIEMBRE (ILINCHI",null,null,"REPRESENTANTE LEGAL"]
[null,"ANTIGUA Y BARBUDA","El Oro","ALFREDO BAQUERIZO MORENO      "," 11 DE NOVIEMBRE (ILINCHI"]
[null,"ANTILLAS HOLANDESAS","Esmeraldas","ALFREDO BAQUERIZO MORENO      "," 11 DE NOVIEMBRE (ILINCHI"]
[null,"ARABIA SAUDI","Galápagos","AMBATO                        "," 12 DE DICIEMBRE"]
[null,"ARGELIA","Guayas","AMBATO                        "," 12 DE DICIEMBRE"]
[null,"ARGENTINA","Imbabura","ANTONIO ANTE                  "," 12 DE DICIEMBRE"]
[null,"ARMENIA","Loja","ANTONIO ANTE                  "," 12 DE DICIEMBRE"]
[null,"ARUBA","Los Rios","ARAJUNO                       "," 16 DE AGOSTO"]
[null,"AUSTRALIA","Manabi","ARAJUNO                       "," 16 DE AGOSTO"]
[null,"AUSTRIA","Morona Santiago","ARCHIDONA                     "," 16 DE AGOSTO"]
[null,"AZERBAIYAN","Napo","ARCHIDONA                     "," 16 DE AGOSTO"]
[null,"BAHAMAS","Orellana","ARENILLAS                     "," 27 DE ABRIL"]
[null,"BAHREIN","Pastaza","ARENILLAS                     "," 27 DE ABRIL"]
[null,"BANGLADESH","Pichincha","ATACAMES                      "," 27 DE ABRIL"]
[null,"BARBADOS","Santa Elena","ATACAMES                      "," 27 DE ABRIL"]
[null,"BELARUS","Santo Domingo","ATAHUALPA                     "," 28 DE MAYO"]
[null,"BELGICA","Sucumbíos","ATAHUALPA                     "," 28 DE MAYO"]
[null,"BELICE","Tungurahua","AZOGUES                       "," 28 DE MAYO"]
[null,"BENIN","Zamora Chinchipe","AZOGUES                       "," 28 DE MAYO"]
[null,"BERMUDAS","Zonas No Delimitadas","BABA                          "," 6 DE JULIO DE CUELLAJE"]
[null,"BHUTÁN",null,"BABA                          "," 6 DE JULIO DE CUELLAJE"]
[null,"BOLIVIA",null,"BABAHOYO                      "," 6 DE JULIO DE CUELLAJE"]
[null,"BOSNIA Y HERZEGOVINA",null,"BABAHOYO                      "," 6 DE JULIO DE CUELLAJE"]
[null,"BOTSWANA",null,"BALAO                         "," ABAÑIN"]
[null,"BRASIL",null,"BALAO                         "," ABAÑIN"]
[null,"BRUNEI",null,"BALSAS                        "," ABAÑIN"]
[null,"BULGARIA",null,"BALSAS                        "," ABAÑIN"]
[null,"BURKINA FASO",null,"BALZAR                        "," ABDON CALDERON"]
[null,"BURUNDI",null,"BALZAR                        "," ABDON CALDERON"]
[null,"CABO VERDE",null,"BAÑOS                         "," ABDON CALDERON"]
[null,"CAMBOYA",null,"BAÑOS                         "," ABDON CALDERON"]
[null,"CAMERUN",null,"BIBLIAN                       "," ABDON CALDERON"]
[null,"CANADA",null,"BIBLIAN                       "," ABDON CALDERON"]
[null,"CHAD",null,"BOLIVAR                       "," ABDON CALDERON"]
[null,"CHILE",null,"BOLIVAR                       "," ACHUPALLAS"]
[null,"CHINA",null,"BOLIVAR                       "," ACHUPALLAS"]
[null,"CHIPRE",null,"BUENA FE                      "," ACHUPALLAS"]
[null,"COLOMBIA",null,"BUENA FE                      "," ACHUPALLAS"]
[null,"COMORES",null,"CALUMA                        "," AGUAS NEGRAS"]
[null,"CONGO",null,"CALUMA                        "," AGUAS NEGRAS"]
[null,"COREA",null,"CALVAS                        "," AGUAS NEGRAS"]
[null,"COREA DEL NORTE ",null,"CALVAS                        "," AGUAS NEGRAS"]
[null,"COSTA DE MARFIL",null,"CAMILO PONCE ENRIQUEZ         "," AHUANO"]
[null,"COSTA RICA",null,"CAMILO PONCE ENRIQUEZ         "," AHUANO"]
[null,"CROACIA",null,"CAÑAR                         "," AHUANO"]
[null,"CUBA",null,"CAÑAR                         "," AHUANO"]
[null,"DINAMARCA",null,"CARLOS JULIO AROSEMENA        "," ALAMOR"]
[null,"DJIBOUTI",null,"CARLOS JULIO AROSEMENA        "," ALAMOR"]
[null,"DOMINICA",null,"CASCALES                      "," ALAMOR"]
[null,"ECUADOR",null,"CASCALES                      "," ALAMOR"]
[null,"EGIPTO",null,"CATAMAYO                      "," ALANGASI"]
[null,"EL SALVADOR",null,"CATAMAYO                      "," ALANGASI"]
[null,"EMIRATOS ARABES UNIDOS",null,"CAYAMBE                       "," ALANGASI"]
[null,"ERITREA",null,"CAYAMBE                       "," ALANGASI"]
[null,"ESLOVENIA",null,"CELICA                        "," ALAQUES (ALAQUEZ)"]
[null,"ESPAÑA",null,"CELICA                        "," ALAQUES (ALAQUEZ)"]
[null,"ESTADOS UNIDOS DE AMERICA",null,"CENTINELA DEL CONDOR          "," ALAQUES (ALAQUEZ)"]
[null,"ESTONIA",null,"CENTINELA DEL CONDOR          "," ALAQUES (ALAQUEZ)"]
[null,"ETIOPIA",null,"CEVALLOS                      "," ALAUSI"]
[null,"FIJI",null,"CEVALLOS                      "," ALAUSI"]
[null,"FILIPINAS",null,"CHAGUARPAMBA                  "," ALAUSI"]
[null,"FINLANDIA",null,"CHAGUARPAMBA                  "," ALAUSI"]
[null,"FRANCIA",null,"CHAMBO                        "," ALEJANDRO LABAKA"]
[null,"GABON",null,"CHAMBO                        "," ALEJANDRO LABAKA"]
[null,"GAMBIA",null,"CHILLA                        "," ALEJANDRO LABAKA"]
[null,"GEORGIA",null,"CHILLA                        "," ALEJANDRO LABAKA"]
[null,"GHANA",null,"CHILLANES                     "," ALFREDO BAQUERIZO MORENO"]
[null,"GIBRALTAR",null,"CHILLANES                     "," ALFREDO BAQUERIZO MORENO"]
[null,"GRANADA",null,"CHINCHIPE                     "," ALFREDO BAQUERIZO MORENO"]
[null,"GRECIA",null,"CHINCHIPE                     "," ALFREDO BAQUERIZO MORENO"]
[null,"GROENLANDIA",null,"CHONE                         "," ALHAJUELA (BAJO GRANDE)"]
[null,"GUADALUPE",null,"CHONE                         "," ALHAJUELA (BAJO GRANDE)"]
[null,"GUAM",null,"CHORDELEG                     "," ALHAJUELA (BAJO GRANDE)"]
[null,"GUATEMALA",null,"CHORDELEG                     "," ALHAJUELA (BAJO GRANDE)"]
[null,"GUAYANA FRANCESA",null,"CHUNCHI                       "," ALLURIQUIN"]
[null,"GUERNESEY",null,"CHUNCHI                       "," ALLURIQUIN"]
[null,"GUINEA",null,"COLIMES                       "," ALLURIQUIN"]
[null,"GUINEA ECUATORIAL",null,"COLIMES                       "," ALLURIQUIN"]
[null,"GUINEA-BISSAU",null,"COLTA                         "," ALOAG"]
[null,"GUYANA",null,"COLTA                         "," ALOAG"]
[null,"HAITI",null,"CORONEL MARCELINO MARIDUEÑA   "," ALOAG"]
[null,"HONDURAS",null,"CORONEL MARCELINO MARIDUEÑA   "," ALOAG"]
[null,"HONG KONG",null,"COTACACHI                     "," ALOASI"]
[null,"HUNGRIA",null,"COTACACHI                     "," ALOASI"]
[null,"INDIA",null,"CUENCA                        "," ALOASI"]
[null,"INDONESIA",null,"CUENCA                        "," ALOASI"]
[null,"IRAN",null,"CUMANDA                       "," ALSHI"]
[null,"IRAQ",null,"CUMANDA                       "," ALSHI"]
[null,"IRLANDA",null,"CUYABENO                      "," ALSHI"]
[null,"ISLA DE MAN",null,"CUYABENO                      "," ALSHI"]
[null,"ISLA NORFOLK",null,"DAULE                         "," ALTO TAMBO"]
[null,"ISLANDIA",null,"DAULE                         "," ALTO TAMBO"]
[null,"ISLAS ALAND",null,"DELEG                         "," ALTO TAMBO"]
[null,"ISLAS CAIMÁN",null,"DELEG                         "," ALTO TAMBO"]
[null,"ISLAS COOK",null,"DURAN                         "," AMAGUAÑA"]
[null,"ISLAS DEL CANAL",null,"DURAN                         "," AMAGUAÑA"]
[null,"ISLAS FEROE",null,"ECHEANDIA                     "," AMAGUAÑA"]
[null,"ISLAS MALVINAS",null,"ECHEANDIA                     "," AMAGUAÑA"]
[null,"ISLAS MARIANAS DEL NORTE",null,"EL CARMEN                     "," AMALUZA"]
[null,"ISLAS MARSHALL",null,"EL CARMEN                     "," AMALUZA"]
[null,"ISLAS PITCAIRN",null,"EL CHACO                      "," AMALUZA"]
[null,"ISLAS SALOMON",null,"EL CHACO                      "," AMALUZA"]
[null,"ISLAS TURCAS Y CAICOS",null,"EL EMPALME                    "," AMALUZA"]
[null,"ISLAS VIRGENES BRITANICAS",null,"EL EMPALME                    "," AMALUZA"]
[null,"ISLAS VÍRGENES DE LOS ESTADOS UNIDOS",null,"EL GUABO                      "," AMALUZA"]
[null,"ISRAEL",null,"EL GUABO                      "," AMARILLOS"]
[null,"ITALIA",null,"EL PAN                        "," AMARILLOS"]
[null,"JAMAICA",null,"EL PAN                        "," AMARILLOS"]
[null,"JAPON",null,"EL PANGUI                     "," AMARILLOS"]
[null,"JERSEY",null,"EL PANGUI                     "," AMAZONAS (ROSARIO DE CUYES)"]
[null,"JORDANIA",null,"EL PIEDRERO                   "," AMAZONAS (ROSARIO DE CUYES)"]
[null,"KAZAJSTAN",null,"EL PIEDRERO                   "," AMAZONAS (ROSARIO DE CUYES)"]
[null,"KENIA",null,"EL TAMBO                      "," AMAZONAS (ROSARIO DE CUYES)"]
[null,"KIRGUISTAN",null,"EL TAMBO                      "," AMBATILLO"]
[null,"KIRIBATI",null,"EL TRIUNFO                    "," AMBATILLO"]
[null,"KUWAIT",null,"EL TRIUNFO                    "," AMBATILLO"]
[null,"LAOS",null,"ELOY ALFARO                   "," AMBATILLO"]
[null,"LESOTHO",null,"ELOY ALFARO                   "," AMBATO"]
[null,"LETONIA",null,"ESMERALDAS                    "," AMBATO"]
[null,"LIBANO",null,"ESMERALDAS                    "," AMBATO"]
[null,"LIBERIA",null,"ESPEJO                        "," AMBATO"]
[null,"LIBIA",null,"ESPEJO                        "," AMBUQUI"]
[null,"LIECHTENSTEIN",null,"ESPINDOLA                     "," AMBUQUI"]
[null,"LITUANIA",null,"ESPINDOLA                     "," AMBUQUI"]
[null,"LUXEMBURGO",null,"FLAVIO ALFARO                 "," AMBUQUI"]
[null,"MACAO",null,"FLAVIO ALFARO                 "," AMERICA"]
[null,"MACEDONIA ",null,"GENERAL ANTONIO ELIZALDE      "," AMERICA"]
[null,"MADAGASCAR",null,"GENERAL ANTONIO ELIZALDE      "," AMERICA"]
[null,"MALASIA",null,"GIRON                         "," AMERICA"]
[null,"MALAWI",null,"GIRON                         "," ANCHAYACU"]
[null,"MALDIVAS",null,"GONZALO PIZARRO               "," ANCHAYACU"]
[null,"MALI",null,"GONZALO PIZARRO               "," ANCHAYACU"]
[null,"MALTA",null,"GONZANAMA                     "," ANCHAYACU"]
[null,"MARRUECOS",null,"GONZANAMA                     "," ANCON (PICHANGAL)"]
[null,"MARTINICA",null,"GUACHAPALA                    "," ANCON (PICHANGAL)"]
[null,"MAURICIO",null,"GUACHAPALA                    "," ANCON (PICHANGAL)"]
[null,"MAURITANIA",null,"GUALACEO                      "," ANCON (PICHANGAL)"]
[null,"MAYOTTE",null,"GUALACEO                      "," ANCONCITO"]
[null,"MEXICO",null,"GUALAQUIZA                    "," ANCONCITO"]
[null,"MICRONESIA",null,"GUALAQUIZA                    "," ANCONCITO"]
[null,"MOLDAVIA",null,"GUAMOTE                       "," ANCONCITO"]
[null,"MONACO",null,"GUAMOTE                       "," ANGAMARCA"]
[null,"MONGOLIA",null,"GUANO                         "," ANGAMARCA"]
[null,"MONTENEGRO",null,"GUANO                         "," ANGAMARCA"]
[null,"MONTSERRAT",null,"GUARANDA                      "," ANGAMARCA"]
[null,"MOZAMBIQUE",null,"GUARANDA                      "," ANGEL PEDRO GILER"]
[null,"MYANMAR",null,"GUAYAQUIL                     "," ANGEL PEDRO GILER"]
[null,"NAMIBIA",null,"GUAYAQUIL                     "," ANGEL PEDRO GILER"]
[null,"NAURU",null,"HUAMBOYA                      "," ANGEL PEDRO GILER"]
[null,"NEPAL",null,"HUAMBOYA                      "," ANGOCHAGUA"]
[null,"NICARAGUA",null,"HUAQUILLAS                    "," ANGOCHAGUA"]
[null,"NIGER",null,"HUAQUILLAS                    "," ANGOCHAGUA"]
[null,"NIGERIA",null,"IBARRA                        "," ANGOCHAGUA"]
[null,"NIUE",null,"IBARRA                        "," ANTONIO JOSE HOLGUIN"]
[null,"NORUEGA",null,"ISABELA                       "," ANTONIO JOSE HOLGUIN"]
[null,"NUEVA CALEDONIA",null,"ISABELA                       "," ANTONIO JOSE HOLGUIN"]
[null,"NUEVA ZELANDA",null,"ISIDRO AYORA                  "," ANTONIO JOSE HOLGUIN"]
[null,"OMAN",null,"ISIDRO AYORA                  "," ANTONIO SOTOMAYOR"]
[null,"OTROS PAISES  O TERRITORIOS DE AMERICA DEL NORTE",null,"JAMA                          "," ANTONIO SOTOMAYOR"]
[null,"OTROS PAISES O TERRITORIOS  DE SUDAMERICA",null,"JAMA                          "," ANTONIO SOTOMAYOR"]
[null,"OTROS PAISES O TERRITORIOS DE AFRICA",null,"JARAMIJO                      "," ANTONIO SOTOMAYOR"]
[null,"OTROS PAISES O TERRITORIOS DE ASIA",null,"JARAMIJO                      "," APUELA"]
[null,"OTROS PAISES O TERRITORIOS DE LA UNION EUROPEA",null,"JIPIJAPA                      "," APUELA"]
[null,"OTROS PAISES O TERRITORIOS DE OCEANIA",null,"JIPIJAPA                      "," APUELA"]
[null,"OTROS PAISES O TERRITORIOS DEL CARIBE Y AMERICA CENTRAL",null,"JUNIN                         "," APUELA"]
[null,"OTROS PAISES O TERRITORIOS DEL RESTO DE EUROPA",null,"JUNIN                         "," ARAJUNO"]
[null,"PAISES BAJOS",null,"LA CONCORDIA                  "," ARAJUNO"]
[null,"PAKISTAN",null,"LA CONCORDIA                  "," ARAJUNO"]
[null,"PALAOS",null,"LA JOYA DE LOS SACHAS         "," ARAJUNO"]
[null,"PALESTINA",null,"LA JOYA DE LOS SACHAS         "," ARAPICOS"]
[null,"PANAMA",null,"LA MANA                       "," ARAPICOS"]
[null,"PAPUA NUEVA GUINEA",null,"LA MANA                       "," ARAPICOS"]
[null,"PARAGUAY",null,"LA TRONCAL                    "," ARAPICOS"]
[null,"PERU",null,"LA TRONCAL                    "," ARCAPAMBA"]
[null,"POLINESIA FRANCESA",null,"LAGO AGRIO                    "," ARCAPAMBA"]
[null,"POLONIA",null,"LAGO AGRIO                    "," ARCAPAMBA"]
[null,"PORTUGAL",null,"LAS GOLONDRINAS               "," ARCAPAMBA"]
[null,"PUERTO RICO",null,"LAS GOLONDRINAS               "," ARCHIDONA"]
[null,"QATAR",null,"LAS LAJAS                     "," ARCHIDONA"]
[null,"REINO UNIDO",null,"LAS LAJAS                     "," ARCHIDONA"]
[null,"REP.DEMOCRATICA DEL CONGO",null,"LAS NAVES                     "," ARCHIDONA"]
[null,"REPUBLICA CENTROAFRICANA",null,"LAS NAVES                     "," ARENILLAS"]
[null,"REPUBLICA CHECA",null,"LATACUNGA                     "," ARENILLAS"]
[null,"REPUBLICA DOMINICANA",null,"LATACUNGA                     "," ARENILLAS"]
[null,"REPUBLICA ESLOVACA",null,"LIBERTAD                      "," ARENILLAS"]
[null,"REUNION",null,"LIBERTAD                      "," ARQ. SIXTO DURAN BALLEN"]
[null,"RUANDA",null,"LIMON INDANZA                 "," ARQ. SIXTO DURAN BALLEN"]
[null,"RUMANIA",null,"LIMON INDANZA                 "," ARQ. SIXTO DURAN BALLEN"]
[null,"RUSIA",null,"LOGROÑO                       "," ARQ. SIXTO DURAN BALLEN"]
[null,"SAHARA OCCIDENTAL",null,"LOGROÑO                       "," ASCAZUBI"]
[null,"SAMOA",null,"LOJA                          "," ASCAZUBI"]
[null,"SAMOA AMERICANA",null,"LOJA                          "," ASCAZUBI"]
[null,"SAN BARTOLOME",null,"LOMAS DE SARGENTILLO          "," ASCAZUBI"]
[null,"SAN CRISTOBAL Y NIEVES",null,"LOMAS DE SARGENTILLO          "," ASUNCION"]
[null,"SAN MARINO",null,"LORETO                        "," ASUNCION"]
[null,"SAN MARTIN (PARTE FRANCESA)",null,"LORETO                        "," ASUNCION"]
[null,"SAN PEDRO Y MIQUELON ",null,"MACARA                        "," ASUNCION"]
[null,"SAN VICENTE Y LAS GRANADINAS",null,"MACARA                        "," ASUNCION"]
[null,"SANTA HELENA",null,"MACHALA                       "," ASUNCION"]
[null,"SANTA LUCIA",null,"MACHALA                       "," ASUNCION"]
[null,"SANTA SEDE",null,"MANGA DEL CURA                "," ASUNCION (ASANCOTO)"]
[null,"SANTO TOME Y PRINCIPE",null,"MANGA DEL CURA                "," ASUNCION (ASANCOTO)"]
[null,"SENEGAL",null,"MANTA                         "," ASUNCION (ASANCOTO)"]
[null,"SERBIA",null,"MANTA                         "," ASUNCION (ASANCOTO)"]
[null,"SEYCHELLES",null,"MARCABELI                     "," ATACAMES"]
[null,"SIERRA LEONA",null,"MARCABELI                     "," ATACAMES"]
[null,"SINGAPUR",null,"MEJIA                         "," ATACAMES"]
[null,"SIRIA",null,"MEJIA                         "," ATACAMES"]
[null,"SOMALIA",null,"MERA                          "," ATAHUALPA"]
[null,"SRI LANKA",null,"MERA                          "," ATAHUALPA"]
[null,"SUDAFRICA",null,"MILAGRO                       "," ATAHUALPA"]
[null,"SUDAN",null,"MILAGRO                       "," ATAHUALPA"]
[null,"SUECIA",null,"MIRA                          "," ATAHUALPA"]
[null,"SUIZA",null,"MIRA                          "," ATAHUALPA"]
[null,"SURINAM",null,"MOCACHE                       "," ATAHUALPA"]
[null,"SVALBARD Y JAN MAYEN",null,"MOCACHE                       "," ATAHUALPA"]
[null,"SWAZILANDIA",null,"MOCHA                         "," ATAHUALPA"]
[null,"TADYIKISTAN",null,"MOCHA                         "," ATAHUALPA"]
[null,"TAILANDIA",null,"MONTALVO                      "," ATAHUALPA (CHISALATA)"]
[null,"TANZANIA",null,"MONTALVO                      "," ATAHUALPA (CHISALATA)"]
[null,"TIMOR ORIENTAL",null,"MONTECRISTI                   "," ATAHUALPA (CHISALATA)"]
[null,"TOGO",null,"MONTECRISTI                   "," ATAHUALPA (CHISALATA)"]
[null,"TOKELAU",null,"MONTUFAR                      "," ATAHUALPA (HABASPAMBA)"]
[null,"TONGA",null,"MONTUFAR                      "," ATAHUALPA (HABASPAMBA)"]
[null,"TRINIDAD Y TOBAGO",null,"MORONA                        "," ATAHUALPA (HABASPAMBA)"]
[null,"TUNEZ",null,"MORONA                        "," ATAHUALPA (HABASPAMBA)"]
[null,"TURKMENISTAN",null,"MUISNE                        "," ATUNTAQUI"]
[null,"TURQUIA",null,"MUISNE                        "," ATUNTAQUI"]
[null,"TUVALU",null,"NABON                         "," ATUNTAQUI"]
[null,"UCRANIA",null,"NABON                         "," ATUNTAQUI"]
[null,"UGANDA",null,"NANGARITZA                    "," AUGUSTO N. MARTINEZ"]
[null,"URUGUAY",null,"NANGARITZA                    "," AUGUSTO N. MARTINEZ"]
[null,"UZBEKISTAN",null,"NARANJAL                      "," AUGUSTO N. MARTINEZ"]
[null,"VANUATU",null,"NARANJAL                      "," AUGUSTO N. MARTINEZ"]
[null,"VENEZUELA",null,"NARANJITO                     "," AVILA"]
[null,"VIETNAM",null,"NARANJITO                     "," AVILA"]
[null,"WALLIS Y FORTUNA",null,"NOBOL                         "," AVILA"]
[null,"YEMEN",null,"NOBOL                         "," AVILA"]
[null,"ZAMBIA",null,"OLMEDO                        "," AYACUCHO"]
[null,"ZIMBABWE",null,"OLMEDO                        "," AYACUCHO"]
[null,null,null,"OLMEDO                        "," AYACUCHO"]
[null,null,null,"OÑA                           "," AYACUCHO"]
[null,null,null,"OÑA                           "," AYAPAMBA"]
[null,null,null,"ORELLANA                      "," AYAPAMBA"]
[null,null,null,"ORELLANA                      "," AYAPAMBA"]
[null,null,null,"OTAVALO                       "," AYAPAMBA"]
[null,null,null,"OTAVALO                       "," AZOGUES"]
[null,null,null,"PABLO VI                      "," AZOGUES"]
[null,null,null,"PABLO VI                      "," AZOGUES"]
[null,null,null,"PAJAN                         "," AZOGUES"]
[null,null,null,"PAJAN                         "," BABA"]
[null,null,null,"PALANDA                       "," BABA"]
[null,null,null,"PALANDA                       "," BABA"]
[null,null,null,"PALENQUE                      "," BABA"]
[null,null,null,"PALENQUE                      "," BABAHOYO"]
[null,null,null,"PALESTINA                     "," BABAHOYO"]
[null,null,null,"PALESTINA                     "," BABAHOYO"]
[null,null,null,"PALLATANGA                    "," BABAHOYO"]
[null,null,null,"PALLATANGA                    "," BACHILLERO"]
[null,null,null,"PALORA                        "," BACHILLERO"]
[null,null,null,"PALORA                        "," BACHILLERO"]
[null,null,null,"PALTAS                        "," BACHILLERO"]
[null,null,null,"PALTAS                        "," BAEZA"]
[null,null,null,"PANGUA                        "," BAEZA"]
[null,null,null,"PANGUA                        "," BAEZA"]
[null,null,null,"PAQUISHA                      "," BAEZA"]
[null,null,null,"PAQUISHA                      "," BAHIA DE CARAQUEZ"]
[null,null,null,"PASAJE                        "," BAHIA DE CARAQUEZ"]
[null,null,null,"PASAJE                        "," BAHIA DE CARAQUEZ"]
[null,null,null,"PASTAZA                       "," BAHIA DE CARAQUEZ"]
[null,null,null,"PASTAZA                       "," BALAO"]
[null,null,null,"PATATE                        "," BALAO"]
[null,null,null,"PATATE                        "," BALAO"]
[null,null,null,"PAUTE                         "," BALAO"]
[null,null,null,"PAUTE                         "," BALSAPAMBA"]
[null,null,null,"PEDERNALES                    "," BALSAPAMBA"]
[null,null,null,"PEDERNALES                    "," BALSAPAMBA"]
[null,null,null,"PEDRO CARBO                   "," BALSAPAMBA"]
[null,null,null,"PEDRO CARBO                   "," BALSAS"]
[null,null,null,"PEDRO MONCAYO                 "," BALSAS"]
[null,null,null,"PEDRO MONCAYO                 "," BALSAS"]
[null,null,null,"PEDRO VICENTE MALDONADO       "," BALSAS"]
[null,null,null,"PEDRO VICENTE MALDONADO       "," BALZAR"]
[null,null,null,"PENIPE                        "," BALZAR"]
[null,null,null,"PENIPE                        "," BALZAR"]
[null,null,null,"PICHINCHA                     "," BALZAR"]
[null,null,null,"PICHINCHA                     "," BAÑOS"]
[null,null,null,"PIMAMPIRO                     "," BAÑOS"]
[null,null,null,"PIMAMPIRO                     "," BAÑOS"]
[null,null,null,"PINDAL                        "," BAÑOS"]
[null,null,null,"PINDAL                        "," BAÑOS"]
[null,null,null,"PIÑAS                         "," BAÑOS"]
[null,null,null,"PIÑAS                         "," BAÑOS"]
[null,null,null,"PLAYAS                        "," BAQUERIZO MORENO"]
[null,null,null,"PLAYAS                        "," BAQUERIZO MORENO"]
[null,null,null,"PORTOVELO                     "," BAQUERIZO MORENO"]
[null,null,null,"PORTOVELO                     "," BAQUERIZO MORENO"]
[null,null,null,"PORTOVIEJO                    "," BARBONES (SUCRE)"]
[null,null,null,"PORTOVIEJO                    "," BARBONES (SUCRE)"]
[null,null,null,"PUCARA                        "," BARBONES (SUCRE)"]
[null,null,null,"PUCARA                        "," BARBONES (SUCRE)"]
[null,null,null,"PUEBLOVIEJO                   "," BARRAGANETE"]
[null,null,null,"PUEBLOVIEJO                   "," BARRAGANETE"]
[null,null,null,"PUERTO LOPEZ                  "," BARRAGANETE"]
[null,null,null,"PUERTO LOPEZ                  "," BARRAGANETE"]
[null,null,null,"PUERTO QUITO                  "," BELISARIO QUEVEDO"]
[null,null,null,"PUERTO QUITO                  "," BELISARIO QUEVEDO"]
[null,null,null,"PUJILI                        "," BELISARIO QUEVEDO"]
[null,null,null,"PUJILI                        "," BELISARIO QUEVEDO"]
[null,null,null,"PUTUMAYO                      "," BELLAMARIA"]
[null,null,null,"PUTUMAYO                      "," BELLAMARIA"]
[null,null,null,"PUYANGO                       "," BELLAMARIA"]
[null,null,null,"PUYANGO                       "," BELLAMARIA"]
[null,null,null,"QUERO                         "," BELLAMARIA"]
[null,null,null,"QUERO                         "," BELLAMARIA"]
[null,null,null,"QUEVEDO                       "," BELLAVISTA"]
[null,null,null,"QUEVEDO                       "," BELLAVISTA"]
[null,null,null,"QUIJOS                        "," BELLAVISTA"]
[null,null,null,"QUIJOS                        "," BELLAVISTA"]
[null,null,null,"QUILANGA                      "," BELLAVISTA"]
[null,null,null,"QUILANGA                      "," BELLAVISTA"]
[null,null,null,"QUININDE                      "," BELLAVISTA"]
[null,null,null,"QUININDE                      "," BELLAVISTA"]
[null,null,null,"QUINSALOMA                    "," BELLAVISTA"]
[null,null,null,"QUINSALOMA                    "," BELLAVISTA"]
[null,null,null,"QUITO                         "," BELLAVISTA"]
[null,null,null,"QUITO                         "," BELLAVISTA"]
[null,null,null,"RIOBAMBA                      "," BELLAVISTA"]
[null,null,null,"RIOBAMBA                      "," BELLAVISTA"]
[null,null,null,"RIOVERDE                      "," BELLAVISTA"]
[null,null,null,"RIOVERDE                      "," BELLAVISTA"]
[null,null,null,"ROCAFUERTE                    "," BENITEZ (PACHANLICA)"]
[null,null,null,"ROCAFUERTE                    "," BENITEZ (PACHANLICA)"]
[null,null,null,"RUMIÑAHUI                     "," BENITEZ (PACHANLICA)"]
[null,null,null,"RUMIÑAHUI                     "," BENITEZ (PACHANLICA)"]
[null,null,null,"SALCEDO                       "," BERMEJOS"]
[null,null,null,"SALCEDO                       "," BERMEJOS"]
[null,null,null,"SALINAS                       "," BERMEJOS"]
[null,null,null,"SALINAS                       "," BERMEJOS"]
[null,null,null,"SAMBORONDON                   "," BIBLIAN"]
[null,null,null,"SAMBORONDON                   "," BIBLIAN"]
[null,null,null,"SAN CRISTOBAL                 "," BIBLIAN"]
[null,null,null,"SAN CRISTOBAL                 "," BIBLIAN"]
[null,null,null,"SAN FERNANDO                  "," BILBAO"]
[null,null,null,"SAN FERNANDO                  "," BILBAO"]
[null,null,null,"SAN JOSE DE CHIMBO            "," BILBAO"]
[null,null,null,"SAN JOSE DE CHIMBO            "," BILBAO"]
[null,null,null,"SAN JUAN BOSCO                "," BILOVAN"]
[null,null,null,"SAN JUAN BOSCO                "," BILOVAN"]
[null,null,null,"SAN LORENZO                   "," BILOVAN"]
[null,null,null,"SAN LORENZO                   "," BILOVAN"]
[null,null,null,"SAN MIGUEL                    "," BOLASPAMBA"]
[null,null,null,"SAN MIGUEL                    "," BOLASPAMBA"]
[null,null,null,"SAN MIGUEL DE LOS BANCOS      "," BOLASPAMBA"]
[null,null,null,"SAN MIGUEL DE LOS BANCOS      "," BOLASPAMBA"]
[null,null,null,"SAN MIGUEL DE URCUQUI         "," BOLIVAR"]
[null,null,null,"SAN MIGUEL DE URCUQUI         "," BOLIVAR"]
[null,null,null,"SAN PEDRO DE HUACA            "," BOLIVAR"]
[null,null,null,"SAN PEDRO DE HUACA            "," BOLIVAR"]
[null,null,null,"SAN PEDRO DE PELILEO          "," BOLIVAR"]
[null,null,null,"SAN PEDRO DE PELILEO          "," BOLIVAR"]
[null,null,null,"SAN VICENTE                   "," BOLIVAR"]
[null,null,null,"SAN VICENTE                   "," BOLIVAR"]
[null,null,null,"SANTA ANA                     "," BOLIVAR"]
[null,null,null,"SANTA ANA                     "," BOLIVAR"]
[null,null,null,"SANTA CLARA                   "," BOMBOIZA"]
[null,null,null,"SANTA CLARA                   "," BOMBOIZA"]
[null,null,null,"SANTA CRUZ                    "," BOMBOIZA"]
[null,null,null,"SANTA CRUZ                    "," BOMBOIZA"]
[null,null,null,"SANTA ELENA                   "," BORBON"]
[null,null,null,"SANTA ELENA                   "," BORBON"]
[null,null,null,"SANTA ISABEL                  "," BORBON"]
[null,null,null,"SANTA ISABEL                  "," BORBON"]
[null,null,null,"SANTA LUCIA                   "," BOYACA"]
[null,null,null,"SANTA LUCIA                   "," BOYACA"]
[null,null,null,"SANTA ROSA                    "," BOYACA"]
[null,null,null,"SANTA ROSA                    "," BOYACA"]
[null,null,null,"SANTIAGO                      "," BUENAVISTA"]
[null,null,null,"SANTIAGO                      "," BUENAVISTA"]
[null,null,null,"SANTIAGO DE PILLARO           "," BUENAVISTA"]
[null,null,null,"SANTIAGO DE PILLARO           "," BUENAVISTA"]
[null,null,null,"SANTO DOMINGO DE LOS TSACHILAS"," BUENAVISTA"]
[null,null,null,"SANTO DOMINGO DE LOS TSACHILAS"," BUENAVISTA"]
[null,null,null,"SAQUISILI                     "," BUENAVISTA"]
[null,null,null,"SAQUISILI                     "," BULAN"]
[null,null,null,"SARAGURO                      "," BULAN"]
[null,null,null,"SARAGURO                      "," BULAN"]
[null,null,null,"SEVILLA DE ORO                "," BULAN"]
[null,null,null,"SEVILLA DE ORO                "," CACHA"]
[null,null,null,"SHUSHUFINDI                   "," CACHA"]
[null,null,null,"SHUSHUFINDI                   "," CACHA"]
[null,null,null,"SIGCHOS                       "," CACHA"]
[null,null,null,"SIGCHOS                       "," CAHUASQUI"]
[null,null,null,"SIGSIG                        "," CAHUASQUI"]
[null,null,null,"SIGSIG                        "," CAHUASQUI"]
[null,null,null,"SIMON BOLIVAR                 "," CAHUASQUI"]
[null,null,null,"SIMON BOLIVAR                 "," CALACALI"]
[null,null,null,"SOZORANGA                     "," CALACALI"]
[null,null,null,"SOZORANGA                     "," CALACALI"]
[null,null,null,"SUCRE                         "," CALACALI"]
[null,null,null,"SUCRE                         "," CALCETA"]
[null,null,null,"SUCUA                         "," CALCETA"]
[null,null,null,"SUCUA                         "," CALCETA"]
[null,null,null,"SUCUMBIOS                     "," CALCETA"]
[null,null,null,"SUCUMBIOS                     "," CALDERON"]
[null,null,null,"SUSCAL                        "," CALDERON"]
[null,null,null,"SUSCAL                        "," CALDERON"]
[null,null,null,"TAISHA                        "," CALDERON"]
[null,null,null,"TAISHA                        "," CALDERON (CARAPUNGO)"]
[null,null,null,"TENA                          "," CALDERON (CARAPUNGO)"]
[null,null,null,"TENA                          "," CALDERON (CARAPUNGO)"]
[null,null,null,"TISALEO                       "," CALDERON (CARAPUNGO)"]
[null,null,null,"TISALEO                       "," CALPI"]
[null,null,null,"TIWINTZA                      "," CALPI"]
[null,null,null,"TIWINTZA                      "," CALPI"]
[null,null,null,"TOSAGUA                       "," CALPI"]
[null,null,null,"TOSAGUA                       "," CALUMA"]
[null,null,null,"Total"," CALUMA"]
[null,null,null,"Total"," CALUMA"]
[null,null,null,"Total"," CALUMA"]
[null,null,null,"Total"," CAMARONES"]
[null,null,null,"Total"," CAMARONES"]
[null,null,null,"Total"," CAMARONES"]
[null,null,null,"Total"," CAMARONES"]
[null,null,null,"Total"," CAMILO PONCE ENRIQUEZ"]
[null,null,null,"Total"," CAMILO PONCE ENRIQUEZ"]
[null,null,null,"Total"," CAMILO PONCE ENRIQUEZ"]
[null,null,null,"Total"," CAMILO PONCE ENRIQUEZ"]
[null,null,null,"Total"," CAMPOZANO"]
[null,null,null,"Total"," CAMPOZANO"]
[null,null,null,"Total"," CAMPOZANO"]
[null,null,null,"Total"," CAMPOZANO"]
[null,null,null,"Total"," CANCHAGUA"]
[null,null,null,"Total"," CANCHAGUA"]
[null,null,null,"Total"," CANCHAGUA"]
[null,null,null,"Total"," CANCHAGUA"]
[null,null,null,"Total"," CANELOS"]
[null,null,null,"Total"," CANELOS"]
[null,null,null,"Total"," CANELOS"]
[null,null,null,"Total"," CANELOS"]
[null,null,null,"Total"," CANGAHUA"]
[null,null,null,"Total"," CANGAHUA"]
[null,null,null,"TULCAN                        "," CANGAHUA"]
[null,null,null,"TULCAN                        "," CANGAHUA"]
[null,null,null,"URBINA JADO                   "," CANGONAMA"]
[null,null,null,"URBINA JADO                   "," CANGONAMA"]
[null,null,null,"URDANETA                      "," CANGONAMA"]
[null,null,null,"URDANETA                      "," CANGONAMA"]
[null,null,null,"VALENCIA                      "," CANOA"]
[null,null,null,"VALENCIA                      "," CANOA"]
[null,null,null,"VENTANAS                      "," CANOA"]
[null,null,null,"VENTANAS                      "," CANOA"]
[null,null,null,"VINCES                        "," CANUTO"]
[null,null,null,"VINCES                        "," CANUTO"]
[null,null,null,"YACUAMBI                      "," CANUTO"]
[null,null,null,"YACUAMBI                      "," CANUTO"]
[null,null,null,"YAGUACHI                      "," CAÑA QUEMADA"]
[null,null,null,"YAGUACHI                      "," CAÑA QUEMADA"]
[null,null,null,"YANTZAZA                      "," CAÑA QUEMADA"]
[null,null,null,"YANTZAZA                      "," CAÑA QUEMADA"]
[null,null,null,"ZAMORA                        "," CAÑAR"]
[null,null,null,"ZAMORA                        "," CAÑAR"]
[null,null,null,"ZAPOTILLO                     "," CAÑAR"]
[null,null,null,"ZAPOTILLO                     "," CAÑAR"]
[null,null,null,"ZARUMA                        "," CAÑI"]
[null,null,null,"ZARUMA                        "," CAÑI"]
[null,null,null,null," CAÑI"]
[null,null,null,null," CAÑI"]
[null,null,null,null," CAPIRO"]
[null,null,null,null," CAPIRO"]
[null,null,null,null," CAPIRO"]
[null,null,null,null," CAPIRO"]
[null,null,null,null," CAPITAN AUGUSTO RIBADENEYRA"]
[null,null,null,null," CAPITAN AUGUSTO RIBADENEYRA"]
[null,null,null,null," CAPITAN AUGUSTO RIBADENEYRA"]
[null,null,null,null," CAPITAN AUGUSTO RIBADENEYRA"]
[null,null,null,null," CAPZOL"]
[null,null,null,null," CAPZOL"]
[null,null,null,null," CAPZOL"]
[null,null,null,null," CAPZOL"]
[null,null,null,null," CARACOL"]
[null,null,null,null," CARACOL"]
[null,null,null,null," CARACOL"]
[null,null,null,null," CARACOL"]
[null,null,null,null," CARCABON"]
[null,null,null,null," CARCABON"]
[null,null,null,null," CARCABON"]
[null,null,null,null," CARCABON"]
[null,null,null,null," CARIAMANGA"]
[null,null,null,null," CARIAMANGA"]
[null,null,null,null," CARIAMANGA"]
[null,null,null,null," CARIAMANGA"]
[null,null,null,null," CARLOS JULIO AROSEMENA TOLA"]
[null,null,null,null," CARLOS JULIO AROSEMENA TOLA"]
[null,null,null,null," CARLOS JULIO AROSEMENA TOLA"]
[null,null,null,null," CARLOS JULIO AROSEMENA TOLA"]
[null,null,null,null," CAROLINA"]
[null,null,null,null," CAROLINA"]
[null,null,null,null," CAROLINA"]
[null,null,null,null," CAROLINA"]
[null,null,null,null," CARONDELET"]
[null,null,null,null," CARONDELET"]
[null,null,null,null," CARONDELET"]
[null,null,null,null," CARONDELET"]
[null,null,null,null," CASACAY"]
[null,null,null,null," CASACAY"]
[null,null,null,null," CASACAY"]
[null,null,null,null," CASACAY"]
[null,null,null,null," CASANGA"]
[null,null,null,null," CASANGA"]
[null,null,null,null," CASANGA"]
[null,null,null,null," CASANGA"]
[null,null,null,null," CASCOL"]
[null,null,null,null," CASCOL"]
[null,null,null,null," CASCOL"]
[null,null,null,null," CASCOL"]
[null,null,null,null," CATACOCHA"]
[null,null,null,null," CATACOCHA"]
[null,null,null,null," CATACOCHA"]
[null,null,null,null," CATACOCHA"]
[null,null,null,null," CATAMAYO (LA TOMA)"]
[null,null,null,null," CATAMAYO (LA TOMA)"]
[null,null,null,null," CATAMAYO (LA TOMA)"]
[null,null,null,null," CATAMAYO (LA TOMA)"]
[null,null,null,null," CATARAMA"]
[null,null,null,null," CATARAMA"]
[null,null,null,null," CATARAMA"]
[null,null,null,null," CATARAMA"]
[null,null,null,null," CAYAMBE"]
[null,null,null,null," CAYAMBE"]
[null,null,null,null," CAYAMBE"]
[null,null,null,null," CAYAMBE"]
[null,null,null,null," CAZADEROS"]
[null,null,null,null," CAZADEROS"]
[null,null,null,null," CAZADEROS"]
[null,null,null,null," CAZADEROS"]
[null,null,null,null," CEBADAS"]
[null,null,null,null," CEBADAS"]
[null,null,null,null," CEBADAS"]
[null,null,null,null," CEBADAS"]
[null,null,null,null," CELICA"]
[null,null,null,null," CELICA"]
[null,null,null,null," CELICA"]
[null,null,null,null," CELICA"]
[null,null,null,null," CERRO AZUL"]
[null,null,null,null," CERRO AZUL"]
[null,null,null,null," CERRO AZUL"]
[null,null,null,null," CERRO AZUL"]
[null,null,null,null," CEVALLOS"]
[null,null,null,null," CEVALLOS"]
[null,null,null,null," CEVALLOS"]
[null,null,null,null," CEVALLOS"]
[null,null,null,null," CHACRAS"]
[null,null,null,null," CHACRAS"]
[null,null,null,null," CHACRAS"]
[null,null,null,null," CHACRAS"]
[null,null,null,null," CHAGUARPAMBA"]
[null,null,null,null," CHAGUARPAMBA"]
[null,null,null,null," CHAGUARPAMBA"]
[null,null,null,null," CHAGUARPAMBA"]
[null,null,null,null," CHAMBO"]
[null,null,null,null," CHAMBO"]
[null,null,null,null," CHAMBO"]
[null,null,null,null," CHAMBO"]
[null,null,null,null," CHANDUY"]
[null,null,null,null," CHANDUY"]
[null,null,null,null," CHANDUY"]
[null,null,null,null," CHANDUY"]
[null,null,null,null," CHANGAIMINA (LA LIBERTAD"]
[null,null,null,null," CHANGAIMINA (LA LIBERTAD"]
[null,null,null,null," CHANGAIMINA (LA LIBERTAD"]
[null,null,null,null," CHANGAIMINA (LA LIBERTAD"]
[null,null,null,null," CHANTACO"]
[null,null,null,null," CHANTACO"]
[null,null,null,null," CHANTACO"]
[null,null,null,null," CHANTACO"]
[null,null,null,null," CHANTILIN"]
[null,null,null,null," CHANTILIN"]
[null,null,null,null," CHANTILIN"]
[null,null,null,null," CHANTILIN"]
[null,null,null,null," CHAQUINAL"]
[null,null,null,null," CHAQUINAL"]
[null,null,null,null," CHAQUINAL"]
[null,null,null,null," CHAQUINAL"]
[null,null,null,null," CHARAPOTO"]
[null,null,null,null," CHARAPOTO"]
[null,null,null,null," CHARAPOTO"]
[null,null,null,null," CHARAPOTO"]
[null,null,null,null," CHAUCHA"]
[null,null,null,null," CHAUCHA"]
[null,null,null,null," CHAUCHA"]
[null,null,null,null," CHAUCHA"]
[null,null,null,null," CHAVEZPAMBA"]
[null,null,null,null," CHAVEZPAMBA"]
[null,null,null,null," CHAVEZPAMBA"]
[null,null,null,null," CHAVEZPAMBA"]
[null,null,null,null," CHECA (CHILPA)"]
[null,null,null,null," CHECA (CHILPA)"]
[null,null,null,null," CHECA (CHILPA)"]
[null,null,null,null," CHECA (CHILPA)"]
[null,null,null,null," CHECA (JIDCAY)"]
[null,null,null,null," CHECA (JIDCAY)"]
[null,null,null,null," CHECA (JIDCAY)"]
[null,null,null,null," CHECA (JIDCAY)"]
[null,null,null,null," CHIBUNGA"]
[null,null,null,null," CHIBUNGA"]
[null,null,null,null," CHIBUNGA"]
[null,null,null,null," CHIBUNGA"]
[null,null,null,null," CHICAN"]
[null,null,null,null," CHICAN"]
[null,null,null,null," CHICAN"]
[null,null,null,null," CHICAN"]
[null,null,null,null," CHICAÑA"]
[null,null,null,null," CHICAÑA"]
[null,null,null,null," CHICAÑA"]
[null,null,null,null," CHICAÑA"]
[null,null,null,null," CHIGUAZA"]
[null,null,null,null," CHIGUAZA"]
[null,null,null,null," CHIGUAZA"]
[null,null,null,null," CHIGUAZA"]
[null,null,null,null," CHIGUINDA"]
[null,null,null,null," CHIGUINDA"]
[null,null,null,null," CHIGUINDA"]
[null,null,null,null," CHIGUINDA"]
[null,null,null,null," CHILLA"]
[null,null,null,null," CHILLA"]
[null,null,null,null," CHILLA"]
[null,null,null,null," CHILLA"]
[null,null,null,null," CHILLANES"]
[null,null,null,null," CHILLANES"]
[null,null,null,null," CHILLANES"]
[null,null,null,null," CHILLANES"]
[null,null,null,null," CHINCA"]
[null,null,null,null," CHINCA"]
[null,null,null,null," CHINCA"]
[null,null,null,null," CHINCA"]
[null,null,null,null," CHIQUICHA"]
[null,null,null,null," CHIQUICHA"]
[null,null,null,null," CHIQUICHA"]
[null,null,null,null," CHIQUICHA"]
[null,null,null,null," CHIQUINTAD"]
[null,null,null,null," CHIQUINTAD"]
[null,null,null,null," CHIQUINTAD"]
[null,null,null,null," CHIQUINTAD"]
[null,null,null,null," CHIRIJOS"]
[null,null,null,null," CHIRIJOS"]
[null,null,null,null," CHIRIJOS"]
[null,null,null,null," CHIRIJOS"]
[null,null,null,null," CHITAN DE NAVARRETE"]
[null,null,null,null," CHITAN DE NAVARRETE"]
[null,null,null,null," CHITAN DE NAVARRETE"]
[null,null,null,null," CHITAN DE NAVARRETE"]
[null,null,null,null," CHITO"]
[null,null,null,null," CHITO"]
[null,null,null,null," CHITO"]
[null,null,null,null," CHITO"]
[null,null,null,null," CHOBO"]
[null,null,null,null," CHOBO"]
[null,null,null,null," CHOBO"]
[null,null,null,null," CHOBO"]
[null,null,null,null," CHONE"]
[null,null,null,null," CHONE"]
[null,null,null,null," CHONE"]
[null,null,null,null," CHONE"]
[null,null,null,null," CHONTADURO"]
[null,null,null,null," CHONTADURO"]
[null,null,null,null," CHONTADURO"]
[null,null,null,null," CHONTADURO"]
[null,null,null,null," CHONTAMARCA"]
[null,null,null,null," CHONTAMARCA"]
[null,null,null,null," CHONTAMARCA"]
[null,null,null,null," CHONTAMARCA"]
[null,null,null,null," CHONTAPUNTA"]
[null,null,null,null," CHONTAPUNTA"]
[null,null,null,null," CHONTAPUNTA"]
[null,null,null,null," CHONTAPUNTA"]
[null,null,null,null," CHORDELEG"]
[null,null,null,null," CHORDELEG"]
[null,null,null,null," CHORDELEG"]
[null,null,null,null," CHORDELEG"]
[null,null,null,null," CHOROCOPTE"]
[null,null,null,null," CHOROCOPTE"]
[null,null,null,null," CHOROCOPTE"]
[null,null,null,null," CHOROCOPTE"]
[null,null,null,null," CHUGCHILAN"]
[null,null,null,null," CHUGCHILAN"]
[null,null,null,null," CHUGCHILAN"]
[null,null,null,null," CHUGCHILAN"]
[null,null,null,null," CHUMBLIN"]
[null,null,null,null," CHUMBLIN"]
[null,null,null,null," CHUMBLIN"]
[null,null,null,null," CHUMBLIN"]
[null,null,null,null," CHUMUNDE"]
[null,null,null,null," CHUMUNDE"]
[null,null,null,null," CHUMUNDE"]
[null,null,null,null," CHUMUNDE"]
[null,null,null,null," CHUNCHI"]
[null,null,null,null," CHUNCHI"]
[null,null,null,null," CHUNCHI"]
[null,null,null,null," CHUNCHI"]
[null,null,null,null," CHUPIANZA"]
[null,null,null,null," CHUPIANZA"]
[null,null,null,null," CHUPIANZA"]
[null,null,null,null," CHUPIANZA"]
[null,null,null,null," CHUQUIRIBAMBA"]
[null,null,null,null," CHUQUIRIBAMBA"]
[null,null,null,null," CHUQUIRIBAMBA"]
[null,null,null,null," CHUQUIRIBAMBA"]
[null,null,null,null," CHURA (CHANCAMA)"]
[null,null,null,null," CHURA (CHANCAMA)"]
[null,null,null,null," CHURA (CHANCAMA)"]
[null,null,null,null," CHURA (CHANCAMA)"]
[null,null,null,null," CIANO"]
[null,null,null,null," CIANO"]
[null,null,null,null," CIANO"]
[null,null,null,null," CIANO"]
[null,null,null,null," COCHAPAMBA"]
[null,null,null,null," COCHAPAMBA"]
[null,null,null,null," COCHAPAMBA"]
[null,null,null,null," COCHAPAMBA"]
[null,null,null,null," COCHAPATA"]
[null,null,null,null," COCHAPATA"]
[null,null,null,null," COCHAPATA"]
[null,null,null,null," COCHAPATA"]
[null,null,null,null," COJIMIES"]
[null,null,null,null," COJIMIES"]
[null,null,null,null," COJIMIES"]
[null,null,null,null," COJIMIES"]
[null,null,null,null," COJITAMBO"]
[null,null,null,null," COJITAMBO"]
[null,null,null,null," COJITAMBO"]
[null,null,null,null," COJITAMBO"]
[null,null,null,null," COLAISACA"]
[null,null,null,null," COLAISACA"]
[null,null,null,null," COLAISACA"]
[null,null,null,null," COLAISACA"]
[null,null,null,null," COLIMES"]
[null,null,null,null," COLIMES"]
[null,null,null,null," COLIMES"]
[null,null,null,null," COLIMES"]
[null,null,null,null," COLON ELOY DEL MARIA"]
[null,null,null,null," COLON ELOY DEL MARIA"]
[null,null,null,null," COLON ELOY DEL MARIA"]
[null,null,null,null," COLON ELOY DEL MARIA"]
[null,null,null,null," COLONCHE"]
[null,null,null,null," COLONCHE"]
[null,null,null,null," COLONCHE"]
[null,null,null,null," COLONCHE"]
[null,null,null,null," COLUMBE"]
[null,null,null,null," COLUMBE"]
[null,null,null,null," COLUMBE"]
[null,null,null,null," COLUMBE"]
[null,null,null,null," COMPUD"]
[null,null,null,null," COMPUD"]
[null,null,null,null," COMPUD"]
[null,null,null,null," COMPUD"]
[null,null,null,null," CONCEPCION"]
[null,null,null,null," CONCEPCION"]
[null,null,null,null," CONCEPCION"]
[null,null,null,null," CONCEPCION"]
[null,null,null,null," CONCEPCION"]
[null,null,null,null," CONCEPCION"]
[null,null,null,null," CONCEPCION"]
[null,null,null,null," CONOCOTO"]
[null,null,null,null," CONOCOTO"]
[null,null,null,null," CONOCOTO"]
[null,null,null,null," CONOCOTO"]
[null,null,null,null," CONONACO"]
[null,null,null,null," CONONACO"]
[null,null,null,null," CONONACO"]
[null,null,null,null," CONONACO"]
[null,null,null,null," CONSTANTINO FERNANDEZ"]
[null,null,null,null," CONSTANTINO FERNANDEZ"]
[null,null,null,null," CONSTANTINO FERNANDEZ"]
[null,null,null,null," CONSTANTINO FERNANDEZ"]
[null,null,null,null," CONVENTO"]
[null,null,null,null," CONVENTO"]
[null,null,null,null," CONVENTO"]
[null,null,null,null," CONVENTO"]
[null,null,null,null," COPAL"]
[null,null,null,null," COPAL"]
[null,null,null,null," COPAL"]
[null,null,null,null," COPAL"]
[null,null,null,null," CORDONCILLO"]
[null,null,null,null," CORDONCILLO"]
[null,null,null,null," CORDONCILLO"]
[null,null,null,null," CORDONCILLO"]
[null,null,null,null," CORONEL MARCELINO MARIDUEÑA"]
[null,null,null,null," CORONEL MARCELINO MARIDUEÑA"]
[null,null,null,null," CORONEL MARCELINO MARIDUEÑA"]
[null,null,null,null," CORONEL MARCELINO MARIDUEÑA"]
[null,null,null,null," COSANGA"]
[null,null,null,null," COSANGA"]
[null,null,null,null," COSANGA"]
[null,null,null,null," COSANGA"]
[null,null,null,null," COTACACHI"]
[null,null,null,null," COTACACHI"]
[null,null,null,null," COTACACHI"]
[null,null,null,null," COTACACHI"]
[null,null,null,null," COTALO"]
[null,null,null,null," COTALO"]
[null,null,null,null," COTALO"]
[null,null,null,null," COTALO"]
[null,null,null,null," COTOGCHOA"]
[null,null,null,null," COTOGCHOA"]
[null,null,null,null," COTOGCHOA"]
[null,null,null,null," COTOGCHOA"]
[null,null,null,null," COTUNDO"]
[null,null,null,null," COTUNDO"]
[null,null,null,null," COTUNDO"]
[null,null,null,null," COTUNDO"]
[null,null,null,null," CRISTOBAL COLON"]
[null,null,null,null," CRISTOBAL COLON"]
[null,null,null,null," CRISTOBAL COLON"]
[null,null,null,null," CRISTOBAL COLON"]
[null,null,null,null," CRNEL. CARLOS CONCHA TORRES"]
[null,null,null,null," CRNEL. CARLOS CONCHA TORRES"]
[null,null,null,null," CRNEL. CARLOS CONCHA TORRES"]
[null,null,null,null," CRNEL. CARLOS CONCHA TORRES"]
[null,null,null,null," CRNEL.LORENZO DE GARAICOA"]
[null,null,null,null," CRNEL.LORENZO DE GARAICOA"]
[null,null,null,null," CRNEL.LORENZO DE GARAICOA"]
[null,null,null,null," CRNEL.LORENZO DE GARAICOA"]
[null,null,null,null," CRUCITA"]
[null,null,null,null," CRUCITA"]
[null,null,null,null," CRUCITA"]
[null,null,null,null," CRUCITA"]
[null,null,null,null," CRUZPAMBA"]
[null,null,null,null," CRUZPAMBA"]
[null,null,null,null," CRUZPAMBA"]
[null,null,null,null," CRUZPAMBA"]
[null,null,null,null," CUBE"]
[null,null,null,null," CUBE"]
[null,null,null,null," CUBE"]
[null,null,null,null," CUBE"]
[null,null,null,null," CUBIJIES"]
[null,null,null,null," CUBIJIES"]
[null,null,null,null," CUBIJIES"]
[null,null,null,null," CUBIJIES"]
[null,null,null,null," CUCHAENTZA"]
[null,null,null,null," CUCHAENTZA"]
[null,null,null,null," CUCHAENTZA"]
[null,null,null,null," CUCHAENTZA"]
[null,null,null,null," CUCHIL"]
[null,null,null,null," CUCHIL"]
[null,null,null,null," CUCHIL"]
[null,null,null,null," CUCHIL"]
[null,null,null,null," CUENCA"]
[null,null,null,null," CUENCA"]
[null,null,null,null," CUENCA"]
[null,null,null,null," CUENCA"]
[null,null,null,null," CUMANDA"]
[null,null,null,null," CUMANDA"]
[null,null,null,null," CUMANDA"]
[null,null,null,null," CUMANDA"]
[null,null,null,null," CUMANDA"]
[null,null,null,null," CUMANDA"]
[null,null,null,null," CUMANDA"]
[null,null,null,null," CUMBARATZA"]
[null,null,null,null," CUMBARATZA"]
[null,null,null,null," CUMBARATZA"]
[null,null,null,null," CUMBARATZA"]
[null,null,null,null," CUMBAYA"]
[null,null,null,null," CUMBAYA"]
[null,null,null,null," CUMBAYA"]
[null,null,null,null," CUMBAYA"]
[null,null,null,null," CUMBE"]
[null,null,null,null," CUMBE"]
[null,null,null,null," CUMBE"]
[null,null,null,null," CUMBE"]
[null,null,null,null," CUNCHIBAMBA"]
[null,null,null,null," CUNCHIBAMBA"]
[null,null,null,null," CUNCHIBAMBA"]
[null,null,null,null," CUNCHIBAMBA"]
[null,null,null,null," CURTINCAPA"]
[null,null,null,null," CURTINCAPA"]
[null,null,null,null," CURTINCAPA"]
[null,null,null,null," CURTINCAPA"]
[null,null,null,null," CUSUBAMBA"]
[null,null,null,null," CUSUBAMBA"]
[null,null,null,null," CUSUBAMBA"]
[null,null,null,null," CUSUBAMBA"]
[null,null,null,null," CUTUGLAHUA"]
[null,null,null,null," CUTUGLAHUA"]
[null,null,null,null," CUTUGLAHUA"]
[null,null,null,null," CUTUGLAHUA"]
[null,null,null,null," CUYABENO"]
[null,null,null,null," CUYABENO"]
[null,null,null,null," CUYABENO"]
[null,null,null,null," CUYABENO"]
[null,null,null,null," CUYUJA"]
[null,null,null,null," CUYUJA"]
[null,null,null,null," CUYUJA"]
[null,null,null,null," CUYUJA"]
[null,null,null,null," DANIEL CORDOVA TORAL"]
[null,null,null,null," DANIEL CORDOVA TORAL"]
[null,null,null,null," DANIEL CORDOVA TORAL"]
[null,null,null,null," DANIEL CORDOVA TORAL"]
[null,null,null,null," DAULE"]
[null,null,null,null," DAULE"]
[null,null,null,null," DAULE"]
[null,null,null,null," DAULE"]
[null,null,null,null," DAULE"]
[null,null,null,null," DAULE"]
[null,null,null,null," DAULE"]
[null,null,null,null," DAYUMA"]
[null,null,null,null," DAYUMA"]
[null,null,null,null," DAYUMA"]
[null,null,null,null," DAYUMA"]
[null,null,null,null," DELEG"]
[null,null,null,null," DELEG"]
[null,null,null,null," DELEG"]
[null,null,null,null," DELEG"]
[null,null,null,null," DIEZ DE AGOSTO"]
[null,null,null,null," DIEZ DE AGOSTO"]
[null,null,null,null," DIEZ DE AGOSTO"]
[null,null,null,null," DIEZ DE AGOSTO"]
[null,null,null,null," DR. MIGUEL EGAS CABEZAS"]
[null,null,null,null," DR. MIGUEL EGAS CABEZAS"]
[null,null,null,null," DR. MIGUEL EGAS CABEZAS"]
[null,null,null,null," DR. MIGUEL EGAS CABEZAS"]
[null,null,null,null," DUCUR"]
[null,null,null,null," DUCUR"]
[null,null,null,null," DUCUR"]
[null,null,null,null," DUCUR"]
[null,null,null,null," DUG-DUG"]
[null,null,null,null," DUG-DUG"]
[null,null,null,null," DUG-DUG"]
[null,null,null,null," DUG-DUG"]
[null,null,null,null," DURENO"]
[null,null,null,null," DURENO"]
[null,null,null,null," DURENO"]
[null,null,null,null," DURENO"]
[null,null,null,null," ECHEANDIA"]
[null,null,null,null," ECHEANDIA"]
[null,null,null,null," ECHEANDIA"]
[null,null,null,null," ECHEANDIA"]
[null,null,null,null," EL AIRO"]
[null,null,null,null," EL AIRO"]
[null,null,null,null," EL AIRO"]
[null,null,null,null," EL AIRO"]
[null,null,null,null," EL ALTAR"]
[null,null,null,null," EL ALTAR"]
[null,null,null,null," EL ALTAR"]
[null,null,null,null," EL ALTAR"]
[null,null,null,null," EL ANEGADO"]
[null,null,null,null," EL ANEGADO"]
[null,null,null,null," EL ANEGADO"]
[null,null,null,null," EL ANEGADO"]
[null,null,null,null," EL ANGEL"]
[null,null,null,null," EL ANGEL"]
[null,null,null,null," EL ANGEL"]
[null,null,null,null," EL ANGEL"]
[null,null,null,null," EL ARENAL"]
[null,null,null,null," EL ARENAL"]
[null,null,null,null," EL ARENAL"]
[null,null,null,null," EL ARENAL"]
[null,null,null,null," EL CABO"]
[null,null,null,null," EL CABO"]
[null,null,null,null," EL CABO"]
[null,null,null,null," EL CABO"]
[null,null,null,null," EL CARMELO (EL PUN)"]
[null,null,null,null," EL CARMELO (EL PUN)"]
[null,null,null,null," EL CARMELO (EL PUN)"]
[null,null,null,null," EL CARMELO (EL PUN)"]
[null,null,null,null," EL CARMEN"]
[null,null,null,null," EL CARMEN"]
[null,null,null,null," EL CARMEN"]
[null,null,null,null," EL CARMEN"]
[null,null,null,null," EL CARMEN DE PIJILI"]
[null,null,null,null," EL CARMEN DE PIJILI"]
[null,null,null,null," EL CARMEN DE PIJILI"]
[null,null,null,null," EL CARMEN DE PIJILI"]
[null,null,null,null," EL CHACO"]
[null,null,null,null," EL CHACO"]
[null,null,null,null," EL CHACO"]
[null,null,null,null," EL CHACO"]
[null,null,null,null," EL CHAUPI"]
[null,null,null,null," EL CHAUPI"]
[null,null,null,null," EL CHAUPI"]
[null,null,null,null," EL CHAUPI"]
[null,null,null,null," EL CHICAL"]
[null,null,null,null," EL CHICAL"]
[null,null,null,null," EL CHICAL"]
[null,null,null,null," EL CHICAL"]
[null,null,null,null," EL CHORRO"]
[null,null,null,null," EL CHORRO"]
[null,null,null,null," EL CHORRO"]
[null,null,null,null," EL CHORRO"]
[null,null,null,null," EL CISNE"]
[null,null,null,null," EL CISNE"]
[null,null,null,null," EL CISNE"]
[null,null,null,null," EL CISNE"]
[null,null,null,null," EL CORAZON"]
[null,null,null,null," EL CORAZON"]
[null,null,null,null," EL CORAZON"]
[null,null,null,null," EL CORAZON"]
[null,null,null,null," EL DORADO"]
[null,null,null,null," EL DORADO"]
[null,null,null,null," EL DORADO"]
[null,null,null,null," EL DORADO"]
[null,null,null,null," EL DORADO DE CASCALES"]
[null,null,null,null," EL DORADO DE CASCALES"]
[null,null,null,null," EL DORADO DE CASCALES"]
[null,null,null,null," EL DORADO DE CASCALES"]
[null,null,null,null," EL EDEN"]
[null,null,null,null," EL EDEN"]
[null,null,null,null," EL EDEN"]
[null,null,null,null," EL EDEN"]
[null,null,null,null," EL ENO"]
[null,null,null,null," EL ENO"]
[null,null,null,null," EL ENO"]
[null,null,null,null," EL ENO"]
[null,null,null,null," EL ESFUERZO"]
[null,null,null,null," EL ESFUERZO"]
[null,null,null,null," EL ESFUERZO"]
[null,null,null,null," EL ESFUERZO"]
[null,null,null,null," EL GOALTAL"]
[null,null,null,null," EL GOALTAL"]
[null,null,null,null," EL GOALTAL"]
[null,null,null,null," EL GOALTAL"]
[null,null,null,null," EL GUABO"]
[null,null,null,null," EL GUABO"]
[null,null,null,null," EL GUABO"]
[null,null,null,null," EL GUABO"]
[null,null,null,null," EL GUISMI"]
[null,null,null,null," EL GUISMI"]
[null,null,null,null," EL GUISMI"]
[null,null,null,null," EL GUISMI"]
[null,null,null,null," EL IDEAL"]
[null,null,null,null," EL IDEAL"]
[null,null,null,null," EL IDEAL"]
[null,null,null,null," EL IDEAL"]
[null,null,null,null," EL INGENIO"]
[null,null,null,null," EL INGENIO"]
[null,null,null,null," EL INGENIO"]
[null,null,null,null," EL INGENIO"]
[null,null,null,null," EL INGENIO"]
[null,null,null,null," EL INGENIO"]
[null,null,null,null," EL INGENIO"]
[null,null,null,null," EL LIMO (MARIANA DE JESUS)"]
[null,null,null,null," EL LIMO (MARIANA DE JESUS)"]
[null,null,null,null," EL LIMO (MARIANA DE JESUS)"]
[null,null,null,null," EL LIMO (MARIANA DE JESUS)"]
[null,null,null,null," EL LUCERO"]
[null,null,null,null," EL LUCERO"]
[null,null,null,null," EL LUCERO"]
[null,null,null,null," EL LUCERO"]
[null,null,null,null," EL PAN"]
[null,null,null,null," EL PAN"]
[null,null,null,null," EL PAN"]
[null,null,null,null," EL PAN"]
[null,null,null,null," EL PANGUI"]
[null,null,null,null," EL PANGUI"]
[null,null,null,null," EL PANGUI"]
[null,null,null,null," EL PANGUI"]
[null,null,null,null," EL PARAISO"]
[null,null,null,null," EL PARAISO"]
[null,null,null,null," EL PARAISO"]
[null,null,null,null," EL PARAISO"]
[null,null,null,null," EL PARAISO DE CELEN"]
[null,null,null,null," EL PARAISO DE CELEN"]
[null,null,null,null," EL PARAISO DE CELEN"]
[null,null,null,null," EL PARAISO DE CELEN"]
[null,null,null,null," EL PIEDRERO"]
[null,null,null,null," EL PIEDRERO"]
[null,null,null,null," EL PIEDRERO"]
[null,null,null,null," EL PIEDRERO"]
[null,null,null,null," EL PLAYON DE SAN FRANCIS"]
[null,null,null,null," EL PLAYON DE SAN FRANCIS"]
[null,null,null,null," EL PLAYON DE SAN FRANCIS"]
[null,null,null,null," EL PLAYON DE SAN FRANCIS"]
[null,null,null,null," EL PORVENIR DEL CARMEN"]
[null,null,null,null," EL PORVENIR DEL CARMEN"]
[null,null,null,null," EL PORVENIR DEL CARMEN"]
[null,null,null,null," EL PORVENIR DEL CARMEN"]
[null,null,null,null," EL PROGRESO"]
[null,null,null,null," EL PROGRESO"]
[null,null,null,null," EL PROGRESO"]
[null,null,null,null," EL PROGRESO"]
[null,null,null,null," EL PROGRESO"]
[null,null,null,null," EL PROGRESO"]
[null,null,null,null," EL PROGRESO"]
[null,null,null,null," EL QUINCHE"]
[null,null,null,null," EL QUINCHE"]
[null,null,null,null," EL QUINCHE"]
[null,null,null,null," EL QUINCHE"]
[null,null,null,null," EL RETIRO"]
[null,null,null,null," EL RETIRO"]
[null,null,null,null," EL RETIRO"]
[null,null,null,null," EL RETIRO"]
[null,null,null,null," EL REVENTADOR"]
[null,null,null,null," EL REVENTADOR"]
[null,null,null,null," EL REVENTADOR"]
[null,null,null,null," EL REVENTADOR"]
[null,null,null,null," EL ROSARIO"]
[null,null,null,null," EL ROSARIO"]
[null,null,null,null," EL ROSARIO"]
[null,null,null,null," EL ROSARIO"]
[null,null,null,null," EL ROSARIO"]
[null,null,null,null," EL ROSARIO"]
[null,null,null,null," EL ROSARIO"]
[null,null,null,null," EL ROSARIO"]
[null,null,null,null," EL ROSARIO"]
[null,null,null,null," EL ROSARIO"]
[null,null,null,null," EL ROSARIO (RUMICHACA)"]
[null,null,null,null," EL ROSARIO (RUMICHACA)"]
[null,null,null,null," EL ROSARIO (RUMICHACA)"]
[null,null,null,null," EL ROSARIO (RUMICHACA)"]
[null,null,null,null," EL SALITRE (LAS RAMAS)"]
[null,null,null,null," EL SALITRE (LAS RAMAS)"]
[null,null,null,null," EL SALITRE (LAS RAMAS)"]
[null,null,null,null," EL SALITRE (LAS RAMAS)"]
[null,null,null,null," EL TABLON"]
[null,null,null,null," EL TABLON"]
[null,null,null,null," EL TABLON"]
[null,null,null,null," EL TABLON"]
[null,null,null,null," EL TAMBO"]
[null,null,null,null," EL TAMBO"]
[null,null,null,null," EL TAMBO"]
[null,null,null,null," EL TAMBO"]
[null,null,null,null," EL TAMBO"]
[null,null,null,null," EL TAMBO"]
[null,null,null,null," EL TAMBO"]
[null,null,null,null," EL TRIUNFO"]
[null,null,null,null," EL TRIUNFO"]
[null,null,null,null," EL TRIUNFO"]
[null,null,null,null," EL TRIUNFO"]
[null,null,null,null," EL TRIUNFO"]
[null,null,null,null," EL TRIUNFO"]
[null,null,null,null," EL TRIUNFO"]
[null,null,null,null," EL TRIUNFO"]
[null,null,null,null," EL TRIUNFO"]
[null,null,null,null," EL TRIUNFO"]
[null,null,null,null," ELOY ALFARO"]
[null,null,null,null," ELOY ALFARO"]
[null,null,null,null," ELOY ALFARO"]
[null,null,null,null," ELOY ALFARO"]
[null,null,null,null," ELOY ALFARO (DURAN)"]
[null,null,null,null," ELOY ALFARO (DURAN)"]
[null,null,null,null," ELOY ALFARO (DURAN)"]
[null,null,null,null," ELOY ALFARO (DURAN)"]
[null,null,null,null," EMILIO MARIA TERAN"]
[null,null,null,null," EMILIO MARIA TERAN"]
[null,null,null,null," EMILIO MARIA TERAN"]
[null,null,null,null," EMILIO MARIA TERAN"]
[null,null,null,null," ENOKANQUI"]
[null,null,null,null," ENOKANQUI"]
[null,null,null,null," ENOKANQUI"]
[null,null,null,null," ENOKANQUI"]
[null,null,null,null," ESMERALDAS"]
[null,null,null,null," ESMERALDAS"]
[null,null,null,null," ESMERALDAS"]
[null,null,null,null," ESMERALDAS"]
[null,null,null,null," EUGENIO ESPEJO (CALPAQUI)"]
[null,null,null,null," EUGENIO ESPEJO (CALPAQUI)"]
[null,null,null,null," EUGENIO ESPEJO (CALPAQUI)"]
[null,null,null,null," EUGENIO ESPEJO (CALPAQUI)"]
[null,null,null,null," FACUNDO VELA"]
[null,null,null,null," FACUNDO VELA"]
[null,null,null,null," FACUNDO VELA"]
[null,null,null,null," FACUNDO VELA"]
[null,null,null,null," FATIMA"]
[null,null,null,null," FATIMA"]
[null,null,null,null," FATIMA"]
[null,null,null,null," FATIMA"]
[null,null,null,null," FEBRES CORDERO (LAS JUNTAS)"]
[null,null,null,null," FEBRES CORDERO (LAS JUNTAS)"]
[null,null,null,null," FEBRES CORDERO (LAS JUNTAS)"]
[null,null,null,null," FEBRES CORDERO (LAS JUNTAS)"]
[null,null,null,null," FERNANDEZ SALVADOR"]
[null,null,null,null," FERNANDEZ SALVADOR"]
[null,null,null,null," FERNANDEZ SALVADOR"]
[null,null,null,null," FERNANDEZ SALVADOR"]
[null,null,null,null," FLAVIO ALFARO"]
[null,null,null,null," FLAVIO ALFARO"]
[null,null,null,null," FLAVIO ALFARO"]
[null,null,null,null," FLAVIO ALFARO"]
[null,null,null,null," FLORES"]
[null,null,null,null," FLORES"]
[null,null,null,null," FLORES"]
[null,null,null,null," FLORES"]
[null,null,null,null," FUNDOCHAMBA"]
[null,null,null,null," FUNDOCHAMBA"]
[null,null,null,null," FUNDOCHAMBA"]
[null,null,null,null," FUNDOCHAMBA"]
[null,null,null,null," GALERA"]
[null,null,null,null," GALERA"]
[null,null,null,null," GALERA"]
[null,null,null,null," GALERA"]
[null,null,null,null," GARCIA MORENO"]
[null,null,null,null," GARCIA MORENO"]
[null,null,null,null," GARCIA MORENO"]
[null,null,null,null," GARCIA MORENO"]
[null,null,null,null," GARCIA MORENO"]
[null,null,null,null," GARCIA MORENO"]
[null,null,null,null," GARCIA MORENO"]
[null,null,null,null," GARCIA MORENO"]
[null,null,null,null," GARCIA MORENO"]
[null,null,null,null," GARCIA MORENO"]
[null,null,null,null," GARCIA MORENO (CHUMAQUI)"]
[null,null,null,null," GARCIA MORENO (CHUMAQUI)"]
[null,null,null,null," GARCIA MORENO (CHUMAQUI)"]
[null,null,null,null," GARCIA MORENO (CHUMAQUI)"]
[null,null,null,null," GARZAREAL"]
[null,null,null,null," GARZAREAL"]
[null,null,null,null," GARZAREAL"]
[null,null,null,null," GARZAREAL"]
[null,null,null,null," GENERAL ANTONIO ELIZALDE"]
[null,null,null,null," GENERAL ANTONIO ELIZALDE"]
[null,null,null,null," GENERAL ANTONIO ELIZALDE"]
[null,null,null,null," GENERAL ANTONIO ELIZALDE"]
[null,null,null,null," GENERAL FARFAN"]
[null,null,null,null," GENERAL FARFAN"]
[null,null,null,null," GENERAL FARFAN"]
[null,null,null,null," GENERAL FARFAN"]
[null,null,null,null," GENERAL LEONIDAS PLAZA G."]
[null,null,null,null," GENERAL LEONIDAS PLAZA G."]
[null,null,null,null," GENERAL LEONIDAS PLAZA G."]
[null,null,null,null," GENERAL LEONIDAS PLAZA G."]
[null,null,null,null," GENERAL MORALES"]
[null,null,null,null," GENERAL MORALES"]
[null,null,null,null," GENERAL MORALES"]
[null,null,null,null," GENERAL MORALES"]
[null,null,null,null," GENERAL PROAÑO"]
[null,null,null,null," GENERAL PROAÑO"]
[null,null,null,null," GENERAL PROAÑO"]
[null,null,null,null," GENERAL PROAÑO"]
[null,null,null,null," GENERAL VERNAZA"]
[null,null,null,null," GENERAL VERNAZA"]
[null,null,null,null," GENERAL VERNAZA"]
[null,null,null,null," GENERAL VERNAZA"]
[null,null,null,null," GENERAL VILLAMIL"]
[null,null,null,null," GENERAL VILLAMIL"]
[null,null,null,null," GENERAL VILLAMIL"]
[null,null,null,null," GENERAL VILLAMIL"]
[null,null,null,null," GIMA"]
[null,null,null,null," GIMA"]
[null,null,null,null," GIMA"]
[null,null,null,null," GIMA"]
[null,null,null,null," GIRON"]
[null,null,null,null," GIRON"]
[null,null,null,null," GIRON"]
[null,null,null,null," GIRON"]
[null,null,null,null," GONZALEZ SUAREZ"]
[null,null,null,null," GONZALEZ SUAREZ"]
[null,null,null,null," GONZALEZ SUAREZ"]
[null,null,null,null," GONZALEZ SUAREZ"]
[null,null,null,null," GONZALO DIAZ DE PINEDA"]
[null,null,null,null," GONZALO DIAZ DE PINEDA"]
[null,null,null,null," GONZALO DIAZ DE PINEDA"]
[null,null,null,null," GONZALO DIAZ DE PINEDA"]
[null,null,null,null," GONZALO PIZARRO"]
[null,null,null,null," GONZALO PIZARRO"]
[null,null,null,null," GONZALO PIZARRO"]
[null,null,null,null," GONZALO PIZARRO"]
[null,null,null,null," GONZANAMA"]
[null,null,null,null," GONZANAMA"]
[null,null,null,null," GONZANAMA"]
[null,null,null,null," GONZANAMA"]
[null,null,null,null," GONZOL"]
[null,null,null,null," GONZOL"]
[null,null,null,null," GONZOL"]
[null,null,null,null," GONZOL"]
[null,null,null,null," GRAL. PEDRO J. MONTERO"]
[null,null,null,null," GRAL. PEDRO J. MONTERO"]
[null,null,null,null," GRAL. PEDRO J. MONTERO"]
[null,null,null,null," GRAL. PEDRO J. MONTERO"]
[null,null,null,null," GUACHANAMA"]
[null,null,null,null," GUACHANAMA"]
[null,null,null,null," GUACHANAMA"]
[null,null,null,null," GUACHANAMA"]
[null,null,null,null," GUACHAPALA"]
[null,null,null,null," GUACHAPALA"]
[null,null,null,null," GUACHAPALA"]
[null,null,null,null," GUACHAPALA"]
[null,null,null,null," GUADALUPE"]
[null,null,null,null," GUADALUPE"]
[null,null,null,null," GUADALUPE"]
[null,null,null,null," GUADALUPE"]
[null,null,null,null," GUAITACAMA (GUAYTACAMA)"]
[null,null,null,null," GUAITACAMA (GUAYTACAMA)"]
[null,null,null,null," GUAITACAMA (GUAYTACAMA)"]
[null,null,null,null," GUAITACAMA (GUAYTACAMA)"]
[null,null,null,null," GUALACEO"]
[null,null,null,null," GUALACEO"]
[null,null,null,null," GUALACEO"]
[null,null,null,null," GUALACEO"]
[null,null,null,null," GUALAQUIZA"]
[null,null,null,null," GUALAQUIZA"]
[null,null,null,null," GUALAQUIZA"]
[null,null,null,null," GUALAQUIZA"]
[null,null,null,null," GUALE"]
[null,null,null,null," GUALE"]
[null,null,null,null," GUALE"]
[null,null,null,null," GUALE"]
[null,null,null,null," GUALEA"]
[null,null,null,null," GUALEA"]
[null,null,null,null," GUALEA"]
[null,null,null,null," GUALEA"]
[null,null,null,null," GUALEL"]
[null,null,null,null," GUALEL"]
[null,null,null,null," GUALEL"]
[null,null,null,null," GUALEL"]
[null,null,null,null," GUALLETURO"]
[null,null,null,null," GUALLETURO"]
[null,null,null,null," GUALLETURO"]
[null,null,null,null," GUALLETURO"]
[null,null,null,null," GUAMBALO (HUAMBALO)"]
[null,null,null,null," GUAMBALO (HUAMBALO)"]
[null,null,null,null," GUAMBALO (HUAMBALO)"]
[null,null,null,null," GUAMBALO (HUAMBALO)"]
[null,null,null,null," GUAMOTE"]
[null,null,null,null," GUAMOTE"]
[null,null,null,null," GUAMOTE"]
[null,null,null,null," GUAMOTE"]
[null,null,null,null," GUANANDO"]
[null,null,null,null," GUANANDO"]
[null,null,null,null," GUANANDO"]
[null,null,null,null," GUANANDO"]
[null,null,null,null," GUANAZAN"]
[null,null,null,null," GUANAZAN"]
[null,null,null,null," GUANAZAN"]
[null,null,null,null," GUANAZAN"]
[null,null,null,null," GUANGAJE"]
[null,null,null,null," GUANGAJE"]
[null,null,null,null," GUANGAJE"]
[null,null,null,null," GUANGAJE"]
[null,null,null,null," GUANGOPOLO"]
[null,null,null,null," GUANGOPOLO"]
[null,null,null,null," GUANGOPOLO"]
[null,null,null,null," GUANGOPOLO"]
[null,null,null,null," GUANO"]
[null,null,null,null," GUANO"]
[null,null,null,null," GUANO"]
[null,null,null,null," GUANO"]
[null,null,null,null," GUAPAN"]
[null,null,null,null," GUAPAN"]
[null,null,null,null," GUAPAN"]
[null,null,null,null," GUAPAN"]
[null,null,null,null," GUARAINAG"]
[null,null,null,null," GUARAINAG"]
[null,null,null,null," GUARAINAG"]
[null,null,null,null," GUARAINAG"]
[null,null,null,null," GUARANDA"]
[null,null,null,null," GUARANDA"]
[null,null,null,null," GUARANDA"]
[null,null,null,null," GUARANDA"]
[null,null,null,null," GUARE"]
[null,null,null,null," GUARE"]
[null,null,null,null," GUARE"]
[null,null,null,null," GUARE"]
[null,null,null,null," GUASAGANDA"]
[null,null,null,null," GUASAGANDA"]
[null,null,null,null," GUASAGANDA"]
[null,null,null,null," GUASAGANDA"]
[null,null,null,null," GUASUNTOS"]
[null,null,null,null," GUASUNTOS"]
[null,null,null,null," GUASUNTOS"]
[null,null,null,null," GUASUNTOS"]
[null,null,null,null," GUAYAQUIL"]
[null,null,null,null," GUAYAQUIL"]
[null,null,null,null," GUAYAQUIL"]
[null,null,null,null," GUAYAQUIL"]
[null,null,null,null," GUAYAS (PUEBLO NUEVO)"]
[null,null,null,null," GUAYAS (PUEBLO NUEVO)"]
[null,null,null,null," GUAYAS (PUEBLO NUEVO)"]
[null,null,null,null," GUAYAS (PUEBLO NUEVO)"]
[null,null,null,null," GUAYLLABAMBA"]
[null,null,null,null," GUAYLLABAMBA"]
[null,null,null,null," GUAYLLABAMBA"]
[null,null,null,null," GUAYLLABAMBA"]
[null,null,null,null," GUAYQUICHUMA"]
[null,null,null,null," GUAYQUICHUMA"]
[null,null,null,null," GUAYQUICHUMA"]
[null,null,null,null," GUAYQUICHUMA"]
[null,null,null,null," GUAYZIMI"]
[null,null,null,null," GUAYZIMI"]
[null,null,null,null," GUAYZIMI"]
[null,null,null,null," GUAYZIMI"]
[null,null,null,null," GUEL"]
[null,null,null,null," GUEL"]
[null,null,null,null," GUEL"]
[null,null,null,null," GUEL"]
[null,null,null,null," GUIZHAGUIÑA"]
[null,null,null,null," GUIZHAGUIÑA"]
[null,null,null,null," GUIZHAGUIÑA"]
[null,null,null,null," GUIZHAGUIÑA"]
[null,null,null,null," HONORATO VASQUEZ"]
[null,null,null,null," HONORATO VASQUEZ"]
[null,null,null,null," HONORATO VASQUEZ"]
[null,null,null,null," HONORATO VASQUEZ"]
[null,null,null,null," HONORATO VASQUEZ"]
[null,null,null,null," HONORATO VASQUEZ"]
[null,null,null,null," HONORATO VASQUEZ"]
[null,null,null,null," HUACA"]
[null,null,null,null," HUACA"]
[null,null,null,null," HUACA"]
[null,null,null,null," HUACA"]
[null,null,null,null," HUACHI GRANDE"]
[null,null,null,null," HUACHI GRANDE"]
[null,null,null,null," HUACHI GRANDE"]
[null,null,null,null," HUACHI GRANDE"]
[null,null,null,null," HUAMBI"]
[null,null,null,null," HUAMBI"]
[null,null,null,null," HUAMBI"]
[null,null,null,null," HUAMBI"]
[null,null,null,null," HUAMBOYA"]
[null,null,null,null," HUAMBOYA"]
[null,null,null,null," HUAMBOYA"]
[null,null,null,null," HUAMBOYA"]
[null,null,null,null," HUAQUILLAS"]
[null,null,null,null," HUAQUILLAS"]
[null,null,null,null," HUAQUILLAS"]
[null,null,null,null," HUAQUILLAS"]
[null,null,null,null," HUASAGA"]
[null,null,null,null," HUASAGA"]
[null,null,null,null," HUASAGA"]
[null,null,null,null," HUASAGA"]
[null,null,null,null," HUERTAS"]
[null,null,null,null," HUERTAS"]
[null,null,null,null," HUERTAS"]
[null,null,null,null," HUERTAS"]
[null,null,null,null," HUIGRA"]
[null,null,null,null," HUIGRA"]
[null,null,null,null," HUIGRA"]
[null,null,null,null," HUIGRA"]
[null,null,null,null," IBARRA"]
[null,null,null,null," IBARRA"]
[null,null,null,null," IBARRA"]
[null,null,null,null," IBARRA"]
[null,null,null,null," ILAPO"]
[null,null,null,null," ILAPO"]
[null,null,null,null," ILAPO"]
[null,null,null,null," ILAPO"]
[null,null,null,null," IMANTAG"]
[null,null,null,null," IMANTAG"]
[null,null,null,null," IMANTAG"]
[null,null,null,null," IMANTAG"]
[null,null,null,null," IMBANA"]
[null,null,null,null," IMBANA"]
[null,null,null,null," IMBANA"]
[null,null,null,null," IMBANA"]
[null,null,null,null," IMBAYA"]
[null,null,null,null," IMBAYA"]
[null,null,null,null," IMBAYA"]
[null,null,null,null," IMBAYA"]
[null,null,null,null," INDANZA"]
[null,null,null,null," INDANZA"]
[null,null,null,null," INDANZA"]
[null,null,null,null," INDANZA"]
[null,null,null,null," INES ARANGO"]
[null,null,null,null," INES ARANGO"]
[null,null,null,null," INES ARANGO"]
[null,null,null,null," INES ARANGO"]
[null,null,null,null," INGAPIRCA"]
[null,null,null,null," INGAPIRCA"]
[null,null,null,null," INGAPIRCA"]
[null,null,null,null," INGAPIRCA"]
[null,null,null,null," ISIDRO AYORA"]
[null,null,null,null," ISIDRO AYORA"]
[null,null,null,null," ISIDRO AYORA"]
[null,null,null,null," ISIDRO AYORA"]
[null,null,null,null," ISINLIVI"]
[null,null,null,null," ISINLIVI"]
[null,null,null,null," ISINLIVI"]
[null,null,null,null," ISINLIVI"]
[null,null,null,null," ISLA DE BEJUCAL"]
[null,null,null,null," ISLA DE BEJUCAL"]
[null,null,null,null," ISLA DE BEJUCAL"]
[null,null,null,null," ISLA DE BEJUCAL"]
[null,null,null,null," IZAMBA"]
[null,null,null,null," IZAMBA"]
[null,null,null,null," IZAMBA"]
[null,null,null,null," IZAMBA"]
[null,null,null,null," JADAN"]
[null,null,null,null," JADAN"]
[null,null,null,null," JADAN"]
[null,null,null,null," JADAN"]
[null,null,null,null," JAMA"]
[null,null,null,null," JAMA"]
[null,null,null,null," JAMA"]
[null,null,null,null," JAMA"]
[null,null,null,null," JAMBELI"]
[null,null,null,null," JAMBELI"]
[null,null,null,null," JAMBELI"]
[null,null,null,null," JAMBELI"]
[null,null,null,null," JAMBELI"]
[null,null,null,null," JAMBELI"]
[null,null,null,null," JAMBELI"]
[null,null,null,null," JARAMIJO"]
[null,null,null,null," JARAMIJO"]
[null,null,null,null," JARAMIJO"]
[null,null,null,null," JARAMIJO"]
[null,null,null,null," JAVIER LOYOLA"]
[null,null,null,null," JAVIER LOYOLA"]
[null,null,null,null," JAVIER LOYOLA"]
[null,null,null,null," JAVIER LOYOLA"]
[null,null,null,null," JERUSALEN"]
[null,null,null,null," JERUSALEN"]
[null,null,null,null," JERUSALEN"]
[null,null,null,null," JERUSALEN"]
[null,null,null,null," JESUS MARIA"]
[null,null,null,null," JESUS MARIA"]
[null,null,null,null," JESUS MARIA"]
[null,null,null,null," JESUS MARIA"]
[null,null,null,null," JIJON Y CAAMAÑO"]
[null,null,null,null," JIJON Y CAAMAÑO"]
[null,null,null,null," JIJON Y CAAMAÑO"]
[null,null,null,null," JIJON Y CAAMAÑO"]
[null,null,null,null," JIMBILLA"]
[null,null,null,null," JIMBILLA"]
[null,null,null,null," JIMBILLA"]
[null,null,null,null," JIMBILLA"]
[null,null,null,null," JIMBURA"]
[null,null,null,null," JIMBURA"]
[null,null,null,null," JIMBURA"]
[null,null,null,null," JIMBURA"]
[null,null,null,null," JIPIJAPA"]
[null,null,null,null," JIPIJAPA"]
[null,null,null,null," JIPIJAPA"]
[null,null,null,null," JIPIJAPA"]
[null,null,null,null," JOSE LUIS TAMAYO"]
[null,null,null,null," JOSE LUIS TAMAYO"]
[null,null,null,null," JOSE LUIS TAMAYO"]
[null,null,null,null," JOSE LUIS TAMAYO"]
[null,null,null,null," JOSEGUANGO BAJO"]
[null,null,null,null," JOSEGUANGO BAJO"]
[null,null,null,null," JOSEGUANGO BAJO"]
[null,null,null,null," JOSEGUANGO BAJO"]
[null,null,null,null," JUAN BAUTISTA AGUIRRE"]
[null,null,null,null," JUAN BAUTISTA AGUIRRE"]
[null,null,null,null," JUAN BAUTISTA AGUIRRE"]
[null,null,null,null," JUAN BAUTISTA AGUIRRE"]
[null,null,null,null," JUAN BENIGNO VELA"]
[null,null,null,null," JUAN BENIGNO VELA"]
[null,null,null,null," JUAN BENIGNO VELA"]
[null,null,null,null," JUAN BENIGNO VELA"]
[null,null,null,null," JUAN DE VELASCO (PANGOR)"]
[null,null,null,null," JUAN DE VELASCO (PANGOR)"]
[null,null,null,null," JUAN DE VELASCO (PANGOR)"]
[null,null,null,null," JUAN DE VELASCO (PANGOR)"]
[null,null,null,null," JUAN GOMEZ RENDON (PROGR"]
[null,null,null,null," JUAN GOMEZ RENDON (PROGR"]
[null,null,null,null," JUAN GOMEZ RENDON (PROGR"]
[null,null,null,null," JUAN GOMEZ RENDON (PROGR"]
[null,null,null,null," JUAN MONTALVO"]
[null,null,null,null," JUAN MONTALVO"]
[null,null,null,null," JUAN MONTALVO"]
[null,null,null,null," JUAN MONTALVO"]
[null,null,null,null," JULCUY"]
[null,null,null,null," JULCUY"]
[null,null,null,null," JULCUY"]
[null,null,null,null," JULCUY"]
[null,null,null,null," JULIO ANDRADE (OREJUELA)"]
[null,null,null,null," JULIO ANDRADE (OREJUELA)"]
[null,null,null,null," JULIO ANDRADE (OREJUELA)"]
[null,null,null,null," JULIO ANDRADE (OREJUELA)"]
[null,null,null,null," JULIO E. MORENO"]
[null,null,null,null," JULIO E. MORENO"]
[null,null,null,null," JULIO E. MORENO"]
[null,null,null,null," JULIO E. MORENO"]
[null,null,null,null," JUNCAL"]
[null,null,null,null," JUNCAL"]
[null,null,null,null," JUNCAL"]
[null,null,null,null," JUNCAL"]
[null,null,null,null," JUNIN"]
[null,null,null,null," JUNIN"]
[null,null,null,null," JUNIN"]
[null,null,null,null," JUNIN"]
[null,null,null,null," JUNQUILLAL"]
[null,null,null,null," JUNQUILLAL"]
[null,null,null,null," JUNQUILLAL"]
[null,null,null,null," JUNQUILLAL"]
[null,null,null,null," LA AVANZADA"]
[null,null,null,null," LA AVANZADA"]
[null,null,null,null," LA AVANZADA"]
[null,null,null,null," LA AVANZADA"]
[null,null,null,null," LA BELLEZA"]
[null,null,null,null," LA BELLEZA"]
[null,null,null,null," LA BELLEZA"]
[null,null,null,null," LA BELLEZA"]
[null,null,null,null," LA BOCANA"]
[null,null,null,null," LA BOCANA"]
[null,null,null,null," LA BOCANA"]
[null,null,null,null," LA BOCANA"]
[null,null,null,null," LA BONITA"]
[null,null,null,null," LA BONITA"]
[null,null,null,null," LA BONITA"]
[null,null,null,null," LA BONITA"]
[null,null,null,null," LA CANDELARIA"]
[null,null,null,null," LA CANDELARIA"]
[null,null,null,null," LA CANDELARIA"]
[null,null,null,null," LA CANDELARIA"]
[null,null,null,null," LA CANELA"]
[null,null,null,null," LA CANELA"]
[null,null,null,null," LA CANELA"]
[null,null,null,null," LA CANELA"]
[null,null,null,null," LA CHONTA"]
[null,null,null,null," LA CHONTA"]
[null,null,null,null," LA CHONTA"]
[null,null,null,null," LA CHONTA"]
[null,null,null,null," LA CONCORDIA"]
[null,null,null,null," LA CONCORDIA"]
[null,null,null,null," LA CONCORDIA"]
[null,null,null,null," LA CONCORDIA"]
[null,null,null,null," LA ESPERANZA"]
[null,null,null,null," LA ESPERANZA"]
[null,null,null,null," LA ESPERANZA"]
[null,null,null,null," LA ESPERANZA"]
[null,null,null,null," LA ESPERANZA"]
[null,null,null,null," LA ESPERANZA"]
[null,null,null,null," LA ESPERANZA"]
[null,null,null,null," LA ESPERANZA"]
[null,null,null,null," LA ESPERANZA"]
[null,null,null,null," LA ESPERANZA"]
[null,null,null,null," LA IBERIA"]
[null,null,null,null," LA IBERIA"]
[null,null,null,null," LA IBERIA"]
[null,null,null,null," LA IBERIA"]
[null,null,null,null," LA JOYA DE LOS SACHAS"]
[null,null,null,null," LA JOYA DE LOS SACHAS"]
[null,null,null,null," LA JOYA DE LOS SACHAS"]
[null,null,null,null," LA JOYA DE LOS SACHAS"]
[null,null,null,null," LA LIBERTAD"]
[null,null,null,null," LA LIBERTAD"]
[null,null,null,null," LA LIBERTAD"]
[null,null,null,null," LA LIBERTAD"]
[null,null,null,null," LA LIBERTAD"]
[null,null,null,null," LA LIBERTAD"]
[null,null,null,null," LA LIBERTAD"]
[null,null,null,null," LA LIBERTAD (ALIZO)"]
[null,null,null,null," LA LIBERTAD (ALIZO)"]
[null,null,null,null," LA LIBERTAD (ALIZO)"]
[null,null,null,null," LA LIBERTAD (ALIZO)"]
[null,null,null,null," LA MANA"]
[null,null,null,null," LA MANA"]
[null,null,null,null," LA MANA"]
[null,null,null,null," LA MANA"]
[null,null,null,null," LA MERCED"]
[null,null,null,null," LA MERCED"]
[null,null,null,null," LA MERCED"]
[null,null,null,null," LA MERCED"]
[null,null,null,null," LA MERCED DE BUENOS AIRES"]
[null,null,null,null," LA MERCED DE BUENOS AIRES"]
[null,null,null,null," LA MERCED DE BUENOS AIRES"]
[null,null,null,null," LA MERCED DE BUENOS AIRES"]
[null,null,null,null," LA PAZ"]
[null,null,null,null," LA PAZ"]
[null,null,null,null," LA PAZ"]
[null,null,null,null," LA PAZ"]
[null,null,null,null," LA PAZ"]
[null,null,null,null," LA PAZ"]
[null,null,null,null," LA PAZ"]
[null,null,null,null," LA PEAÑA"]
[null,null,null,null," LA PEAÑA"]
[null,null,null,null," LA PEAÑA"]
[null,null,null,null," LA PEAÑA"]
[null,null,null,null," LA PILA"]
[null,null,null,null," LA PILA"]
[null,null,null,null," LA PILA"]
[null,null,null,null," LA PILA"]
[null,null,null,null," LA PROVIDENCIA"]
[null,null,null,null," LA PROVIDENCIA"]
[null,null,null,null," LA PROVIDENCIA"]
[null,null,null,null," LA PROVIDENCIA"]
[null,null,null,null," LA TINGUE"]
[null,null,null,null," LA TINGUE"]
[null,null,null,null," LA TINGUE"]
[null,null,null,null," LA TINGUE"]
[null,null,null,null," LA TOLA"]
[null,null,null,null," LA TOLA"]
[null,null,null,null," LA TOLA"]
[null,null,null,null," LA TOLA"]
[null,null,null,null," LA TRONCAL"]
[null,null,null,null," LA TRONCAL"]
[null,null,null,null," LA TRONCAL"]
[null,null,null,null," LA TRONCAL"]
[null,null,null,null," LA UNION"]
[null,null,null,null," LA UNION"]
[null,null,null,null," LA UNION"]
[null,null,null,null," LA UNION"]
[null,null,null,null," LA UNION"]
[null,null,null,null," LA UNION"]
[null,null,null,null," LA UNION"]
[null,null,null,null," LA UNION"]
[null,null,null,null," LA UNION"]
[null,null,null,null," LA UNION"]
[null,null,null,null," LA UNION"]
[null,null,null,null," LA UNION"]
[null,null,null,null," LA UNION"]
[null,null,null,null," LA UNION"]
[null,null,null,null," LA UNION"]
[null,null,null,null," LA UNION"]
[null,null,null,null," LA UNION"]
[null,null,null,null," LA VICTORIA"]
[null,null,null,null," LA VICTORIA"]
[null,null,null,null," LA VICTORIA"]
[null,null,null,null," LA VICTORIA"]
[null,null,null,null," LA VICTORIA"]
[null,null,null,null," LA VICTORIA"]
[null,null,null,null," LA VICTORIA"]
[null,null,null,null," LA VICTORIA"]
[null,null,null,null," LA VICTORIA"]
[null,null,null,null," LA VICTORIA"]
[null,null,null,null," LA VICTORIA (ÑAUZA)"]
[null,null,null,null," LA VICTORIA (ÑAUZA)"]
[null,null,null,null," LA VICTORIA (ÑAUZA)"]
[null,null,null,null," LA VICTORIA (ÑAUZA)"]
[null,null,null,null," LAGARTO"]
[null,null,null,null," LAGARTO"]
[null,null,null,null," LAGARTO"]
[null,null,null,null," LAGARTO"]
[null,null,null,null," LAGO SAN PEDRO"]
[null,null,null,null," LAGO SAN PEDRO"]
[null,null,null,null," LAGO SAN PEDRO"]
[null,null,null,null," LAGO SAN PEDRO"]
[null,null,null,null," LARAMA"]
[null,null,null,null," LARAMA"]
[null,null,null,null," LARAMA"]
[null,null,null,null," LARAMA"]
[null,null,null,null," LAS GOLONDRINAS"]
[null,null,null,null," LAS GOLONDRINAS"]
[null,null,null,null," LAS GOLONDRINAS"]
[null,null,null,null," LAS GOLONDRINAS"]
[null,null,null,null," LAS NAVES"]
[null,null,null,null," LAS NAVES"]
[null,null,null,null," LAS NAVES"]
[null,null,null,null," LAS NAVES"]
[null,null,null,null," LAS NIEVES (CHAYA)"]
[null,null,null,null," LAS NIEVES (CHAYA)"]
[null,null,null,null," LAS NIEVES (CHAYA)"]
[null,null,null,null," LAS NIEVES (CHAYA)"]
[null,null,null,null," LAS PAMPAS"]
[null,null,null,null," LAS PAMPAS"]
[null,null,null,null," LAS PAMPAS"]
[null,null,null,null," LAS PAMPAS"]
[null,null,null,null," LASCANO"]
[null,null,null,null," LASCANO"]
[null,null,null,null," LASCANO"]
[null,null,null,null," LASCANO"]
[null,null,null,null," LATACUNGA"]
[null,null,null,null," LATACUNGA"]
[null,null,null,null," LATACUNGA"]
[null,null,null,null," LATACUNGA"]
[null,null,null,null," LAUREL"]
[null,null,null,null," LAUREL"]
[null,null,null,null," LAUREL"]
[null,null,null,null," LAUREL"]
[null,null,null,null," LAURO GUERRERO"]
[null,null,null,null," LAURO GUERRERO"]
[null,null,null,null," LAURO GUERRERO"]
[null,null,null,null," LAURO GUERRERO"]
[null,null,null,null," LICAN"]
[null,null,null,null," LICAN"]
[null,null,null,null," LICAN"]
[null,null,null,null," LICAN"]
[null,null,null,null," LICTO"]
[null,null,null,null," LICTO"]
[null,null,null,null," LICTO"]
[null,null,null,null," LICTO"]
[null,null,null,null," LIMONAL"]
[null,null,null,null," LIMONAL"]
[null,null,null,null," LIMONAL"]
[null,null,null,null," LIMONAL"]
[null,null,null,null," LIMONCOCHA"]
[null,null,null,null," LIMONCOCHA"]
[null,null,null,null," LIMONCOCHA"]
[null,null,null,null," LIMONCOCHA"]
[null,null,null,null," LIMONES"]
[null,null,null,null," LIMONES"]
[null,null,null,null," LIMONES"]
[null,null,null,null," LIMONES"]
[null,null,null,null," LINARES"]
[null,null,null,null," LINARES"]
[null,null,null,null," LINARES"]
[null,null,null,null," LINARES"]
[null,null,null,null," LITA"]
[null,null,null,null," LITA"]
[null,null,null,null," LITA"]
[null,null,null,null," LITA"]
[null,null,null,null," LLACAO"]
[null,null,null,null," LLACAO"]
[null,null,null,null," LLACAO"]
[null,null,null,null," LLACAO"]
[null,null,null,null," LLAGOS"]
[null,null,null,null," LLAGOS"]
[null,null,null,null," LLAGOS"]
[null,null,null,null," LLAGOS"]
[null,null,null,null," LLANO CHICO"]
[null,null,null,null," LLANO CHICO"]
[null,null,null,null," LLANO CHICO"]
[null,null,null,null," LLANO CHICO"]
[null,null,null,null," LLIGUA"]
[null,null,null,null," LLIGUA"]
[null,null,null,null," LLIGUA"]
[null,null,null,null," LLIGUA"]
[null,null,null,null," LLOA"]
[null,null,null,null," LLOA"]
[null,null,null,null," LLOA"]
[null,null,null,null," LLOA"]
[null,null,null,null," LLUZHAPA"]
[null,null,null,null," LLUZHAPA"]
[null,null,null,null," LLUZHAPA"]
[null,null,null,null," LLUZHAPA"]
[null,null,null,null," LOGROÑO"]
[null,null,null,null," LOGROÑO"]
[null,null,null,null," LOGROÑO"]
[null,null,null,null," LOGROÑO"]
[null,null,null,null," LOJA"]
[null,null,null,null," LOJA"]
[null,null,null,null," LOJA"]
[null,null,null,null," LOJA"]
[null,null,null,null," LOMAS DE SARGENTILLO"]
[null,null,null,null," LOMAS DE SARGENTILLO"]
[null,null,null,null," LOMAS DE SARGENTILLO"]
[null,null,null,null," LOMAS DE SARGENTILLO"]
[null,null,null,null," LORETO"]
[null,null,null,null," LORETO"]
[null,null,null,null," LORETO"]
[null,null,null,null," LORETO"]
[null,null,null,null," LOS ANDES"]
[null,null,null,null," LOS ANDES"]
[null,null,null,null," LOS ANDES"]
[null,null,null,null," LOS ANDES"]
[null,null,null,null," LOS ANDES"]
[null,null,null,null," LOS ANDES"]
[null,null,null,null," LOS ANDES"]
[null,null,null,null," LOS ENCUENTROS"]
[null,null,null,null," LOS ENCUENTROS"]
[null,null,null,null," LOS ENCUENTROS"]
[null,null,null,null," LOS ENCUENTROS"]
[null,null,null,null," LOS LOJAS"]
[null,null,null,null," LOS LOJAS"]
[null,null,null,null," LOS LOJAS"]
[null,null,null,null," LOS LOJAS"]
[null,null,null,null," LUDO"]
[null,null,null,null," LUDO"]
[null,null,null,null," LUDO"]
[null,null,null,null," LUDO"]
[null,null,null,null," LUIS CORDERO"]
[null,null,null,null," LUIS CORDERO"]
[null,null,null,null," LUIS CORDERO"]
[null,null,null,null," LUIS CORDERO"]
[null,null,null,null," LUIS CORDERO VEGA"]
[null,null,null,null," LUIS CORDERO VEGA"]
[null,null,null,null," LUIS CORDERO VEGA"]
[null,null,null,null," LUIS CORDERO VEGA"]
[null,null,null,null," LUIS GALARZA ORELLANA"]
[null,null,null,null," LUIS GALARZA ORELLANA"]
[null,null,null,null," LUIS GALARZA ORELLANA"]
[null,null,null,null," LUIS GALARZA ORELLANA"]
[null,null,null,null," LUIS VARGAS TORRES"]
[null,null,null,null," LUIS VARGAS TORRES"]
[null,null,null,null," LUIS VARGAS TORRES"]
[null,null,null,null," LUIS VARGAS TORRES"]
[null,null,null,null," LUMBAQUI"]
[null,null,null,null," LUMBAQUI"]
[null,null,null,null," LUMBAQUI"]
[null,null,null,null," LUMBAQUI"]
[null,null,null,null," LUZ DE AMERICA"]
[null,null,null,null," LUZ DE AMERICA"]
[null,null,null,null," LUZ DE AMERICA"]
[null,null,null,null," LUZ DE AMERICA"]
[null,null,null,null," MACARA"]
[null,null,null,null," MACARA"]
[null,null,null,null," MACARA"]
[null,null,null,null," MACARA"]
[null,null,null,null," MACAS"]
[null,null,null,null," MACAS"]
[null,null,null,null," MACAS"]
[null,null,null,null," MACAS"]
[null,null,null,null," MACHACHI"]
[null,null,null,null," MACHACHI"]
[null,null,null,null," MACHACHI"]
[null,null,null,null," MACHACHI"]
[null,null,null,null," MACHALA"]
[null,null,null,null," MACHALA"]
[null,null,null,null," MACHALA"]
[null,null,null,null," MACHALA"]
[null,null,null,null," MACHALILLA"]
[null,null,null,null," MACHALILLA"]
[null,null,null,null," MACHALILLA"]
[null,null,null,null," MACHALILLA"]
[null,null,null,null," MACUMA"]
[null,null,null,null," MACUMA"]
[null,null,null,null," MACUMA"]
[null,null,null,null," MACUMA"]
[null,null,null,null," MADRE TIERRA"]
[null,null,null,null," MADRE TIERRA"]
[null,null,null,null," MADRE TIERRA"]
[null,null,null,null," MADRE TIERRA"]
[null,null,null,null," MAGDALENA (CHAPACOTO)"]
[null,null,null,null," MAGDALENA (CHAPACOTO)"]
[null,null,null,null," MAGDALENA (CHAPACOTO)"]
[null,null,null,null," MAGDALENA (CHAPACOTO)"]
[null,null,null,null," MAJUA"]
[null,null,null,null," MAJUA"]
[null,null,null,null," MAJUA"]
[null,null,null,null," MAJUA"]
[null,null,null,null," MALACATOS (VALLADOLID)"]
[null,null,null,null," MALACATOS (VALLADOLID)"]
[null,null,null,null," MALACATOS (VALLADOLID)"]
[null,null,null,null," MALACATOS (VALLADOLID)"]
[null,null,null,null," MALCHINGUI"]
[null,null,null,null," MALCHINGUI"]
[null,null,null,null," MALCHINGUI"]
[null,null,null,null," MALCHINGUI"]
[null,null,null,null," MALDONADO"]
[null,null,null,null," MALDONADO"]
[null,null,null,null," MALDONADO"]
[null,null,null,null," MALDONADO"]
[null,null,null,null," MALDONADO"]
[null,null,null,null," MALDONADO"]
[null,null,null,null," MALDONADO"]
[null,null,null,null," MALIMPIA"]
[null,null,null,null," MALIMPIA"]
[null,null,null,null," MALIMPIA"]
[null,null,null,null," MALIMPIA"]
[null,null,null,null," MALVAS"]
[null,null,null,null," MALVAS"]
[null,null,null,null," MALVAS"]
[null,null,null,null," MALVAS"]
[null,null,null,null," MANGA DEL CURA"]
[null,null,null,null," MANGA DEL CURA"]
[null,null,null,null," MANGA DEL CURA"]
[null,null,null,null," MANGA DEL CURA"]
[null,null,null,null," MANGLARALTO"]
[null,null,null,null," MANGLARALTO"]
[null,null,null,null," MANGLARALTO"]
[null,null,null,null," MANGLARALTO"]
[null,null,null,null," MANTA"]
[null,null,null,null," MANTA"]
[null,null,null,null," MANTA"]
[null,null,null,null," MANTA"]
[null,null,null,null," MANU"]
[null,null,null,null," MANU"]
[null,null,null,null," MANU"]
[null,null,null,null," MANU"]
[null,null,null,null," MANUEL CORNEJO ASTORGA"]
[null,null,null,null," MANUEL CORNEJO ASTORGA"]
[null,null,null,null," MANUEL CORNEJO ASTORGA"]
[null,null,null,null," MANUEL CORNEJO ASTORGA"]
[null,null,null,null," MANUEL J. CALLE"]
[null,null,null,null," MANUEL J. CALLE"]
[null,null,null,null," MANUEL J. CALLE"]
[null,null,null,null," MANUEL J. CALLE"]
[null,null,null,null," MARCABELI"]
[null,null,null,null," MARCABELI"]
[null,null,null,null," MARCABELI"]
[null,null,null,null," MARCABELI"]
[null,null,null,null," MARCOS ESPINEL (CHACATA)"]
[null,null,null,null," MARCOS ESPINEL (CHACATA)"]
[null,null,null,null," MARCOS ESPINEL (CHACATA)"]
[null,null,null,null," MARCOS ESPINEL (CHACATA)"]
[null,null,null,null," MARIANO ACOSTA"]
[null,null,null,null," MARIANO ACOSTA"]
[null,null,null,null," MARIANO ACOSTA"]
[null,null,null,null," MARIANO ACOSTA"]
[null,null,null,null," MARIANO MORENO"]
[null,null,null,null," MARIANO MORENO"]
[null,null,null,null," MARIANO MORENO"]
[null,null,null,null," MARIANO MORENO"]
[null,null,null,null," MARISCAL SUCRE"]
[null,null,null,null," MARISCAL SUCRE"]
[null,null,null,null," MARISCAL SUCRE"]
[null,null,null,null," MARISCAL SUCRE"]
[null,null,null,null," MARISCAL SUCRE (HUAQUES)"]
[null,null,null,null," MARISCAL SUCRE (HUAQUES)"]
[null,null,null,null," MARISCAL SUCRE (HUAQUES)"]
[null,null,null,null," MARISCAL SUCRE (HUAQUES)"]
[null,null,null,null," MATAJE"]
[null,null,null,null," MATAJE"]
[null,null,null,null," MATAJE"]
[null,null,null,null," MATAJE"]
[null,null,null,null," MATUS"]
[null,null,null,null," MATUS"]
[null,null,null,null," MATUS"]
[null,null,null,null," MATUS"]
[null,null,null,null," MEMBRILLO"]
[null,null,null,null," MEMBRILLO"]
[null,null,null,null," MEMBRILLO"]
[null,null,null,null," MEMBRILLO"]
[null,null,null,null," MERA"]
[null,null,null,null," MERA"]
[null,null,null,null," MERA"]
[null,null,null,null," MERA"]
[null,null,null,null," MERCADILLO"]
[null,null,null,null," MERCADILLO"]
[null,null,null,null," MERCADILLO"]
[null,null,null,null," MERCADILLO"]
[null,null,null,null," MILAGRO"]
[null,null,null,null," MILAGRO"]
[null,null,null,null," MILAGRO"]
[null,null,null,null," MILAGRO"]
[null,null,null,null," MILAGRO"]
[null,null,null,null," MILAGRO"]
[null,null,null,null," MILAGRO"]
[null,null,null,null," MINDO"]
[null,null,null,null," MINDO"]
[null,null,null,null," MINDO"]
[null,null,null,null," MINDO"]
[null,null,null,null," MIRA (CHONTAHUASI)"]
[null,null,null,null," MIRA (CHONTAHUASI)"]
[null,null,null,null," MIRA (CHONTAHUASI)"]
[null,null,null,null," MIRA (CHONTAHUASI)"]
[null,null,null,null," MOCACHE"]
[null,null,null,null," MOCACHE"]
[null,null,null,null," MOCACHE"]
[null,null,null,null," MOCACHE"]
[null,null,null,null," MOCHA"]
[null,null,null,null," MOCHA"]
[null,null,null,null," MOCHA"]
[null,null,null,null," MOCHA"]
[null,null,null,null," MOLLETURO"]
[null,null,null,null," MOLLETURO"]
[null,null,null,null," MOLLETURO"]
[null,null,null,null," MOLLETURO"]
[null,null,null,null," MONTALVO"]
[null,null,null,null," MONTALVO"]
[null,null,null,null," MONTALVO"]
[null,null,null,null," MONTALVO"]
[null,null,null,null," MONTALVO"]
[null,null,null,null," MONTALVO"]
[null,null,null,null," MONTALVO"]
[null,null,null,null," MONTALVO"]
[null,null,null,null," MONTALVO"]
[null,null,null,null," MONTALVO"]
[null,null,null,null," MONTALVO (ANDOAS)"]
[null,null,null,null," MONTALVO (ANDOAS)"]
[null,null,null,null," MONTALVO (ANDOAS)"]
[null,null,null,null," MONTALVO (ANDOAS)"]
[null,null,null,null," MONTE OLIVO"]
[null,null,null,null," MONTE OLIVO"]
[null,null,null,null," MONTE OLIVO"]
[null,null,null,null," MONTE OLIVO"]
[null,null,null,null," MONTECRISTI"]
[null,null,null,null," MONTECRISTI"]
[null,null,null,null," MONTECRISTI"]
[null,null,null,null," MONTECRISTI"]
[null,null,null,null," MORALES"]
[null,null,null,null," MORALES"]
[null,null,null,null," MORALES"]
[null,null,null,null," MORALES"]
[null,null,null,null," MORASPUNGO"]
[null,null,null,null," MORASPUNGO"]
[null,null,null,null," MORASPUNGO"]
[null,null,null,null," MORASPUNGO"]
[null,null,null,null," MOROMORO"]
[null,null,null,null," MOROMORO"]
[null,null,null,null," MOROMORO"]
[null,null,null,null," MOROMORO"]
[null,null,null,null," MORRO"]
[null,null,null,null," MORRO"]
[null,null,null,null," MORRO"]
[null,null,null,null," MORRO"]
[null,null,null,null," MUISNE"]
[null,null,null,null," MUISNE"]
[null,null,null,null," MUISNE"]
[null,null,null,null," MUISNE"]
[null,null,null,null," MULALILLO"]
[null,null,null,null," MULALILLO"]
[null,null,null,null," MULALILLO"]
[null,null,null,null," MULALILLO"]
[null,null,null,null," MULALO"]
[null,null,null,null," MULALO"]
[null,null,null,null," MULALO"]
[null,null,null,null," MULALO"]
[null,null,null,null," MULLIQUINDIL (SANTA ANA)"]
[null,null,null,null," MULLIQUINDIL (SANTA ANA)"]
[null,null,null,null," MULLIQUINDIL (SANTA ANA)"]
[null,null,null,null," MULLIQUINDIL (SANTA ANA)"]
[null,null,null,null," MULTITUD"]
[null,null,null,null," MULTITUD"]
[null,null,null,null," MULTITUD"]
[null,null,null,null," MULTITUD"]
[null,null,null,null," MULUNCAY GRANDE"]
[null,null,null,null," MULUNCAY GRANDE"]
[null,null,null,null," MULUNCAY GRANDE"]
[null,null,null,null," MULUNCAY GRANDE"]
[null,null,null,null," NABON"]
[null,null,null,null," NABON"]
[null,null,null,null," NABON"]
[null,null,null,null," NABON"]
[null,null,null,null," NAMBACOLA"]
[null,null,null,null," NAMBACOLA"]
[null,null,null,null," NAMBACOLA"]
[null,null,null,null," NAMBACOLA"]
[null,null,null,null," NANEGAL"]
[null,null,null,null," NANEGAL"]
[null,null,null,null," NANEGAL"]
[null,null,null,null," NANEGAL"]
[null,null,null,null," NANEGALITO"]
[null,null,null,null," NANEGALITO"]
[null,null,null,null," NANEGALITO"]
[null,null,null,null," NANEGALITO"]
[null,null,null,null," NARANJAL"]
[null,null,null,null," NARANJAL"]
[null,null,null,null," NARANJAL"]
[null,null,null,null," NARANJAL"]
[null,null,null,null," NARANJITO"]
[null,null,null,null," NARANJITO"]
[null,null,null,null," NARANJITO"]
[null,null,null,null," NARANJITO"]
[null,null,null,null," NARCISA DE JESUS"]
[null,null,null,null," NARCISA DE JESUS"]
[null,null,null,null," NARCISA DE JESUS"]
[null,null,null,null," NARCISA DE JESUS"]
[null,null,null,null," NAYON"]
[null,null,null,null," NAYON"]
[null,null,null,null," NAYON"]
[null,null,null,null," NAYON"]
[null,null,null,null," NAZON"]
[null,null,null,null," NAZON"]
[null,null,null,null," NAZON"]
[null,null,null,null," NAZON"]
[null,null,null,null," NOBOA"]
[null,null,null,null," NOBOA"]
[null,null,null,null," NOBOA"]
[null,null,null,null," NOBOA"]
[null,null,null,null," NONO"]
[null,null,null,null," NONO"]
[null,null,null,null," NONO"]
[null,null,null,null," NONO"]
[null,null,null,null," NUEVA FATIMA"]
[null,null,null,null," NUEVA FATIMA"]
[null,null,null,null," NUEVA FATIMA"]
[null,null,null,null," NUEVA FATIMA"]
[null,null,null,null," NUEVA LOJA"]
[null,null,null,null," NUEVA LOJA"]
[null,null,null,null," NUEVA LOJA"]
[null,null,null,null," NUEVA LOJA"]
[null,null,null,null," NUEVA TARQUI"]
[null,null,null,null," NUEVA TARQUI"]
[null,null,null,null," NUEVA TARQUI"]
[null,null,null,null," NUEVA TARQUI"]
[null,null,null,null," NUEVO PARAISO"]
[null,null,null,null," NUEVO PARAISO"]
[null,null,null,null," NUEVO PARAISO"]
[null,null,null,null," NUEVO PARAISO"]
[null,null,null,null," NUEVO PARAISO"]
[null,null,null,null," NUEVO PARAISO"]
[null,null,null,null," NUEVO PARAISO"]
[null,null,null,null," NUEVO QUITO"]
[null,null,null,null," NUEVO QUITO"]
[null,null,null,null," NUEVO QUITO"]
[null,null,null,null," NUEVO QUITO"]
[null,null,null,null," NUEVO ROCAFUERTE"]
[null,null,null,null," NUEVO ROCAFUERTE"]
[null,null,null,null," NUEVO ROCAFUERTE"]
[null,null,null,null," NUEVO ROCAFUERTE"]
[null,null,null,null," NULTI"]
[null,null,null,null," NULTI"]
[null,null,null,null," NULTI"]
[null,null,null,null," NULTI"]
[null,null,null,null," OCTAVIO CORDERO PALACIOS"]
[null,null,null,null," OCTAVIO CORDERO PALACIOS"]
[null,null,null,null," OCTAVIO CORDERO PALACIOS"]
[null,null,null,null," OCTAVIO CORDERO PALACIOS"]
[null,null,null,null," OLMEDO"]
[null,null,null,null," OLMEDO"]
[null,null,null,null," OLMEDO"]
[null,null,null,null," OLMEDO"]
[null,null,null,null," OLMEDO"]
[null,null,null,null," OLMEDO"]
[null,null,null,null," OLMEDO (PESILLO)"]
[null,null,null,null," OLMEDO (PESILLO)"]
[null,null,null,null," OLMEDO (PESILLO)"]
[null,null,null,null," OLMEDO (PESILLO)"]
[null,null,null,null," OÑA"]
[null,null,null,null," OÑA"]
[null,null,null,null," OÑA"]
[null,null,null,null," OÑA"]
[null,null,null,null," ORIANGA"]
[null,null,null,null," ORIANGA"]
[null,null,null,null," ORIANGA"]
[null,null,null,null," ORIANGA"]
[null,null,null,null," OTAVALO"]
[null,null,null,null," OTAVALO"]
[null,null,null,null," OTAVALO"]
[null,null,null,null," OTAVALO"]
[null,null,null,null," OTON"]
[null,null,null,null," OTON"]
[null,null,null,null," OTON"]
[null,null,null,null," OTON"]
[null,null,null,null," OYACACHI"]
[null,null,null,null," OYACACHI"]
[null,null,null,null," OYACACHI"]
[null,null,null,null," OYACACHI"]
[null,null,null,null," PABLO ARENAS"]
[null,null,null,null," PABLO ARENAS"]
[null,null,null,null," PABLO ARENAS"]
[null,null,null,null," PABLO ARENAS"]
[null,null,null,null," PABLO VI"]
[null,null,null,null," PABLO VI"]
[null,null,null,null," PABLO VI"]
[null,null,null,null," PABLO VI"]
[null,null,null,null," PACAYACU"]
[null,null,null,null," PACAYACU"]
[null,null,null,null," PACAYACU"]
[null,null,null,null," PACAYACU"]
[null,null,null,null," PACCHA"]
[null,null,null,null," PACCHA"]
[null,null,null,null," PACCHA"]
[null,null,null,null," PACCHA"]
[null,null,null,null," PACCHA"]
[null,null,null,null," PACCHA"]
[null,null,null,null," PACCHA"]
[null,null,null,null," PACHICUTZA"]
[null,null,null,null," PACHICUTZA"]
[null,null,null,null," PACHICUTZA"]
[null,null,null,null," PACHICUTZA"]
[null,null,null,null," PACTO"]
[null,null,null,null," PACTO"]
[null,null,null,null," PACTO"]
[null,null,null,null," PACTO"]
[null,null,null,null," PAJAN"]
[null,null,null,null," PAJAN"]
[null,null,null,null," PAJAN"]
[null,null,null,null," PAJAN"]
[null,null,null,null," PALANDA"]
[null,null,null,null," PALANDA"]
[null,null,null,null," PALANDA"]
[null,null,null,null," PALANDA"]
[null,null,null,null," PALENQUE"]
[null,null,null,null," PALENQUE"]
[null,null,null,null," PALENQUE"]
[null,null,null,null," PALENQUE"]
[null,null,null,null," PALESTINA"]
[null,null,null,null," PALESTINA"]
[null,null,null,null," PALESTINA"]
[null,null,null,null," PALESTINA"]
[null,null,null,null," PALETILLAS"]
[null,null,null,null," PALETILLAS"]
[null,null,null,null," PALETILLAS"]
[null,null,null,null," PALETILLAS"]
[null,null,null,null," PALLATANGA"]
[null,null,null,null," PALLATANGA"]
[null,null,null,null," PALLATANGA"]
[null,null,null,null," PALLATANGA"]
[null,null,null,null," PALMA ROJA"]
[null,null,null,null," PALMA ROJA"]
[null,null,null,null," PALMA ROJA"]
[null,null,null,null," PALMA ROJA"]
[null,null,null,null," PALMALES"]
[null,null,null,null," PALMALES"]
[null,null,null,null," PALMALES"]
[null,null,null,null," PALMALES"]
[null,null,null,null," PALMAS"]
[null,null,null,null," PALMAS"]
[null,null,null,null," PALMAS"]
[null,null,null,null," PALMAS"]
[null,null,null,null," PALMIRA"]
[null,null,null,null," PALMIRA"]
[null,null,null,null," PALMIRA"]
[null,null,null,null," PALMIRA"]
[null,null,null,null," PALO QUEMADO"]
[null,null,null,null," PALO QUEMADO"]
[null,null,null,null," PALO QUEMADO"]
[null,null,null,null," PALO QUEMADO"]
[null,null,null,null," PALORA (METZERA)"]
[null,null,null,null," PALORA (METZERA)"]
[null,null,null,null," PALORA (METZERA)"]
[null,null,null,null," PALORA (METZERA)"]
[null,null,null,null," PAMPANAL DE BOLIVAR"]
[null,null,null,null," PAMPANAL DE BOLIVAR"]
[null,null,null,null," PAMPANAL DE BOLIVAR"]
[null,null,null,null," PAMPANAL DE BOLIVAR"]
[null,null,null,null," PAN DE AZUCAR"]
[null,null,null,null," PAN DE AZUCAR"]
[null,null,null,null," PAN DE AZUCAR"]
[null,null,null,null," PAN DE AZUCAR"]
[null,null,null,null," PANCHO NEGRO"]
[null,null,null,null," PANCHO NEGRO"]
[null,null,null,null," PANCHO NEGRO"]
[null,null,null,null," PANCHO NEGRO"]
[null,null,null,null," PANO"]
[null,null,null,null," PANO"]
[null,null,null,null," PANO"]
[null,null,null,null," PANO"]
[null,null,null,null," PANSALEO"]
[null,null,null,null," PANSALEO"]
[null,null,null,null," PANSALEO"]
[null,null,null,null," PANSALEO"]
[null,null,null,null," PAPALLACTA"]
[null,null,null,null," PAPALLACTA"]
[null,null,null,null," PAPALLACTA"]
[null,null,null,null," PAPALLACTA"]
[null,null,null,null," PAQUISHA"]
[null,null,null,null," PAQUISHA"]
[null,null,null,null," PAQUISHA"]
[null,null,null,null," PAQUISHA"]
[null,null,null,null," PASA"]
[null,null,null,null," PASA"]
[null,null,null,null," PASA"]
[null,null,null,null," PASA"]
[null,null,null,null," PASAJE"]
[null,null,null,null," PASAJE"]
[null,null,null,null," PASAJE"]
[null,null,null,null," PASAJE"]
[null,null,null,null," PATATE"]
[null,null,null,null," PATATE"]
[null,null,null,null," PATATE"]
[null,null,null,null," PATATE"]
[null,null,null,null," PATRICIA PILAR"]
[null,null,null,null," PATRICIA PILAR"]
[null,null,null,null," PATRICIA PILAR"]
[null,null,null,null," PATRICIA PILAR"]
[null,null,null,null," PATUCA"]
[null,null,null,null," PATUCA"]
[null,null,null,null," PATUCA"]
[null,null,null,null," PATUCA"]
[null,null,null,null," PAUTE"]
[null,null,null,null," PAUTE"]
[null,null,null,null," PAUTE"]
[null,null,null,null," PAUTE"]
[null,null,null,null," PEDERNALES"]
[null,null,null,null," PEDERNALES"]
[null,null,null,null," PEDERNALES"]
[null,null,null,null," PEDERNALES"]
[null,null,null,null," PEDRO CARBO"]
[null,null,null,null," PEDRO CARBO"]
[null,null,null,null," PEDRO CARBO"]
[null,null,null,null," PEDRO CARBO"]
[null,null,null,null," PEDRO PABLO GOMEZ"]
[null,null,null,null," PEDRO PABLO GOMEZ"]
[null,null,null,null," PEDRO PABLO GOMEZ"]
[null,null,null,null," PEDRO PABLO GOMEZ"]
[null,null,null,null," PEDRO VICENTE MALDONADO"]
[null,null,null,null," PEDRO VICENTE MALDONADO"]
[null,null,null,null," PEDRO VICENTE MALDONADO"]
[null,null,null,null," PEDRO VICENTE MALDONADO"]
[null,null,null,null," PELILEO"]
[null,null,null,null," PELILEO"]
[null,null,null,null," PELILEO"]
[null,null,null,null," PELILEO"]
[null,null,null,null," PENIPE"]
[null,null,null,null," PENIPE"]
[null,null,null,null," PENIPE"]
[null,null,null,null," PENIPE"]
[null,null,null,null," PEÑAHERRERA"]
[null,null,null,null," PEÑAHERRERA"]
[null,null,null,null," PEÑAHERRERA"]
[null,null,null,null," PEÑAHERRERA"]
[null,null,null,null," PERUCHO"]
[null,null,null,null," PERUCHO"]
[null,null,null,null," PERUCHO"]
[null,null,null,null," PERUCHO"]
[null,null,null,null," PIARTAL"]
[null,null,null,null," PIARTAL"]
[null,null,null,null," PIARTAL"]
[null,null,null,null," PIARTAL"]
[null,null,null,null," PICAIGUA"]
[null,null,null,null," PICAIGUA"]
[null,null,null,null," PICAIGUA"]
[null,null,null,null," PICAIGUA"]
[null,null,null,null," PICHINCHA"]
[null,null,null,null," PICHINCHA"]
[null,null,null,null," PICHINCHA"]
[null,null,null,null," PICHINCHA"]
[null,null,null,null," PIEDRAS"]
[null,null,null,null," PIEDRAS"]
[null,null,null,null," PIEDRAS"]
[null,null,null,null," PIEDRAS"]
[null,null,null,null," PIFO"]
[null,null,null,null," PIFO"]
[null,null,null,null," PIFO"]
[null,null,null,null," PIFO"]
[null,null,null,null," PILAGUIN (PILAHUIN)"]
[null,null,null,null," PILAGUIN (PILAHUIN)"]
[null,null,null,null," PILAGUIN (PILAHUIN)"]
[null,null,null,null," PILAGUIN (PILAHUIN)"]
[null,null,null,null," PILALO"]
[null,null,null,null," PILALO"]
[null,null,null,null," PILALO"]
[null,null,null,null," PILALO"]
[null,null,null,null," PILLARO"]
[null,null,null,null," PILLARO"]
[null,null,null,null," PILLARO"]
[null,null,null,null," PILLARO"]
[null,null,null,null," PIMAMPIRO"]
[null,null,null,null," PIMAMPIRO"]
[null,null,null,null," PIMAMPIRO"]
[null,null,null,null," PIMAMPIRO"]
[null,null,null,null," PIMOCHA"]
[null,null,null,null," PIMOCHA"]
[null,null,null,null," PIMOCHA"]
[null,null,null,null," PIMOCHA"]
[null,null,null,null," PINDAL"]
[null,null,null,null," PINDAL"]
[null,null,null,null," PINDAL"]
[null,null,null,null," PINDAL"]
[null,null,null,null," PINDILIG"]
[null,null,null,null," PINDILIG"]
[null,null,null,null," PINDILIG"]
[null,null,null,null," PINDILIG"]
[null,null,null,null," PINGUILI"]
[null,null,null,null," PINGUILI"]
[null,null,null,null," PINGUILI"]
[null,null,null,null," PINGUILI"]
[null,null,null,null," PINLLOPATA"]
[null,null,null,null," PINLLOPATA"]
[null,null,null,null," PINLLOPATA"]
[null,null,null,null," PINLLOPATA"]
[null,null,null,null," PINTAG"]
[null,null,null,null," PINTAG"]
[null,null,null,null," PINTAG"]
[null,null,null,null," PINTAG"]
[null,null,null,null," PIÑAS"]
[null,null,null,null," PIÑAS"]
[null,null,null,null," PIÑAS"]
[null,null,null,null," PIÑAS"]
[null,null,null,null," PIOTER"]
[null,null,null,null," PIOTER"]
[null,null,null,null," PIOTER"]
[null,null,null,null," PIOTER"]
[null,null,null,null," PISTISHI (NARIZ DEL DIABLO)"]
[null,null,null,null," PISTISHI (NARIZ DEL DIABLO)"]
[null,null,null,null," PISTISHI (NARIZ DEL DIABLO)"]
[null,null,null,null," PISTISHI (NARIZ DEL DIABLO)"]
[null,null,null,null," PLAZA GUTIERREZ"]
[null,null,null,null," PLAZA GUTIERREZ"]
[null,null,null,null," PLAZA GUTIERREZ"]
[null,null,null,null," PLAZA GUTIERREZ"]
[null,null,null,null," POALO"]
[null,null,null,null," POALO"]
[null,null,null,null," POALO"]
[null,null,null,null," POALO"]
[null,null,null,null," POMASQUI"]
[null,null,null,null," POMASQUI"]
[null,null,null,null," POMASQUI"]
[null,null,null,null," POMASQUI"]
[null,null,null,null," POMONA"]
[null,null,null,null," POMONA"]
[null,null,null,null," POMONA"]
[null,null,null,null," POMONA"]
[null,null,null,null," POMPEYA"]
[null,null,null,null," POMPEYA"]
[null,null,null,null," POMPEYA"]
[null,null,null,null," POMPEYA"]
[null,null,null,null," PORTOVELO"]
[null,null,null,null," PORTOVELO"]
[null,null,null,null," PORTOVELO"]
[null,null,null,null," PORTOVELO"]
[null,null,null,null," PORTOVIEJO"]
[null,null,null,null," PORTOVIEJO"]
[null,null,null,null," PORTOVIEJO"]
[null,null,null,null," PORTOVIEJO"]
[null,null,null,null," POSORJA"]
[null,null,null,null," POSORJA"]
[null,null,null,null," POSORJA"]
[null,null,null,null," POSORJA"]
[null,null,null,null," POZUL (SAN JUAN DE POZUL"]
[null,null,null,null," POZUL (SAN JUAN DE POZUL"]
[null,null,null,null," POZUL (SAN JUAN DE POZUL"]
[null,null,null,null," POZUL (SAN JUAN DE POZUL"]
[null,null,null,null," PRESIDENTE URBINA"]
[null,null,null,null," PRESIDENTE URBINA"]
[null,null,null,null," PRESIDENTE URBINA"]
[null,null,null,null," PRESIDENTE URBINA"]
[null,null,null,null," PRINCIPAL"]
[null,null,null,null," PRINCIPAL"]
[null,null,null,null," PRINCIPAL"]
[null,null,null,null," PRINCIPAL"]
[null,null,null,null," PROGRESO"]
[null,null,null,null," PROGRESO"]
[null,null,null,null," PROGRESO"]
[null,null,null,null," PROGRESO"]
[null,null,null,null," PUCAPAMBA"]
[null,null,null,null," PUCAPAMBA"]
[null,null,null,null," PUCAPAMBA"]
[null,null,null,null," PUCAPAMBA"]
[null,null,null,null," PUCARA"]
[null,null,null,null," PUCARA"]
[null,null,null,null," PUCARA"]
[null,null,null,null," PUCARA"]
[null,null,null,null," PUCAYACU"]
[null,null,null,null," PUCAYACU"]
[null,null,null,null," PUCAYACU"]
[null,null,null,null," PUCAYACU"]
[null,null,null,null," PUEBLO NUEVO"]
[null,null,null,null," PUEBLO NUEVO"]
[null,null,null,null," PUEBLO NUEVO"]
[null,null,null,null," PUEBLO NUEVO"]
[null,null,null,null," PUEBLOVIEJO"]
[null,null,null,null," PUEBLOVIEJO"]
[null,null,null,null," PUEBLOVIEJO"]
[null,null,null,null," PUEBLOVIEJO"]
[null,null,null,null," PUELA"]
[null,null,null,null," PUELA"]
[null,null,null,null," PUELA"]
[null,null,null,null," PUELA"]
[null,null,null,null," PUELLARO"]
[null,null,null,null," PUELLARO"]
[null,null,null,null," PUELLARO"]
[null,null,null,null," PUELLARO"]
[null,null,null,null," PUEMBO"]
[null,null,null,null," PUEMBO"]
[null,null,null,null," PUEMBO"]
[null,null,null,null," PUEMBO"]
[null,null,null,null," PUERTO AYORA"]
[null,null,null,null," PUERTO AYORA"]
[null,null,null,null," PUERTO AYORA"]
[null,null,null,null," PUERTO AYORA"]
[null,null,null,null," PUERTO BAQUERIZO MORENO"]
[null,null,null,null," PUERTO BAQUERIZO MORENO"]
[null,null,null,null," PUERTO BAQUERIZO MORENO"]
[null,null,null,null," PUERTO BAQUERIZO MORENO"]
[null,null,null,null," PUERTO DE CAYO"]
[null,null,null,null," PUERTO DE CAYO"]
[null,null,null,null," PUERTO DE CAYO"]
[null,null,null,null," PUERTO DE CAYO"]
[null,null,null,null," PUERTO EL CARMEN DEL PUTUMAYO"]
[null,null,null,null," PUERTO EL CARMEN DEL PUTUMAYO"]
[null,null,null,null," PUERTO EL CARMEN DEL PUTUMAYO"]
[null,null,null,null," PUERTO EL CARMEN DEL PUTUMAYO"]
[null,null,null,null," PUERTO FRANCISCO DE ORELLANA"]
[null,null,null,null," PUERTO FRANCISCO DE ORELLANA"]
[null,null,null,null," PUERTO FRANCISCO DE ORELLANA"]
[null,null,null,null," PUERTO FRANCISCO DE ORELLANA"]
[null,null,null,null," PUERTO LIBRE"]
[null,null,null,null," PUERTO LIBRE"]
[null,null,null,null," PUERTO LIBRE"]
[null,null,null,null," PUERTO LIBRE"]
[null,null,null,null," PUERTO LIMON"]
[null,null,null,null," PUERTO LIMON"]
[null,null,null,null," PUERTO LIMON"]
[null,null,null,null," PUERTO LIMON"]
[null,null,null,null," PUERTO LOPEZ"]
[null,null,null,null," PUERTO LOPEZ"]
[null,null,null,null," PUERTO LOPEZ"]
[null,null,null,null," PUERTO LOPEZ"]
[null,null,null,null," PUERTO MISAHUALLI"]
[null,null,null,null," PUERTO MISAHUALLI"]
[null,null,null,null," PUERTO MISAHUALLI"]
[null,null,null,null," PUERTO MISAHUALLI"]
[null,null,null,null," PUERTO MURIALDO"]
[null,null,null,null," PUERTO MURIALDO"]
[null,null,null,null," PUERTO MURIALDO"]
[null,null,null,null," PUERTO MURIALDO"]
[null,null,null,null," PUERTO NAPO"]
[null,null,null,null," PUERTO NAPO"]
[null,null,null,null," PUERTO NAPO"]
[null,null,null,null," PUERTO NAPO"]
[null,null,null,null," PUERTO PECHICHE"]
[null,null,null,null," PUERTO PECHICHE"]
[null,null,null,null," PUERTO PECHICHE"]
[null,null,null,null," PUERTO PECHICHE"]
[null,null,null,null," PUERTO QUITO"]
[null,null,null,null," PUERTO QUITO"]
[null,null,null,null," PUERTO QUITO"]
[null,null,null,null," PUERTO QUITO"]
[null,null,null,null," PUERTO RODRIGUEZ"]
[null,null,null,null," PUERTO RODRIGUEZ"]
[null,null,null,null," PUERTO RODRIGUEZ"]
[null,null,null,null," PUERTO RODRIGUEZ"]
[null,null,null,null," PUERTO VILLAMIL"]
[null,null,null,null," PUERTO VILLAMIL"]
[null,null,null,null," PUERTO VILLAMIL"]
[null,null,null,null," PUERTO VILLAMIL"]
[null,null,null,null," PUJILI"]
[null,null,null,null," PUJILI"]
[null,null,null,null," PUJILI"]
[null,null,null,null," PUJILI"]
[null,null,null,null," PUMALLACTA (PUMAL-LACTA)"]
[null,null,null,null," PUMALLACTA (PUMAL-LACTA)"]
[null,null,null,null," PUMALLACTA (PUMAL-LACTA)"]
[null,null,null,null," PUMALLACTA (PUMAL-LACTA)"]
[null,null,null,null," PUMPUENTSA"]
[null,null,null,null," PUMPUENTSA"]
[null,null,null,null," PUMPUENTSA"]
[null,null,null,null," PUMPUENTSA"]
[null,null,null,null," PUNA"]
[null,null,null,null," PUNA"]
[null,null,null,null," PUNA"]
[null,null,null,null," PUNA"]
[null,null,null,null," PUNGALA"]
[null,null,null,null," PUNGALA"]
[null,null,null,null," PUNGALA"]
[null,null,null,null," PUNGALA"]
[null,null,null,null," PUNIN"]
[null,null,null,null," PUNIN"]
[null,null,null,null," PUNIN"]
[null,null,null,null," PUNIN"]
[null,null,null,null," PURUNUMA (EGUIGUREN)"]
[null,null,null,null," PURUNUMA (EGUIGUREN)"]
[null,null,null,null," PURUNUMA (EGUIGUREN)"]
[null,null,null,null," PURUNUMA (EGUIGUREN)"]
[null,null,null,null," PUYO"]
[null,null,null,null," PUYO"]
[null,null,null,null," PUYO"]
[null,null,null,null," PUYO"]
[null,null,null,null," QUERO"]
[null,null,null,null," QUERO"]
[null,null,null,null," QUERO"]
[null,null,null,null," QUERO"]
[null,null,null,null," QUEVEDO"]
[null,null,null,null," QUEVEDO"]
[null,null,null,null," QUEVEDO"]
[null,null,null,null," QUEVEDO"]
[null,null,null,null," QUILANGA"]
[null,null,null,null," QUILANGA"]
[null,null,null,null," QUILANGA"]
[null,null,null,null," QUILANGA"]
[null,null,null,null," QUIMIAG"]
[null,null,null,null," QUIMIAG"]
[null,null,null,null," QUIMIAG"]
[null,null,null,null," QUIMIAG"]
[null,null,null,null," QUINARA"]
[null,null,null,null," QUINARA"]
[null,null,null,null," QUINARA"]
[null,null,null,null," QUINARA"]
[null,null,null,null," QUINCHICOTO"]
[null,null,null,null," QUINCHICOTO"]
[null,null,null,null," QUINCHICOTO"]
[null,null,null,null," QUINCHICOTO"]
[null,null,null,null," QUINGEO"]
[null,null,null,null," QUINGEO"]
[null,null,null,null," QUINGEO"]
[null,null,null,null," QUINGEO"]
[null,null,null,null," QUINGUE (OLMEDO PERDOMO"]
[null,null,null,null," QUINGUE (OLMEDO PERDOMO"]
[null,null,null,null," QUINGUE (OLMEDO PERDOMO"]
[null,null,null,null," QUINGUE (OLMEDO PERDOMO"]
[null,null,null,null," QUINSALOMA"]
[null,null,null,null," QUINSALOMA"]
[null,null,null,null," QUINSALOMA"]
[null,null,null,null," QUINSALOMA"]
[null,null,null,null," QUIROGA"]
[null,null,null,null," QUIROGA"]
[null,null,null,null," QUIROGA"]
[null,null,null,null," QUIROGA"]
[null,null,null,null," QUIROGA"]
[null,null,null,null," QUIROGA"]
[null,null,null,null," QUIROGA"]
[null,null,null,null," QUISAPINCHA (QUIZAPINCHA)"]
[null,null,null,null," QUISAPINCHA (QUIZAPINCHA)"]
[null,null,null,null," QUISAPINCHA (QUIZAPINCHA)"]
[null,null,null,null," QUISAPINCHA (QUIZAPINCHA)"]
[null,null,null,null," QUITO"]
[null,null,null,null," QUITO"]
[null,null,null,null," QUITO"]
[null,null,null,null," QUITO"]
[null,null,null,null," RAMON CAMPAÑA"]
[null,null,null,null," RAMON CAMPAÑA"]
[null,null,null,null," RAMON CAMPAÑA"]
[null,null,null,null," RAMON CAMPAÑA"]
[null,null,null,null," REGULO DE MORA"]
[null,null,null,null," REGULO DE MORA"]
[null,null,null,null," REGULO DE MORA"]
[null,null,null,null," REGULO DE MORA"]
[null,null,null,null," REMIGIO CRESPO TORAL"]
[null,null,null,null," REMIGIO CRESPO TORAL"]
[null,null,null,null," REMIGIO CRESPO TORAL"]
[null,null,null,null," REMIGIO CRESPO TORAL"]
[null,null,null,null," RICAURTE"]
[null,null,null,null," RICAURTE"]
[null,null,null,null," RICAURTE"]
[null,null,null,null," RICAURTE"]
[null,null,null,null," RICAURTE"]
[null,null,null,null," RICAURTE"]
[null,null,null,null," RICAURTE"]
[null,null,null,null," RICAURTE"]
[null,null,null,null," RICAURTE"]
[null,null,null,null," RICAURTE"]
[null,null,null,null," RIO BLANCO"]
[null,null,null,null," RIO BLANCO"]
[null,null,null,null," RIO BLANCO"]
[null,null,null,null," RIO BLANCO"]
[null,null,null,null," RIO BONITO"]
[null,null,null,null," RIO BONITO"]
[null,null,null,null," RIO BONITO"]
[null,null,null,null," RIO BONITO"]
[null,null,null,null," RIO NEGRO"]
[null,null,null,null," RIO NEGRO"]
[null,null,null,null," RIO NEGRO"]
[null,null,null,null," RIO NEGRO"]
[null,null,null,null," RIO VERDE"]
[null,null,null,null," RIO VERDE"]
[null,null,null,null," RIO VERDE"]
[null,null,null,null," RIO VERDE"]
[null,null,null,null," RIOBAMBA"]
[null,null,null,null," RIOBAMBA"]
[null,null,null,null," RIOBAMBA"]
[null,null,null,null," RIOBAMBA"]
[null,null,null,null," RIOCHICO (RIO CHICO)"]
[null,null,null,null," RIOCHICO (RIO CHICO)"]
[null,null,null,null," RIOCHICO (RIO CHICO)"]
[null,null,null,null," RIOCHICO (RIO CHICO)"]
[null,null,null,null," RIOVERDE"]
[null,null,null,null," RIOVERDE"]
[null,null,null,null," RIOVERDE"]
[null,null,null,null," RIOVERDE"]
[null,null,null,null," RIVERA"]
[null,null,null,null," RIVERA"]
[null,null,null,null," RIVERA"]
[null,null,null,null," RIVERA"]
[null,null,null,null," ROBERTO ASTUDILLO"]
[null,null,null,null," ROBERTO ASTUDILLO"]
[null,null,null,null," ROBERTO ASTUDILLO"]
[null,null,null,null," ROBERTO ASTUDILLO"]
[null,null,null,null," ROCAFUERTE"]
[null,null,null,null," ROCAFUERTE"]
[null,null,null,null," ROCAFUERTE"]
[null,null,null,null," ROCAFUERTE"]
[null,null,null,null," ROCAFUERTE"]
[null,null,null,null," ROCAFUERTE"]
[null,null,null,null," ROCAFUERTE"]
[null,null,null,null," ROSA FLORIDA"]
[null,null,null,null," ROSA FLORIDA"]
[null,null,null,null," ROSA FLORIDA"]
[null,null,null,null," ROSA FLORIDA"]
[null,null,null,null," ROSA ZARATE (QUININDE)"]
[null,null,null,null," ROSA ZARATE (QUININDE)"]
[null,null,null,null," ROSA ZARATE (QUININDE)"]
[null,null,null,null," ROSA ZARATE (QUININDE)"]
[null,null,null,null," RUMIPAMBA"]
[null,null,null,null," RUMIPAMBA"]
[null,null,null,null," RUMIPAMBA"]
[null,null,null,null," RUMIPAMBA"]
[null,null,null,null," RUMIPAMBA"]
[null,null,null,null," RUMIPAMBA"]
[null,null,null,null," RUMIPAMBA"]
[null,null,null,null," RUMIPAMBA"]
[null,null,null,null," RUMIPAMBA"]
[null,null,null,null," RUMIPAMBA"]
[null,null,null,null," SABANILLA"]
[null,null,null,null," SABANILLA"]
[null,null,null,null," SABANILLA"]
[null,null,null,null," SABANILLA"]
[null,null,null,null," SABANILLA"]
[null,null,null,null," SABANILLA"]
[null,null,null,null," SABANILLA"]
[null,null,null,null," SABANILLA"]
[null,null,null,null," SABANILLA"]
[null,null,null,null," SABANILLA"]
[null,null,null,null," SABIANGO (LA CAPILLA)"]
[null,null,null,null," SABIANGO (LA CAPILLA)"]
[null,null,null,null," SABIANGO (LA CAPILLA)"]
[null,null,null,null," SABIANGO (LA CAPILLA)"]
[null,null,null,null," SACAPALCA"]
[null,null,null,null," SACAPALCA"]
[null,null,null,null," SACAPALCA"]
[null,null,null,null," SACAPALCA"]
[null,null,null,null," SALANGO"]
[null,null,null,null," SALANGO"]
[null,null,null,null," SALANGO"]
[null,null,null,null," SALANGO"]
[null,null,null,null," SALASACA"]
[null,null,null,null," SALASACA"]
[null,null,null,null," SALASACA"]
[null,null,null,null," SALASACA"]
[null,null,null,null," SALATI"]
[null,null,null,null," SALATI"]
[null,null,null,null," SALATI"]
[null,null,null,null," SALATI"]
[null,null,null,null," SALIMA"]
[null,null,null,null," SALIMA"]
[null,null,null,null," SALIMA"]
[null,null,null,null," SALIMA"]
[null,null,null,null," SALINAS"]
[null,null,null,null," SALINAS"]
[null,null,null,null," SALINAS"]
[null,null,null,null," SALINAS"]
[null,null,null,null," SALINAS"]
[null,null,null,null," SALINAS"]
[null,null,null,null," SALINAS"]
[null,null,null,null," SALINAS"]
[null,null,null,null," SALINAS"]
[null,null,null,null," SALINAS"]
[null,null,null,null," SALVIAS"]
[null,null,null,null," SALVIAS"]
[null,null,null,null," SALVIAS"]
[null,null,null,null," SALVIAS"]
[null,null,null,null," SAMBORONDON"]
[null,null,null,null," SAMBORONDON"]
[null,null,null,null," SAMBORONDON"]
[null,null,null,null," SAMBORONDON"]
[null,null,null,null," SAN ANDRES"]
[null,null,null,null," SAN ANDRES"]
[null,null,null,null," SAN ANDRES"]
[null,null,null,null," SAN ANDRES"]
[null,null,null,null," SAN ANDRES"]
[null,null,null,null," SAN ANDRES"]
[null,null,null,null," SAN ANDRES"]
[null,null,null,null," SAN ANDRES"]
[null,null,null,null," SAN ANDRES"]
[null,null,null,null," SAN ANDRES"]
[null,null,null,null," SAN ANTONIO"]
[null,null,null,null," SAN ANTONIO"]
[null,null,null,null," SAN ANTONIO"]
[null,null,null,null," SAN ANTONIO"]
[null,null,null,null," SAN ANTONIO"]
[null,null,null,null," SAN ANTONIO"]
[null,null,null,null," SAN ANTONIO"]
[null,null,null,null," SAN ANTONIO"]
[null,null,null,null," SAN ANTONIO"]
[null,null,null,null," SAN ANTONIO"]
[null,null,null,null," SAN ANTONIO"]
[null,null,null,null," SAN ANTONIO"]
[null,null,null,null," SAN ANTONIO"]
[null,null,null,null," SAN ANTONIO"]
[null,null,null,null," SAN ANTONIO"]
[null,null,null,null," SAN ANTONIO"]
[null,null,null,null," SAN ANTONIO"]
[null,null,null,null," SAN ANTONIO"]
[null,null,null,null," SAN ANTONIO"]
[null,null,null,null," SAN ANTONIO"]
[null,null,null,null," SAN ANTONIO"]
[null,null,null,null," SAN ANTONIO"]
[null,null,null,null," SAN ANTONIO DE BAYUSHIG"]
[null,null,null,null," SAN ANTONIO DE BAYUSHIG"]
[null,null,null,null," SAN ANTONIO DE BAYUSHIG"]
[null,null,null,null," SAN ANTONIO DE BAYUSHIG"]
[null,null,null,null," SAN ANTONIO DE LAS ARADAS"]
[null,null,null,null," SAN ANTONIO DE LAS ARADAS"]
[null,null,null,null," SAN ANTONIO DE LAS ARADAS"]
[null,null,null,null," SAN ANTONIO DE LAS ARADAS"]
[null,null,null,null," SAN ANTONIO DE QUMBE"]
[null,null,null,null," SAN ANTONIO DE QUMBE"]
[null,null,null,null," SAN ANTONIO DE QUMBE"]
[null,null,null,null," SAN ANTONIO DE QUMBE"]
[null,null,null,null," SAN BARTOLOME"]
[null,null,null,null," SAN BARTOLOME"]
[null,null,null,null," SAN BARTOLOME"]
[null,null,null,null," SAN BARTOLOME"]
[null,null,null,null," SAN BARTOLOME DE PINLLOG"]
[null,null,null,null," SAN BARTOLOME DE PINLLOG"]
[null,null,null,null," SAN BARTOLOME DE PINLLOG"]
[null,null,null,null," SAN BARTOLOME DE PINLLOG"]
[null,null,null,null," SAN BLAS"]
[null,null,null,null," SAN BLAS"]
[null,null,null,null," SAN BLAS"]
[null,null,null,null," SAN BLAS"]
[null,null,null,null," SAN CARLOS"]
[null,null,null,null," SAN CARLOS"]
[null,null,null,null," SAN CARLOS"]
[null,null,null,null," SAN CARLOS"]
[null,null,null,null," SAN CARLOS"]
[null,null,null,null," SAN CARLOS"]
[null,null,null,null," SAN CARLOS"]
[null,null,null,null," SAN CARLOS"]
[null,null,null,null," SAN CARLOS"]
[null,null,null,null," SAN CARLOS"]
[null,null,null,null," SAN CARLOS DE LAS MINAS"]
[null,null,null,null," SAN CARLOS DE LAS MINAS"]
[null,null,null,null," SAN CARLOS DE LAS MINAS"]
[null,null,null,null," SAN CARLOS DE LAS MINAS"]
[null,null,null,null," SAN CARLOS DE LIMON"]
[null,null,null,null," SAN CARLOS DE LIMON"]
[null,null,null,null," SAN CARLOS DE LIMON"]
[null,null,null,null," SAN CARLOS DE LIMON"]
[null,null,null,null," SAN CRISTOBAL"]
[null,null,null,null," SAN CRISTOBAL"]
[null,null,null,null," SAN CRISTOBAL"]
[null,null,null,null," SAN CRISTOBAL"]
[null,null,null,null," SAN FERNANDO"]
[null,null,null,null," SAN FERNANDO"]
[null,null,null,null," SAN FERNANDO"]
[null,null,null,null," SAN FERNANDO"]
[null,null,null,null," SAN FERNANDO"]
[null,null,null,null," SAN FERNANDO"]
[null,null,null,null," SAN FERNANDO"]
[null,null,null,null," SAN FRANCISCO"]
[null,null,null,null," SAN FRANCISCO"]
[null,null,null,null," SAN FRANCISCO"]
[null,null,null,null," SAN FRANCISCO"]
[null,null,null,null," SAN FRANCISCO DE BORJA"]
[null,null,null,null," SAN FRANCISCO DE BORJA"]
[null,null,null,null," SAN FRANCISCO DE BORJA"]
[null,null,null,null," SAN FRANCISCO DE BORJA"]
[null,null,null,null," SAN FRANCISCO DE CHINIMB"]
[null,null,null,null," SAN FRANCISCO DE CHINIMB"]
[null,null,null,null," SAN FRANCISCO DE CHINIMB"]
[null,null,null,null," SAN FRANCISCO DE CHINIMB"]
[null,null,null,null," SAN FRANCISCO DE NATABUE"]
[null,null,null,null," SAN FRANCISCO DE NATABUE"]
[null,null,null,null," SAN FRANCISCO DE NATABUE"]
[null,null,null,null," SAN FRANCISCO DE NATABUE"]
[null,null,null,null," SAN FRANCISCO DE NOVILLO"]
[null,null,null,null," SAN FRANCISCO DE NOVILLO"]
[null,null,null,null," SAN FRANCISCO DE NOVILLO"]
[null,null,null,null," SAN FRANCISCO DE NOVILLO"]
[null,null,null,null," SAN FRANCISCO DE ONZOLE"]
[null,null,null,null," SAN FRANCISCO DE ONZOLE"]
[null,null,null,null," SAN FRANCISCO DE ONZOLE"]
[null,null,null,null," SAN FRANCISCO DE ONZOLE"]
[null,null,null,null," SAN FRANCISCO DE SAGEO"]
[null,null,null,null," SAN FRANCISCO DE SAGEO"]
[null,null,null,null," SAN FRANCISCO DE SAGEO"]
[null,null,null,null," SAN FRANCISCO DE SAGEO"]
[null,null,null,null," SAN FRANCISCO DE SIGSIPA"]
[null,null,null,null," SAN FRANCISCO DE SIGSIPA"]
[null,null,null,null," SAN FRANCISCO DE SIGSIPA"]
[null,null,null,null," SAN FRANCISCO DE SIGSIPA"]
[null,null,null,null," SAN FRANCISCO DE VERGEL"]
[null,null,null,null," SAN FRANCISCO DE VERGEL"]
[null,null,null,null," SAN FRANCISCO DE VERGEL"]
[null,null,null,null," SAN FRANCISCO DE VERGEL"]
[null,null,null,null," SAN GABRIEL"]
[null,null,null,null," SAN GABRIEL"]
[null,null,null,null," SAN GABRIEL"]
[null,null,null,null," SAN GABRIEL"]
[null,null,null,null," SAN GERARDO"]
[null,null,null,null," SAN GERARDO"]
[null,null,null,null," SAN GERARDO"]
[null,null,null,null," SAN GERARDO"]
[null,null,null,null," SAN GERARDO DE PACAICAGUAN"]
[null,null,null,null," SAN GERARDO DE PACAICAGUAN"]
[null,null,null,null," SAN GERARDO DE PACAICAGUAN"]
[null,null,null,null," SAN GERARDO DE PACAICAGUAN"]
[null,null,null,null," SAN GREGORIO"]
[null,null,null,null," SAN GREGORIO"]
[null,null,null,null," SAN GREGORIO"]
[null,null,null,null," SAN GREGORIO"]
[null,null,null,null," SAN ISIDRO"]
[null,null,null,null," SAN ISIDRO"]
[null,null,null,null," SAN ISIDRO"]
[null,null,null,null," SAN ISIDRO"]
[null,null,null,null," SAN ISIDRO"]
[null,null,null,null," SAN ISIDRO"]
[null,null,null,null," SAN ISIDRO"]
[null,null,null,null," SAN ISIDRO"]
[null,null,null,null," SAN ISIDRO"]
[null,null,null,null," SAN ISIDRO"]
[null,null,null,null," SAN ISIDRO"]
[null,null,null,null," SAN ISIDRO"]
[null,null,null,null," SAN ISIDRO"]
[null,null,null,null," SAN ISIDRO DE PATULU"]
[null,null,null,null," SAN ISIDRO DE PATULU"]
[null,null,null,null," SAN ISIDRO DE PATULU"]
[null,null,null,null," SAN ISIDRO DE PATULU"]
[null,null,null,null," SAN JACINTO"]
[null,null,null,null," SAN JACINTO"]
[null,null,null,null," SAN JACINTO"]
[null,null,null,null," SAN JACINTO"]
[null,null,null,null," SAN JACINTO DE BUENA FE"]
[null,null,null,null," SAN JACINTO DE BUENA FE"]
[null,null,null,null," SAN JACINTO DE BUENA FE"]
[null,null,null,null," SAN JACINTO DE BUENA FE"]
[null,null,null,null," SAN JACINTO DE WAKAMBEIS"]
[null,null,null,null," SAN JACINTO DE WAKAMBEIS"]
[null,null,null,null," SAN JACINTO DE WAKAMBEIS"]
[null,null,null,null," SAN JACINTO DE WAKAMBEIS"]
[null,null,null,null," SAN JACINTO DEL BUA"]
[null,null,null,null," SAN JACINTO DEL BUA"]
[null,null,null,null," SAN JACINTO DEL BUA"]
[null,null,null,null," SAN JACINTO DEL BUA"]
[null,null,null,null," SAN JAVIER DE CACHAVI"]
[null,null,null,null," SAN JAVIER DE CACHAVI"]
[null,null,null,null," SAN JAVIER DE CACHAVI"]
[null,null,null,null," SAN JAVIER DE CACHAVI"]
[null,null,null,null," SAN JOAQUIN"]
[null,null,null,null," SAN JOAQUIN"]
[null,null,null,null," SAN JOAQUIN"]
[null,null,null,null," SAN JOAQUIN"]
[null,null,null,null," SAN JOSE"]
[null,null,null,null," SAN JOSE"]
[null,null,null,null," SAN JOSE"]
[null,null,null,null," SAN JOSE"]
[null,null,null,null," SAN JOSE DE ANCON"]
[null,null,null,null," SAN JOSE DE ANCON"]
[null,null,null,null," SAN JOSE DE ANCON"]
[null,null,null,null," SAN JOSE DE ANCON"]
[null,null,null,null," SAN JOSE DE CAYAPAS"]
[null,null,null,null," SAN JOSE DE CAYAPAS"]
[null,null,null,null," SAN JOSE DE CAYAPAS"]
[null,null,null,null," SAN JOSE DE CAYAPAS"]
[null,null,null,null," SAN JOSE DE CHALTURA"]
[null,null,null,null," SAN JOSE DE CHALTURA"]
[null,null,null,null," SAN JOSE DE CHALTURA"]
[null,null,null,null," SAN JOSE DE CHALTURA"]
[null,null,null,null," SAN JOSE DE CHAMANGA"]
[null,null,null,null," SAN JOSE DE CHAMANGA"]
[null,null,null,null," SAN JOSE DE CHAMANGA"]
[null,null,null,null," SAN JOSE DE CHAMANGA"]
[null,null,null,null," SAN JOSE DE CHIMBO"]
[null,null,null,null," SAN JOSE DE CHIMBO"]
[null,null,null,null," SAN JOSE DE CHIMBO"]
[null,null,null,null," SAN JOSE DE CHIMBO"]
[null,null,null,null," SAN JOSE DE DAHUANO"]
[null,null,null,null," SAN JOSE DE DAHUANO"]
[null,null,null,null," SAN JOSE DE DAHUANO"]
[null,null,null,null," SAN JOSE DE DAHUANO"]
[null,null,null,null," SAN JOSE DE GUAYUSA"]
[null,null,null,null," SAN JOSE DE GUAYUSA"]
[null,null,null,null," SAN JOSE DE GUAYUSA"]
[null,null,null,null," SAN JOSE DE GUAYUSA"]
[null,null,null,null," SAN JOSE DE MINAS"]
[null,null,null,null," SAN JOSE DE MINAS"]
[null,null,null,null," SAN JOSE DE MINAS"]
[null,null,null,null," SAN JOSE DE MINAS"]
[null,null,null,null," SAN JOSE DE MORONA"]
[null,null,null,null," SAN JOSE DE MORONA"]
[null,null,null,null," SAN JOSE DE MORONA"]
[null,null,null,null," SAN JOSE DE MORONA"]
[null,null,null,null," SAN JOSE DE PAYAMINO"]
[null,null,null,null," SAN JOSE DE PAYAMINO"]
[null,null,null,null," SAN JOSE DE PAYAMINO"]
[null,null,null,null," SAN JOSE DE PAYAMINO"]
[null,null,null,null," SAN JOSE DE POALO"]
[null,null,null,null," SAN JOSE DE POALO"]
[null,null,null,null," SAN JOSE DE POALO"]
[null,null,null,null," SAN JOSE DE POALO"]
[null,null,null,null," SAN JOSE DE QUICHINCHE"]
[null,null,null,null," SAN JOSE DE QUICHINCHE"]
[null,null,null,null," SAN JOSE DE QUICHINCHE"]
[null,null,null,null," SAN JOSE DE QUICHINCHE"]
[null,null,null,null," SAN JOSE DE RARANGA"]
[null,null,null,null," SAN JOSE DE RARANGA"]
[null,null,null,null," SAN JOSE DE RARANGA"]
[null,null,null,null," SAN JOSE DE RARANGA"]
[null,null,null,null," SAN JOSE DEL CHAZO"]
[null,null,null,null," SAN JOSE DEL CHAZO"]
[null,null,null,null," SAN JOSE DEL CHAZO"]
[null,null,null,null," SAN JOSE DEL CHAZO"]
[null,null,null,null," SAN JOSE DEL TAMBO"]
[null,null,null,null," SAN JOSE DEL TAMBO"]
[null,null,null,null," SAN JOSE DEL TAMBO"]
[null,null,null,null," SAN JOSE DEL TAMBO"]
[null,null,null,null," SAN JUAN"]
[null,null,null,null," SAN JUAN"]
[null,null,null,null," SAN JUAN"]
[null,null,null,null," SAN JUAN"]
[null,null,null,null," SAN JUAN"]
[null,null,null,null," SAN JUAN"]
[null,null,null,null," SAN JUAN"]
[null,null,null,null," SAN JUAN"]
[null,null,null,null," SAN JUAN"]
[null,null,null,null," SAN JUAN"]
[null,null,null,null," SAN JUAN BOSCO"]
[null,null,null,null," SAN JUAN BOSCO"]
[null,null,null,null," SAN JUAN BOSCO"]
[null,null,null,null," SAN JUAN BOSCO"]
[null,null,null,null," SAN JUAN DE ILUMAN"]
[null,null,null,null," SAN JUAN DE ILUMAN"]
[null,null,null,null," SAN JUAN DE ILUMAN"]
[null,null,null,null," SAN JUAN DE ILUMAN"]
[null,null,null,null," SAN JUAN DE PASTOCALLE"]
[null,null,null,null," SAN JUAN DE PASTOCALLE"]
[null,null,null,null," SAN JUAN DE PASTOCALLE"]
[null,null,null,null," SAN JUAN DE PASTOCALLE"]
[null,null,null,null," SAN LORENZO"]
[null,null,null,null," SAN LORENZO"]
[null,null,null,null," SAN LORENZO"]
[null,null,null,null," SAN LORENZO"]
[null,null,null,null," SAN LORENZO"]
[null,null,null,null," SAN LORENZO"]
[null,null,null,null," SAN LORENZO"]
[null,null,null,null," SAN LORENZO"]
[null,null,null,null," SAN LORENZO"]
[null,null,null,null," SAN LORENZO"]
[null,null,null,null," SAN LUCAS"]
[null,null,null,null," SAN LUCAS"]
[null,null,null,null," SAN LUCAS"]
[null,null,null,null," SAN LUCAS"]
[null,null,null,null," SAN LUIS"]
[null,null,null,null," SAN LUIS"]
[null,null,null,null," SAN LUIS"]
[null,null,null,null," SAN LUIS"]
[null,null,null,null," SAN LUIS DE ARMENIA"]
[null,null,null,null," SAN LUIS DE ARMENIA"]
[null,null,null,null," SAN LUIS DE ARMENIA"]
[null,null,null,null," SAN LUIS DE ARMENIA"]
[null,null,null,null," SAN LUIS DE EL ACHO"]
[null,null,null,null," SAN LUIS DE EL ACHO"]
[null,null,null,null," SAN LUIS DE EL ACHO"]
[null,null,null,null," SAN LUIS DE EL ACHO"]
[null,null,null,null," SAN LUIS DE PAMBIL"]
[null,null,null,null," SAN LUIS DE PAMBIL"]
[null,null,null,null," SAN LUIS DE PAMBIL"]
[null,null,null,null," SAN LUIS DE PAMBIL"]
[null,null,null,null," SAN MARTIN DE PUZHIO"]
[null,null,null,null," SAN MARTIN DE PUZHIO"]
[null,null,null,null," SAN MARTIN DE PUZHIO"]
[null,null,null,null," SAN MARTIN DE PUZHIO"]
[null,null,null,null," SAN MATEO"]
[null,null,null,null," SAN MATEO"]
[null,null,null,null," SAN MATEO"]
[null,null,null,null," SAN MATEO"]
[null,null,null,null," SAN MIGUEL"]
[null,null,null,null," SAN MIGUEL"]
[null,null,null,null," SAN MIGUEL"]
[null,null,null,null," SAN MIGUEL"]
[null,null,null,null," SAN MIGUEL"]
[null,null,null,null," SAN MIGUEL"]
[null,null,null,null," SAN MIGUEL"]
[null,null,null,null," SAN MIGUEL"]
[null,null,null,null," SAN MIGUEL"]
[null,null,null,null," SAN MIGUEL"]
[null,null,null,null," SAN MIGUEL DE CONCHAY"]
[null,null,null,null," SAN MIGUEL DE CONCHAY"]
[null,null,null,null," SAN MIGUEL DE CONCHAY"]
[null,null,null,null," SAN MIGUEL DE CONCHAY"]
[null,null,null,null," SAN MIGUEL DE CUYES"]
[null,null,null,null," SAN MIGUEL DE CUYES"]
[null,null,null,null," SAN MIGUEL DE CUYES"]
[null,null,null,null," SAN MIGUEL DE CUYES"]
[null,null,null,null," SAN MIGUEL DE LOS BANCOS"]
[null,null,null,null," SAN MIGUEL DE LOS BANCOS"]
[null,null,null,null," SAN MIGUEL DE LOS BANCOS"]
[null,null,null,null," SAN MIGUEL DE LOS BANCOS"]
[null,null,null,null," SAN MIGUELITO"]
[null,null,null,null," SAN MIGUELITO"]
[null,null,null,null," SAN MIGUELITO"]
[null,null,null,null," SAN MIGUELITO"]
[null,null,null,null," SAN PABLO"]
[null,null,null,null," SAN PABLO"]
[null,null,null,null," SAN PABLO"]
[null,null,null,null," SAN PABLO"]
[null,null,null,null," SAN PABLO"]
[null,null,null,null," SAN PABLO"]
[null,null,null,null," SAN PABLO"]
[null,null,null,null," SAN PABLO"]
[null,null,null,null," SAN PABLO"]
[null,null,null,null," SAN PABLO"]
[null,null,null,null," SAN PABLO DE TENTA"]
[null,null,null,null," SAN PABLO DE TENTA"]
[null,null,null,null," SAN PABLO DE TENTA"]
[null,null,null,null," SAN PABLO DE TENTA"]
[null,null,null,null," SAN PABLO DE USHPAYACU"]
[null,null,null,null," SAN PABLO DE USHPAYACU"]
[null,null,null,null," SAN PABLO DE USHPAYACU"]
[null,null,null,null," SAN PABLO DE USHPAYACU"]
[null,null,null,null," SAN PEDRO DE LA BENDITA"]
[null,null,null,null," SAN PEDRO DE LA BENDITA"]
[null,null,null,null," SAN PEDRO DE LA BENDITA"]
[null,null,null,null," SAN PEDRO DE LA BENDITA"]
[null,null,null,null," SAN PEDRO DE LOS COFANES"]
[null,null,null,null," SAN PEDRO DE LOS COFANES"]
[null,null,null,null," SAN PEDRO DE LOS COFANES"]
[null,null,null,null," SAN PEDRO DE LOS COFANES"]
[null,null,null,null," SAN PEDRO DE SUMA"]
[null,null,null,null," SAN PEDRO DE SUMA"]
[null,null,null,null," SAN PEDRO DE SUMA"]
[null,null,null,null," SAN PEDRO DE SUMA"]
[null,null,null,null," SAN PEDRO DE VILCABAMBA"]
[null,null,null,null," SAN PEDRO DE VILCABAMBA"]
[null,null,null,null," SAN PEDRO DE VILCABAMBA"]
[null,null,null,null," SAN PEDRO DE VILCABAMBA"]
[null,null,null,null," SAN PLACIDO"]
[null,null,null,null," SAN PLACIDO"]
[null,null,null,null," SAN PLACIDO"]
[null,null,null,null," SAN PLACIDO"]
[null,null,null,null," SAN RAFAEL"]
[null,null,null,null," SAN RAFAEL"]
[null,null,null,null," SAN RAFAEL"]
[null,null,null,null," SAN RAFAEL"]
[null,null,null,null," SAN RAFAEL"]
[null,null,null,null," SAN RAFAEL"]
[null,null,null,null," SAN RAFAEL"]
[null,null,null,null," SAN RAFAEL DE SHARUG"]
[null,null,null,null," SAN RAFAEL DE SHARUG"]
[null,null,null,null," SAN RAFAEL DE SHARUG"]
[null,null,null,null," SAN RAFAEL DE SHARUG"]
[null,null,null,null," SAN ROQUE"]
[null,null,null,null," SAN ROQUE"]
[null,null,null,null," SAN ROQUE"]
[null,null,null,null," SAN ROQUE"]
[null,null,null,null," SAN ROQUE"]
[null,null,null,null," SAN ROQUE"]
[null,null,null,null," SAN ROQUE"]
[null,null,null,null," SAN ROQUE"]
[null,null,null,null," SAN ROQUE"]
[null,null,null,null," SAN ROQUE"]
[null,null,null,null," SAN SEBASTIAN"]
[null,null,null,null," SAN SEBASTIAN"]
[null,null,null,null," SAN SEBASTIAN"]
[null,null,null,null," SAN SEBASTIAN"]
[null,null,null,null," SAN SEBASTIAN"]
[null,null,null,null," SAN SEBASTIAN"]
[null,null,null,null," SAN SEBASTIAN"]
[null,null,null,null," SAN SEBASTIAN DE YULUC"]
[null,null,null,null," SAN SEBASTIAN DE YULUC"]
[null,null,null,null," SAN SEBASTIAN DE YULUC"]
[null,null,null,null," SAN SEBASTIAN DE YULUC"]
[null,null,null,null," SAN SEBASTIAN DEL COCA"]
[null,null,null,null," SAN SEBASTIAN DEL COCA"]
[null,null,null,null," SAN SEBASTIAN DEL COCA"]
[null,null,null,null," SAN SEBASTIAN DEL COCA"]
[null,null,null,null," SAN SIMON (YACOTO)"]
[null,null,null,null," SAN SIMON (YACOTO)"]
[null,null,null,null," SAN SIMON (YACOTO)"]
[null,null,null,null," SAN SIMON (YACOTO)"]
[null,null,null,null," SAN VICENTE"]
[null,null,null,null," SAN VICENTE"]
[null,null,null,null," SAN VICENTE"]
[null,null,null,null," SAN VICENTE"]
[null,null,null,null," SAN VICENTE"]
[null,null,null,null," SAN VICENTE"]
[null,null,null,null," SAN VICENTE"]
[null,null,null,null," SAN VICENTE"]
[null,null,null,null," SAN VICENTE"]
[null,null,null,null," SAN VICENTE"]
[null,null,null,null," SAN VICENTE DE HUATICOCHA"]
[null,null,null,null," SAN VICENTE DE HUATICOCHA"]
[null,null,null,null," SAN VICENTE DE HUATICOCHA"]
[null,null,null,null," SAN VICENTE DE HUATICOCHA"]
[null,null,null,null," SAN VICENTE DE PUSIR"]
[null,null,null,null," SAN VICENTE DE PUSIR"]
[null,null,null,null," SAN VICENTE DE PUSIR"]
[null,null,null,null," SAN VICENTE DE PUSIR"]
[null,null,null,null," SANGAY"]
[null,null,null,null," SANGAY"]
[null,null,null,null," SANGAY"]
[null,null,null,null," SANGAY"]
[null,null,null,null," SANGILLIN"]
[null,null,null,null," SANGILLIN"]
[null,null,null,null," SANGILLIN"]
[null,null,null,null," SANGILLIN"]
[null,null,null,null," SANGOLQUI"]
[null,null,null,null," SANGOLQUI"]
[null,null,null,null," SANGOLQUI"]
[null,null,null,null," SANGOLQUI"]
[null,null,null,null," SANTA ANA"]
[null,null,null,null," SANTA ANA"]
[null,null,null,null," SANTA ANA"]
[null,null,null,null," SANTA ANA"]
[null,null,null,null," SANTA ANA DE VUELTA LARGA"]
[null,null,null,null," SANTA ANA DE VUELTA LARGA"]
[null,null,null,null," SANTA ANA DE VUELTA LARGA"]
[null,null,null,null," SANTA ANA DE VUELTA LARGA"]
[null,null,null,null," SANTA BARBARA"]
[null,null,null,null," SANTA BARBARA"]
[null,null,null,null," SANTA BARBARA"]
[null,null,null,null," SANTA BARBARA"]
[null,null,null,null," SANTA CLARA"]
[null,null,null,null," SANTA CLARA"]
[null,null,null,null," SANTA CLARA"]
[null,null,null,null," SANTA CLARA"]
[null,null,null,null," SANTA ELENA"]
[null,null,null,null," SANTA ELENA"]
[null,null,null,null," SANTA ELENA"]
[null,null,null,null," SANTA ELENA"]
[null,null,null,null," SANTA ELENA"]
[null,null,null,null," SANTA ELENA"]
[null,null,null,null," SANTA ELENA"]
[null,null,null,null," SANTA FE DE GALAN"]
[null,null,null,null," SANTA FE DE GALAN"]
[null,null,null,null," SANTA FE DE GALAN"]
[null,null,null,null," SANTA FE DE GALAN"]
[null,null,null,null," SANTA ISABEL"]
[null,null,null,null," SANTA ISABEL"]
[null,null,null,null," SANTA ISABEL"]
[null,null,null,null," SANTA ISABEL"]
[null,null,null,null," SANTA LUCIA"]
[null,null,null,null," SANTA LUCIA"]
[null,null,null,null," SANTA LUCIA"]
[null,null,null,null," SANTA LUCIA"]
[null,null,null,null," SANTA MARIA DEL TOACHI"]
[null,null,null,null," SANTA MARIA DEL TOACHI"]
[null,null,null,null," SANTA MARIA DEL TOACHI"]
[null,null,null,null," SANTA MARIA DEL TOACHI"]
[null,null,null,null," SANTA MARIANITA"]
[null,null,null,null," SANTA MARIANITA"]
[null,null,null,null," SANTA MARIANITA"]
[null,null,null,null," SANTA MARIANITA"]
[null,null,null,null," SANTA MARIANITA DE JESUS"]
[null,null,null,null," SANTA MARIANITA DE JESUS"]
[null,null,null,null," SANTA MARIANITA DE JESUS"]
[null,null,null,null," SANTA MARIANITA DE JESUS"]
[null,null,null,null," SANTA MARTHA DE CUBA"]
[null,null,null,null," SANTA MARTHA DE CUBA"]
[null,null,null,null," SANTA MARTHA DE CUBA"]
[null,null,null,null," SANTA MARTHA DE CUBA"]
[null,null,null,null," SANTA RITA"]
[null,null,null,null," SANTA RITA"]
[null,null,null,null," SANTA RITA"]
[null,null,null,null," SANTA RITA"]
[null,null,null,null," SANTA ROSA"]
[null,null,null,null," SANTA ROSA"]
[null,null,null,null," SANTA ROSA"]
[null,null,null,null," SANTA ROSA"]
[null,null,null,null," SANTA ROSA"]
[null,null,null,null," SANTA ROSA"]
[null,null,null,null," SANTA ROSA"]
[null,null,null,null," SANTA ROSA"]
[null,null,null,null," SANTA ROSA"]
[null,null,null,null," SANTA ROSA"]
[null,null,null,null," SANTA ROSA"]
[null,null,null,null," SANTA ROSA"]
[null,null,null,null," SANTA ROSA"]
[null,null,null,null," SANTA ROSA DE CUZUBAMBA"]
[null,null,null,null," SANTA ROSA DE CUZUBAMBA"]
[null,null,null,null," SANTA ROSA DE CUZUBAMBA"]
[null,null,null,null," SANTA ROSA DE CUZUBAMBA"]
[null,null,null,null," SANTA ROSA DE FLANDES"]
[null,null,null,null," SANTA ROSA DE FLANDES"]
[null,null,null,null," SANTA ROSA DE FLANDES"]
[null,null,null,null," SANTA ROSA DE FLANDES"]
[null,null,null,null," SANTA ROSA DE SUCUMBIOS"]
[null,null,null,null," SANTA ROSA DE SUCUMBIOS"]
[null,null,null,null," SANTA ROSA DE SUCUMBIOS"]
[null,null,null,null," SANTA ROSA DE SUCUMBIOS"]
[null,null,null,null," SANTA RUFINA"]
[null,null,null,null," SANTA RUFINA"]
[null,null,null,null," SANTA RUFINA"]
[null,null,null,null," SANTA RUFINA"]
[null,null,null,null," SANTA SUSANA DE CHIVIAZA"]
[null,null,null,null," SANTA SUSANA DE CHIVIAZA"]
[null,null,null,null," SANTA SUSANA DE CHIVIAZA"]
[null,null,null,null," SANTA SUSANA DE CHIVIAZA"]
[null,null,null,null," SANTA TERESITA"]
[null,null,null,null," SANTA TERESITA"]
[null,null,null,null," SANTA TERESITA"]
[null,null,null,null," SANTA TERESITA"]
[null,null,null,null," SANTAFE (SANTA FE)"]
[null,null,null,null," SANTAFE (SANTA FE)"]
[null,null,null,null," SANTAFE (SANTA FE)"]
[null,null,null,null," SANTAFE (SANTA FE)"]
[null,null,null,null," SANTIAGO"]
[null,null,null,null," SANTIAGO"]
[null,null,null,null," SANTIAGO"]
[null,null,null,null," SANTIAGO"]
[null,null,null,null," SANTIAGO"]
[null,null,null,null," SANTIAGO"]
[null,null,null,null," SANTIAGO"]
[null,null,null,null," SANTIAGO"]
[null,null,null,null," SANTIAGO"]
[null,null,null,null," SANTIAGO"]
[null,null,null,null," SANTIAGO DE MENDEZ"]
[null,null,null,null," SANTIAGO DE MENDEZ"]
[null,null,null,null," SANTIAGO DE MENDEZ"]
[null,null,null,null," SANTIAGO DE MENDEZ"]
[null,null,null,null," SANTIAGO DE PANANZA"]
[null,null,null,null," SANTIAGO DE PANANZA"]
[null,null,null,null," SANTIAGO DE PANANZA"]
[null,null,null,null," SANTIAGO DE PANANZA"]
[null,null,null,null," SANTIAGO DE QUITO"]
[null,null,null,null," SANTIAGO DE QUITO"]
[null,null,null,null," SANTIAGO DE QUITO"]
[null,null,null,null," SANTIAGO DE QUITO"]
[null,null,null,null," SANTO DOMINGO DE LOS COLORADOS"]
[null,null,null,null," SANTO DOMINGO DE LOS COLORADOS"]
[null,null,null,null," SANTO DOMINGO DE LOS COLORADOS"]
[null,null,null,null," SANTO DOMINGO DE LOS COLORADOS"]
[null,null,null,null," SANTO DOMINGO DE ONZOLE"]
[null,null,null,null," SANTO DOMINGO DE ONZOLE"]
[null,null,null,null," SANTO DOMINGO DE ONZOLE"]
[null,null,null,null," SANTO DOMINGO DE ONZOLE"]
[null,null,null,null," SAQUISILI"]
[null,null,null,null," SAQUISILI"]
[null,null,null,null," SAQUISILI"]
[null,null,null,null," SAQUISILI"]
[null,null,null,null," SARACAY"]
[null,null,null,null," SARACAY"]
[null,null,null,null," SARACAY"]
[null,null,null,null," SARACAY"]
[null,null,null,null," SARAGURO"]
[null,null,null,null," SARAGURO"]
[null,null,null,null," SARAGURO"]
[null,null,null,null," SARAGURO"]
[null,null,null,null," SARDINAS"]
[null,null,null,null," SARDINAS"]
[null,null,null,null," SARDINAS"]
[null,null,null,null," SARDINAS"]
[null,null,null,null," SAYAUSI"]
[null,null,null,null," SAYAUSI"]
[null,null,null,null," SAYAUSI"]
[null,null,null,null," SAYAUSI"]
[null,null,null,null," SELVA ALEGRE"]
[null,null,null,null," SELVA ALEGRE"]
[null,null,null,null," SELVA ALEGRE"]
[null,null,null,null," SELVA ALEGRE"]
[null,null,null,null," SELVA ALEGRE"]
[null,null,null,null," SELVA ALEGRE"]
[null,null,null,null," SELVA ALEGRE"]
[null,null,null,null," SELVA ALEGRE"]
[null,null,null,null," SELVA ALEGRE"]
[null,null,null,null," SELVA ALEGRE"]
[null,null,null,null," SEVILLA"]
[null,null,null,null," SEVILLA"]
[null,null,null,null," SEVILLA"]
[null,null,null,null," SEVILLA"]
[null,null,null,null," SEVILLA"]
[null,null,null,null," SEVILLA"]
[null,null,null,null," SEVILLA"]
[null,null,null,null," SEVILLA DE ORO"]
[null,null,null,null," SEVILLA DE ORO"]
[null,null,null,null," SEVILLA DE ORO"]
[null,null,null,null," SEVILLA DE ORO"]
[null,null,null,null," SEVILLA DON BOSCO"]
[null,null,null,null," SEVILLA DON BOSCO"]
[null,null,null,null," SEVILLA DON BOSCO"]
[null,null,null,null," SEVILLA DON BOSCO"]
[null,null,null,null," SHELL"]
[null,null,null,null," SHELL"]
[null,null,null,null," SHELL"]
[null,null,null,null," SHELL"]
[null,null,null,null," SHIMPIS"]
[null,null,null,null," SHIMPIS"]
[null,null,null,null," SHIMPIS"]
[null,null,null,null," SHIMPIS"]
[null,null,null,null," SHUSHUFINDI"]
[null,null,null,null," SHUSHUFINDI"]
[null,null,null,null," SHUSHUFINDI"]
[null,null,null,null," SHUSHUFINDI"]
[null,null,null,null," SIBAMBE"]
[null,null,null,null," SIBAMBE"]
[null,null,null,null," SIBAMBE"]
[null,null,null,null," SIBAMBE"]
[null,null,null,null," SIDCAY"]
[null,null,null,null," SIDCAY"]
[null,null,null,null," SIDCAY"]
[null,null,null,null," SIDCAY"]
[null,null,null,null," SIETE DE JULIO"]
[null,null,null,null," SIETE DE JULIO"]
[null,null,null,null," SIETE DE JULIO"]
[null,null,null,null," SIETE DE JULIO"]
[null,null,null,null," SIGCHOS"]
[null,null,null,null," SIGCHOS"]
[null,null,null,null," SIGCHOS"]
[null,null,null,null," SIGCHOS"]
[null,null,null,null," SIGSIG"]
[null,null,null,null," SIGSIG"]
[null,null,null,null," SIGSIG"]
[null,null,null,null," SIGSIG"]
[null,null,null,null," SIMIATUG"]
[null,null,null,null," SIMIATUG"]
[null,null,null,null," SIMIATUG"]
[null,null,null,null," SIMIATUG"]
[null,null,null,null," SIMON BOLIVAR"]
[null,null,null,null," SIMON BOLIVAR"]
[null,null,null,null," SIMON BOLIVAR"]
[null,null,null,null," SIMON BOLIVAR"]
[null,null,null,null," SIMON BOLIVAR"]
[null,null,null,null," SIMON BOLIVAR"]
[null,null,null,null," SIMON BOLIVAR"]
[null,null,null,null," SIMON BOLIVAR"]
[null,null,null,null," SIMON BOLIVAR"]
[null,null,null,null," SIMON BOLIVAR"]
[null,null,null,null," SIMON BOLIVAR"]
[null,null,null,null," SIMON BOLIVAR"]
[null,null,null,null," SIMON BOLIVAR"]
[null,null,null,null," SINAI"]
[null,null,null,null," SINAI"]
[null,null,null,null," SINAI"]
[null,null,null,null," SINAI"]
[null,null,null,null," SININCAY"]
[null,null,null,null," SININCAY"]
[null,null,null,null," SININCAY"]
[null,null,null,null," SININCAY"]
[null,null,null,null," SINSAO"]
[null,null,null,null," SINSAO"]
[null,null,null,null," SINSAO"]
[null,null,null,null," SINSAO"]
[null,null,null,null," SOLANO"]
[null,null,null,null," SOLANO"]
[null,null,null,null," SOLANO"]
[null,null,null,null," SOLANO"]
[null,null,null,null," SOZORANGA"]
[null,null,null,null," SOZORANGA"]
[null,null,null,null," SOZORANGA"]
[null,null,null,null," SOZORANGA"]
[null,null,null,null," STA. CECILIA"]
[null,null,null,null," STA. CECILIA"]
[null,null,null,null," STA. CECILIA"]
[null,null,null,null," STA. CECILIA"]
[null,null,null,null," SUA"]
[null,null,null,null," SUA"]
[null,null,null,null," SUA"]
[null,null,null,null," SUA"]
[null,null,null,null," SUCRE"]
[null,null,null,null," SUCRE"]
[null,null,null,null," SUCRE"]
[null,null,null,null," SUCRE"]
[null,null,null,null," SUCRE"]
[null,null,null,null," SUCRE"]
[null,null,null,null," SUCRE"]
[null,null,null,null," SUCUA"]
[null,null,null,null," SUCUA"]
[null,null,null,null," SUCUA"]
[null,null,null,null," SUCUA"]
[null,null,null,null," SUMAYPAMBA"]
[null,null,null,null," SUMAYPAMBA"]
[null,null,null,null," SUMAYPAMBA"]
[null,null,null,null," SUMAYPAMBA"]
[null,null,null,null," SUSCAL"]
[null,null,null,null," SUSCAL"]
[null,null,null,null," SUSCAL"]
[null,null,null,null," SUSCAL"]
[null,null,null,null," SUSUDEL"]
[null,null,null,null," SUSUDEL"]
[null,null,null,null," SUSUDEL"]
[null,null,null,null," SUSUDEL"]
[null,null,null,null," TABABELA"]
[null,null,null,null," TABABELA"]
[null,null,null,null," TABABELA"]
[null,null,null,null," TABABELA"]
[null,null,null,null," TABACUNDO"]
[null,null,null,null," TABACUNDO"]
[null,null,null,null," TABACUNDO"]
[null,null,null,null," TABACUNDO"]
[null,null,null,null," TABIAZO"]
[null,null,null,null," TABIAZO"]
[null,null,null,null," TABIAZO"]
[null,null,null,null," TABIAZO"]
[null,null,null,null," TACAMOROS"]
[null,null,null,null," TACAMOROS"]
[null,null,null,null," TACAMOROS"]
[null,null,null,null," TACAMOROS"]
[null,null,null,null," TACHINA"]
[null,null,null,null," TACHINA"]
[null,null,null,null," TACHINA"]
[null,null,null,null," TACHINA"]
[null,null,null,null," TADAY"]
[null,null,null,null," TADAY"]
[null,null,null,null," TADAY"]
[null,null,null,null," TADAY"]
[null,null,null,null," TAISHA"]
[null,null,null,null," TAISHA"]
[null,null,null,null," TAISHA"]
[null,null,null,null," TAISHA"]
[null,null,null,null," TALAG"]
[null,null,null,null," TALAG"]
[null,null,null,null," TALAG"]
[null,null,null,null," TALAG"]
[null,null,null,null," TAMBILLO"]
[null,null,null,null," TAMBILLO"]
[null,null,null,null," TAMBILLO"]
[null,null,null,null," TAMBILLO"]
[null,null,null,null," TAMBILLO"]
[null,null,null,null," TAMBILLO"]
[null,null,null,null," TAMBILLO"]
[null,null,null,null," TANICUCHI"]
[null,null,null,null," TANICUCHI"]
[null,null,null,null," TANICUCHI"]
[null,null,null,null," TANICUCHI"]
[null,null,null,null," TAQUIL (MIGUEL RIOFRIO)"]
[null,null,null,null," TAQUIL (MIGUEL RIOFRIO)"]
[null,null,null,null," TAQUIL (MIGUEL RIOFRIO)"]
[null,null,null,null," TAQUIL (MIGUEL RIOFRIO)"]
[null,null,null,null," TARACOA"]
[null,null,null,null," TARACOA"]
[null,null,null,null," TARACOA"]
[null,null,null,null," TARACOA"]
[null,null,null,null," TARAPOA"]
[null,null,null,null," TARAPOA"]
[null,null,null,null," TARAPOA"]
[null,null,null,null," TARAPOA"]
[null,null,null,null," TARIFA"]
[null,null,null,null," TARIFA"]
[null,null,null,null," TARIFA"]
[null,null,null,null," TARIFA"]
[null,null,null,null," TARQUI"]
[null,null,null,null," TARQUI"]
[null,null,null,null," TARQUI"]
[null,null,null,null," TARQUI"]
[null,null,null,null," TARQUI"]
[null,null,null,null," TARQUI"]
[null,null,null,null," TARQUI"]
[null,null,null,null," TAURA"]
[null,null,null,null," TAURA"]
[null,null,null,null," TAURA"]
[null,null,null,null," TAURA"]
[null,null,null,null," TELEMBI"]
[null,null,null,null," TELEMBI"]
[null,null,null,null," TELEMBI"]
[null,null,null,null," TELEMBI"]
[null,null,null,null," TELIMBELA"]
[null,null,null,null," TELIMBELA"]
[null,null,null,null," TELIMBELA"]
[null,null,null,null," TELIMBELA"]
[null,null,null,null," TENA"]
[null,null,null,null," TENA"]
[null,null,null,null," TENA"]
[null,null,null,null," TENA"]
[null,null,null,null," TENDALES"]
[null,null,null,null," TENDALES"]
[null,null,null,null," TENDALES"]
[null,null,null,null," TENDALES"]
[null,null,null,null," TENGUEL"]
[null,null,null,null," TENGUEL"]
[null,null,null,null," TENGUEL"]
[null,null,null,null," TENGUEL"]
[null,null,null,null," TENIENTE HUGO ORTIZ"]
[null,null,null,null," TENIENTE HUGO ORTIZ"]
[null,null,null,null," TENIENTE HUGO ORTIZ"]
[null,null,null,null," TENIENTE HUGO ORTIZ"]
[null,null,null,null," TIMBARA"]
[null,null,null,null," TIMBARA"]
[null,null,null,null," TIMBARA"]
[null,null,null,null," TIMBARA"]
[null,null,null,null," TIMBIRE"]
[null,null,null,null," TIMBIRE"]
[null,null,null,null," TIMBIRE"]
[null,null,null,null," TIMBIRE"]
[null,null,null,null," TINGO"]
[null,null,null,null," TINGO"]
[null,null,null,null," TINGO"]
[null,null,null,null," TINGO"]
[null,null,null,null," TISALEO"]
[null,null,null,null," TISALEO"]
[null,null,null,null," TISALEO"]
[null,null,null,null," TISALEO"]
[null,null,null,null," TIWINTZA"]
[null,null,null,null," TIWINTZA"]
[null,null,null,null," TIWINTZA"]
[null,null,null,null," TIWINTZA"]
[null,null,null,null," TIXAN"]
[null,null,null,null," TIXAN"]
[null,null,null,null," TIXAN"]
[null,null,null,null," TIXAN"]
[null,null,null,null," TNTE. MAXIMILIANO RODRIG"]
[null,null,null,null," TNTE. MAXIMILIANO RODRIG"]
[null,null,null,null," TNTE. MAXIMILIANO RODRIG"]
[null,null,null,null," TNTE. MAXIMILIANO RODRIG"]
[null,null,null,null," TOACASO"]
[null,null,null,null," TOACASO"]
[null,null,null,null," TOACASO"]
[null,null,null,null," TOACASO"]
[null,null,null,null," TOBAR DONOSO (LA BOCANA)"]
[null,null,null,null," TOBAR DONOSO (LA BOCANA)"]
[null,null,null,null," TOBAR DONOSO (LA BOCANA)"]
[null,null,null,null," TOBAR DONOSO (LA BOCANA)"]
[null,null,null,null," TOCACHI"]
[null,null,null,null," TOCACHI"]
[null,null,null,null," TOCACHI"]
[null,null,null,null," TOCACHI"]
[null,null,null,null," TOMEBAMBA"]
[null,null,null,null," TOMEBAMBA"]
[null,null,null,null," TOMEBAMBA"]
[null,null,null,null," TOMEBAMBA"]
[null,null,null,null," TONCHIGUE"]
[null,null,null,null," TONCHIGUE"]
[null,null,null,null," TONCHIGUE"]
[null,null,null,null," TONCHIGUE"]
[null,null,null,null," TONSUPA"]
[null,null,null,null," TONSUPA"]
[null,null,null,null," TONSUPA"]
[null,null,null,null," TONSUPA"]
[null,null,null,null," TORATA"]
[null,null,null,null," TORATA"]
[null,null,null,null," TORATA"]
[null,null,null,null," TORATA"]
[null,null,null,null," TOSAGUA"]
[null,null,null,null," TOSAGUA"]
[null,null,null,null," TOSAGUA"]
[null,null,null,null," TOSAGUA"]
[null,null,null,null," TOTORAS"]
[null,null,null,null," TOTORAS"]
[null,null,null,null," TOTORAS"]
[null,null,null,null," TOTORAS"]
[null,null,null,null," TRES DE NOVIEMBRE"]
[null,null,null,null," TRES DE NOVIEMBRE"]
[null,null,null,null," TRES DE NOVIEMBRE"]
[null,null,null,null," TRES DE NOVIEMBRE"]
[null,null,null,null," TUFIÑO"]
[null,null,null,null," TUFIÑO"]
[null,null,null,null," TUFIÑO"]
[null,null,null,null," TUFIÑO"]
[null,null,null,null," TULCAN"]
[null,null,null,null," TULCAN"]
[null,null,null,null," TULCAN"]
[null,null,null,null," TULCAN"]
[null,null,null,null," TULULBI"]
[null,null,null,null," TULULBI"]
[null,null,null,null," TULULBI"]
[null,null,null,null," TULULBI"]
[null,null,null,null," TUMBABIRO"]
[null,null,null,null," TUMBABIRO"]
[null,null,null,null," TUMBABIRO"]
[null,null,null,null," TUMBABIRO"]
[null,null,null,null," TUMBACO"]
[null,null,null,null," TUMBACO"]
[null,null,null,null," TUMBACO"]
[null,null,null,null," TUMBACO"]
[null,null,null,null," TUNDAYME"]
[null,null,null,null," TUNDAYME"]
[null,null,null,null," TUNDAYME"]
[null,null,null,null," TUNDAYME"]
[null,null,null,null," TUPIGACHI"]
[null,null,null,null," TUPIGACHI"]
[null,null,null,null," TUPIGACHI"]
[null,null,null,null," TUPIGACHI"]
[null,null,null,null," TURI"]
[null,null,null,null," TURI"]
[null,null,null,null," TURI"]
[null,null,null,null," TURI"]
[null,null,null,null," TURUPAMBA"]
[null,null,null,null," TURUPAMBA"]
[null,null,null,null," TURUPAMBA"]
[null,null,null,null," TURUPAMBA"]
[null,null,null,null," TUTINENTZA"]
[null,null,null,null," TUTINENTZA"]
[null,null,null,null," TUTINENTZA"]
[null,null,null,null," TUTINENTZA"]
[null,null,null,null," TUTUPALI"]
[null,null,null,null," TUTUPALI"]
[null,null,null,null," TUTUPALI"]
[null,null,null,null," TUTUPALI"]
[null,null,null,null," ULBA"]
[null,null,null,null," ULBA"]
[null,null,null,null," ULBA"]
[null,null,null,null," ULBA"]
[null,null,null,null," UNAMUNCHO"]
[null,null,null,null," UNAMUNCHO"]
[null,null,null,null," UNAMUNCHO"]
[null,null,null,null," UNAMUNCHO"]
[null,null,null,null," UNION MILAGREÑA"]
[null,null,null,null," UNION MILAGREÑA"]
[null,null,null,null," UNION MILAGREÑA"]
[null,null,null,null," UNION MILAGREÑA"]
[null,null,null,null," URBINA"]
[null,null,null,null," URBINA"]
[null,null,null,null," URBINA"]
[null,null,null,null," URBINA"]
[null,null,null,null," URBINA (TAYA)"]
[null,null,null,null," URBINA (TAYA)"]
[null,null,null,null," URBINA (TAYA)"]
[null,null,null,null," URBINA (TAYA)"]
[null,null,null,null," URCUQUI"]
[null,null,null,null," URCUQUI"]
[null,null,null,null," URCUQUI"]
[null,null,null,null," URCUQUI"]
[null,null,null,null," URDANETA (PAQUISHAPA)"]
[null,null,null,null," URDANETA (PAQUISHAPA)"]
[null,null,null,null," URDANETA (PAQUISHAPA)"]
[null,null,null,null," URDANETA (PAQUISHAPA)"]
[null,null,null,null," UTUANA"]
[null,null,null,null," UTUANA"]
[null,null,null,null," UTUANA"]
[null,null,null,null," UTUANA"]
[null,null,null,null," UYUMBICHO"]
[null,null,null,null," UYUMBICHO"]
[null,null,null,null," UYUMBICHO"]
[null,null,null,null," UYUMBICHO"]
[null,null,null,null," UZHCURRUMI"]
[null,null,null,null," UZHCURRUMI"]
[null,null,null,null," UZHCURRUMI"]
[null,null,null,null," UZHCURRUMI"]
[null,null,null,null," VACAS GALINDO (EL CHURO)"]
[null,null,null,null," VACAS GALINDO (EL CHURO)"]
[null,null,null,null," VACAS GALINDO (EL CHURO)"]
[null,null,null,null," VACAS GALINDO (EL CHURO)"]
[null,null,null,null," VALDEZ (LIMONES)"]
[null,null,null,null," VALDEZ (LIMONES)"]
[null,null,null,null," VALDEZ (LIMONES)"]
[null,null,null,null," VALDEZ (LIMONES)"]
[null,null,null,null," VALENCIA"]
[null,null,null,null," VALENCIA"]
[null,null,null,null," VALENCIA"]
[null,null,null,null," VALENCIA"]
[null,null,null,null," VALLADOLID"]
[null,null,null,null," VALLADOLID"]
[null,null,null,null," VALLADOLID"]
[null,null,null,null," VALLADOLID"]
[null,null,null,null," VALLE"]
[null,null,null,null," VALLE"]
[null,null,null,null," VALLE"]
[null,null,null,null," VALLE"]
[null,null,null,null," VALLE DE LA VIRGEN"]
[null,null,null,null," VALLE DE LA VIRGEN"]
[null,null,null,null," VALLE DE LA VIRGEN"]
[null,null,null,null," VALLE DE LA VIRGEN"]
[null,null,null,null," VALLE HERMOSO"]
[null,null,null,null," VALLE HERMOSO"]
[null,null,null,null," VALLE HERMOSO"]
[null,null,null,null," VALLE HERMOSO"]
[null,null,null,null," VALPARAISO"]
[null,null,null,null," VALPARAISO"]
[null,null,null,null," VALPARAISO"]
[null,null,null,null," VALPARAISO"]
[null,null,null,null," VELASCO IBARRA"]
[null,null,null,null," VELASCO IBARRA"]
[null,null,null,null," VELASCO IBARRA"]
[null,null,null,null," VELASCO IBARRA"]
[null,null,null,null," VENTANAS"]
[null,null,null,null," VENTANAS"]
[null,null,null,null," VENTANAS"]
[null,null,null,null," VENTANAS"]
[null,null,null,null," VENTURA"]
[null,null,null,null," VENTURA"]
[null,null,null,null," VENTURA"]
[null,null,null,null," VENTURA"]
[null,null,null,null," VERACRUZ (INDILLAMA)"]
[null,null,null,null," VERACRUZ (INDILLAMA)"]
[null,null,null,null," VERACRUZ (INDILLAMA)"]
[null,null,null,null," VERACRUZ (INDILLAMA)"]
[null,null,null,null," VICENTINO"]
[null,null,null,null," VICENTINO"]
[null,null,null,null," VICENTINO"]
[null,null,null,null," VICENTINO"]
[null,null,null,null," VICHE"]
[null,null,null,null," VICHE"]
[null,null,null,null," VICHE"]
[null,null,null,null," VICHE"]
[null,null,null,null," VICTORIA"]
[null,null,null,null," VICTORIA"]
[null,null,null,null," VICTORIA"]
[null,null,null,null," VICTORIA"]
[null,null,null,null," VICTORIA DEL PORTETE"]
[null,null,null,null," VICTORIA DEL PORTETE"]
[null,null,null,null," VICTORIA DEL PORTETE"]
[null,null,null,null," VICTORIA DEL PORTETE"]
[null,null,null,null," VILCABAMBA (VICTORIA)"]
[null,null,null,null," VILCABAMBA (VICTORIA)"]
[null,null,null,null," VILCABAMBA (VICTORIA)"]
[null,null,null,null," VILCABAMBA (VICTORIA)"]
[null,null,null,null," VILLA LA UNION"]
[null,null,null,null," VILLA LA UNION"]
[null,null,null,null," VILLA LA UNION"]
[null,null,null,null," VILLA LA UNION"]
[null,null,null,null," VINCES"]
[null,null,null,null," VINCES"]
[null,null,null,null," VINCES"]
[null,null,null,null," VINCES"]
[null,null,null,null," VIRGEN DE FATIMA"]
[null,null,null,null," VIRGEN DE FATIMA"]
[null,null,null,null," VIRGEN DE FATIMA"]
[null,null,null,null," VIRGEN DE FATIMA"]
[null,null,null,null," VUELTA LARGA"]
[null,null,null,null," VUELTA LARGA"]
[null,null,null,null," VUELTA LARGA"]
[null,null,null,null," VUELTA LARGA"]
[null,null,null,null," WILFRIDO LOOR MOREIRA"]
[null,null,null,null," WILFRIDO LOOR MOREIRA"]
[null,null,null,null," WILFRIDO LOOR MOREIRA"]
[null,null,null,null," WILFRIDO LOOR MOREIRA"]
[null,null,null,null," YAGUACHI NUEVO"]
[null,null,null,null," YAGUACHI NUEVO"]
[null,null,null,null," YAGUACHI NUEVO"]
[null,null,null,null," YAGUACHI NUEVO"]
[null,null,null,null," YAGUACHI VIEJO (CONE)"]
[null,null,null,null," YAGUACHI VIEJO (CONE)"]
[null,null,null,null," YAGUACHI VIEJO (CONE)"]
[null,null,null,null," YAGUACHI VIEJO (CONE)"]
[null,null,null,null," YAMANA"]
[null,null,null,null," YAMANA"]
[null,null,null,null," YAMANA"]
[null,null,null,null," YAMANA"]
[null,null,null,null," YANAYACU - MOCHAPATA"]
[null,null,null,null," YANAYACU - MOCHAPATA"]
[null,null,null,null," YANAYACU - MOCHAPATA"]
[null,null,null,null," YANAYACU - MOCHAPATA"]
[null,null,null,null," YANGANA (ARSENIO CASTILLO)"]
[null,null,null,null," YANGANA (ARSENIO CASTILLO)"]
[null,null,null,null," YANGANA (ARSENIO CASTILLO)"]
[null,null,null,null," YANGANA (ARSENIO CASTILLO)"]
[null,null,null,null," YANZATZA"]
[null,null,null,null," YANZATZA"]
[null,null,null,null," YANZATZA"]
[null,null,null,null," YANZATZA"]
[null,null,null,null," YARUQUI"]
[null,null,null,null," YARUQUI"]
[null,null,null,null," YARUQUI"]
[null,null,null,null," YARUQUI"]
[null,null,null,null," YASUNI"]
[null,null,null,null," YASUNI"]
[null,null,null,null," YASUNI"]
[null,null,null,null," YASUNI"]
[null,null,null,null," YAUPI"]
[null,null,null,null," YAUPI"]
[null,null,null,null," YAUPI"]
[null,null,null,null," YAUPI"]
[null,null,null,null," YUNGANZA"]
[null,null,null,null," YUNGANZA"]
[null,null,null,null," YUNGANZA"]
[null,null,null,null," YUNGANZA"]
[null,null,null,null," ZAMBI"]
[null,null,null,null," ZAMBI"]
[null,null,null,null," ZAMBI"]
[null,null,null,null," ZAMBI"]
[null,null,null,null," ZAMBIZA"]
[null,null,null,null," ZAMBIZA"]
[null,null,null,null," ZAMBIZA"]
[null,null,null,null," ZAMBIZA"]
[null,null,null,null," ZAMORA"]
[null,null,null,null," ZAMORA"]
[null,null,null,null," ZAMORA"]
[null,null,null,null," ZAMORA"]
[null,null,null,null," ZAPALLO"]
[null,null,null,null," ZAPALLO"]
[null,null,null,null," ZAPALLO"]
[null,null,null,null," ZAPALLO"]
[null,null,null,null," ZAPOTAL"]
[null,null,null,null," ZAPOTAL"]
[null,null,null,null," ZAPOTAL"]
[null,null,null,null," ZAPOTAL"]
[null,null,null,null," ZAPOTILLO"]
[null,null,null,null," ZAPOTILLO"]
[null,null,null,null," ZAPOTILLO"]
[null,null,null,null," ZAPOTILLO"]
[null,null,null,null," ZARUMA"]
[null,null,null,null," ZARUMA"]
[null,null,null,null," ZARUMA"]
[null,null,null,null," ZARUMA"]
[null,null,null,null," ZHAGLLI"]
[null,null,null,null," ZHAGLLI"]
[null,null,null,null," ZHAGLLI"]
[null,null,null,null," ZHAGLLI"]
[null,null,null,null," ZHIDMAD"]
[null,null,null,null," ZHIDMAD"]
[null,null,null,null," ZHIDMAD"]
[null,null,null,null," ZHIDMAD"]
[null,null,null,null," ZHUD"]
[null,null,null,null," ZHUD"]
[null,null,null,null," ZHUD"]
[null,null,null,null," ZHUD"]
[null,null,null,null," ZUMBA"]
[null,null,null,null," ZUMBA"]
[null,null,null,null," ZUMBA"]
[null,null,null,null," ZUMBA"]
[null,null,null,null," ZUMBAHUA"]
[null,null,null,null," ZUMBAHUA"]
[null,null,null,null," ZUMBAHUA"]
[null,null,null,null," ZUMBAHUA"]
[null,null,null,null," ZUMBI"]
[null,null,null,null," ZUMBI"]
[null,null,null,null," ZUMBI"]
[null,null,null,null," ZUMBI"]
[null,null,null,null," ZUÑA (ZUÑAC)"]
[null,null,null,null," ZUÑA (ZUÑAC)"]
[null,null,null,null," ZUÑA (ZUÑAC)"]
[null,null,null,null," ZUÑA (ZUÑAC)"]
[null,null,null,null," ZURMI"]
[null,null,null,null," ZURMI"]
[null,null,null,null," ZURMI"]
[null,null,null,null," ZURMI"]

{"sheet":"Fundacion","index":1,"n_rows":3,"n_cols":15,"rows_kept":3,"cut":false,"hidden":false,"merged":[]}
[]
["Nota: El asterisco indica que el campo no puede estar vacío. "]
["Ruc Fundación / Corporación:*","Razón Social:*","Fecha de constitución:*","País","Correo electrónico:*","Celular:*","Teléfono:*","Provincia:*","Canton:*","Parroquia:*","calle principal:*","numero de domicilio:*","calle secundaria:*","Barrio:*","Referencia:*"]

{"sheet":"Representante Legal","index":2,"n_rows":3,"n_cols":16,"rows_kept":3,"cut":false,"hidden":false,"merged":[]}
[]
[null,null,"establecer control:\nsi es CEDULA 10 DIGITOS NUMERICOS\nsi es RUC 13 DIGITOS NUMERICOS\nsi es PASAPORTE, texto libre"]
["Fecha de nombramiento","Tipo Identificación","identificación:*","Apellido nombres","País de nacimiento:","Correo electrónico:*","Celular:*","Teléfono:*","Provincia:*","Canton:*","Parroquia:*","calle principal:*","numero de domicilio:*","calle secundaria:*","Barrio:*","Referencia:*"]

{"sheet":"Doc Habilitantes","index":3,"n_rows":10,"n_cols":5,"rows_kept":10,"cut":false,"hidden":false,"merged":[]}
["Automático",null,"Formato fecha","Según catálogo"]
["Ruc Fundación / Corporación:*","Referencia del documento","Fecha de emisión","Tipo de documento","Nombre del archivo"]
[null,"Requisito2.- Copia certificada o notariada del instrumento público de la institución competente del Estado mediante la cual le otorgó la personalidad jurídica","06/04/2021","COPIA CERTIFICADA"]
[null,"Requisito3.- Copia certificada del estatuto vigente a la fecha de la solicitud de registro con su respectivo instrumento público de aprobación","06/04/2021","COPIA CERTIFICADA"]
[null,"Requisito5.- Copia certificada del nombramiento vigente de la directiva o de quien haga sus veces, y del representante legal, debidamente registrados ante de la institución competente del Estado que le otorgó la personalidad jurídica","06/04/2021","COPIA CERTIFICADA"]
[null,"Requisito6.- Certificación suscrita por el representante legal de la entidad de apoyo en la que constarán nombres y apellidos completos y período de funciones del auditor interno","06/04/2021","CERTIFICAD"]
[null,"Requisito7.- Certificado emitido por la o las firmas de auditoría externa, calificadas por la Superintendencia de Economía Popular y Solidaria, del que conste que sus informes sobre los estados financieros de la entidad de apoyo, de al menos los últimos tres (3) ejercicios económicos, se emitieron sin salvedades","06/04/2021","CERTIFICADO"]
[null,"Requisito8.- Copia certificada de los estados financieros correspondientes a los tres últimos ejercicios económicos, los cuales no deberán reflejar pérdidas","","COPIA CERTIFICADA"]
[null,"Requisito9.- Manual de lavado de activos que deberá sujetarse en lo que corresponda a la “Norma para la prevención, detección y erradicación del delito de lavado de activos y del financiamiento de delitos en las entidades financieras de la economía popular y solidaria.” emitida por la Junta de Política y Regulación Monetaria y Financiera","","MANUAL"]
[null,"Requisito10.- Certificado emitido por el representante legal de la fundación o corporación civil, en el formato que establezca la Superintendencia, que su representada mantiene una relación de al menos el 9% del patrimonio técnico constituido (PTC) respecto de la suma ponderada de riesgos de sus activos y contingentes ","06/04/2021","CERTIFICADO"]

{"sheet":"Datos Firmas Auditoras Externas","index":4,"n_rows":3,"n_cols":4,"rows_kept":3,"cut":false,"hidden":false,"merged":[]}
["Instrucciones: Complete los campos, el asterisco indica que el campo no puede estar vacío. "]
["Automático","validación de campos a 13 digitos","Quemar formato mayúsculas y sin tildes. ","Texto lIbre"]
["Ruc Fundación / Corporación:*","Ruc Firma Auditora:*","Razón social Firma Auditora:*","#Resolución de calificación:*"]

{"sheet":"Listado de miembros","index":5,"n_rows":4,"n_cols":19,"rows_kept":4,"cut":false,"hidden":false,"merged":[]}
[null,"Nota: El asterisco indica que el campo no puede estar vacío. "]
[null,null,null,null,"Bloquear si el tipo de identificación es RUC",null,"Bloquear si el tipo de identificación es RUC","Bloquear si el tipo de identificación es RUC"]
["Automático","incluir carnet de refugiados","Validación según tipo de identificación\nCEDULA=numero10\nRUC=numero13\nPASAPORTE=Alfanumerico\nREFUGIADOS=Alfanumerico","Quemar formato mayúsculas y sin tildes. ","Incluir catálogo Masculino\nFemenino\nNo Aplica","Formato fechas","Formato fechas","Validar catálogo","Fomato correo. No se permite comas o puntocomas y más de un arroba","Formato 10 digitos","Formato 9 digitos","Validar catálogo","Validar catálogo","Validar catálogo","Texto libre","Texto libre","Texto libre","Texto libre","Texto libre"]
["Ruc Fundación / Corporación:*","Tipo de identificación:*","Numero de identificación:*","Apellidos y Nombres / Razón Social:*","Género*:","Fecha de ingreso al fundación/ corporación*","Fecha de nacimiento","País de nacimiento:*","Correo electrónico:*","Celular:*","Telefono:*","Provincia*:","Cantón*:","Parroquia:*","Calle principal:*","Numero de domicilio:*","Calle secundaria:*","Barrio:*","Referencia:*"]

{"sheet":"Datos de la Directiva","index":6,"n_rows":3,"n_cols":17,"rows_kept":3,"cut":false,"hidden":false,"merged":[]}
[null,"Nota: El asterisco indica que el campo no puede estar vacío. "]
["Automático","catalogo sin RUC","Validación según tipo de identificación\nCEDULA=numero10\nRUC=numero13\nPASAPORTE=Alfanumerico\nREFUGIADOS=Alfanumerico","Texto libre","Fomato correo. No se permite comas o puntocomas y más de un arroba","Formato 10 digitos","Formato 9 digitos","Validar catálogo","Validar catálogo","Validar catálogo","Texto libre","Texto libre","Texto libre","Texto libre","Texto libre","Texto libre","Formato fecha"]
["Ruc Fundación / Corporación:*","Tipo de identificación:*","Numero de identificación:*","Apellidos y Nombres:*","Correo electrónico:*","Celular:*","Teléfono:*","Provincia*:","Cantón*:","Parroquia:*","Calle principal:*","Numero de domicilio:*","Calle secundaria:*","Barrio:*","Referencia:*","Cargo:*","Fecha de ingreso"]

{"sheet":"Datos de Auditor Interno","index":7,"n_rows":4,"n_cols":17,"rows_kept":4,"cut":false,"hidden":false,"merged":[[2,6,3,6],[2,4,2,5],[2,0,3,0],[2,1,3,1],[2,2,3,2],[2,3,3,3],[2,13,3,13],[2,14,3,14],[2,15,3,15],[2,16,3,16],[2,7,3,7],[2,8,3,8],[2,9,3,9],[2,10,3,10],[2,11,3,11],[2,12,3,12]]}
[null,"Nota: El asterisco indica que el campo no puede estar vacío. "]
["Automático","catalogo sin RUC","Validación según tipo de identificación\nCEDULA=numero10\nRUC=numero13\nPASAPORTE=Alfanumerico\nREFUGIADOS=Alfanumerico","Texto libre","Formato fecha","Formato fecha","Fomato correo. No se permite comas o puntocomas y más de un arroba","Formato 10 digitos","Formato 9 digitos","Validar catálogo","Validar catálogo","Validar catálogo","Texto libre","Texto libre","Texto libre","Texto libre","Texto libre"]
["Ruc Fundación / Corporación:*","Tipo de identificación:*","Numero de identificación:*","Apellidos y Nombres:*","Periodo de funciones",null,"Correo electrónico:*","Celular:*","Teléfono:*","Provincia*:","Cantón*:","Parroquia:*","Calle principal:*","Numero de domicilio:*","Calle secundaria:*","Barrio:*","Referencia:*"]
[null,null,null,null,"Fecha inicio","Fecha fin"]

{"sheet":"Parámetros","index":8,"n_rows":1302,"n_cols":24,"rows_kept":1302,"cut":false,"hidden":true,"merged":[[0,2,0,6]]}
["cod_pro","provincia","cod_pro1",null,null,null,null,"provincia2","cod_can1","canton1","cod_parr","parroquia","Documentos","Pais","Año","CAPACITACION","plan op","meses","medidas","frecuencia","FUNDACION","tilde","sin tilde","GENERO"]
["01","AZUAY","01","AZUAY","0116","CAMILO PONCE ENRIQUEZ","01","AZUAY","0116","CAMILO PONCE ENRIQUEZ","011601","CAMILO PONCE ENRIQUEZ","CEDULA","ECUADOR",2014,"Capacitación","SI","01","Quintal","Diario","1234567890123","sadfdsfs",{"$f":"UPPER(SUBSTITUTE(SUBSTITUTE(SUBSTITUTE(SUBSTITUTE(SUBSTITUTE(Parámetros!V2,\"á\",\"a\"),\"é\",\"e\"),\"í\",\"i\"),\"ó\",\"o\"),\"ú\",\"u\"))","v":"SADFDSFS"},"MASCULINO"]
["02","BOLIVAR","01","AZUAY","0101","CHORDELEG","01","AZUAY","0101","CHORDELEG","010101","CHORDELEG","RUC","AFGANISTÁN",2015,"Fortalecimiento Organizacional","NO","02","Kilogramo","Semanal","sfdsgdsfg",null,null,"FEMENINO"]
["03","CAÑAR","01","AZUAY","0102","CUENCA","01","AZUAY","0101","CHORDELEG","010102","LA UNION","PASAPORTE","AFGANISTÁN",2016,"Investigación","PARCIALMENTE","03","Libra","Quincenal","C:\\Users\\gglima\\OneDrive\\Escritorio\\Actualización Fundaciones\\06042021_SEPS__1234567890123_sfdsgdsfg.xlsm",null,null,"NO APLICA"]
["04","CARCHI","01","AZUAY","0103","EL PAN","01","AZUAY","0101","CHORDELEG","010103","LUIS GALARZA ORELLANA (CAB. EN DELEGSOL)","REFUGIADO","ALAND",2017,"Comercialización",null,"04","Hectaria","Mensual"]
["05","COTOPAXI","01","AZUAY","0104","GIRON","01","AZUAY","0101","CHORDELEG","010104","PRINCIPAL",null,"ALBANIA",2018,"Infraestructura",null,"05","Metro Cuadrado","Otros (Meses)"]
["06","CHIMBORAZO","01","AZUAY","0105","GUACHAPALA","01","AZUAY","0101","CHORDELEG","010105","SAN MARTIN DE PUZHIO",null,"ALEMANIA",2019,"Financiamiento Proyecto",null,"06","Litro","Anual"]
["07","EL ORO","01","AZUAY","0106","GUALACEO","01","AZUAY","0102","CUENCA","010201","BAÑOS",null,"ANDORRA",null,"Otros",null,"07","Cm. Cúbico"]
["08","ESMERALDAS","01","AZUAY","0107","NABON","01","AZUAY","0102","CUENCA","010202","BELLAVISTA",null,"ANDORRA",null,null,null,"08"]
["09","GUAYAS","01","AZUAY","0108","OÑA","01","AZUAY","0102","CUENCA","010203","CAÑARIBAMBA",null,"ANGOLA",null,null,null,"09"]
["10","IMBABURA","01","AZUAY","0109","PAUTE","01","AZUAY","0102","CUENCA","010204","CHAUCHA",null,"ANGUILA",null,null,null,"10"]
["11","LOJA","01","AZUAY","0110","PUCARA","01","AZUAY","0102","CUENCA","010205","CHECA (JIDCAY)",null,"ANTIGUA Y BARBUDA",null,null,null,"11"]
["12","LOS RIOS","01","AZUAY","0111","SAN FERNANDO","01","AZUAY","0102","CUENCA","010206","CHIQUINTAD",null,"ANTIGUA Y BARBUDA",null,null,null,"12"]
["13","MANABI","01","AZUAY","0112","SANTA ISABEL","01","AZUAY","0102","CUENCA","010207","CUENCA",null,"ANTILLAS NEERLANDESAS",null,null,null,"NO APLICA"]
["14","MORONA SANTIAGO","01","AZUAY","0113","SEVILLA DE ORO","01","AZUAY","0102","CUENCA","010208","CUMBE",null,"ANTÁRTIDA"]
["15","NAPO","01","AZUAY","0114","SIGSIG","01","AZUAY","0102","CUENCA","010209","EL BATAN",null,"ARABIA SAUDITA"]
["16","PASTAZA","02","BOLIVAR","0201","CALUMA","01","AZUAY","0102","CUENCA","010210","EL SAGRARIO",null,"ARGELIA"]
["17","PICHINCHA","02","BOLIVAR","0202","CHILLANES","01","AZUAY","0102","CUENCA","010211","EL VECINO",null,"ARGENTINA"]
["18","TUNGURAHUA","02","BOLIVAR","0203","CHIMBO","01","AZUAY","0102","CUENCA","010212","GIL RAMIREZ DAVALOS",null,"ARMENIA"]
["19","ZAMORA CHINCHIPE","02","BOLIVAR","0204","ECHEANDIA","01","AZUAY","0102","CUENCA","010213","HERMANO MIGUEL",null,"ARUBA"]
["20","GALAPAGOS","02","BOLIVAR","0205","GUARANDA","01","AZUAY","0102","CUENCA","010214","HERMANO MIGUEL",null,"AUSTRALIA"]
["21","SUCUMBIOS","02","BOLIVAR","0206","LAS NAVES","01","AZUAY","0102","CUENCA","010215","HUAYNACAPAC",null,"AUSTRIA"]
["22","ORELLANA","02","BOLIVAR","0207","SAN MIGUEL","01","AZUAY","0102","CUENCA","010216","LLACAO",null,"AZERBAIYAN"]
["23","SANTO DOMINGO DE LOS TSACHILAS","03","CAÑAR","0301","AZOGUES","01","AZUAY","0102","CUENCA","010217","MACHANGARA",null,"BAHAMAS"]
["24","SANTA ELENA","03","CAÑAR","0302","BIBLIAN","01","AZUAY","0102","CUENCA","010218","MOLLETURO",null,"BAHREIN"]
["25","ZONA NO DELIMITADA","03","CAÑAR","0303","CAÑAR","01","AZUAY","0102","CUENCA","010219","MONAY",null,"BANGLADESH"]
[null,null,"03","CAÑAR","0304","DELEG","01","AZUAY","0102","CUENCA","010220","NULTI",null,"BARBADOS"]
[null,null,"03","CAÑAR","0305","EL TAMBO","01","AZUAY","0102","CUENCA","010221","OCTAVIO CORDERO PALACIOS (SANTA ROSA)",null,"BELGICA"]
[null,null,"03","CAÑAR","0306","LA TRONCAL","01","AZUAY","0102","CUENCA","010222","PACCHA",null,"BELICE"]
[null,null,"03","CAÑAR","0307","SUSCAL","01","AZUAY","0102","CUENCA","010223","QUINGEO",null,"BENIN"]
[null,null,"04","CARCHI","0401","BOLIVAR","01","AZUAY","0102","CUENCA","010224","RICAURTE",null,"BERMUDAS"]
[null,null,"04","CARCHI","0402","ESPEJO","01","AZUAY","0102","CUENCA","010225","SAN BLAS",null,"BIELORRUSIA"]
[null,null,"04","CARCHI","0403","MIRA","01","AZUAY","0102","CUENCA","010226","SAN JOAQUIN",null,"BIRMANIA"]
[null,null,"04","CARCHI","0404","MONTUFAR","01","AZUAY","0102","CUENCA","010227","SAN SEBASTIAN",null,"BOLIVIA"]
[null,null,"04","CARCHI","0405","SAN PEDRO DE HUACA","01","AZUAY","0102","CUENCA","010228","SANTA ANA",null,"BOSNIA Y HERZEGOVINA"]
[null,null,"04","CARCHI","0406","TULCAN","01","AZUAY","0102","CUENCA","010229","SAYAUSI",null,"BOTSUANA"]
[null,null,"05","COTOPAXI","0501","LA MANA","01","AZUAY","0102","CUENCA","010230","SIDCAY",null,"BRASIL"]
[null,null,"05","COTOPAXI","0502","LATACUNGA","01","AZUAY","0102","CUENCA","010231","SININCAY",null,"BRUNEI"]
[null,null,"05","COTOPAXI","0503","PANGUA","01","AZUAY","0102","CUENCA","010232","SUCRE",null,"BULGARIA"]
[null,null,"05","COTOPAXI","0504","PUJILI","01","AZUAY","0102","CUENCA","010233","TARQUI",null,"BURKINA FASO"]
[null,null,"05","COTOPAXI","0505","SALCEDO","01","AZUAY","0102","CUENCA","010234","TOTORACOCHA",null,"BURUNDI"]
[null,null,"05","COTOPAXI","0506","SAQUISILI","01","AZUAY","0102","CUENCA","010235","TURI",null,"BUTAN"]
[null,null,"05","COTOPAXI","0507","SIGCHOS","01","AZUAY","0102","CUENCA","010236","VALLE",null,"CABO VERDE"]
[null,null,"06","CHIMBORAZO","0601","ALAUSI","01","AZUAY","0102","CUENCA","010237","VICTORIA DEL PORTETE (IRQUIS)",null,"CAMBOYA"]
[null,null,"06","CHIMBORAZO","0602","CHAMBO","01","AZUAY","0102","CUENCA","010238","YANUNCAY",null,"CAMERUN"]
[null,null,"06","CHIMBORAZO","0603","CHUNCHI","01","AZUAY","0103","EL PAN","010301","EL PAN",null,"CANADA"]
[null,null,"06","CHIMBORAZO","0604","COLTA","01","AZUAY","0103","EL PAN","010302","SAN VICENTE",null,"CHAD"]
[null,null,"06","CHIMBORAZO","0605","CUMANDA","01","AZUAY","0104","GIRON","010401","ASUNCION",null,"CHILE"]
[null,null,"06","CHIMBORAZO","0606","GUAMOTE","01","AZUAY","0104","GIRON","010402","GIRON",null,"CHINA"]
[null,null,"06","CHIMBORAZO","0607","GUANO","01","AZUAY","0104","GIRON","010403","SAN GERARDO",null,"CHIPRE"]
[null,null,"06","CHIMBORAZO","0608","PALLATANGA","01","AZUAY","0105","GUACHAPALA","010501","GUACHAPALA",null,"COLOMBIA"]
[null,null,"06","CHIMBORAZO","0609","PENIPE","01","AZUAY","0106","GUALACEO","010601","DANIEL CORDOVA TORAL (EL ORIENTE)",null,"COMORAS"]
[null,null,"06","CHIMBORAZO","0610","RIOBAMBA","01","AZUAY","0106","GUALACEO","010602","GUALACEO",null,"COREA DEL NORTE"]
[null,null,"07","EL ORO","0701","ARENILLAS","01","AZUAY","0106","GUALACEO","010603","JADAN",null,"COREA DEL SUR"]
[null,null,"07","EL ORO","0702","ATAHUALPA","01","AZUAY","0106","GUALACEO","010604","LUIS CORDERO VEGA",null,"COSTA DE MARFIL"]
[null,null,"07","EL ORO","0703","BALSAS","01","AZUAY","0106","GUALACEO","010605","MARIANO MORENO",null,"COSTA RICA"]
[null,null,"07","EL ORO","0704","CHILLA","01","AZUAY","0106","GUALACEO","010606","REMIGIO CRESPO TORAL (GULAG)",null,"CROACIA"]
[null,null,"07","EL ORO","0705","EL GUABO","01","AZUAY","0106","GUALACEO","010607","SAN JUAN",null,"CUBA"]
[null,null,"07","EL ORO","0706","HUAQUILLAS","01","AZUAY","0106","GUALACEO","010608","SIMON BOLIVAR (CAB. EN GAÑANZOL)",null,"DINAMARCA"]
[null,null,"07","EL ORO","0707","LAS LAJAS","01","AZUAY","0106","GUALACEO","010609","ZHIDMAD",null,"DOMINICA"]
[null,null,"07","EL ORO","0708","MACHALA","01","AZUAY","0107","NABON","010701","COCHAPATA",null,"EGIPTO"]
[null,null,"07","EL ORO","0709","MARCABELI","01","AZUAY","0107","NABON","010702","EL PROGRESO (CAB. EN ZHIOTA)",null,"EL SALVADOR"]
[null,null,"07","EL ORO","0710","PASAJE","01","AZUAY","0107","NABON","010703","LAS NIEVES (CHAYA)",null,"EMIRATOS ÁRABES UNIDOS"]
[null,null,"07","EL ORO","0711","PIÑAS","01","AZUAY","0107","NABON","010704","NABON",null,"EMIRATOS ÁRABES UNIDOS"]
[null,null,"07","EL ORO","0712","PORTOVELO","01","AZUAY","0108","OÑA","010801","SAN FELIPE DE OÑA",null,"ERITREA"]
[null,null,"07","EL ORO","0713","SANTA ROSA","01","AZUAY","0108","OÑA","010802","SUSUDEL",null,"ESLOVAQUIA"]
[null,null,"07","EL ORO","0714","ZARUMA","01","AZUAY","0109","PAUTE","010901","BULAN (JOSE VICTOR IZQUIERDO)",null,"ESLOVENIA"]
[null,null,"08","ESMERALDAS","0801","ATACAMES","01","AZUAY","0109","PAUTE","010902","CHICAN (GUILLERMO ORTEGA)",null,"ESPAÑA"]
[null,null,"08","ESMERALDAS","0802","ELOY ALFARO","01","AZUAY","0109","PAUTE","010903","DUG DUG",null,"ESTONIA"]
[null,null,"08","ESMERALDAS","0803","ESMERALDAS","01","AZUAY","0109","PAUTE","010904","EL CABO",null,"ETIOPÍA"]
[null,null,"08","ESMERALDAS","0804","MUISNE","01","AZUAY","0109","PAUTE","010905","GUARAINAG",null,"FILIPINAS"]
[null,null,"08","ESMERALDAS","0805","QUININDE","01","AZUAY","0109","PAUTE","010906","PAUTE",null,"FINLANDIA"]
[null,null,"08","ESMERALDAS","0806","RIOVERDE","01","AZUAY","0109","PAUTE","010907","SAN CRISTOBAL (CARLOS ORDOÑEZ LAZO)",null,"FIYI"]
[null,null,"08","ESMERALDAS","0807","SAN LORENZO","01","AZUAY","0109","PAUTE","010908","TOMEBAMBA",null,"FRANCIA"]
[null,null,"09","GUAYAS","0901","ALFREDO BAQUERIZO MORENO","01","AZUAY","0110","PUCARA","011001","PUCARA",null,"GABON"]
[null,null,"09","GUAYAS","0902","BALAO","01","AZUAY","0110","PUCARA","011002","SAN RAFAEL DE SHARUG",null,"GAMBIA"]
[null,null,"09","GUAYAS","0903","BALZAR","01","AZUAY","0111","SAN FERNANDO","011101","CHUMBLIN",null,"GEORGIA"]
[null,null,"09","GUAYAS","0904","COLIMES","01","AZUAY","0111","SAN FERNANDO","011102","SAN FERNANDO",null,"GHANA"]
[null,null,"09","GUAYAS","0905","CORONEL MARCELINO MARIDUEÑA","01","AZUAY","0112","SANTA ISABEL","011201","ABDON CALDERON (LA UNION)",null,"GIBRALTAR"]
[null,null,"09","GUAYAS","0906","DAULE","01","AZUAY","0112","SANTA ISABEL","011202","EL CARMEN DE PIJILI",null,"GRANADA"]
[null,null,"09","GUAYAS","0907","DURAN","01","AZUAY","0112","SANTA ISABEL","011203","SAN SALVADOR DE CAÑARIBAMBA",null,"GRECIA"]
[null,null,"09","GUAYAS","0908","EL EMPALME","01","AZUAY","0112","SANTA ISABEL","011204","SAN SALVADOR DE CAÑARIBAMBA",null,"GROENLANDIA"]
[null,null,"09","GUAYAS","0909","EL TRIUNFO","01","AZUAY","0112","SANTA ISABEL","011205","SANTA ISABEL (CHAGUARURCO)",null,"GUADALUPE"]
[null,null,"09","GUAYAS","0910","GENERAL ANTONIO ELIZALDE","01","AZUAY","0112","SANTA ISABEL","011206","ZHAGLLI (SHAGLLI)",null,"GUAM"]
[null,null,"09","GUAYAS","0911","GUAYAQUIL","01","AZUAY","0113","SEVILLA DE ORO","011301","AMALUZA",null,"GUATEMALA"]
[null,null,"09","GUAYAS","0912","ISIDRO AYORA","01","AZUAY","0113","SEVILLA DE ORO","011302","PALMAS",null,"GUAYANA FRANCESA"]
[null,null,"09","GUAYAS","0913","LOMAS DE SARGENTILLO","01","AZUAY","0113","SEVILLA DE ORO","011303","SEVILLA DE ORO",null,"GUERNSEY"]
[null,null,"09","GUAYAS","0914","MILAGRO","01","AZUAY","0114","SIGSIG","011401","CCUCHIL (CUTCHIL)",null,"GUINEA"]
[null,null,"09","GUAYAS","0915","NARANJAL","01","AZUAY","0114","SIGSIG","011402","GIMA",null,"GUINEA ECUATORIAL"]
[null,null,"09","GUAYAS","0916","NARANJITO","01","AZUAY","0114","SIGSIG","011403","GUEL",null,"GUINEA-BISSAU"]
[null,null,"09","GUAYAS","0917","NOBOL","01","AZUAY","0114","SIGSIG","011404","LUDO",null,"GUYANA"]
[null,null,"09","GUAYAS","0918","PALESTINA","01","AZUAY","0114","SIGSIG","011405","SAN BARTOLOME",null,"HAITI"]
[null,null,"09","GUAYAS","0919","PEDRO CARBO","01","AZUAY","0114","SIGSIG","011406","SAN JOSE DE RARANGA",null,"HONDURAS"]
[null,null,"09","GUAYAS","0920","PLAYAS","01","AZUAY","0114","SIGSIG","011407","SIGSIG",null,"HONG KONG"]
[null,null,"09","GUAYAS","0921","SALITRE","02","BOLIVAR","0201","CALUMA","020101","CALUMA",null,"HUNGRIA"]
[null,null,"09","GUAYAS","0922","SAMBORONDON","02","BOLIVAR","0202","CHILLANES","020201","CHILLANES",null,"INDIA"]
[null,null,"09","GUAYAS","0923","SAN JACINTO DE YAGUACHI","02","BOLIVAR","0202","CHILLANES","020202","SAN JOSE DEL TAMBO (TAMBOPAMBA)",null,"INDONESIA"]
[null,null,"09","GUAYAS","0924","SANTA LUCIA","02","BOLIVAR","0203","CHIMBO","020301","ASUNCION (ASANCOTO)",null,"IRAN"]
[null,null,"09","GUAYAS","0925","SIMON BOLIVAR","02","BOLIVAR","0203","CHIMBO","020302","MAGDALENA (CHAPACOTO)",null,"IRAQ"]
[null,null,"10","IMBABURA","1001","ANTONIO ANTE","02","BOLIVAR","0203","CHIMBO","020303","SAN JOSE DE CHIMBO",null,"IRLANDA"]
[null,null,"10","IMBABURA","1002","COTACACHI","02","BOLIVAR","0203","CHIMBO","020304","SAN SEBASTIAN",null,"ISLA BOUVET"]
[null,null,"10","IMBABURA","1003","IBARRA","02","BOLIVAR","0203","CHIMBO","020305","TELIMBELA",null,"ISLA DE MAN"]
[null,null,"10","IMBABURA","1004","OTAVALO","02","BOLIVAR","0204","ECHEANDIA","020401","ECHEANDIA",null,"ISLA DE NAVIDAD"]
[null,null,"10","IMBABURA","1005","PIMAMPIRO","02","BOLIVAR","0205","GUARANDA","020501","ANGEL POLIBIO CHAVEZ",null,"ISLANDIA"]
[null,null,"10","IMBABURA","1006","SAN MIGUEL DE URCUQUI","02","BOLIVAR","0205","GUARANDA","020502","FACUNDO VELA",null,"ISLAS CAIMAN"]
[null,null,"11","LOJA","1101","CALVAS","02","BOLIVAR","0205","GUARANDA","020503","GABRIEL IGNACIO VEINTIMILLA",null,"ISLAS COCOS"]
[null,null,"11","LOJA","1102","CATAMAYO","02","BOLIVAR","0205","GUARANDA","020504","GUANUJO",null,"ISLAS COOK"]
[null,null,"11","LOJA","1103","CELICA","02","BOLIVAR","0205","GUARANDA","020505","JULIO E. MORENO (CATANAHUAN GRANDE)",null,"ISLAS FEROE"]
[null,null,"11","LOJA","1104","CHAGUARPAMBA","02","BOLIVAR","0205","GUARANDA","020506","SALINAS",null,"ISLAS GEORGIAS DEL SUR Y SANDWICH DEL SUR"]
[null,null,"11","LOJA","1105","ESPINDOLA","02","BOLIVAR","0205","GUARANDA","020507","SAN LORENZO",null,"ISLAS HEARD Y MCDONALD"]
[null,null,"11","LOJA","1106","GONZANAMA","02","BOLIVAR","0205","GUARANDA","020508","SAN LUIS DE PAMBIL",null,"ISLAS MALVINAS"]
[null,null,"11","LOJA","1107","LOJA","02","BOLIVAR","0205","GUARANDA","020509","SAN SIMON (YACOTO)",null,"ISLAS MARIANAS DEL NORTE"]
[null,null,"11","LOJA","1108","MACARA","02","BOLIVAR","0205","GUARANDA","020510","SANTA FE (SANTA FE)",null,"ISLAS MARSHALL"]
[null,null,"11","LOJA","1109","OLMEDO","02","BOLIVAR","0205","GUARANDA","020511","SIMIATUG",null,"ISLAS PITCAIRN"]
[null,null,"11","LOJA","1110","PALTAS","02","BOLIVAR","0206","LAS NAVES","020601","LAS MERCEDES",null,"ISLAS SALOMON"]
[null,null,"11","LOJA","1111","PINDAL","02","BOLIVAR","0206","LAS NAVES","020602","LAS NAVES",null,"ISLAS TURCAS Y CAICOS"]
[null,null,"11","LOJA","1112","PUYANGO","02","BOLIVAR","0206","LAS NAVES","020603","LAS NAVES",null,"ISRAEL"]
[null,null,"11","LOJA","1113","QUILANGA","02","BOLIVAR","0207","SAN MIGUEL","020701","BALSAPAMBA",null,"ITALIA"]
[null,null,"11","LOJA","1114","SARAGURO","02","BOLIVAR","0207","SAN MIGUEL","020702","BILOVAN",null,"JAMAICA"]
[null,null,"11","LOJA","1115","SOZORANGA","02","BOLIVAR","0207","SAN MIGUEL","020703","REGULO DE MORA",null,"JAPON"]
[null,null,"11","LOJA","1116","ZAPOTILLO","02","BOLIVAR","0207","SAN MIGUEL","020704","SAN MIGUEL",null,"JERSEY"]
[null,null,"12","LOS RIOS","1201","BABA","02","BOLIVAR","0207","SAN MIGUEL","020705","SAN PABLO (SAN PABLO DE ATENAS)",null,"JORDANIA"]
[null,null,"12","LOS RIOS","1202","BABAHOYO","02","BOLIVAR","0207","SAN MIGUEL","020706","SAN VICENTE",null,"KAZAJISTAN"]
[null,null,"12","LOS RIOS","1203","BUENA FE","02","BOLIVAR","0207","SAN MIGUEL","020707","SANTIAGO",null,"KENIA"]
[null,null,"12","LOS RIOS","1204","MOCACHE","03","CAÑAR","0301","AZOGUES","030101","AURELIO BAYAS MARTINEZ",null,"KIRGUISTÁN"]
[null,null,"12","LOS RIOS","1205","MONTALVO","03","CAÑAR","0301","AZOGUES","030102","AZOGUES",null,"KIRIBATI"]
[null,null,"12","LOS RIOS","1206","PALENQUE","03","CAÑAR","0301","AZOGUES","030103","AZOGUES",null,"KUWAIT"]
[null,null,"12","LOS RIOS","1207","PUEBLOVIEJO","03","CAÑAR","0301","AZOGUES","030104","BORRERO",null,"LAOS"]
[null,null,"12","LOS RIOS","1208","QUEVEDO","03","CAÑAR","0301","AZOGUES","030105","COJITAMBO",null,"LESOTO"]
[null,null,"12","LOS RIOS","1209","QUINSALOMA","03","CAÑAR","0301","AZOGUES","030106","GUAPAN",null,"LETONIA"]
[null,null,"12","LOS RIOS","1210","URDANETA","03","CAÑAR","0301","AZOGUES","030107","GUARANDA",null,"LIBANO"]
[null,null,"12","LOS RIOS","1211","VALENCIA","03","CAÑAR","0301","AZOGUES","030108","JAVIER LOYOLA (CHUQUIPATA)",null,"LIBERIA"]
[null,null,"12","LOS RIOS","1212","VENTANAS","03","CAÑAR","0301","AZOGUES","030109","LUIS CORDERO",null,"LIBIA"]
[null,null,"12","LOS RIOS","1213","VINCES","03","CAÑAR","0301","AZOGUES","030110","PINDILIG",null,"LIECHTENSTEIN"]
[null,null,"13","MANABI","1301","BOLIVAR1","03","CAÑAR","0301","AZOGUES","030111","RIVERA",null,"LITUANIA"]
[null,null,"13","MANABI","1302","CHONE","03","CAÑAR","0301","AZOGUES","030112","SAN FRANCISCO",null,"LUXEMBURGO"]
[null,null,"13","MANABI","1303","EL CARMEN","03","CAÑAR","0301","AZOGUES","030113","SAN MIGUEL",null,"MACAO"]
[null,null,"13","MANABI","1304","FLAVIO ALFARO","03","CAÑAR","0301","AZOGUES","030114","TADAY",null,"MACEDONIA"]
[null,null,"13","MANABI","1305","JAMA","03","CAÑAR","0302","BIBLIAN","030201","BIBLIAN",null,"MADAGASCAR"]
[null,null,"13","MANABI","1306","JARAMIJO","03","CAÑAR","0302","BIBLIAN","030202","JERUSALEN",null,"MALASIA"]
[null,null,"13","MANABI","1307","JIPIJAPA","03","CAÑAR","0302","BIBLIAN","030203","NAZON (CAB. EN PAMPA DE DOMINGUEZ)",null,"MALAUI"]
[null,null,"13","MANABI","1308","JUNIN","03","CAÑAR","0302","BIBLIAN","030204","SAN FRANCISCO DE SAGEO",null,"MALDIVAS"]
[null,null,"13","MANABI","1309","MANTA","03","CAÑAR","0302","BIBLIAN","030205","TURUPAMBA",null,"MALI"]
[null,null,"13","MANABI","1310","MONTECRISTI","03","CAÑAR","0303","CAÑAR","030301","CAÑAR",null,"MALTA"]
[null,null,"13","MANABI","1311","OLMEDO","03","CAÑAR","0303","CAÑAR","030302","CHONTAMARCA",null,"MARRUECOS"]
[null,null,"13","MANABI","1312","PAJAN","03","CAÑAR","0303","CAÑAR","030303","CHOROCOPTE",null,"MARTINICA"]
[null,null,"13","MANABI","1313","PEDERNALES","03","CAÑAR","0303","CAÑAR","030304","DUCUR",null,"MAURICIO"]
[null,null,"13","MANABI","1314","PICHINCHA","03","CAÑAR","0303","CAÑAR","030305","GENERAL MORALES (SOCARTE)",null,"MAURITANIA"]
[null,null,"13","MANABI","1315","PORTOVIEJO","03","CAÑAR","0303","CAÑAR","030306","GUALLETURO",null,"MEXICO"]
[null,null,"13","MANABI","1316","PUERTO LOPEZ","03","CAÑAR","0303","CAÑAR","030307","HONORATO VASQUEZ (TAMBO VIEJO)",null,"MICRONESIA"]
[null,null,"13","MANABI","1317","ROCAFUERTE","03","CAÑAR","0303","CAÑAR","030308","INGAPIRCA",null,"MONACO"]
[null,null,"13","MANABI","1318","SAN VICENTE","03","CAÑAR","0303","CAÑAR","030309","JUNCAL",null,"MONGOLIA"]
[null,null,"13","MANABI","1319","SANTA ANA","03","CAÑAR","0303","CAÑAR","030310","SAN ANTONIO",null,"MONTENEGRO"]
[null,null,"13","MANABI","1320","SUCRE","03","CAÑAR","0303","CAÑAR","030311","VENTURA",null,"MONTSERRAT"]
[null,null,"13","MANABI","1321","TOSAGUA","03","CAÑAR","0303","CAÑAR","030312","ZHUD",null,"MOZAMBIQUE"]
[null,null,"13","MANABI","1322","24 DE MAYO","03","CAÑAR","0304","DELEG","030401","DELEG",null,"NAMIBIA"]
[null,null,"14","MORONA SANTIAGO","1401","GUALAQUIZA","03","CAÑAR","0304","DELEG","030402","SOLANO",null,"NAURU"]
[null,null,"14","MORONA SANTIAGO","1402","HUAMBOYA","03","CAÑAR","0305","EL TAMBO","030501","EL TAMBO",null,"NEPAL"]
[null,null,"14","MORONA SANTIAGO","1403","LIMON INDANZA","03","CAÑAR","0306","LA TRONCAL","030601","LA TRONCAL",null,"NICARAGUA"]
[null,null,"14","MORONA SANTIAGO","1404","LOGROÑO","03","CAÑAR","0306","LA TRONCAL","030602","MANUEL J. CALLE",null,"NIGER"]
[null,null,"14","MORONA SANTIAGO","1405","MORONA","03","CAÑAR","0306","LA TRONCAL","030603","PANCHO NEGRO",null,"NIGERIA"]
[null,null,"14","MORONA SANTIAGO","1406","PABLO SEXTO","03","CAÑAR","0307","SUSCAL","030701","SUSCAL",null,"NIUE"]
[null,null,"14","MORONA SANTIAGO","1407","PALORA","04","CARCHI","0401","BOLIVAR","040101","BOLIVAR",null,"NORFOLK"]
[null,null,"14","MORONA SANTIAGO","1408","SAN JUAN BOSCO","04","CARCHI","0401","BOLIVAR","040102","GARCIA MORENO",null,"NORUEGA"]
[null,null,"14","MORONA SANTIAGO","1409","SANTIAGO","04","CARCHI","0401","BOLIVAR","040103","LOS ANDES",null,"NUEVA CALEDONIA"]
[null,null,"14","MORONA SANTIAGO","1410","SUCUA","04","CARCHI","0401","BOLIVAR","040104","MONTE OLIVO",null,"NUEVA ZELANDA"]
[null,null,"14","MORONA SANTIAGO","1411","TAISHA","04","CARCHI","0401","BOLIVAR","040105","SAN RAFAEL",null,"OMAN"]
[null,null,"14","MORONA SANTIAGO","1412","TIWINTZA","04","CARCHI","0401","BOLIVAR","040106","SAN VICENTE DE PUSIR",null,"PAISES BAJOS (HOLANDA)"]
[null,null,"15","NAPO","1501","ARCHIDONA","04","CARCHI","0402","ESPEJO","040201","EL ANGEL",null,"PAKISTÁN"]
[null,null,"15","NAPO","1502","CARLOS JULIO AROSEMENA TOLA","04","CARCHI","0402","ESPEJO","040202","EL ANGEL",null,"PALAOS"]
[null,null,"15","NAPO","1503","EL CHACO","04","CARCHI","0402","ESPEJO","040203","EL GOALTAL",null,"PANAMÁ"]
[null,null,"15","NAPO","1504","QUIJOS","04","CARCHI","0402","ESPEJO","040204","LA LIBERTAD (ALIZO)",null,"PAPÚA NUEVA GUINEA"]
[null,null,"15","NAPO","1505","TENA","04","CARCHI","0402","ESPEJO","040205","SAN ISIDRO",null,"PARAGUAY"]
[null,null,"16","PASTAZA","1601","ARAJUNO","04","CARCHI","0402","ESPEJO","040206","27 DE SEPTIEMBRE",null,"PERÚ"]
[null,null,"16","PASTAZA","1602","MERA","04","CARCHI","0403","MIRA","040301","CONCEPCION",null,"POLINESIA FRANCESA"]
[null,null,"16","PASTAZA","1603","PASTAZA","04","CARCHI","0403","MIRA","040302","JIJON Y CAAMAÑO (CAB. EN RIO BLANCO)",null,"POLONIA"]
[null,null,"16","PASTAZA","1604","SANTA CLARA","04","CARCHI","0403","MIRA","040303","JUAN MONTALVO (SAN IGNACIO DE QUIL)",null,"PORTUGAL"]
[null,null,"17","PICHINCHA","1701","CAYAMBE","04","CARCHI","0403","MIRA","040304","MIRA (CHONTAHUASI)",null,"PUERTO RICO"]
[null,null,"17","PICHINCHA","1702","MEJIA","04","CARCHI","0404","MONTUFAR","040401","CHITAN DE NAVARRETE",null,"QATAR"]
[null,null,"17","PICHINCHA","1703","PEDRO MONCAYO","04","CARCHI","0404","MONTUFAR","040402","CRISTOBAL COLON",null,"REINO UNIDO (INGLATERRA)"]
[null,null,"17","PICHINCHA","1703","PEDRO VICENTE MALDONADO","04","CARCHI","0404","MONTUFAR","040403","FERNANDEZ SALVADOR",null,"REPUBLICA CENTROAFRICANA"]
[null,null,"17","PICHINCHA","1704","PUERTO QUITO","04","CARCHI","0404","MONTUFAR","040404","GONZALEZ SUAREZ",null,"REPUBLICA CHECA"]
[null,null,"17","PICHINCHA","1705","QUITO","04","CARCHI","0404","MONTUFAR","040405","LA PAZ",null,"REPUBLICA DEL CONGO"]
[null,null,"17","PICHINCHA","1706","RUMIÑAHUI","04","CARCHI","0404","MONTUFAR","040406","PIARTAL",null,"REPUBLICA DEMOCRATICA DEL CONGO"]
[null,null,"17","PICHINCHA","1707","SAN MIGUEL DE LOS BANCOS","04","CARCHI","0404","MONTUFAR","040407","SAN GABRIEL",null,"REPUBLICA DOMINICANA"]
[null,null,"18","TUNGURAHUA","1801","AMBATO","04","CARCHI","0404","MONTUFAR","040408","SAN JOSE",null,"REUNION"]
[null,null,"18","TUNGURAHUA","1802","BAÑOS DE AGUA SANTA","04","CARCHI","0405","SAN PEDRO DE HUACA","040501","HUACA",null,"RUANDA"]
[null,null,"18","TUNGURAHUA","1803","CEVALLOS","04","CARCHI","0405","SAN PEDRO DE HUACA","040502","MARISCAL SUCRE",null,"RUMANIA"]
[null,null,"18","TUNGURAHUA","1804","MOCHA","04","CARCHI","0406","TULCAN","040601","EL CARMELO (EL PUN)",null,"RUSIA"]
[null,null,"18","TUNGURAHUA","1805","PATATE","04","CARCHI","0406","TULCAN","040602","EL CHICAL",null,"SAHARA OCCIDENTAL"]
[null,null,"18","TUNGURAHUA","1806","QUERO","04","CARCHI","0406","TULCAN","040603","GONZALEZ SUAREZ",null,"SAMOA AMERICANA"]
[null,null,"18","TUNGURAHUA","1807","SAN PEDRO DE PELILEO","04","CARCHI","0406","TULCAN","040604","JULIO ANDRADE (OREJUELA)",null,"SAN BARTOLOME"]
[null,null,"18","TUNGURAHUA","1808","SANTIAGO DE PILLARO","04","CARCHI","0406","TULCAN","040605","MALDONADO",null,"SAN CRISTOBAL Y NIEVES"]
[null,null,"18","TUNGURAHUA","1809","TISALEO","04","CARCHI","0406","TULCAN","040606","PIOTER",null,"SAN MARINO"]
[null,null,"19","ZAMORA CHINCHIPE","1901","CENTINELA DEL CONDOR","04","CARCHI","0406","TULCAN","040607","SANTA MARTHA DE CUBA",null,"SAN PEDRO Y MIQUELON"]
[null,null,"19","ZAMORA CHINCHIPE","1902","CHINCHIPE","04","CARCHI","0406","TULCAN","040608","TOBAR DONOSO (LA BOCANA DE CAMUNBI)",null,"SANTA HELENA"]
[null,null,"19","ZAMORA CHINCHIPE","1903","EL PANGUI","04","CARCHI","0406","TULCAN","040609","TUFIÑO",null,"SANTA LUCIA"]
[null,null,"19","ZAMORA CHINCHIPE","1904","NANGARITZA","04","CARCHI","0406","TULCAN","040610","TULCAN",null,"SANTO TOME Y PRINCIPE"]
[null,null,"19","ZAMORA CHINCHIPE","1905","PALANDA","04","CARCHI","0406","TULCAN","040611","TULCAN",null,"SENEGAL"]
[null,null,"19","ZAMORA CHINCHIPE","1906","PAQUISHA","04","CARCHI","0406","TULCAN","040612","URBINA (TAYA)",null,"SERBIA"]
[null,null,"19","ZAMORA CHINCHIPE","1907","YACUAMBI","05","COTOPAXI","0501","LA MANA","050101","EL CARMEN",null,"SEYCHELLES"]
[null,null,"19","ZAMORA CHINCHIPE","1908","YANTZAZA","05","COTOPAXI","0501","LA MANA","050101","EL TRIUNFO",null,"SIERRA LEONA"]
[null,null,"19","ZAMORA CHINCHIPE","1909","ZAMORA","05","COTOPAXI","0501","LA MANA","050101","GUASAGANDA (CAB. EN GUASAGANDA CENTRO)",null,"SINGAPUR"]
[null,null,"20","GALAPAGOS","2001","ISABELA","05","COTOPAXI","0501","LA MANA","050101","LA MANA",null,"SIRIA"]
[null,null,"20","GALAPAGOS","2002","SAN CRISTOBAL","05","COTOPAXI","0501","LA MANA","050101","LA MANA",null,"SOMALIA"]
[null,null,"20","GALAPAGOS","2003","SANTA CRUZ","05","COTOPAXI","0501","LA MANA","050101","PUCAYACU",null,"SRI LANKA"]
[null,null,"21","SUCUMBIOS","2101","CASCALES","05","COTOPAXI","0502","LATACUNGA","050201","ALAQUES (ALAQUEZ)",null,"SUAZILANDIA"]
[null,null,"21","SUCUMBIOS","2102","CUYABENO","05","COTOPAXI","0502","LATACUNGA","050202","BELISARIO QUEVEDO (GUANAILIN)",null,"SUDAN"]
[null,null,"21","SUCUMBIOS","2103","GONZALO PIZARRO","05","COTOPAXI","0502","LATACUNGA","050203","ELOY ALFARO (SAN FELIPE)",null,"SUECIA"]
[null,null,"21","SUCUMBIOS","2104","LAGO AGRIO","05","COTOPAXI","0502","LATACUNGA","050204","GUAITACAMA (GUAYTACAMA)",null,"SUIZA"]
[null,null,"21","SUCUMBIOS","2105","PUTUMAYO","05","COTOPAXI","0502","LATACUNGA","050205","IGNACIO FLORES (PARQUE FLORES)",null,"SURINAM"]
[null,null,"21","SUCUMBIOS","2106","SHUSHUFINDI","05","COTOPAXI","0502","LATACUNGA","050206","JOSEGUANGO BAJO",null,"SVALBARD Y JAN MAYEN"]
[null,null,"21","SUCUMBIOS","2107","SUCUMBIOS","05","COTOPAXI","0502","LATACUNGA","050207","JUAN MONTALVO (SAN SEBASTIAN)",null,"TAILANDIA"]
[null,null,"22","ORELLANA","2201","AGUARICO","05","COTOPAXI","0502","LATACUNGA","050208","LA MATRIZ",null,"TAIWAN"]
[null,null,"22","ORELLANA","2202","LA JOYA DE LOS SACHAS","05","COTOPAXI","0502","LATACUNGA","050209","LATACUNGA",null,"TANZANIA"]
[null,null,"22","ORELLANA","2203","LORETO","05","COTOPAXI","0502","LATACUNGA","050210","MULALO",null,"TAYIKISTAN"]
[null,null,"22","ORELLANA","2204","ORELLANA","05","COTOPAXI","0502","LATACUNGA","050211","POALO",null,"TERRITORIO BRITANICO DEL OCEANO INDICO"]
[null,null,"23","SANTO DOMINGO DE LOS TSACHILAS","2301","LA CONCORDIA","05","COTOPAXI","0502","LATACUNGA","050212","SAN BUENAVENTURA",null,"TERRITORIOS AUSTRALES FRANCESES"]
[null,null,"23","SANTO DOMINGO DE LOS TSACHILAS","2302","SANTO DOMINGO","05","COTOPAXI","0502","LATACUNGA","050213","SAN JUAN DE PASTOCALLE",null,"TERRITORIOS PALESTINOS"]
[null,null,"24","SANTA ELENA","2401","LA LIBERTAD","05","COTOPAXI","0502","LATACUNGA","050214","TANICUCHI",null,"TIMOR ORIENTAL"]
[null,null,"24","SANTA ELENA","2402","SALINAS","05","COTOPAXI","0502","LATACUNGA","050215","TOACASO",null,"TOGO"]
[null,null,"24","SANTA ELENA","2403","SANTA ELENA","05","COTOPAXI","0502","LATACUNGA","050216","11 DE NOVIEMBRE (ILINCHISI)",null,"TOKELAU"]
[null,null,"25","ZONA NO DELIMITADA","2501","ABDON CALDERON","05","COTOPAXI","0503","PANGUA","050301","EL CORAZON",null,"TONGA"]
[null,null,"25","ZONA NO DELIMITADA","2502","EL PIEDRERO","05","COTOPAXI","0503","PANGUA","050302","MORASPUNGO",null,"TRINIDAD Y TOBAGO"]
[null,null,"25","ZONA NO DELIMITADA","2503","JUVAL","05","COTOPAXI","0503","PANGUA","050303","PINLLOPATA",null,"TUNEZ"]
[null,null,"25","ZONA NO DELIMITADA","2504","LAS GOLONDRINAS","05","COTOPAXI","0503","PANGUA","050304","RAMON CAMPAÑA",null,"TURKMENISTAN"]
[null,null,"25","ZONA NO DELIMITADA","2505","MANGA DEL CURA","05","COTOPAXI","0504","PUJILI","050401","ANGAMARCA",null,"TURQUIA"]
[null,null,"25","ZONA NO DELIMITADA","2506","MATILDE ESTHER","05","COTOPAXI","0504","PUJILI","050402","GUANGAJE",null,"TUVALU"]
[null,null,"25","ZONA NO DELIMITADA","2507","SANTA ROSA DE AGUA CLARA","05","COTOPAXI","0504","PUJILI","050403","LA VICTORIA",null,"UNION SOVIETICA"]
[null,null,"25","ZONA NO DELIMITADA","2508","ZONA NO DELIMITADA","05","COTOPAXI","0504","PUJILI","050404","PILALO",null,"UNIÓN EUROPEA"]
[null,null,null,null,null,null,"05","COTOPAXI","0504","PUJILI","050405","PUJILI",null,"YIBUTI"]
[null,null,null,null,null,null,"05","COTOPAXI","0504","PUJILI","050406","TINGO"]
[null,null,null,null,null,null,"05","COTOPAXI","0504","PUJILI","050407","ZUMBAHUA"]
[null,null,null,null,null,null,"05","COTOPAXI","0505","SALCEDO","050501","ANTONIO JOSE HOLGUIN (SANTA LUCIA)"]
[null,null,null,null,null,null,"05","COTOPAXI","0505","SALCEDO","050502","CUSUBAMBA"]
[null,null,null,null,null,null,"05","COTOPAXI","0505","SALCEDO","050503","MULALILLO"]
[null,null,null,null,null,null,"05","COTOPAXI","0505","SALCEDO","050504","MULLIQUINDIL (SANTA ANA)"]
[null,null,null,null,null,null,"05","COTOPAXI","0505","SALCEDO","050505","PANSALEO"]
[null,null,null,null,null,null,"05","COTOPAXI","0505","SALCEDO","050506","SAN MIGUEL"]
[null,null,null,null,null,null,"05","COTOPAXI","0506","SAQUISILI","050601","CANCHAGUA"]
[null,null,null,null,null,null,"05","COTOPAXI","0506","SAQUISILI","050602","CHANTILIN"]
[null,null,null,null,null,null,"05","COTOPAXI","0506","SAQUISILI","050603","COCHAPAMBA"]
[null,null,null,null,null,null,"05","COTOPAXI","0506","SAQUISILI","050604","SAQUISILI"]
[null,null,null,null,null,null,"05","COTOPAXI","0507","SIGCHOS","050701","CHUNCHILAN (CHUGCHILAN)"]
[null,null,null,null,null,null,"05","COTOPAXI","0507","SIGCHOS","050702","ISINLIVI"]
[null,null,null,null,null,null,"05","COTOPAXI","0507","SIGCHOS","050703","LAS PAMPAS"]
[null,null,null,null,null,null,"05","COTOPAXI","0507","SIGCHOS","050704","PALO QUEMADO"]
[null,null,null,null,null,null,"05","COTOPAXI","0507","SIGCHOS","050705","SIGCHOS"]
[null,null,null,null,null,null,"06","CHIMBORAZO","0601","ALAUSI","060101","ACHUPALLAS"]
[null,null,null,null,null,null,"06","CHIMBORAZO","0601","ALAUSI","060102","ALAUSI"]
[null,null,null,null,null,null,"06","CHIMBORAZO","0601","ALAUSI","060103","GUASUNTOS"]
[null,null,null,null,null,null,"06","CHIMBORAZO","0601","ALAUSI","060104","HUIGRA"]
[null,null,null,null,null,null,"06","CHIMBORAZO","0601","ALAUSI","060105","MULTITUD"]
[null,null,null,null,null,null,"06","CHIMBORAZO","0601","ALAUSI","060106","PISTISHI (NARIZ DEL DIABLO)"]
[null,null,null,null,null,null,"06","CHIMBORAZO","0601","ALAUSI","060107","PUMALLACTA"]
[null,null,null,null,null,null,"06","CHIMBORAZO","0601","ALAUSI","060108","SEVILLA"]
[null,null,null,null,null,null,"06","CHIMBORAZO","0601","ALAUSI","060109","SIBAMBE"]
[null,null,null,null,null,null,"06","CHIMBORAZO","0601","ALAUSI","060110","TIXAN"]
[null,null,null,null,null,null,"06","CHIMBORAZO","0602","CHAMBO","060201","CHAMBO"]
[null,null,null,null,null,null,"06","CHIMBORAZO","0603","CHUNCHI","060301","CAPZOL"]
[null,null,null,null,null,null,"06","CHIMBORAZO","0603","CHUNCHI","060302","CHUNCHI"]
[null,null,null,null,null,null,"06","CHIMBORAZO","0603","CHUNCHI","060303","COMPUD"]
[null,null,null,null,null,null,"06","CHIMBORAZO","0603","CHUNCHI","060304","GONZOL"]
[null,null,null,null,null,null,"06","CHIMBORAZO","0603","CHUNCHI","060305","LLAGOS"]
[null,null,null,null,null,null,"06","CHIMBORAZO","0604","COLTA","060401","CAJABAMBA"]
[null,null,null,null,null,null,"06","CHIMBORAZO","0604","COLTA","060402","CAÑI"]
[null,null,null,null,null,null,"06","CHIMBORAZO","0604","COLTA","060403","COLUMBE"]
[null,null,null,null,null,null,"06","CHIMBORAZO","0604","COLTA","060404","JUAN DE VELASCO (PANGOR)"]
[null,null,null,null,null,null,"06","CHIMBORAZO","0604","COLTA","060405","SANTIAGO DE QUITO (CAB. EN SAN ANTONIO DE QUITO)"]
[null,null,null,null,null,null,"06","CHIMBORAZO","0604","COLTA","060406","SICALPA"]
[null,null,null,null,null,null,"06","CHIMBORAZO","0604","COLTA","060407","VILLA LA UNION (CAJABAMBA)"]
[null,null,null,null,null,null,"06","CHIMBORAZO","0605","CUMANDA","060501","CUMANDA"]
[null,null,null,null,null,null,"06","CHIMBORAZO","0606","GUAMOTE","060601","CEBADAS"]
[null,null,null,null,null,null,"06","CHIMBORAZO","0606","GUAMOTE","060602","GUAMOTE"]
[null,null,null,null,null,null,"06","CHIMBORAZO","0606","GUAMOTE","060603","PALMIRA"]
[null,null,null,null,null,null,"06","CHIMBORAZO","0607","GUANO","060701","EL ROSARIO"]
[null,null,null,null,null,null,"06","CHIMBORAZO","0607","GUANO","060702","GUANANDO"]
[null,null,null,null,null,null,"06","CHIMBORAZO","0607","GUANO","060703","GUANO"]
[null,null,null,null,null,null,"06","CHIMBORAZO","0607","GUANO","060704","ILAPO"]
[null,null,null,null,null,null,"06","CHIMBORAZO","0607","GUANO","060705","LA MATRIZ"]
[null,null,null,null,null,null,"06","CHIMBORAZO","0607","GUANO","060706","LA PROVIDENCIA"]
[null,null,null,null,null,null,"06","CHIMBORAZO","0607","GUANO","060707","SAN ANDRES"]
[null,null,null,null,null,null,"06","CHIMBORAZO","0607","GUANO","060708","SAN GERARDO DE PACAICAGUAN"]
[null,null,null,null,null,null,"06","CHIMBORAZO","0607","GUANO","060709","SAN ISIDRO DE PATULU"]
[null,null,null,null,null,null,"06","CHIMBORAZO","0607","GUANO","060710","SAN JOSE DEL CHAZO"]
[null,null,null,null,null,null,"06","CHIMBORAZO","0607","GUANO","060711","SANTA FE DE GALAN"]
[null,null,null,null,null,null,"06","CHIMBORAZO","0607","GUANO","060712","VALPARAISO"]
[null,null,null,null,null,null,"06","CHIMBORAZO","0608","PALLATANGA","060801","PALLATANGA"]
[null,null,null,null,null,null,"06","CHIMBORAZO","0609","PENIPE","060901","BILBAO (CAB. EN QUILLUYACU)"]
[null,null,null,null,null,null,"06","CHIMBORAZO","0609","PENIPE","060902","EL ALTAR"]
[null,null,null,null,null,null,"06","CHIMBORAZO","0609","PENIPE","060903","LA CANDELARIA"]
[null,null,null,null,null,null,"06","CHIMBORAZO","0609","PENIPE","060904","MATUS"]
[null,null,null,null,null,null,"06","CHIMBORAZO","0609","PENIPE","060905","PENIPE"]
[null,null,null,null,null,null,"06","CHIMBORAZO","0609","PENIPE","060906","PUELA"]
[null,null,null,null,null,null,"06","CHIMBORAZO","0609","PENIPE","060907","SAN ANTONIO DE BAYUSHIG"]
[null,null,null,null,null,null,"06","CHIMBORAZO","0610","RIOBAMBA","061001","CACHA (CAB. EN MACHANGARA)"]
[null,null,null,null,null,null,"06","CHIMBORAZO","0610","RIOBAMBA","061002","CALPI"]
[null,null,null,null,null,null,"06","CHIMBORAZO","0610","RIOBAMBA","061003","CUBIJIES"]
[null,null,null,null,null,null,"06","CHIMBORAZO","0610","RIOBAMBA","061004","FLORES"]
[null,null,null,null,null,null,"06","CHIMBORAZO","0610","RIOBAMBA","061005","LICAN"]
[null,null,null,null,null,null,"06","CHIMBORAZO","0610","RIOBAMBA","061006","LICTO"]
[null,null,null,null,null,null,"06","CHIMBORAZO","0610","RIOBAMBA","061007","LIZARZABURU"]
[null,null,null,null,null,null,"06","CHIMBORAZO","0610","RIOBAMBA","061008","MALDONADO"]
[null,null,null,null,null,null,"06","CHIMBORAZO","0610","RIOBAMBA","061009","PUNGALA"]
[null,null,null,null,null,null,"06","CHIMBORAZO","0610","RIOBAMBA","061010","PUNIN"]
[null,null,null,null,null,null,"06","CHIMBORAZO","0610","RIOBAMBA","061011","QUIMIAG"]
[null,null,null,null,null,null,"06","CHIMBORAZO","0610","RIOBAMBA","061012","RIOBAMBA"]
[null,null,null,null,null,null,"06","CHIMBORAZO","0610","RIOBAMBA","061013","SAN JUAN"]
[null,null,null,null,null,null,"06","CHIMBORAZO","0610","RIOBAMBA","061014","SAN LUIS"]
[null,null,null,null,null,null,"06","CHIMBORAZO","0610","RIOBAMBA","061015","VELASCO"]
[null,null,null,null,null,null,"06","CHIMBORAZO","0610","RIOBAMBA","061016","VELOZ"]
[null,null,null,null,null,null,"06","CHIMBORAZO","0610","RIOBAMBA","061017","YARUQUIES"]
[null,null,null,null,null,null,"07","EL ORO","0701","ARENILLAS","070101","ARENILLAS"]
[null,null,null,null,null,null,"07","EL ORO","0701","ARENILLAS","070102","CARCABON"]
[null,null,null,null,null,null,"07","EL ORO","0701","ARENILLAS","070103","CHACRAS"]
[null,null,null,null,null,null,"07","EL ORO","0701","ARENILLAS","070104","PALMALES"]
[null,null,null,null,null,null,"07","EL ORO","0702","ATAHUALPA","070201","AYAPAMBA"]
[null,null,null,null,null,null,"07","EL ORO","0702","ATAHUALPA","070202","CORDONCILLO"]
[null,null,null,null,null,null,"07","EL ORO","0702","ATAHUALPA","070203","MILAGRO"]
[null,null,null,null,null,null,"07","EL ORO","0702","ATAHUALPA","070204","PACCHA"]
[null,null,null,null,null,null,"07","EL ORO","0702","ATAHUALPA","070205","SAN JOSE"]
[null,null,null,null,null,null,"07","EL ORO","0702","ATAHUALPA","070206","SAN JUAN DE CERRO AZUL"]
[null,null,null,null,null,null,"07","EL ORO","0703","BALSAS","070301","BALSAS"]
[null,null,null,null,null,null,"07","EL ORO","0703","BALSAS","070302","BELLAMARIA"]
[null,null,null,null,null,null,"07","EL ORO","0704","CHILLA","070401","CHILLA"]
[null,null,null,null,null,null,"07","EL ORO","0705","EL GUABO","070501","BARBONES (SUCRE)"]
[null,null,null,null,null,null,"07","EL ORO","0705","EL GUABO","070502","EL GUABO"]
[null,null,null,null,null,null,"07","EL ORO","0705","EL GUABO","070503","LA IBERIA"]
[null,null,null,null,null,null,"07","EL ORO","0705","EL GUABO","070504","RIO BONITO"]
[null,null,null,null,null,null,"07","EL ORO","0705","EL GUABO","070505","TENDALES (CAB. EN PUERTO TENDALES)"]
[null,null,null,null,null,null,"07","EL ORO","0706","HUAQUILLAS","070601","ECUADOR"]
[null,null,null,null,null,null,"07","EL ORO","0706","HUAQUILLAS","070602","EL PARAISO"]
[null,null,null,null,null,null,"07","EL ORO","0706","HUAQUILLAS","070603","HUALTACO"]
[null,null,null,null,null,null,"07","EL ORO","0706","HUAQUILLAS","070604","HUAQUILLAS"]
[null,null,null,null,null,null,"07","EL ORO","0706","HUAQUILLAS","070605","MILTON REYES"]
[null,null,null,null,null,null,"07","EL ORO","0706","HUAQUILLAS","070606","UNION LOJANA"]
[null,null,null,null,null,null,"07","EL ORO","0707","LAS LAJAS","070701","EL PARAISO"]
[null,null,null,null,null,null,"07","EL ORO","0707","LAS LAJAS","070702","LA LIBERTAD"]
[null,null,null,null,null,null,"07","EL ORO","0707","LAS LAJAS","070703","LA VICTORIA"]
[null,null,null,null,null,null,"07","EL ORO","0707","LAS LAJAS","070704","LA VICTORIA"]
[null,null,null,null,null,null,"07","EL ORO","0707","LAS LAJAS","070705","PLATANILLOS"]
[null,null,null,null,null,null,"07","EL ORO","0707","LAS LAJAS","070706","SAN ISIDRO"]
[null,null,null,null,null,null,"07","EL ORO","0707","LAS LAJAS","070707","VALLE HERMOSO"]
[null,null,null,null,null,null,"07","EL ORO","0708","MACHALA","070801","EL CAMBIO"]
[null,null,null,null,null,null,"07","EL ORO","0708","MACHALA","070802","EL RETIRO"]
[null,null,null,null,null,null,"07","EL ORO","0708","MACHALA","070803","LA PROVIDENCIA"]
[null,null,null,null,null,null,"07","EL ORO","0708","MACHALA","070804","MACHALA"]
[null,null,null,null,null,null,"07","EL ORO","0708","MACHALA","070805","MACHALA"]
[null,null,null,null,null,null,"07","EL ORO","0708","MACHALA","070806","NUEVE DE MAYO"]
[null,null,null,null,null,null,"07","EL ORO","0708","MACHALA","070807","PUERTO BOLIVAR"]
[null,null,null,null,null,null,"07","EL ORO","0709","MARCABELI","070901","EL INGENIO"]
[null,null,null,null,null,null,"07","EL ORO","0709","MARCABELI","070902","MARCABELI"]
[null,null,null,null,null,null,"07","EL ORO","0710","PASAJE","071001","BOLIVAR"]
[null,null,null,null,null,null,"07","EL ORO","0710","PASAJE","071002","BUENAVISTA"]
[null,null,null,null,null,null,"07","EL ORO","0710","PASAJE","071003","CAÑAQUEMADA"]
[null,null,null,null,null,null,"07","EL ORO","0710","PASAJE","071004","CASACAY"]
[null,null,null,null,null,null,"07","EL ORO","0710","PASAJE","071005","LA PEAÑA"]
[null,null,null,null,null,null,"07","EL ORO","0710","PASAJE","071006","LOMA DE FRANCO"]
[null,null,null,null,null,null,"07","EL ORO","0710","PASAJE","071007","OCHOA LEON (MATRIZ)"]
[null,null,null,null,null,null,"07","EL ORO","0710","PASAJE","071008","PASAJE"]
[null,null,null,null,null,null,"07","EL ORO","0710","PASAJE","071009","PROGRESO"]
[null,null,null,null,null,null,"07","EL ORO","0710","PASAJE","071010","TRES CERRITOS"]
[null,null,null,null,null,null,"07","EL ORO","0710","PASAJE","071011","UZHCURRUMI"]
[null,null,null,null,null,null,"07","EL ORO","0711","PIÑAS","071101","CAPIRO (CAB. EN LA CAPILLA DE CAPIRO)"]
[null,null,null,null,null,null,"07","EL ORO","0711","PIÑAS","071102","LA BOCANA"]
[null,null,null,null,null,null,"07","EL ORO","0711","PIÑAS","071103","LA MATRIZ"]
[null,null,null,null,null,null,"07","EL ORO","0711","PIÑAS","071104","LA SUSAYA"]
[null,null,null,null,null,null,"07","EL ORO","0711","PIÑAS","071105","MOROMORO (CAB. EN EL VADO)"]
[null,null,null,null,null,null,"07","EL ORO","0711","PIÑAS","071106","PIEDRAS"]
[null,null,null,null,null,null,"07","EL ORO","0711","PIÑAS","071107","PIÑAS"]
[null,null,null,null,null,null,"07","EL ORO","0711","PIÑAS","071108","PIÑAS GRANDE"]
[null,null,null,null,null,null,"07","EL ORO","0711","PIÑAS","071109","SAN ROQUE (AMBROSIO MALDONADO)"]
[null,null,null,null,null,null,"07","EL ORO","0711","PIÑAS","071110","SARACAY"]
[null,null,null,null,null,null,"07","EL ORO","0712","PORTOVELO","071201","CURTINCAPA"]
[null,null,null,null,null,null,"07","EL ORO","0712","PORTOVELO","071202","MORALES"]
[null,null,null,null,null,null,"07","EL ORO","0712","PORTOVELO","071203","PORTOVELO"]
[null,null,null,null,null,null,"07","EL ORO","0712","PORTOVELO","071204","SALATI"]
[null,null,null,null,null,null,"07","EL ORO","0713","SANTA ROSA","071301","BALNEARIO JAMBELI (SATELITE)"]
[null,null,null,null,null,null,"07","EL ORO","0713","SANTA ROSA","071302","BELLAMARIA"]
[null,null,null,null,null,null,"07","EL ORO","0713","SANTA ROSA","071303","BELLAVISTA"]
[null,null,null,null,null,null,"07","EL ORO","0713","SANTA ROSA","071304","JAMBELI"]
[null,null,null,null,null,null,"07","EL ORO","0713","SANTA ROSA","071305","JUMON (SATELITE)"]
[null,null,null,null,null,null,"07","EL ORO","0713","SANTA ROSA","071306","LA AVANZADA"]
[null,null,null,null,null,null,"07","EL ORO","0713","SANTA ROSA","071307","NUEVO SANTA ROSA"]
[null,null,null,null,null,null,"07","EL ORO","0713","SANTA ROSA","071308","PUERTO JELI"]
[null,null,null,null,null,null,"07","EL ORO","0713","SANTA ROSA","071309","SAN ANTONIO"]
[null,null,null,null,null,null,"07","EL ORO","0713","SANTA ROSA","071310","SANTA ROSA"]
[null,null,null,null,null,null,"07","EL ORO","0713","SANTA ROSA","071311","SANTA ROSA"]
[null,null,null,null,null,null,"07","EL ORO","0713","SANTA ROSA","071312","TORATA"]
[null,null,null,null,null,null,"07","EL ORO","0713","SANTA ROSA","071313","VICTORIA"]
[null,null,null,null,null,null,"07","EL ORO","0714","ZARUMA","071401","ABAÑIN"]
[null,null,null,null,null,null,"07","EL ORO","0714","ZARUMA","071402","ARCAPAMBA"]
[null,null,null,null,null,null,"07","EL ORO","0714","ZARUMA","071403","GUANAZAN"]
[null,null,null,null,null,null,"07","EL ORO","0714","ZARUMA","071404","GUIZHAGUIÑA"]
[null,null,null,null,null,null,"07","EL ORO","0714","ZARUMA","071405","HUERTAS"]
[null,null,null,null,null,null,"07","EL ORO","0714","ZARUMA","071406","MALVAS"]
[null,null,null,null,null,null,"07","EL ORO","0714","ZARUMA","071407","MULUNCAY GRANDE"]
[null,null,null,null,null,null,"07","EL ORO","0714","ZARUMA","071408","SALVIAS"]
[null,null,null,null,null,null,"07","EL ORO","0714","ZARUMA","071409","SINSAO"]
[null,null,null,null,null,null,"07","EL ORO","0714","ZARUMA","071410","ZARUMA"]
[null,null,null,null,null,null,"08","ESMERALDAS","0801","ATACAMES","080101","ATACAMES"]
[null,null,null,null,null,null,"08","ESMERALDAS","0801","ATACAMES","080102","LA UNION"]
[null,null,null,null,null,null,"08","ESMERALDAS","0801","ATACAMES","080103","SUA (CAB. EN LA BOCANA)"]
[null,null,null,null,null,null,"08","ESMERALDAS","0801","ATACAMES","080104","TONCHIGUE"]
[null,null,null,null,null,null,"08","ESMERALDAS","0801","ATACAMES","080105","TONSUPA"]
[null,null,null,null,null,null,"08","ESMERALDAS","0802","ELOY ALFARO","080201","ANCHAYACU"]
[null,null,null,null,null,null,"08","ESMERALDAS","0802","ELOY ALFARO","080202","ATAHUALPA (CAB. EN CAMARONES)"]
[null,null,null,null,null,null,"08","ESMERALDAS","0802","ELOY ALFARO","080203","BORBON"]
[null,null,null,null,null,null,"08","ESMERALDAS","0802","ELOY ALFARO","080204","COLON ELOY DEL MARIA"]
[null,null,null,null,null,null,"08","ESMERALDAS","0802","ELOY ALFARO","080205","LA TOLA"]
[null,null,null,null,null,null,"08","ESMERALDAS","0802","ELOY ALFARO","080206","LUIS VARGAS TORRES (CAB. EN PLAYA DE ORO)"]
[null,null,null,null,null,null,"08","ESMERALDAS","0802","ELOY ALFARO","080207","MALDONADO"]
[null,null,null,null,null,null,"08","ESMERALDAS","0802","ELOY ALFARO","080208","PAMPANAL DE BOLIVAR"]
[null,null,null,null,null,null,"08","ESMERALDAS","0802","ELOY ALFARO","080209","SAN FRANCISCO DE ONZOLE"]
[null,null,null,null,null,null,"08","ESMERALDAS","0802","ELOY ALFARO","080210","SAN JOSE DE CAYAPAS"]
[null,null,null,null,null,null,"08","ESMERALDAS","0802","ELOY ALFARO","080211","SANTA LUCIA DE LAS PEÑAS"]
[null,null,null,null,null,null,"08","ESMERALDAS","0802","ELOY ALFARO","080212","SANTO DOMINGO DE ONZOLE"]
[null,null,null,null,null,null,"08","ESMERALDAS","0802","ELOY ALFARO","080213","SELVA ALEGRE"]
[null,null,null,null,null,null,"08","ESMERALDAS","0802","ELOY ALFARO","080214","TELEMBI"]
[null,null,null,null,null,null,"08","ESMERALDAS","0802","ELOY ALFARO","080215","TIMBIRE"]
[null,null,null,null,null,null,"08","ESMERALDAS","0802","ELOY ALFARO","080216","VALDEZ (LIMONES)"]
[null,null,null,null,null,null,"08","ESMERALDAS","0803","ESMERALDAS","080301","BARTOLOME RUIZ (CESAR FRANCO CARRION)"]
[null,null,null,null,null,null,"08","ESMERALDAS","0803","ESMERALDAS","080302","CAMARONES (CAB. EN SAN VICENTE)"]
[null,null,null,null,null,null,"08","ESMERALDAS","0803","ESMERALDAS","080303","CHINCA"]
[null,null,null,null,null,null,"08","ESMERALDAS","0803","ESMERALDAS","080304","CRNEL. CARLOS CONCHA TORRES (CAB. EN HUELE)"]
[null,null,null,null,null,null,"08","ESMERALDAS","0803","ESMERALDAS","080305","ESMERALDAS"]
[null,null,null,null,null,null,"08","ESMERALDAS","0803","ESMERALDAS","080306","ESMERALDAS"]
[null,null,null,null,null,null,"08","ESMERALDAS","0803","ESMERALDAS","080307","LUIS TELLO (LAS PALMAS)"]
[null,null,null,null,null,null,"08","ESMERALDAS","0803","ESMERALDAS","080308","MAJUA"]
[null,null,null,null,null,null,"08","ESMERALDAS","0803","ESMERALDAS","080309","SAN MATEO"]
[null,null,null,null,null,null,"08","ESMERALDAS","0803","ESMERALDAS","080310","SIMON PLATA TORRES"]
[null,null,null,null,null,null,"08","ESMERALDAS","0803","ESMERALDAS","080311","TABIAZO"]
[null,null,null,null,null,null,"08","ESMERALDAS","0803","ESMERALDAS","080312","TACHINA"]
[null,null,null,null,null,null,"08","ESMERALDAS","0803","ESMERALDAS","080313","VUELTA LARGA"]
[null,null,null,null,null,null,"08","ESMERALDAS","0803","ESMERALDAS","080314","5 DE AGOSTO"]
[null,null,null,null,null,null,"08","ESMERALDAS","0804","MUISNE","080401","BOLIVAR"]
[null,null,null,null,null,null,"08","ESMERALDAS","0804","MUISNE","080402","DAULE"]
[null,null,null,null,null,null,"08","ESMERALDAS","0804","MUISNE","080403","GALERA"]
[null,null,null,null,null,null,"08","ESMERALDAS","0804","MUISNE","080404","MUISNE"]
[null,null,null,null,null,null,"08","ESMERALDAS","0804","MUISNE","080405","QUINGUE (OLMEDO PERDOMO FRANCO)"]
[null,null,null,null,null,null,"08","ESMERALDAS","0804","MUISNE","080406","SALIMA"]
[null,null,null,null,null,null,"08","ESMERALDAS","0804","MUISNE","080407","SAN FRANCISCO"]
[null,null,null,null,null,null,"08","ESMERALDAS","0804","MUISNE","080408","SAN GREGORIO"]
[null,null,null,null,null,null,"08","ESMERALDAS","0804","MUISNE","080409","SAN JOSE DE CHAMANGA (CAB. EN CHAMANGA)"]
[null,null,null,null,null,null,"08","ESMERALDAS","0805","QUININDE","080501","CHURA (CHANCAMA) (CAB. EN EL YERBERO)"]
[null,null,null,null,null,null,"08","ESMERALDAS","0805","QUININDE","080502","CUBE"]
[null,null,null,null,null,null,"08","ESMERALDAS","0805","QUININDE","080503","LA UNION"]
[null,null,null,null,null,null,"08","ESMERALDAS","0805","QUININDE","080504","MALIMPIA"]
[null,null,null,null,null,null,"08","ESMERALDAS","0805","QUININDE","080505","ROSA ZARATE (QUININDE)"]
[null,null,null,null,null,null,"08","ESMERALDAS","0805","QUININDE","080506","VICHE"]
[null,null,null,null,null,null,"08","ESMERALDAS","0806","RIOVERDE","080601","CHONTADURO"]
[null,null,null,null,null,null,"08","ESMERALDAS","0806","RIOVERDE","080602","CHUMUNDE"]
[null,null,null,null,null,null,"08","ESMERALDAS","0806","RIOVERDE","080603","LAGARTO"]
[null,null,null,null,null,null,"08","ESMERALDAS","0806","RIOVERDE","080604","MONTALVO (CAB. EN HORQUETA)"]
[null,null,null,null,null,null,"08","ESMERALDAS","0806","RIOVERDE","080605","RIOVERDE"]
[null,null,null,null,null,null,"08","ESMERALDAS","0806","RIOVERDE","080606","ROCAFUERTE"]
[null,null,null,null,null,null,"08","ESMERALDAS","0807","SAN LORENZO","080701","ALTO TAMBO (CAB. EN GUADUAL)"]
[null,null,null,null,null,null,"08","ESMERALDAS","0807","SAN LORENZO","080702","ANCON (PICHANGAL) (CAB. EN PALMA REAL)"]
[null,null,null,null,null,null,"08","ESMERALDAS","0807","SAN LORENZO","080703","CALDERON"]
[null,null,null,null,null,null,"08","ESMERALDAS","0807","SAN LORENZO","080704","CARONDELET"]
[null,null,null,null,null,null,"08","ESMERALDAS","0807","SAN LORENZO","080705","CONCEPCION"]
[null,null,null,null,null,null,"08","ESMERALDAS","0807","SAN LORENZO","080706","MATAJE (CAB. EN SANTANDER)"]
[null,null,null,null,null,null,"08","ESMERALDAS","0807","SAN LORENZO","080707","SAN JAVIER DE CACHAVI (CAB. EN SAN JAVIER)"]
[null,null,null,null,null,null,"08","ESMERALDAS","0807","SAN LORENZO","080708","SAN LORENZO"]
[null,null,null,null,null,null,"08","ESMERALDAS","0807","SAN LORENZO","080709","SANTA RITA"]
[null,null,null,null,null,null,"08","ESMERALDAS","0807","SAN LORENZO","080710","TAMBILLO"]
[null,null,null,null,null,null,"08","ESMERALDAS","0807","SAN LORENZO","080711","TULULBI (CAB. EN RICAURTE)"]
[null,null,null,null,null,null,"08","ESMERALDAS","0807","SAN LORENZO","080712","URBINA"]
[null,null,null,null,null,null,"08","ESMERALDAS","0807","SAN LORENZO","080713","5 DE JUNIO (CAB. EN UIMBI)"]
[null,null,null,null,null,null,"09","GUAYAS","0901","ALFREDO BAQUERIZO MORENO","090101","ALFREDO BAQUERIZO MORENO (JUJAN)"]
[null,null,null,null,null,null,"09","GUAYAS","0902","BALAO","090201","BALAO"]
[null,null,null,null,null,null,"09","GUAYAS","0903","BALZAR","090301","BALZAR"]
[null,null,null,null,null,null,"09","GUAYAS","0904","COLIMES","090401","COLIMES"]
[null,null,null,null,null,null,"09","GUAYAS","0904","COLIMES","090402","SAN JACINTO"]
[null,null,null,null,null,null,"09","GUAYAS","0905","CORONEL MARCELINO MARIDUEÑA","090501","CORONEL MARCELINO MARIDUEÑA (SAN CARLOS)"]
[null,null,null,null,null,null,"09","GUAYAS","0906","DAULE","090601","BANIFE"]
[null,null,null,null,null,null,"09","GUAYAS","0906","DAULE","090602","DAULE"]
[null,null,null,null,null,null,"09","GUAYAS","0906","DAULE","090603","DAULE"]
[null,null,null,null,null,null,"09","GUAYAS","0906","DAULE","090604","EMILIANO CAICEDO MARCOS"]
[null,null,null,null,null,null,"09","GUAYAS","0906","DAULE","090605","JUAN BAUTISTA AGUIRRE (LOS TINTOS)"]
[null,null,null,null,null,null,"09","GUAYAS","0906","DAULE","090606","LA AURORA (SATELITE)"]
[null,null,null,null,null,null,"09","GUAYAS","0906","DAULE","090607","LAUREL"]
[null,null,null,null,null,null,"09","GUAYAS","0906","DAULE","090608","LIMONAL"]
[null,null,null,null,null,null,"09","GUAYAS","0906","DAULE","090609","LOS LOJAS (ENRIQUE BAQUERIZO MORENO)"]
[null,null,null,null,null,null,"09","GUAYAS","0906","DAULE","090610","MAGRO"]
[null,null,null,null,null,null,"09","GUAYAS","0906","DAULE","090611","PADRE JUAN BAUTISTA AGUIRRE"]
[null,null,null,null,null,null,"09","GUAYAS","0906","DAULE","090612","SANTA CLARA"]
[null,null,null,null,null,null,"09","GUAYAS","0906","DAULE","090613","VICENTE PIEDRAHITA"]
[null,null,null,null,null,null,"09","GUAYAS","0907","DURAN","090701","EL RECREO"]
[null,null,null,null,null,null,"09","GUAYAS","0907","DURAN","090702","ELOY ALFARO (DURAN)"]
[null,null,null,null,null,null,"09","GUAYAS","0907","DURAN","090703","ELOY ALFARO (DURAN)"]
[null,null,null,null,null,null,"09","GUAYAS","0908","EL EMPALME","090801","EL ROSARIO"]
[null,null,null,null,null,null,"09","GUAYAS","0908","EL EMPALME","090802","GUAYAS (PUEBLO NUEVO)"]
[null,null,null,null,null,null,"09","GUAYAS","0908","EL EMPALME","090803","VELASCO IBARRA (EL EMPALME)"]
[null,null,null,null,null,null,"09","GUAYAS","0909","EL TRIUNFO","090901","EL TRIUNFO"]
[null,null,null,null,null,null,"09","GUAYAS","0910","GENERAL ANTONIO ELIZALDE","091001","GENERAL ANTONIO ELIZALDE (BUCAY)"]
[null,null,null,null,null,null,"09","GUAYAS","0911","GUAYAQUIL","091101","AYACUCHO"]
[null,null,null,null,null,null,"09","GUAYAS","0911","GUAYAQUIL","091102","BOLIVAR (SAGRARIO)"]
[null,null,null,null,null,null,"09","GUAYAS","0911","GUAYAQUIL","091103","CARBO (CONCEPCION)"]
[null,null,null,null,null,null,"09","GUAYAS","0911","GUAYAQUIL","091104","FEBRES CORDERO"]
[null,null,null,null,null,null,"09","GUAYAS","0911","GUAYAQUIL","091105","GARCIA MORENO"]
[null,null,null,null,null,null,"09","GUAYAS","0911","GUAYAQUIL","091106","GUAYAQUIL"]
[null,null,null,null,null,null,"09","GUAYAS","0911","GUAYAQUIL","091107","JUAN GOMEZ RENDON (PROGRESO)"]
[null,null,null,null,null,null,"09","GUAYAS","0911","GUAYAQUIL","091108","LETAMENDI"]
[null,null,null,null,null,null,"09","GUAYAS","0911","GUAYAQUIL","091109","MORRO"]
[null,null,null,null,null,null,"09","GUAYAS","0911","GUAYAQUIL","091110","NUEVE DE OCTUBRE"]
[null,null,null,null,null,null,"09","GUAYAS","0911","GUAYAQUIL","091111","OLMEDO (SAN ALEJO)"]
[null,null,null,null,null,null,"09","GUAYAS","0911","GUAYAQUIL","091112","PASCUALES"]
[null,null,null,null,null,null,"09","GUAYAS","0911","GUAYAQUIL","091113","POSORJA"]
[null,null,null,null,null,null,"09","GUAYAS","0911","GUAYAQUIL","091114","PUNA"]
[null,null,null,null,null,null,"09","GUAYAS","0911","GUAYAQUIL","091115","ROCA"]
[null,null,null,null,null,null,"09","GUAYAS","0911","GUAYAQUIL","091116","ROCAFUERTE"]
[null,null,null,null,null,null,"09","GUAYAS","0911","GUAYAQUIL","091117","SUCRE"]
[null,null,null,null,null,null,"09","GUAYAS","0911","GUAYAQUIL","091118","TARQUI"]
[null,null,null,null,null,null,"09","GUAYAS","0911","GUAYAQUIL","091119","TENGUEL"]
[null,null,null,null,null,null,"09","GUAYAS","0911","GUAYAQUIL","091120","URDANETA"]
[null,null,null,null,null,null,"09","GUAYAS","0911","GUAYAQUIL","091121","XIMENA"]
[null,null,null,null,null,null,"09","GUAYAS","0912","ISIDRO AYORA","091201","ISIDRO AYORA"]
[null,null,null,null,null,null,"09","GUAYAS","0913","LOMAS DE SARGENTILLO","091301","LOMAS DE SARGENTILLO"]
[null,null,null,null,null,null,"09","GUAYAS","0914","MILAGRO","091401","CHOBO"]
[null,null,null,null,null,null,"09","GUAYAS","0914","MILAGRO","091402","MARISCAL SUCRE (HUAQUES)"]
[null,null,null,null,null,null,"09","GUAYAS","0914","MILAGRO","091403","MILAGRO"]
[null,null,null,null,null,null,"09","GUAYAS","0914","MILAGRO","091404","ROBERTO ASTUDILLO (CAB. EN CRUCE DE VENECIA)"]
[null,null,null,null,null,null,"09","GUAYAS","0915","NARANJAL","091501","JESUS MARIA"]
[null,null,null,null,null,null,"09","GUAYAS","0915","NARANJAL","091502","NARANJAL"]
[null,null,null,null,null,null,"09","GUAYAS","0915","NARANJAL","091503","SAN CARLOS"]
[null,null,null,null,null,null,"09","GUAYAS","0915","NARANJAL","091504","SANTA ROSA DE FLANDES"]
[null,null,null,null,null,null,"09","GUAYAS","0915","NARANJAL","091505","TAURA"]
[null,null,null,null,null,null,"09","GUAYAS","0916","NARANJITO","091601","NARANJITO"]
[null,null,null,null,null,null,"09","GUAYAS","0917","NOBOL","091701","NARCISA DE JESUS"]
[null,null,null,null,null,null,"09","GUAYAS","0918","PALESTINA","091801","PALESTINA"]
[null,null,null,null,null,null,"09","GUAYAS","0919","PEDRO CARBO","091901","PEDRO CARBO"]
[null,null,null,null,null,null,"09","GUAYAS","0919","PEDRO CARBO","091902","SABANILLA"]
[null,null,null,null,null,null,"09","GUAYAS","0919","PEDRO CARBO","091903","VALLE DE LA VIRGEN"]
[null,null,null,null,null,null,"09","GUAYAS","0920","PLAYAS","092001","GENERAL VILLAMIL (PLAYAS)"]
[null,null,null,null,null,null,"09","GUAYAS","0921","SALITRE","092101","BOCANA"]
[null,null,null,null,null,null,"09","GUAYAS","0921","SALITRE","092102","CANDILEJOS"]
[null,null,null,null,null,null,"09","GUAYAS","0921","SALITRE","092103","CENTRAL"]
[null,null,null,null,null,null,"09","GUAYAS","0921","SALITRE","092104","EL SALITRE (LAS RAMAS)"]
[null,null,null,null,null,null,"09","GUAYAS","0921","SALITRE","092105","GRAL. VERNAZA (DOS ESTEROS)"]
[null,null,null,null,null,null,"09","GUAYAS","0921","SALITRE","092106","JUNQUILLAL"]
[null,null,null,null,null,null,"09","GUAYAS","0921","SALITRE","092107","LA VICTORIA (ÑAUZA)"]
[null,null,null,null,null,null,"09","GUAYAS","0921","SALITRE","092108","PARAISO"]
[null,null,null,null,null,null,"09","GUAYAS","0921","SALITRE","092109","SAN MATEO"]
[null,null,null,null,null,null,"09","GUAYAS","0922","SAMBORONDON","092201","LA PUNTILLA (SATELITE)"]
[null,null,null,null,null,null,"09","GUAYAS","0922","SAMBORONDON","092202","SAMBORONDON"]
[null,null,null,null,null,null,"09","GUAYAS","0922","SAMBORONDON","092203","SAMBORONDON"]
[null,null,null,null,null,null,"09","GUAYAS","0922","SAMBORONDON","092204","TARIFA"]
[null,null,null,null,null,null,"09","GUAYAS","0923","SAN JACINTO DE YAGUACHI","092301","GRAL. PEDRO J. MONTERO (BOLICHE)"]
[null,null,null,null,null,null,"09","GUAYAS","0923","SAN JACINTO DE YAGUACHI","092302","SAN JACINTO DE YAGUACHI"]
[null,null,null,null,null,null,"09","GUAYAS","0923","SAN JACINTO DE YAGUACHI","092303","VIRGEN DE FATIMA"]
[null,null,null,null,null,null,"09","GUAYAS","0923","SAN JACINTO DE YAGUACHI","092304","YAGUACHI VIEJO (CONE)"]
[null,null,null,null,null,null,"09","GUAYAS","0924","SANTA LUCIA","092401","SANTA LUCIA"]
[null,null,null,null,null,null,"09","GUAYAS","0925","SIMON BOLIVAR","092501","CRNEL.LORENZO DE GARAICOA (PEDREGAL)"]
[null,null,null,null,null,null,"09","GUAYAS","0925","SIMON BOLIVAR","092502","SIMON BOLIVAR"]
[null,null,null,null,null,null,"10","IMBABURA","1001","ANTONIO ANTE","100101","ANDRADE MARIN (LOURDES)"]
[null,null,null,null,null,null,"10","IMBABURA","1001","ANTONIO ANTE","100102","ATUNTAQUI"]
[null,null,null,null,null,null,"10","IMBABURA","1001","ANTONIO ANTE","100103","ATUNTAQUI"]
[null,null,null,null,null,null,"10","IMBABURA","1001","ANTONIO ANTE","100104","IMBAYA (SAN LUIS DE COBUENDO)"]
[null,null,null,null,null,null,"10","IMBABURA","1001","ANTONIO ANTE","100105","SAN FRANCISCO DE NATABUELA"]
[null,null,null,null,null,null,"10","IMBABURA","1001","ANTONIO ANTE","100106","SAN JOSE DE CHALTURA"]
[null,null,null,null,null,null,"10","IMBABURA","1001","ANTONIO ANTE","100107","SAN ROQUE"]
[null,null,null,null,null,null,"10","IMBABURA","1002","COTACACHI","100201","APUELA"]
[null,null,null,null,null,null,"10","IMBABURA","1002","COTACACHI","100202","COTACACHI"]
[null,null,null,null,null,null,"10","IMBABURA","1002","COTACACHI","100203","GARCIA MORENO (LLURIMAGUA)"]
[null,null,null,null,null,null,"10","IMBABURA","1002","COTACACHI","100204","IMANTAG"]
[null,null,null,null,null,null,"10","IMBABURA","1002","COTACACHI","100205","PEÑAHERRERA"]
[null,null,null,null,null,null,"10","IMBABURA","1002","COTACACHI","100206","PLAZA GUTIERREZ (CALVARIO)"]
[null,null,null,null,null,null,"10","IMBABURA","1002","COTACACHI","100207","QUIROGA"]
[null,null,null,null,null,null,"10","IMBABURA","1002","COTACACHI","100208","SAGRARIO"]
[null,null,null,null,null,null,"10","IMBABURA","1002","COTACACHI","100209","SAN FRANCISCO"]
[null,null,null,null,null,null,"10","IMBABURA","1002","COTACACHI","100210","VACAS GALINDO (EL CHURO) (CAB.EN SAN MIGUEL ALTO"]
[null,null,null,null,null,null,"10","IMBABURA","1002","COTACACHI","100211","6 DE JULIO DE CUELLAJE (CAB. EN CUELLAJE)"]
[null,null,null,null,null,null,"10","IMBABURA","1003","IBARRA","100301","AMBUQUI"]
[null,null,null,null,null,null,"10","IMBABURA","1003","IBARRA","100302","ANGOCHAGUA"]
[null,null,null,null,null,null,"10","IMBABURA","1003","IBARRA","100303","CARANQUI"]
[null,null,null,null,null,null,"10","IMBABURA","1003","IBARRA","100304","CAROLINA"]
[null,null,null,null,null,null,"10","IMBABURA","1003","IBARRA","100305","GUAYAQUIL DE ALPACHACA"]
[null,null,null,null,null,null,"10","IMBABURA","1003","IBARRA","100306","LA DOLOROSA DEL PRIORATO"]
[null,null,null,null,null,null,"10","IMBABURA","1003","IBARRA","100307","LA ESPERANZA"]
[null,null,null,null,null,null,"10","IMBABURA","1003","IBARRA","100308","LITA"]
[null,null,null,null,null,null,"10","IMBABURA","1003","IBARRA","100309","SAGRARIO"]
[null,null,null,null,null,null,"10","IMBABURA","1003","IBARRA","100310","SALINAS"]
[null,null,null,null,null,null,"10","IMBABURA","1003","IBARRA","100311","SAN ANTONIO"]
[null,null,null,null,null,null,"10","IMBABURA","1003","IBARRA","100312","SAN FRANCISCO"]
[null,null,null,null,null,null,"10","IMBABURA","1003","IBARRA","100313","SAN MIGUEL DE IBARRA"]
[null,null,null,null,null,null,"10","IMBABURA","1004","OTAVALO","100401","DR. MIGUEL EGAS CABEZAS (PEGUCHE)"]
[null,null,null,null,null,null,"10","IMBABURA","1004","OTAVALO","100402","EUGENIO ESPEJO (CALPAQUI)"]
[null,null,null,null,null,null,"10","IMBABURA","1004","OTAVALO","100403","GONZALEZ SUAREZ"]
[null,null,null,null,null,null,"10","IMBABURA","1004","OTAVALO","100404","JORDAN"]
[null,null,null,null,null,null,"10","IMBABURA","1004","OTAVALO","100405","OTAVALO"]
[null,null,null,null,null,null,"10","IMBABURA","1004","OTAVALO","100406","PATAQUI"]
[null,null,null,null,null,null,"10","IMBABURA","1004","OTAVALO","100407","SAN JOSE DE QUICHINCHE"]
[null,null,null,null,null,null,"10","IMBABURA","1004","OTAVALO","100408","SAN JUAN DE ILUMAN"]
[null,null,null,null,null,null,"10","IMBABURA","1004","OTAVALO","100409","SAN LUIS"]
[null,null,null,null,null,null,"10","IMBABURA","1004","OTAVALO","100410","SAN PABLO"]
[null,null,null,null,null,null,"10","IMBABURA","1004","OTAVALO","100411","SAN RAFAEL"]
[null,null,null,null,null,null,"10","IMBABURA","1004","OTAVALO","100412","SELVA ALEGRE (CAB. EN SAN MIGUEL DE PAMPLONA)"]
[null,null,null,null,null,null,"10","IMBABURA","1005","PIMAMPIRO","100501","CHUGA"]
[null,null,null,null,null,null,"10","IMBABURA","1005","PIMAMPIRO","100502","MARIANO ACOSTA"]
[null,null,null,null,null,null,"10","IMBABURA","1005","PIMAMPIRO","100503","PIMAMPIRO"]
[null,null,null,null,null,null,"10","IMBABURA","1005","PIMAMPIRO","100504","SAN FRANCISCO DE SIGSIPAMBA"]
[null,null,null,null,null,null,"10","IMBABURA","1006","SAN MIGUEL DE URCUQUI","100601","CAHUASQUI"]
[null,null,null,null,null,null,"10","IMBABURA","1006","SAN MIGUEL DE URCUQUI","100602","LA MERCED DE BUENOS AIRES"]
[null,null,null,null,null,null,"10","IMBABURA","1006","SAN MIGUEL DE URCUQUI","100603","PABLO ARENAS"]
[null,null,null,null,null,null,"10","IMBABURA","1006","SAN MIGUEL DE URCUQUI","100604","SAN BLAS"]
[null,null,null,null,null,null,"10","IMBABURA","1006","SAN MIGUEL DE URCUQUI","100605","TUMBABIRO"]
[null,null,null,null,null,null,"10","IMBABURA","1006","SAN MIGUEL DE URCUQUI","100606","URCUQUI"]
[null,null,null,null,null,null,"11","LOJA","1101","CALVAS","110101","CARIAMANGA"]
[null,null,null,null,null,null,"11","LOJA","1101","CALVAS","110102","CARIAMANGA"]
[null,null,null,null,null,null,"11","LOJA","1101","CALVAS","110103","CHILE"]
[null,null,null,null,null,null,"11","LOJA","1101","CALVAS","110104","COLAISACA"]
[null,null,null,null,null,null,"11","LOJA","1101","CALVAS","110105","EL LUCERO"]
[null,null,null,null,null,null,"11","LOJA","1101","CALVAS","110106","SAN VICENTE"]
[null,null,null,null,null,null,"11","LOJA","1101","CALVAS","110107","SANGUILLIN"]
[null,null,null,null,null,null,"11","LOJA","1101","CALVAS","110108","UTUANA"]
[null,null,null,null,null,null,"11","LOJA","1102","CATAMAYO","110201","CATAMAYO"]
[null,null,null,null,null,null,"11","LOJA","1102","CATAMAYO","110201","CATAMAYO (LA TOMA)"]
[null,null,null,null,null,null,"11","LOJA","1102","CATAMAYO","110201","EL TAMBO"]
[null,null,null,null,null,null,"11","LOJA","1102","CATAMAYO","110201","GUAYQUICHUMA"]
[null,null,null,null,null,null,"11","LOJA","1102","CATAMAYO","110201","SAN JOSE"]
[null,null,null,null,null,null,"11","LOJA","1102","CATAMAYO","110201","SAN PEDRO DE LA BENDITA"]
[null,null,null,null,null,null,"11","LOJA","1102","CATAMAYO","110201","ZAMBI"]
[null,null,null,null,null,null,"11","LOJA","1103","CELICA","110301","CELICA"]
[null,null,null,null,null,null,"11","LOJA","1103","CELICA","110302","CRUZPAMBA (CAB. EN CARLOS BUSTAMANTE)"]
[null,null,null,null,null,null,"11","LOJA","1103","CELICA","110303","POZUL (SAN JUAN DE POZUL)"]
[null,null,null,null,null,null,"11","LOJA","1103","CELICA","110304","SABANILLA"]
[null,null,null,null,null,null,"11","LOJA","1103","CELICA","110305","TNTE. MAXIMILIANO RODRIGUEZ LOAIZA"]
[null,null,null,null,null,null,"11","LOJA","1104","CHAGUARPAMBA","110401","AMARILLOS"]
[null,null,null,null,null,null,"11","LOJA","1104","CHAGUARPAMBA","110402","BUENAVISTA"]
[null,null,null,null,null,null,"11","LOJA","1104","CHAGUARPAMBA","110403","CHAGUARPAMBA"]
[null,null,null,null,null,null,"11","LOJA","1104","CHAGUARPAMBA","110404","EL ROSARIO"]
[null,null,null,null,null,null,"11","LOJA","1104","CHAGUARPAMBA","110405","SANTA RUFINA"]
[null,null,null,null,null,null,"11","LOJA","1105","ESPINDOLA","110501","AMALUZA"]
[null,null,null,null,null,null,"11","LOJA","1105","ESPINDOLA","110502","BELLAVISTA"]
[null,null,null,null,null,null,"11","LOJA","1105","ESPINDOLA","110503","EL AIRO"]
[null,null,null,null,null,null,"11","LOJA","1105","ESPINDOLA","110504","EL INGENIO"]
[null,null,null,null,null,null,"11","LOJA","1105","ESPINDOLA","110505","JIMBURA"]
[null,null,null,null,null,null,"11","LOJA","1105","ESPINDOLA","110506","SANTA TERESITA"]
[null,null,null,null,null,null,"11","LOJA","1105","ESPINDOLA","110507","27 DE ABRIL (CAB. EN LA NARANJA)"]
[null,null,null,null,null,null,"11","LOJA","1106","GONZANAMA","110601","CHANGAIMINA (LA LIBERTAD)"]
[null,null,null,null,null,null,"11","LOJA","1106","GONZANAMA","110602","GONZANAMA"]
[null,null,null,null,null,null,"11","LOJA","1106","GONZANAMA","110603","NAMBACOLA"]
[null,null,null,null,null,null,"11","LOJA","1106","GONZANAMA","110604","PURUNUMA (EGUIGUREN)"]
[null,null,null,null,null,null,"11","LOJA","1106","GONZANAMA","110605","SACAPALCA"]
[null,null,null,null,null,null,"11","LOJA","1107","LOJA","110701","CARIGÁN"]
[null,null,null,null,null,null,"11","LOJA","1107","LOJA","110702","CHANTACO"]
[null,null,null,null,null,null,"11","LOJA","1107","LOJA","110703","CHUQUIRIBAMBA"]
[null,null,null,null,null,null,"11","LOJA","1107","LOJA","110704","EL CISNE"]
[null,null,null,null,null,null,"11","LOJA","1107","LOJA","110705","EL SAGRARIO"]
[null,null,null,null,null,null,"11","LOJA","1107","LOJA","110706","GUALEL"]
[null,null,null,null,null,null,"11","LOJA","1107","LOJA","110707","JIMBILLA"]
[null,null,null,null,null,null,"11","LOJA","1107","LOJA","110708","LOJA"]
[null,null,null,null,null,null,"11","LOJA","1107","LOJA","110709","MALACATOS (VALLADOLID)"]
[null,null,null,null,null,null,"11","LOJA","1107","LOJA","110710","PUNZARA"]
[null,null,null,null,null,null,"11","LOJA","1107","LOJA","110711","QUINARA"]
[null,null,null,null,null,null,"11","LOJA","1107","LOJA","110712","SAN LUCAS"]
[null,null,null,null,null,null,"11","LOJA","1107","LOJA","110713","SAN PEDRO DE VILCABAMBA"]
[null,null,null,null,null,null,"11","LOJA","1107","LOJA","110714","SAN SEBASTIAN"]
[null,null,null,null,null,null,"11","LOJA","1107","LOJA","110715","SANTIAGO"]
[null,null,null,null,null,null,"11","LOJA","1107","LOJA","110716","SUCRE"]
[null,null,null,null,null,null,"11","LOJA","1107","LOJA","110717","TAQUIL (MIGUEL RIOFRIO)"]
[null,null,null,null,null,null,"11","LOJA","1107","LOJA","110718","VALLE"]
[null,null,null,null,null,null,"11","LOJA","1107","LOJA","110719","VILCABAMBA (VICTORIA)"]
[null,null,null,null,null,null,"11","LOJA","1107","LOJA","110720","YANGANA (ARSENIO CASTILLO)"]
[null,null,null,null,null,null,"11","LOJA","1108","MACARA","110801","GENERAL ELOY ALFARO (SAN SEBASTIAN)"]
[null,null,null,null,null,null,"11","LOJA","1108","MACARA","110802","LA VICTORIA"]
[null,null,null,null,null,null,"11","LOJA","1108","MACARA","110803","LARAMA"]
[null,null,null,null,null,null,"11","LOJA","1108","MACARA","110804","MACARA"]
[null,null,null,null,null,null,"11","LOJA","1108","MACARA","110805","MACARA (MANUEL ENRIQUE RENGEL SUQUILANDA)"]
[null,null,null,null,null,null,"11","LOJA","1108","MACARA","110806","SABIANGO (LA CAPILLA)"]
[null,null,null,null,null,null,"11","LOJA","1109","OLMEDO","110901","LA TINGUE"]
[null,null,null,null,null,null,"11","LOJA","1109","OLMEDO","110902","OLMEDO"]
[null,null,null,null,null,null,"11","LOJA","1110","PALTAS","111001","CANGONAMA"]
[null,null,null,null,null,null,"11","LOJA","1110","PALTAS","111001","CASANGA"]
[null,null,null,null,null,null,"11","LOJA","1110","PALTAS","111001","CATACOCHA"]
[null,null,null,null,null,null,"11","LOJA","1110","PALTAS","111001","CATACOCHA"]
[null,null,null,null,null,null,"11","LOJA","1110","PALTAS","111001","GUACHANAMA"]
[null,null,null,null,null,null,"11","LOJA","1110","PALTAS","111001","LAURO GUERRERO"]
[null,null,null,null,null,null,"11","LOJA","1110","PALTAS","111001","LOURDES"]
[null,null,null,null,null,null,"11","LOJA","1110","PALTAS","111001","ORIANGA"]
[null,null,null,null,null,null,"11","LOJA","1110","PALTAS","111001","SAN ANTONIO"]
[null,null,null,null,null,null,"11","LOJA","1110","PALTAS","111001","YAMANA"]
[null,null,null,null,null,null,"11","LOJA","1111","PINDAL","111101","CHAQUINAL"]
[null,null,null,null,null,null,"11","LOJA","1111","PINDAL","111102","MILAGROS"]
[null,null,null,null,null,null,"11","LOJA","1111","PINDAL","111103","PINDAL"]
[null,null,null,null,null,null,"11","LOJA","1111","PINDAL","111104","12 DE DICIEMBRE (CAB. EN ACHIOTES)"]
[null,null,null,null,null,null,"11","LOJA","1112","PUYANGO","111201","ALAMOR"]
[null,null,null,null,null,null,"11","LOJA","1112","PUYANGO","111202","CIANO"]
[null,null,null,null,null,null,"11","LOJA","1112","PUYANGO","111203","EL ARENAL"]
[null,null,null,null,null,null,"11","LOJA","1112","PUYANGO","111204","EL LIMO (MARIANA DE JESUS)"]
[null,null,null,null,null,null,"11","LOJA","1112","PUYANGO","111205","MERCADILLO"]
[null,null,null,null,null,null,"11","LOJA","1112","PUYANGO","111206","VICENTINO"]
[null,null,null,null,null,null,"11","LOJA","1113","QUILANGA","111301","FUNDOCHAMBA"]
[null,null,null,null,null,null,"11","LOJA","1113","QUILANGA","111302","QUILANGA"]
[null,null,null,null,null,null,"11","LOJA","1113","QUILANGA","111303","SAN ANTONIO DE LAS ARADAS (CAB. N LAS ARADAS)"]
[null,null,null,null,null,null,"11","LOJA","1114","SARAGURO","111401","EL PARAISO DE CELEN"]
[null,null,null,null,null,null,"11","LOJA","1114","SARAGURO","111402","EL TABLON"]
[null,null,null,null,null,null,"11","LOJA","1114","SARAGURO","111403","LLUZHAPA"]
[null,null,null,null,null,null,"11","LOJA","1114","SARAGURO","111404","MANU"]
[null,null,null,null,null,null,"11","LOJA","1114","SARAGURO","111405","SAN ANTONIO DE QUMBE (CUMBE)"]
[null,null,null,null,null,null,"11","LOJA","1114","SARAGURO","111406","SAN PABLO DE TENTA"]
[null,null,null,null,null,null,"11","LOJA","1114","SARAGURO","111407","SAN SEBASTIAN DE YULUC"]
[null,null,null,null,null,null,"11","LOJA","1114","SARAGURO","111408","SARAGURO"]
[null,null,null,null,null,null,"11","LOJA","1114","SARAGURO","111409","SELVA ALEGRE"]
[null,null,null,null,null,null,"11","LOJA","1114","SARAGURO","111410","SUMAYPAMBA"]
[null,null,null,null,null,null,"11","LOJA","1114","SARAGURO","111411","URDANETA (PAQUISHAPA)"]
[null,null,null,null,null,null,"11","LOJA","1115","SOZORANGA","111501","NUEVA FATIMA"]
[null,null,null,null,null,null,"11","LOJA","1115","SOZORANGA","111502","SOZORANGA"]
[null,null,null,null,null,null,"11","LOJA","1115","SOZORANGA","111503","TACAMOROS"]
[null,null,null,null,null,null,"11","LOJA","1116","ZAPOTILLO","111601","BOLASPAMBA"]
[null,null,null,null,null,null,"11","LOJA","1116","ZAPOTILLO","111602","CAZADEROS"]
[null,null,null,null,null,null,"11","LOJA","1116","ZAPOTILLO","111603","GARZAREAL"]
[null,null,null,null,null,null,"11","LOJA","1116","ZAPOTILLO","111604","LIMONES"]
[null,null,null,null,null,null,"11","LOJA","1116","ZAPOTILLO","111605","MANGAHURCO"]
[null,null,null,null,null,null,"11","LOJA","1116","ZAPOTILLO","111606","PALETILLAS"]
[null,null,null,null,null,null,"11","LOJA","1116","ZAPOTILLO","111607","ZAPOTILLO"]
[null,null,null,null,null,null,"12","LOS RIOS","1201","BABA","120101","BABA"]
[null,null,null,null,null,null,"12","LOS RIOS","1201","BABA","120102","GUARE"]
[null,null,null,null,null,null,"12","LOS RIOS","1201","BABA","120103","ISLA DE BEJUCAL"]
[null,null,null,null,null,null,"12","LOS RIOS","1202","BABAHOYO","120201","BABAHOYO"]
[null,null,null,null,null,null,"12","LOS RIOS","1202","BABAHOYO","120202","BARREIRO"]
[null,null,null,null,null,null,"12","LOS RIOS","1202","BABAHOYO","120203","CARACOL"]
[null,null,null,null,null,null,"12","LOS RIOS","1202","BABAHOYO","120204","CLEMENTE BAQUERIZO"]
[null,null,null,null,null,null,"12","LOS RIOS","1202","BABAHOYO","120205","DR. CAMILO PONCE"]
[null,null,null,null,null,null,"12","LOS RIOS","1202","BABAHOYO","120206","EL SALTO"]
[null,null,null,null,null,null,"12","LOS RIOS","1202","BABAHOYO","120207","FEBRES CORDERO (LAS JUNTAS) (CAB. EN MATA DE CACAO)"]
[null,null,null,null,null,null,"12","LOS RIOS","1202","BABAHOYO","120208","LA UNION"]
[null,null,null,null,null,null,"12","LOS RIOS","1202","BABAHOYO","120209","PIMOCHA"]
[null,null,null,null,null,null,"12","LOS RIOS","1203","BUENA FE","120301","PATRICIA PILAR"]
[null,null,null,null,null,null,"12","LOS RIOS","1203","BUENA FE","120302","SAN JACINTO DE BUENA FE"]
[null,null,null,null,null,null,"12","LOS RIOS","1203","BUENA FE","120303","SAN JACINTO DE BUENA FE"]
[null,null,null,null,null,null,"12","LOS RIOS","1203","BUENA FE","120304","11 DE OCTUBRE"]
[null,null,null,null,null,null,"12","LOS RIOS","1203","BUENA FE","120305","7 DE AGOSTO"]
[null,null,null,null,null,null,"12","LOS RIOS","1204","MOCACHE","120401","MOCACHE"]
[null,null,null,null,null,null,"12","LOS RIOS","1205","MONTALVO","120501","LA ESMERALDA"]
[null,null,null,null,null,null,"12","LOS RIOS","1205","MONTALVO","120502","MONTALVO"]
[null,null,null,null,null,null,"12","LOS RIOS","1206","PALENQUE","120601","PALENQUE"]
[null,null,null,null,null,null,"12","LOS RIOS","1207","PUEBLOVIEJO","120701","PUEBLOVIEJO"]
[null,null,null,null,null,null,"12","LOS RIOS","1207","PUEBLOVIEJO","120702","PUERTO PECHICHE"]
[null,null,null,null,null,null,"12","LOS RIOS","1207","PUEBLOVIEJO","120703","SAN JUAN"]
[null,null,null,null,null,null,"12","LOS RIOS","1208","QUEVEDO","120801","GUAYACAN"]
[null,null,null,null,null,null,"12","LOS RIOS","1208","QUEVEDO","120802","LA ESPERANZA"]
[null,null,null,null,null,null,"12","LOS RIOS","1208","QUEVEDO","120803","NICOLAS INFANTE DIAZ"]
[null,null,null,null,null,null,"12","LOS RIOS","1208","QUEVEDO","120804","QUEVEDO"]
[null,null,null,null,null,null,"12","LOS RIOS","1208","QUEVEDO","120805","QUEVEDO"]
[null,null,null,null,null,null,"12","LOS RIOS","1208","QUEVEDO","120806","SAN CAMILO"]
[null,null,null,null,null,null,"12","LOS RIOS","1208","QUEVEDO","120807","SAN CARLOS"]
[null,null,null,null,null,null,"12","LOS RIOS","1208","QUEVEDO","120808","SAN CRISTOBAL"]
[null,null,null,null,null,null,"12","LOS RIOS","1208","QUEVEDO","120809","SIETE DE OCTUBRE"]
[null,null,null,null,null,null,"12","LOS RIOS","1208","QUEVEDO","120810","VENUS DEL RIO QUEVEDO"]
[null,null,null,null,null,null,"12","LOS RIOS","1208","QUEVEDO","120811","VIVA ALFARO"]
[null,null,null,null,null,null,"12","LOS RIOS","1208","QUEVEDO","120812","24 DE MAYO"]
[null,null,null,null,null,null,"12","LOS RIOS","1209","QUINSALOMA","120901","QUINSALOMA"]
[null,null,null,null,null,null,"12","LOS RIOS","1210","URDANETA","121001","CATARAMA"]
[null,null,null,null,null,null,"12","LOS RIOS","1210","URDANETA","121002","RICAURTE"]
[null,null,null,null,null,null,"12","LOS RIOS","1211","VALENCIA","121101","VALENCIA"]
[null,null,null,null,null,null,"12","LOS RIOS","1212","VENTANAS","121201","CHACARITA"]
[null,null,null,null,null,null,"12","LOS RIOS","1212","VENTANAS","121202","LOS ANGELES"]
[null,null,null,null,null,null,"12","LOS RIOS","1212","VENTANAS","121203","VENTANAS"]
[null,null,null,null,null,null,"12","LOS RIOS","1212","VENTANAS","121204","ZAPOTAL"]
[null,null,null,null,null,null,"12","LOS RIOS","1212","VENTANAS","121205","10 DE NOVIEMBRE"]
[null,null,null,null,null,null,"12","LOS RIOS","1213","VINCES","121301","ANTONIO SOTOMAYOR (CAB. EN PLAYAS DE VINCES)"]
[null,null,null,null,null,null,"12","LOS RIOS","1213","VINCES","121302","VINCES"]
[null,null,null,null,null,null,"13","MANABI","1301","BOLIVAR1","130101","CALCETA"]
[null,null,null,null,null,null,"13","MANABI","1301","BOLIVAR1","130102","MEMBRILLO"]
[null,null,null,null,null,null,"13","MANABI","1301","BOLIVAR1","130103","QUIROGA"]
[null,null,null,null,null,null,"13","MANABI","1302","CHONE","130201","BOYACA"]
[null,null,null,null,null,null,"13","MANABI","1302","CHONE","130202","CANUTO"]
[null,null,null,null,null,null,"13","MANABI","1302","CHONE","130203","CHIBUNGA"]
[null,null,null,null,null,null,"13","MANABI","1302","CHONE","130204","CHONE"]
[null,null,null,null,null,null,"13","MANABI","1302","CHONE","130205","CHONE"]
[null,null,null,null,null,null,"13","MANABI","1302","CHONE","130206","CONVENTO"]
[null,null,null,null,null,null,"13","MANABI","1302","CHONE","130207","ELOY ALFARO"]
[null,null,null,null,null,null,"13","MANABI","1302","CHONE","130208","RICAURTE"]
[null,null,null,null,null,null,"13","MANABI","1302","CHONE","130209","SAN ANTONIO"]
[null,null,null,null,null,null,"13","MANABI","1302","CHONE","130210","SANTA RITA"]
[null,null,null,null,null,null,"13","MANABI","1303","EL CARMEN","130301","EL CARMEN"]
[null,null,null,null,null,null,"13","MANABI","1303","EL CARMEN","130302","EL CARMEN"]
[null,null,null,null,null,null,"13","MANABI","1303","EL CARMEN","130303","SAN PEDRO DE SUMA"]
[null,null,null,null,null,null,"13","MANABI","1303","EL CARMEN","130304","WILFRIDO LOOR MOREIRA (MAICITO)"]
[null,null,null,null,null,null,"13","MANABI","1303","EL CARMEN","130305","4 DE DICIEMBRE"]
[null,null,null,null,null,null,"13","MANABI","1304","FLAVIO ALFARO","130401","FLAVIO ALFARO"]
[null,null,null,null,null,null,"13","MANABI","1304","FLAVIO ALFARO","130402","SAN FRANCISCO DE NOVILLO (CAB. EN NOVILLO)"]
[null,null,null,null,null,null,"13","MANABI","1304","FLAVIO ALFARO","130403","ZAPALLO"]
[null,null,null,null,null,null,"13","MANABI","1305","JAMA","130501","JAMA"]
[null,null,null,null,null,null,"13","MANABI","1306","JARAMIJO","130601","JARAMIJO"]
[null,null,null,null,null,null,"13","MANABI","1307","JIPIJAPA","130701","AMERICA"]
[null,null,null,null,null,null,"13","MANABI","1307","JIPIJAPA","130702","DR. MIGUEL MORAN LUCIO"]
[null,null,null,null,null,null,"13","MANABI","1307","JIPIJAPA","130703","EL ANEGADO (CAB. EN ELOY ALFARO)"]
[null,null,null,null,null,null,"13","MANABI","1307","JIPIJAPA","130704","JIPIJAPA"]
[null,null,null,null,null,null,"13","MANABI","1307","JIPIJAPA","130705","JULCUY"]
[null,null,null,null,null,null,"13","MANABI","1307","JIPIJAPA","130706","LA UNION"]
[null,null,null,null,null,null,"13","MANABI","1307","JIPIJAPA","130707","MANUEL INOCENCIO PARRALES Y GUALE"]
[null,null,null,null,null,null,"13","MANABI","1307","JIPIJAPA","130708","MEMBRILLAL"]
[null,null,null,null,null,null,"13","MANABI","1307","JIPIJAPA","130709","PEDRO PABLO GOMEZ"]
[null,null,null,null,null,null,"13","MANABI","1307","JIPIJAPA","130710","PUERTO DE CAYO"]
[null,null,null,null,null,null,"13","MANABI","1307","JIPIJAPA","130711","SAN LORENZO DE JIPIJAPA"]
[null,null,null,null,null,null,"13","MANABI","1308","JUNIN","130801","JUNIN"]
[null,null,null,null,null,null,"13","MANABI","1309","MANTA","130901","ELOY ALFARO"]
[null,null,null,null,null,null,"13","MANABI","1309","MANTA","130902","LOS ESTEROS"]
[null,null,null,null,null,null,"13","MANABI","1309","MANTA","130903","MANTA"]
[null,null,null,null,null,null,"13","MANABI","1309","MANTA","130904","MANTA"]
[null,null,null,null,null,null,"13","MANABI","1309","MANTA","130905","SAN LORENZO"]
[null,null,null,null,null,null,"13","MANABI","1309","MANTA","130906","SAN MATEO"]
[null,null,null,null,null,null,"13","MANABI","1309","MANTA","130907","SANTA MARIANITA (BOCA DE PACOCHE)"]
[null,null,null,null,null,null,"13","MANABI","1309","MANTA","130908","TARQUI"]
[null,null,null,null,null,null,"13","MANABI","1310","MONTECRISTI","131001","ANIBAL SAN ANDRES"]
[null,null,null,null,null,null,"13","MANABI","1310","MONTECRISTI","131002","EL COLORADO"]
[null,null,null,null,null,null,"13","MANABI","1310","MONTECRISTI","131003","GENERAL ELOY ALFARO"]
[null,null,null,null,null,null,"13","MANABI","1310","MONTECRISTI","131004","LA PILA"]
[null,null,null,null,null,null,"13","MANABI","1310","MONTECRISTI","131005","LEONIDAS PROAÑO"]
[null,null,null,null,null,null,"13","MANABI","1310","MONTECRISTI","131006","MONTECRISTI"]
[null,null,null,null,null,null,"13","MANABI","1310","MONTECRISTI","131007","MONTECRISTI"]
[null,null,null,null,null,null,"13","MANABI","1311","OLMEDO","131101","OLMEDO"]
[null,null,null,null,null,null,"13","MANABI","1312","PAJAN","131201","CAMPOZANO (LA PALMA DE PAJAN)"]
[null,null,null,null,null,null,"13","MANABI","1312","PAJAN","131202","CASCOL"]
[null,null,null,null,null,null,"13","MANABI","1312","PAJAN","131203","GUALE"]
[null,null,null,null,null,null,"13","MANABI","1312","PAJAN","131204","LASCANO"]
[null,null,null,null,null,null,"13","MANABI","1312","PAJAN","131205","PAJAN"]
[null,null,null,null,null,null,"13","MANABI","1313","PEDERNALES","131301","ATAHUALPA"]
[null,null,null,null,null,null,"13","MANABI","1313","PEDERNALES","131302","COJIMIES"]
[null,null,null,null,null,null,"13","MANABI","1313","PEDERNALES","131303","PEDERNALES"]
[null,null,null,null,null,null,"13","MANABI","1313","PEDERNALES","131304","10 DE AGOSTO"]
[null,null,null,null,null,null,"13","MANABI","1314","PICHINCHA","131401","BARRAGANETE"]
[null,null,null,null,null,null,"13","MANABI","1314","PICHINCHA","131402","PICHINCHA"]
[null,null,null,null,null,null,"13","MANABI","1314","PICHINCHA","131403","SAN SEBASTIAN"]
[null,null,null,null,null,null,"13","MANABI","1315","PORTOVIEJO","131501","ABDON CALDERON (SAN FRANCISCO)"]
[null,null,null,null,null,null,"13","MANABI","1315","PORTOVIEJO","131502","ALHAJUELA (BAJO GRANDE)"]
[null,null,null,null,null,null,"13","MANABI","1315","PORTOVIEJO","131503","ANDRES DE VERA"]
[null,null,null,null,null,null,"13","MANABI","1315","PORTOVIEJO","131504","CHIRIJOS"]
[null,null,null,null,null,null,"13","MANABI","1315","PORTOVIEJO","131505","COLON"]
[null,null,null,null,null,null,"13","MANABI","1315","PORTOVIEJO","131506","CRUCITA"]
[null,null,null,null,null,null,"13","MANABI","1315","PORTOVIEJO","131507","FRANCISCO PACHECO"]
[null,null,null,null,null,null,"13","MANABI","1315","PORTOVIEJO","131508","PICOAZA"]
[null,null,null,null,null,null,"13","MANABI","1315","PORTOVIEJO","131509","PORTOVIEJO"]
[null,null,null,null,null,null,"13","MANABI","1315","PORTOVIEJO","131510","PORTOVIEJO"]
[null,null,null,null,null,null,"13","MANABI","1315","PORTOVIEJO","131511","PUEBLO NUEVO"]
[null,null,null,null,null,null,"13","MANABI","1315","PORTOVIEJO","131512","RIOCHICO (RIO CHICO)"]
[null,null,null,null,null,null,"13","MANABI","1315","PORTOVIEJO","131513","SAN PABLO"]
[null,null,null,null,null,null,"13","MANABI","1315","PORTOVIEJO","131514","SAN PLACIDO"]
[null,null,null,null,null,null,"13","MANABI","1315","PORTOVIEJO","131515","SIMON BOLIVAR"]
[null,null,null,null,null,null,"13","MANABI","1315","PORTOVIEJO","131516","12 DE MARZO"]
[null,null,null,null,null,null,"13","MANABI","1315","PORTOVIEJO","131517","18 DE OCTUBRE"]
[null,null,null,null,null,null,"13","MANABI","1316","PUERTO LOPEZ","131601","MACHALILLA"]
[null,null,null,null,null,null,"13","MANABI","1316","PUERTO LOPEZ","131602","PUERTO LOPEZ"]
[null,null,null,null,null,null,"13","MANABI","1316","PUERTO LOPEZ","131603","SALANGO"]
[null,null,null,null,null,null,"13","MANABI","1317","ROCAFUERTE","131701","ROCAFUERTE"]
[null,null,null,null,null,null,"13","MANABI","1318","SAN VICENTE","131801","CANOA"]
[null,null,null,null,null,null,"13","MANABI","1318","SAN VICENTE","131802","SAN VICENTE"]
[null,null,null,null,null,null,"13","MANABI","1319","SANTA ANA","131901","AYACUCHO"]
[null,null,null,null,null,null,"13","MANABI","1319","SANTA ANA","131902","HONORATO VASQUEZ (CAB. EN VASQUEZ)"]
[null,null,null,null,null,null,"13","MANABI","1319","SANTA ANA","131903","LA UNION"]
[null,null,null,null,null,null,"13","MANABI","1319","SANTA ANA","131904","LODANA"]
[null,null,null,null,null,null,"13","MANABI","1319","SANTA ANA","131905","SAN PABLO (CAB. EN PUEBLO NUEVO)"]
[null,null,null,null,null,null,"13","MANABI","1319","SANTA ANA","131906","SANTA ANA"]
[null,null,null,null,null,null,"13","MANABI","1319","SANTA ANA","131907","SANTA ANA DE VUELTA LARGA"]
[null,null,null,null,null,null,"13","MANABI","1320","SUCRE","132001","BAHIA DE CARAQUEZ"]
[null,null,null,null,null,null,"13","MANABI","1320","SUCRE","132002","BAHIA DE CARAQUEZ"]
[null,null,null,null,null,null,"13","MANABI","1320","SUCRE","132003","CHARAPOTO"]
[null,null,null,null,null,null,"13","MANABI","1320","SUCRE","132004","LEONIDAS PLAZA GUTIERREZ"]
[null,null,null,null,null,null,"13","MANABI","1320","SUCRE","132005","SAN ISIDRO"]
[null,null,null,null,null,null,"13","MANABI","1321","TOSAGUA","132101","ANGEL PEDRO GILER (LA ESTANCILLA)"]
[null,null,null,null,null,null,"13","MANABI","1321","TOSAGUA","132102","BACHILLERO"]
[null,null,null,null,null,null,"13","MANABI","1321","TOSAGUA","132103","TOSAGUA"]
[null,null,null,null,null,null,"13","MANABI","1322","24 DE MAYO","132201","ARQ. SIXTO DURAN BALLEN"]
[null,null,null,null,null,null,"13","MANABI","1322","24 DE MAYO","132202","BELLAVISTA"]
[null,null,null,null,null,null,"13","MANABI","1322","24 DE MAYO","132203","NOBOA"]
[null,null,null,null,null,null,"13","MANABI","1322","24 DE MAYO","132204","SUCRE"]
[null,null,null,null,null,null,"14","MORONA SANTIAGO","1401","GUALAQUIZA","140101","AMAZONAS (ROSARIO DE CUYES)"]
[null,null,null,null,null,null,"14","MORONA SANTIAGO","1401","GUALAQUIZA","140102","BERMEJOS"]
[null,null,null,null,null,null,"14","MORONA SANTIAGO","1401","GUALAQUIZA","140103","BOMBOIZA"]
[null,null,null,null,null,null,"14","MORONA SANTIAGO","1401","GUALAQUIZA","140104","CHIGUINDA"]
[null,null,null,null,null,null,"14","MORONA SANTIAGO","1401","GUALAQUIZA","140105","EL IDEAL"]
[null,null,null,null,null,null,"14","MORONA SANTIAGO","1401","GUALAQUIZA","140106","EL ROSARIO"]
[null,null,null,null,null,null,"14","MORONA SANTIAGO","1401","GUALAQUIZA","140107","GUALAQUIZA"]
[null,null,null,null,null,null,"14","MORONA SANTIAGO","1401","GUALAQUIZA","140108","GUALAQUIZA"]
[null,null,null,null,null,null,"14","MORONA SANTIAGO","1401","GUALAQUIZA","140109","MERCEDES MOLINA"]
[null,null,null,null,null,null,"14","MORONA SANTIAGO","1401","GUALAQUIZA","140110","NUEVA TARQUI"]
[null,null,null,null,null,null,"14","MORONA SANTIAGO","1401","GUALAQUIZA","140111","SAN MIGUEL DE CUYES"]
[null,null,null,null,null,null,"14","MORONA SANTIAGO","1402","HUAMBOYA","140201","CHIGUAZA"]
[null,null,null,null,null,null,"14","MORONA SANTIAGO","1402","HUAMBOYA","140202","HUAMBOYA"]
[null,null,null,null,null,null,"14","MORONA SANTIAGO","1403","LIMON INDANZA","140301","GENERAL LEONIDAS PLAZA GUTIERREZ (LIMON)"]
[null,null,null,null,null,null,"14","MORONA SANTIAGO","1403","LIMON INDANZA","140302","INDANZA"]
[null,null,null,null,null,null,"14","MORONA SANTIAGO","1403","LIMON INDANZA","140303","SAN ANTONIO (CAB. EN SAN ANTONIO CENTRO)"]
[null,null,null,null,null,null,"14","MORONA SANTIAGO","1403","LIMON INDANZA","140304","SAN MIGUEL DE CONCHAY"]
[null,null,null,null,null,null,"14","MORONA SANTIAGO","1403","LIMON INDANZA","140305","SANTA SUSANA DE CHIVIAZA (CAB. EN CHIVIAZA)"]
[null,null,null,null,null,null,"14","MORONA SANTIAGO","1403","LIMON INDANZA","140306","YUNGANZA (CAB. EN EL ROSARIO)"]
[null,null,null,null,null,null,"14","MORONA SANTIAGO","1404","LOGROÑO","140401","LOGROÑO"]
[null,null,null,null,null,null,"14","MORONA SANTIAGO","1404","LOGROÑO","140402","SHIMPIS"]
[null,null,null,null,null,null,"14","MORONA SANTIAGO","1404","LOGROÑO","140403","YAUPI"]
[null,null,null,null,null,null,"14","MORONA SANTIAGO","1405","MORONA","140501","ALSHI (CAB. EN 9 DE OCTUBRE)"]
[null,null,null,null,null,null,"14","MORONA SANTIAGO","1405","MORONA","140502","CUCHAENTZA"]
[null,null,null,null,null,null,"14","MORONA SANTIAGO","1405","MORONA","140503","GENERAL PROAÑO"]
[null,null,null,null,null,null,"14","MORONA SANTIAGO","1405","MORONA","140504","MACAS"]
[null,null,null,null,null,null,"14","MORONA SANTIAGO","1405","MORONA","140505","RIO BLANCO"]
[null,null,null,null,null,null,"14","MORONA SANTIAGO","1405","MORONA","140506","SAN ISIDRO"]
[null,null,null,null,null,null,"14","MORONA SANTIAGO","1405","MORONA","140507","SEVILLA DON BOSCO"]
[null,null,null,null,null,null,"14","MORONA SANTIAGO","1405","MORONA","140508","SINAI"]
[null,null,null,null,null,null,"14","MORONA SANTIAGO","1405","MORONA","140509","ZUÑA (ZUÑAC)"]
[null,null,null,null,null,null,"14","MORONA SANTIAGO","1406","PABLO SEXTO","140601","PABLO SEXTO"]
[null,null,null,null,null,null,"14","MORONA SANTIAGO","1407","PALORA","140701","ARAPICOS"]
[null,null,null,null,null,null,"14","MORONA SANTIAGO","1407","PALORA","140702","CUMANDA (CAB. EN COLONIA AGRICOLA SEVILLA DEL ORO)"]
[null,null,null,null,null,null,"14","MORONA SANTIAGO","1407","PALORA","140703","PALORA (METZERA)"]
[null,null,null,null,null,null,"14","MORONA SANTIAGO","1407","PALORA","140704","SANGAY (CAB. EN NAYAMANACA)"]
[null,null,null,null,null,null,"14","MORONA SANTIAGO","1407","PALORA","140705","16 DE AGOSTO"]
[null,null,null,null,null,null,"14","MORONA SANTIAGO","1408","SAN JUAN BOSCO","140801","PAN DE AZUCAR"]
[null,null,null,null,null,null,"14","MORONA SANTIAGO","1408","SAN JUAN BOSCO","140802","SAN CARLOS DE LIMON"]
[null,null,null,null,null,null,"14","MORONA SANTIAGO","1408","SAN JUAN BOSCO","140803","SAN JACINTO DE WAKAMBEIS"]
[null,null,null,null,null,null,"14","MORONA SANTIAGO","1408","SAN JUAN BOSCO","140804","SAN JUAN BOSCO"]
[null,null,null,null,null,null,"14","MORONA SANTIAGO","1408","SAN JUAN BOSCO","140805","SANTIAGO DE PANANZA"]
[null,null,null,null,null,null,"14","MORONA SANTIAGO","1409","SANTIAGO","140901","CHUPIANZA"]
[null,null,null,null,null,null,"14","MORONA SANTIAGO","1409","SANTIAGO","140902","COPAL"]
[null,null,null,null,null,null,"14","MORONA SANTIAGO","1409","SANTIAGO","140903","PATUCA"]
[null,null,null,null,null,null,"14","MORONA SANTIAGO","1409","SANTIAGO","140904","SAN FRANCISCO DE CHINIMBIMI"]
[null,null,null,null,null,null,"14","MORONA SANTIAGO","1409","SANTIAGO","140905","SAN LUIS DE EL ACHO (CAB. EN EL ACHO)"]
[null,null,null,null,null,null,"14","MORONA SANTIAGO","1409","SANTIAGO","140906","SANTIAGO DE MENDEZ"]
[null,null,null,null,null,null,"14","MORONA SANTIAGO","1409","SANTIAGO","140907","TAYUZA"]
[null,null,null,null,null,null,"14","MORONA SANTIAGO","1410","SUCUA","141001","ASUNCION"]
[null,null,null,null,null,null,"14","MORONA SANTIAGO","1410","SUCUA","141002","HUAMBI"]
[null,null,null,null,null,null,"14","MORONA SANTIAGO","1410","SUCUA","141003","SANTA MARIANITA DE JESUS"]
[null,null,null,null,null,null,"14","MORONA SANTIAGO","1410","SUCUA","141004","SUCUA"]
[null,null,null,null,null,null,"14","MORONA SANTIAGO","1411","TAISHA","141101","HUASAGA (CAB. EN WAMPUIK)"]
[null,null,null,null,null,null,"14","MORONA SANTIAGO","1411","TAISHA","141102","MACUMA"]
[null,null,null,null,null,null,"14","MORONA SANTIAGO","1411","TAISHA","141103","PUMPUENTSA"]
[null,null,null,null,null,null,"14","MORONA SANTIAGO","1411","TAISHA","141104","TAISHA"]
[null,null,null,null,null,null,"14","MORONA SANTIAGO","1411","TAISHA","141105","TUUTINENTZA"]
[null,null,null,null,null,null,"14","MORONA SANTIAGO","1412","TIWINTZA","141201","SAN JOSE DE MORONA"]
[null,null,null,null,null,null,"14","MORONA SANTIAGO","1412","TIWINTZA","141202","SANTIAGO"]
[null,null,null,null,null,null,"15","NAPO","1501","ARCHIDONA","150101","ARCHIDONA"]
[null,null,null,null,null,null,"15","NAPO","1501","ARCHIDONA","150101","COTUNDO"]
[null,null,null,null,null,null,"15","NAPO","1501","ARCHIDONA","150101","HATUN SUMAKU "]
[null,null,null,null,null,null,"15","NAPO","1501","ARCHIDONA","150101","SAN PABLO DE USHPAYACU"]
[null,null,null,null,null,null,"15","NAPO","1502","CARLOS JULIO AROSEMENA TOLA","150201","CARLOS JULIO AROSEMENA TOLA"]
[null,null,null,null,null,null,"15","NAPO","1503","EL CHACO","150301","EL CHACO"]
[null,null,null,null,null,null,"15","NAPO","1503","EL CHACO","150302","GONZALO DIAZ DE PINEDA (EL BOMBON)"]
[null,null,null,null,null,null,"15","NAPO","1503","EL CHACO","150303","LINARES"]
[null,null,null,null,null,null,"15","NAPO","1503","EL CHACO","150304","OYACACHI"]
[null,null,null,null,null,null,"15","NAPO","1503","EL CHACO","150305","SANTA ROSA"]
[null,null,null,null,null,null,"15","NAPO","1503","EL CHACO","150306","SARDINAS"]
[null,null,null,null,null,null,"15","NAPO","1504","QUIJOS","150401","BAEZA"]
[null,null,null,null,null,null,"15","NAPO","1504","QUIJOS","150402","COSANGA"]
[null,null,null,null,null,null,"15","NAPO","1504","QUIJOS","150403","CUYUJA"]
[null,null,null,null,null,null,"15","NAPO","1504","QUIJOS","150404","PAPALLACTA"]
[null,null,null,null,null,null,"15","NAPO","1504","QUIJOS","150405","SAN FRANCISCO DE BORJA (VIRGILIO DAVILA)"]
[null,null,null,null,null,null,"15","NAPO","1504","QUIJOS","150406","SUMACO"]
[null,null,null,null,null,null,"15","NAPO","1505","TENA","150501","AHUANO"]
[null,null,null,null,null,null,"15","NAPO","1505","TENA","150502","CHONTAPUNTA"]
[null,null,null,null,null,null,"15","NAPO","1505","TENA","150503","PANO"]
[null,null,null,null,null,null,"15","NAPO","1505","TENA","150504","PUERTO MISAHUALLI"]
[null,null,null,null,null,null,"15","NAPO","1505","TENA","150505","PUERTO NAPO"]
[null,null,null,null,null,null,"15","NAPO","1505","TENA","150506","SAN JUAN DE MUYUNA"]
[null,null,null,null,null,null,"15","NAPO","1505","TENA","150507","TALAG"]
[null,null,null,null,null,null,"15","NAPO","1505","TENA","150508","TENA"]
[null,null,null,null,null,null,"16","PASTAZA","25","ZONA NO DELIMITADA","324","EL PIEDRERO"]
[null,null,null,null,null,null,"16","PASTAZA","25","ZONA NO DELIMITADA","322","LAS GOLONDRINAS"]
[null,null,null,null,null,null,"16","PASTAZA","25","ZONA NO DELIMITADA","323","MANGA DEL CURA"]
[null,null,null,null,null,null,"16","PASTAZA","1601","ARAJUNO","160101","ARAJUNO"]
[null,null,null,null,null,null,"16","PASTAZA","1601","ARAJUNO","160102","CURARAY"]
[null,null,null,null,null,null,"16","PASTAZA","1602","MERA","160201","MADRE TIERRA"]
[null,null,null,null,null,null,"16","PASTAZA","1602","MERA","160202","MERA"]
[null,null,null,null,null,null,"16","PASTAZA","1602","MERA","160203","SHELL"]
[null,null,null,null,null,null,"16","PASTAZA","1603","PASTAZA","160301","CANELOS"]
[null,null,null,null,null,null,"16","PASTAZA","1603","PASTAZA","160302","DIEZ DE AGOSTO"]
[null,null,null,null,null,null,"16","PASTAZA","1603","PASTAZA","160303","EL TRIUNFO"]
[null,null,null,null,null,null,"16","PASTAZA","1603","PASTAZA","160304","FATIMA"]
[null,null,null,null,null,null,"16","PASTAZA","1603","PASTAZA","160305","MONTALVO (ANDOAS)"]
[null,null,null,null,null,null,"16","PASTAZA","1603","PASTAZA","160306","POMONA"]
[null,null,null,null,null,null,"16","PASTAZA","1603","PASTAZA","160307","PUYO"]
[null,null,null,null,null,null,"16","PASTAZA","1603","PASTAZA","160308","RIO CORRIENTES"]
[null,null,null,null,null,null,"16","PASTAZA","1603","PASTAZA","160309","RIO TIGRE"]
[null,null,null,null,null,null,"16","PASTAZA","1603","PASTAZA","160310","SARAYACU"]
[null,null,null,null,null,null,"16","PASTAZA","1603","PASTAZA","160311","SIMON BOLIVAR (CAB. EN MUSHULLACTA)"]
[null,null,null,null,null,null,"16","PASTAZA","1603","PASTAZA","160312","TARQUI"]
[null,null,null,null,null,null,"16","PASTAZA","1603","PASTAZA","160313","TENIENTE HUGO ORTIZ"]
[null,null,null,null,null,null,"16","PASTAZA","1603","PASTAZA","160314","VERACRUZ (INDILLAMA) (CAB. EN INDILLAMA)"]
[null,null,null,null,null,null,"16","PASTAZA","1603","SANTA CLARA","160401","SAN JOSE"]
[null,null,null,null,null,null,"16","PASTAZA","1603","SANTA CLARA","160402","SANTA CLARA"]
[null,null,null,null,null,null,"17","PICHINCHA","1701","CAYAMBE","170101","ASCAZUBI"]
[null,null,null,null,null,null,"17","PICHINCHA","1701","CAYAMBE","170102","AYORA"]
[null,null,null,null,null,null,"17","PICHINCHA","1701","CAYAMBE","170103","CANGAHUA"]
[null,null,null,null,null,null,"17","PICHINCHA","1701","CAYAMBE","170104","CAYAMBE"]
[null,null,null,null,null,null,"17","PICHINCHA","1701","CAYAMBE","170105","CAYAMBE"]
[null,null,null,null,null,null,"17","PICHINCHA","1701","CAYAMBE","170106","JUAN MONTALVO"]
[null,null,null,null,null,null,"17","PICHINCHA","1701","CAYAMBE","170107","OLMEDO (PECILLO)"]
[null,null,null,null,null,null,"17","PICHINCHA","1701","CAYAMBE","170108","OTON"]
[null,null,null,null,null,null,"17","PICHINCHA","1701","CAYAMBE","170109","SAN JOSE DE AYORA"]
[null,null,null,null,null,null,"17","PICHINCHA","1701","CAYAMBE","170110","SANTA ROSA DE CUZUBAMBA"]
[null,null,null,null,null,null,"17","PICHINCHA","1702","MEJIA","170201","ALOAG"]
[null,null,null,null,null,null,"17","PICHINCHA","1702","MEJIA","170202","ALOASI"]
[null,null,null,null,null,null,"17","PICHINCHA","1702","MEJIA","170203","CUTUGLAHUA"]
[null,null,null,null,null,null,"17","PICHINCHA","1702","MEJIA","170204","EL CHAUPI"]
[null,null,null,null,null,null,"17","PICHINCHA","1702","MEJIA","170205","MACHACHI"]
[null,null,null,null,null,null,"17","PICHINCHA","1702","MEJIA","170206","MANUEL CORNEJO ASTORGA (TANDAPI)"]
[null,null,null,null,null,null,"17","PICHINCHA","1702","MEJIA","170207","TAMBILLO"]
[null,null,null,null,null,null,"17","PICHINCHA","1702","MEJIA","170208","UYUMBICHO"]
[null,null,null,null,null,null,"17","PICHINCHA","1703","PEDRO MONCAYO","170301","LA ESPERANZA"]
[null,null,null,null,null,null,"17","PICHINCHA","1703","PEDRO MONCAYO","170302","MALCHINGUI"]
[null,null,null,null,null,null,"17","PICHINCHA","1703","PEDRO MONCAYO","170303","TABACUNDO"]
[null,null,null,null,null,null,"17","PICHINCHA","1703","PEDRO MONCAYO","170304","TOCACHI"]
[null,null,null,null,null,null,"17","PICHINCHA","1703","PEDRO MONCAYO","170305","TUPIGACHI"]
[null,null,null,null,null,null,"17","PICHINCHA","1703","PEDRO VICENTE MALDONADO","170306","PEDRO VICENTE MALDONADO"]
[null,null,null,null,null,null,"17","PICHINCHA","1704","PUERTO QUITO","170401","PUERTO QUITO"]
[null,null,null,null,null,null,"17","PICHINCHA","1705","QUITO","170501","ALANGASI"]
[null,null,null,null,null,null,"17","PICHINCHA","1705","QUITO","170502","AMAGUAÑA"]
[null,null,null,null,null,null,"17","PICHINCHA","1705","QUITO","170503","ATAHUALPA (HABASPAMBA)"]
[null,null,null,null,null,null,"17","PICHINCHA","1705","QUITO","170504","BELISARIO QUEVEDO"]
[null,null,null,null,null,null,"17","PICHINCHA","1705","QUITO","170505","CALACALI"]
[null,null,null,null,null,null,"17","PICHINCHA","1705","QUITO","170506","CALDERON (CARAPUNGO)"]
[null,null,null,null,null,null,"17","PICHINCHA","1705","QUITO","170507","CARCELEN"]
[null,null,null,null,null,null,"17","PICHINCHA","1705","QUITO","170508","CENTRO HISTÓRICO"]
[null,null,null,null,null,null,"17","PICHINCHA","1705","QUITO","170509","CHAVEZPAMBA"]
[null,null,null,null,null,null,"17","PICHINCHA","1705","QUITO","170510","CHECA (CHILPA)"]
[null,null,null,null,null,null,"17","PICHINCHA","1705","QUITO","170511","CHILIBULO"]
[null,null,null,null,null,null,"17","PICHINCHA","1705","QUITO","170512","CHILLOGALLO"]
[null,null,null,null,null,null,"17","PICHINCHA","1705","QUITO","170513","CHIMBACALLE"]
[null,null,null,null,null,null,"17","PICHINCHA","1705","QUITO","170514","COCHAPAMBA"]
[null,null,null,null,null,null,"17","PICHINCHA","1705","QUITO","170515","COMITE DEL PUEBLO"]
[null,null,null,null,null,null,"17","PICHINCHA","1705","QUITO","170516","CONOCOTO"]
[null,null,null,null,null,null,"17","PICHINCHA","1705","QUITO","170517","COTOCOLLAO"]
[null,null,null,null,null,null,"17","PICHINCHA","1705","QUITO","170518","CUMBAYA"]
[null,null,null,null,null,null,"17","PICHINCHA","1705","QUITO","170519","EL CONDADO"]
[null,null,null,null,null,null,"17","PICHINCHA","1705","QUITO","170520","EL QUINCHE"]
[null,null,null,null,null,null,"17","PICHINCHA","1705","QUITO","170521","GUALEA"]
[null,null,null,null,null,null,"17","PICHINCHA","1705","QUITO","170522","GUAMANI"]
[null,null,null,null,null,null,"17","PICHINCHA","1705","QUITO","170523","GUANGOPOLO"]
[null,null,null,null,null,null,"17","PICHINCHA","1705","QUITO","170524","GUAYLLABAMBA"]
[null,null,null,null,null,null,"17","PICHINCHA","1705","QUITO","170525","IÑAQUITO"]
[null,null,null,null,null,null,"17","PICHINCHA","1705","QUITO","170526","ITCHIMBIA"]
[null,null,null,null,null,null,"17","PICHINCHA","1705","QUITO","170527","JIPIJAPA"]
[null,null,null,null,null,null,"17","PICHINCHA","1705","QUITO","170528","KENNEDY"]
[null,null,null,null,null,null,"17","PICHINCHA","1705","QUITO","170529","LA ARGELIA"]
[null,null,null,null,null,null,"17","PICHINCHA","1705","QUITO","170530","LA CONCEPCION"]
[null,null,null,null,null,null,"17","PICHINCHA","1705","QUITO","170531","LA ECUATORIANA"]
[null,null,null,null,null,null,"17","PICHINCHA","1705","QUITO","170532","LA FERROVIARIA"]
[null,null,null,null,null,null,"17","PICHINCHA","1705","QUITO","170533","LA LIBERTAD"]
[null,null,null,null,null,null,"17","PICHINCHA","1705","QUITO","170534","LA MAGDALENA"]
[null,null,null,null,null,null,"17","PICHINCHA","1705","QUITO","170535","LA MENA"]
[null,null,null,null,null,null,"17","PICHINCHA","1705","QUITO","170536","LA MERCED"]
[null,null,null,null,null,null,"17","PICHINCHA","1705","QUITO","170537","LLANO CHICO"]
[null,null,null,null,null,null,"17","PICHINCHA","1705","QUITO","170538","LLOA"]
[null,null,null,null,null,null,"17","PICHINCHA","1705","QUITO","170539","MARISCAL SUCRE"]
[null,null,null,null,null,null,"17","PICHINCHA","1705","QUITO","170540","NANEGAL"]
[null,null,null,null,null,null,"17","PICHINCHA","1705","QUITO","170541","NANEGALITO"]
[null,null,null,null,null,null,"17","PICHINCHA","1705","QUITO","170542","NAYON"]
[null,null,null,null,null,null,"17","PICHINCHA","1705","QUITO","170543","NONO"]
[null,null,null,null,null,null,"17","PICHINCHA","1705","QUITO","170544","PACTO"]
[null,null,null,null,null,null,"17","PICHINCHA","1705","QUITO","170545","PERUCHO"]
[null,null,null,null,null,null,"17","PICHINCHA","1705","QUITO","170546","PIFO"]
[null,null,null,null,null,null,"17","PICHINCHA","1705","QUITO","170547","PINTAG"]
[null,null,null,null,null,null,"17","PICHINCHA","1705","QUITO","170548","POMASQUI"]
[null,null,null,null,null,null,"17","PICHINCHA","1705","QUITO","170549","PONCEANO"]
[null,null,null,null,null,null,"17","PICHINCHA","1705","QUITO","170550","PUELLARO"]
[null,null,null,null,null,null,"17","PICHINCHA","1705","QUITO","170551","PUEMBO"]
[null,null,null,null,null,null,"17","PICHINCHA","1705","QUITO","170552","PUENGASI"]
[null,null,null,null,null,null,"17","PICHINCHA","1705","QUITO","170553","QUITO"]
[null,null,null,null,null,null,"17","PICHINCHA","1705","QUITO","170554","QUITUMBE"]
[null,null,null,null,null,null,"17","PICHINCHA","1705","QUITO","170555","RUMIPAMBA"]
[null,null,null,null,null,null,"17","PICHINCHA","1705","QUITO","170556","SAN ANTONIO"]
[null,null,null,null,null,null,"17","PICHINCHA","1705","QUITO","170557","SAN BARTOLO"]
[null,null,null,null,null,null,"17","PICHINCHA","1705","QUITO","170558","SAN ISIDRO DEL INCA"]
[null,null,null,null,null,null,"17","PICHINCHA","1705","QUITO","170559","SAN JOSE DE MINAS"]
[null,null,null,null,null,null,"17","PICHINCHA","1705","QUITO","170560","SAN JUAN"]
[null,null,null,null,null,null,"17","PICHINCHA","1705","QUITO","170561","SOLANDA"]
[null,null,null,null,null,null,"17","PICHINCHA","1705","QUITO","170562","TABABELA"]
[null,null,null,null,null,null,"17","PICHINCHA","1705","QUITO","170563","TUMBACO"]
[null,null,null,null,null,null,"17","PICHINCHA","1705","QUITO","170564","TURUBAMBA"]
[null,null,null,null,null,null,"17","PICHINCHA","1705","QUITO","170565","YARUQUI"]
[null,null,null,null,null,null,"17","PICHINCHA","1705","QUITO","170566","ZAMBIZA"]
[null,null,null,null,null,null,"17","PICHINCHA","1706","RUMIÑAHUI","170601","COTOGCHOA"]
[null,null,null,null,null,null,"17","PICHINCHA","1706","RUMIÑAHUI","170602","FAJARDO"]
[null,null,null,null,null,null,"17","PICHINCHA","1706","RUMIÑAHUI","170603","RUMIPAMBA"]
[null,null,null,null,null,null,"17","PICHINCHA","1706","RUMIÑAHUI","170604","SAN PEDRO DE TABOADA"]
[null,null,null,null,null,null,"17","PICHINCHA","1706","RUMIÑAHUI","170605","SAN RAFAEL"]
[null,null,null,null,null,null,"17","PICHINCHA","1706","RUMIÑAHUI","170606","SANGOLQUI"]
[null,null,null,null,null,null,"18","TUNGURAHUA","1706","RUMIÑAHUI","170607","SANGOLQUI"]
[null,null,null,null,null,null,"18","TUNGURAHUA","1707","SAN MIGUEL DE LOS BANCOS","170701","MINDO"]
[null,null,null,null,null,null,"18","TUNGURAHUA","1707","SAN MIGUEL DE LOS BANCOS","170702","SAN MIGUEL DE LOS BANCOS"]
[null,null,null,null,null,null,"18","TUNGURAHUA","1801","AMBATO","180101","AMBATILLO"]
[null,null,null,null,null,null,"18","TUNGURAHUA","1801","AMBATO","180102","AMBATO"]
[null,null,null,null,null,null,"18","TUNGURAHUA","1801","AMBATO","180103","ATAHUALPA (CHISALATA)"]
[null,null,null,null,null,null,"18","TUNGURAHUA","1801","AMBATO","180104","ATOCHA – FICOA"]
[null,null,null,null,null,null,"18","TUNGURAHUA","1801","AMBATO","180105","AUGUSTO N. MARTINEZ (MUNDUGLEO)"]
[null,null,null,null,null,null,"18","TUNGURAHUA","1801","AMBATO","180106","CELIANO MONGE"]
[null,null,null,null,null,null,"18","TUNGURAHUA","1801","AMBATO","180107","CONSTANTINO FERNANDEZ (CAB. EN CULLITAHUA)"]
[null,null,null,null,null,null,"18","TUNGURAHUA","1801","AMBATO","180108","CUNCHIBAMBA"]
[null,null,null,null,null,null,"18","TUNGURAHUA","1801","AMBATO","180109","HUACHI CHICO"]
[null,null,null,null,null,null,"18","TUNGURAHUA","1801","AMBATO","180110","HUACHI GRANDE"]
[null,null,null,null,null,null,"18","TUNGURAHUA","1801","AMBATO","180111","HUACHI LORETO"]
[null,null,null,null,null,null,"18","TUNGURAHUA","1801","AMBATO","180112","IZAMBA"]
[null,null,null,null,null,null,"18","TUNGURAHUA","1801","AMBATO","180113","JUAN BENIGNO VELA"]
[null,null,null,null,null,null,"18","TUNGURAHUA","1801","AMBATO","180114","LA MERCED"]
[null,null,null,null,null,null,"18","TUNGURAHUA","1801","AMBATO","180115","LA PENINSULA"]
[null,null,null,null,null,null,"18","TUNGURAHUA","1801","AMBATO","180116","MATRIZ"]
[null,null,null,null,null,null,"18","TUNGURAHUA","1801","AMBATO","180117","MONTALVO"]
[null,null,null,null,null,null,"18","TUNGURAHUA","1801","AMBATO","180118","PASA"]
[null,null,null,null,null,null,"18","TUNGURAHUA","1801","AMBATO","180119","PICAIGUA"]
[null,null,null,null,null,null,"18","TUNGURAHUA","1801","AMBATO","180120","PILAGÜIN (PILAHUIN)"]
[null,null,null,null,null,null,"18","TUNGURAHUA","1801","AMBATO","180121","PISHILATA"]
[null,null,null,null,null,null,"18","TUNGURAHUA","1801","AMBATO","180122","QUISAPINCHA (QUIZAPINCHA)"]
[null,null,null,null,null,null,"18","TUNGURAHUA","1801","AMBATO","180123","SAN BARTOLOME DE PINLLOG"]
[null,null,null,null,null,null,"18","TUNGURAHUA","1801","AMBATO","180124","SAN FERNANDO (PASA SAN FERNANDO)"]
[null,null,null,null,null,null,"18","TUNGURAHUA","1801","AMBATO","180125","SAN FRANCISCO"]
[null,null,null,null,null,null,"18","TUNGURAHUA","1801","AMBATO","180126","SANTA ROSA"]
[null,null,null,null,null,null,"18","TUNGURAHUA","1801","AMBATO","180127","TOTORAS"]
[null,null,null,null,null,null,"18","TUNGURAHUA","1801","AMBATO","180128","UNAMUNCHO"]
[null,null,null,null,null,null,"18","TUNGURAHUA","1802","BAÑOS DE AGUA SANTA","180201","BAÑOS DE AGUA SANTA"]
[null,null,null,null,null,null,"18","TUNGURAHUA","1802","BAÑOS DE AGUA SANTA","180202","LLIGUA"]
[null,null,null,null,null,null,"18","TUNGURAHUA","1802","BAÑOS DE AGUA SANTA","180203","RIO NEGRO"]
[null,null,null,null,null,null,"18","TUNGURAHUA","1802","BAÑOS DE AGUA SANTA","180204","RIO VERDE"]
[null,null,null,null,null,null,"18","TUNGURAHUA","1802","BAÑOS DE AGUA SANTA","180205","ULBA"]
[null,null,null,null,null,null,"18","TUNGURAHUA","1803","CEVALLOS","180301","CEVALLOS"]
[null,null,null,null,null,null,"18","TUNGURAHUA","1804","MOCHA","180401","MOCHA"]
[null,null,null,null,null,null,"18","TUNGURAHUA","1804","MOCHA","180402","PINGUILI"]
[null,null,null,null,null,null,"18","TUNGURAHUA","1805","PATATE","180501","EL TRIUNFO"]
[null,null,null,null,null,null,"18","TUNGURAHUA","1805","PATATE","180502","LOS ANDES (CAB. EN POATUG)"]
[null,null,null,null,null,null,"18","TUNGURAHUA","1805","PATATE","180503","PATATE"]
[null,null,null,null,null,null,"18","TUNGURAHUA","1805","PATATE","180504","SUCRE (CAB. EN SUCRE-PATATE URCU)"]
[null,null,null,null,null,null,"18","TUNGURAHUA","1806","QUERO","180601","QUERO"]
[null,null,null,null,null,null,"18","TUNGURAHUA","1806","QUERO","180602","RUMIPAMBA"]
[null,null,null,null,null,null,"18","TUNGURAHUA","1806","QUERO","180603","YANAYACU - MOCHAPATA (CAB. EN YANAYACU)"]
[null,null,null,null,null,null,"18","TUNGURAHUA","1807","SAN PEDRO DE PELILEO","180701","BENITEZ (PACHANLICA)"]
[null,null,null,null,null,null,"18","TUNGURAHUA","1807","SAN PEDRO DE PELILEO","180702","BOLIVAR"]
[null,null,null,null,null,null,"18","TUNGURAHUA","1807","SAN PEDRO DE PELILEO","180703","CHIQUICHA (CAB. EN CHIQUICHA GRANDE)"]
[null,null,null,null,null,null,"18","TUNGURAHUA","1807","SAN PEDRO DE PELILEO","180704","COTALO"]
[null,null,null,null,null,null,"18","TUNGURAHUA","1807","SAN PEDRO DE PELILEO","180705","EL ROSARIO (RUMICHACA)"]
[null,null,null,null,null,null,"18","TUNGURAHUA","1807","SAN PEDRO DE PELILEO","180706","GARCIA MORENO (CHUMAQUI)"]
[null,null,null,null,null,null,"18","TUNGURAHUA","1807","SAN PEDRO DE PELILEO","180707","GUAMBALO (HUAMBALO)"]
[null,null,null,null,null,null,"18","TUNGURAHUA","1807","SAN PEDRO DE PELILEO","180708","PELILEO"]
[null,null,null,null,null,null,"18","TUNGURAHUA","1807","SAN PEDRO DE PELILEO","180709","PELILEO"]
[null,null,null,null,null,null,"18","TUNGURAHUA","1807","SAN PEDRO DE PELILEO","180710","PELILEO GRANDE"]
[null,null,null,null,null,null,"18","TUNGURAHUA","1807","SAN PEDRO DE PELILEO","180711","SALASACA"]
[null,null,null,null,null,null,"18","TUNGURAHUA","1808","SANTIAGO DE PILLARO","180801","BAQUERIZO MORENO"]
[null,null,null,null,null,null,"18","TUNGURAHUA","1808","SANTIAGO DE PILLARO","180802","CIUDAD NUEVA"]
[null,null,null,null,null,null,"18","TUNGURAHUA","1808","SANTIAGO DE PILLARO","180803","EMILIO MARIA TERAN (RUMIPAMBA)"]
[null,null,null,null,null,null,"18","TUNGURAHUA","1808","SANTIAGO DE PILLARO","180804","MARCOS ESPINEL (CHACATA)"]
[null,null,null,null,null,null,"18","TUNGURAHUA","1808","SANTIAGO DE PILLARO","180805","PILLARO"]
[null,null,null,null,null,null,"18","TUNGURAHUA","1808","SANTIAGO DE PILLARO","180806","PILLARO"]
[null,null,null,null,null,null,"18","TUNGURAHUA","1808","SANTIAGO DE PILLARO","180807","PRESIDENTE URBINA (CHAGRAPAMBA -PATZUCUL)"]
[null,null,null,null,null,null,"18","TUNGURAHUA","1808","SANTIAGO DE PILLARO","180808","SAN ANDRES"]
[null,null,null,null,null,null,"18","TUNGURAHUA","1808","SANTIAGO DE PILLARO","180809","SAN JOSE DE POALO"]
[null,null,null,null,null,null,"19","ZAMORA CHINCHIPE","1808","SANTIAGO DE PILLARO","180810","SAN MIGUELITO"]
[null,null,null,null,null,null,"19","ZAMORA CHINCHIPE","1809","TISALEO","180901","QUINCHICOTO"]
[null,null,null,null,null,null,"19","ZAMORA CHINCHIPE","1809","TISALEO","180902","TISALEO"]
[null,null,null,null,null,null,"19","ZAMORA CHINCHIPE","1901","CENTINELA DEL CONDOR","190101","PAGUINTZA"]
[null,null,null,null,null,null,"19","ZAMORA CHINCHIPE","1901","CENTINELA DEL CONDOR","190102","TRIUNFO-DORADO"]
[null,null,null,null,null,null,"19","ZAMORA CHINCHIPE","1901","CENTINELA DEL CONDOR","190103","ZUMBI"]
[null,null,null,null,null,null,"19","ZAMORA CHINCHIPE","1902","CHINCHIPE","190201","CHITO"]
[null,null,null,null,null,null,"19","ZAMORA CHINCHIPE","1902","CHINCHIPE","190202","EL CHORRO"]
[null,null,null,null,null,null,"19","ZAMORA CHINCHIPE","1902","CHINCHIPE","190203","LA CHONTA"]
[null,null,null,null,null,null,"19","ZAMORA CHINCHIPE","1902","CHINCHIPE","190204","PUCAPAMBA"]
[null,null,null,null,null,null,"19","ZAMORA CHINCHIPE","1902","CHINCHIPE","190205","SAN ANDRES"]
[null,null,null,null,null,null,"19","ZAMORA CHINCHIPE","1902","CHINCHIPE","190206","ZUMBA"]
[null,null,null,null,null,null,"19","ZAMORA CHINCHIPE","1903","EL PANGUI","190301","EL GUISMI"]
[null,null,null,null,null,null,"19","ZAMORA CHINCHIPE","1903","EL PANGUI","190302","EL PANGUI"]
[null,null,null,null,null,null,"19","ZAMORA CHINCHIPE","1903","EL PANGUI","190303","PACHICUTZA"]
[null,null,null,null,null,null,"19","ZAMORA CHINCHIPE","1903","EL PANGUI","190304","TUNDAYME"]
[null,null,null,null,null,null,"19","ZAMORA CHINCHIPE","1904","NANGARITZA","190401","GUAYZIMI"]
[null,null,null,null,null,null,"19","ZAMORA CHINCHIPE","1904","NANGARITZA","190402","NUEVO PARAISO"]
[null,null,null,null,null,null,"19","ZAMORA CHINCHIPE","1904","NANGARITZA","190403","ZURMI"]
[null,null,null,null,null,null,"19","ZAMORA CHINCHIPE","1905","PALANDA","190501","EL PORVENIR DEL CARMEN"]
[null,null,null,null,null,null,"19","ZAMORA CHINCHIPE","1905","PALANDA","190502","LA CANELA"]
[null,null,null,null,null,null,"19","ZAMORA CHINCHIPE","1905","PALANDA","190503","PALANDA"]
[null,null,null,null,null,null,"19","ZAMORA CHINCHIPE","1905","PALANDA","190504","SAN FRANCISCO DEL VERGEL"]
[null,null,null,null,null,null,"19","ZAMORA CHINCHIPE","1905","PALANDA","190505","VALLADOLID"]
[null,null,null,null,null,null,"19","ZAMORA CHINCHIPE","1906","PAQUISHA","190601","BELLAVISTA"]
[null,null,null,null,null,null,"19","ZAMORA CHINCHIPE","1906","PAQUISHA","190602","NUEVO QUITO"]
[null,null,null,null,null,null,"19","ZAMORA CHINCHIPE","1906","PAQUISHA","190603","PAQUISHA"]
[null,null,null,null,null,null,"19","ZAMORA CHINCHIPE","1907","YACUAMBI","190701","LA PAZ"]
[null,null,null,null,null,null,"19","ZAMORA CHINCHIPE","1907","YACUAMBI","190702","TUTUPALI"]
[null,null,null,null,null,null,"19","ZAMORA CHINCHIPE","1907","YACUAMBI","190703","28 DE MAYO (SAN JOSE DE YACUAMBI)"]
[null,null,null,null,null,null,"19","ZAMORA CHINCHIPE","1908","YANTZAZA","190801","CHICAÑA"]
[null,null,null,null,null,null,"19","ZAMORA CHINCHIPE","1908","YANTZAZA","190802","LOS ENCUENTROS"]
[null,null,null,null,null,null,"19","ZAMORA CHINCHIPE","1908","YANTZAZA","190803","YANTZAZA (YANZATZA)"]
[null,null,null,null,null,null,"19","ZAMORA CHINCHIPE","1909","ZAMORA","190901","CUMBARATZA"]
[null,null,null,null,null,null,"19","ZAMORA CHINCHIPE","1909","ZAMORA","190902","EL LIMON"]
[null,null,null,null,null,null,"19","ZAMORA CHINCHIPE","1909","ZAMORA","190903","GUADALUPE"]
[null,null,null,null,null,null,"19","ZAMORA CHINCHIPE","1909","ZAMORA","190904","IMBANA (LA VICTORIA DE IMBANA)"]
[null,null,null,null,null,null,"19","ZAMORA CHINCHIPE","1909","ZAMORA","190905","SABANILLA"]
[null,null,null,null,null,null,"19","ZAMORA CHINCHIPE","1909","ZAMORA","190906","SAN CARLOS DE LAS MINAS"]
[null,null,null,null,null,null,"20","GALAPAGOS","1909","ZAMORA","190907","TIMBARA"]
[null,null,null,null,null,null,"20","GALAPAGOS","1909","ZAMORA","190908","ZAMORA"]
[null,null,null,null,null,null,"20","GALAPAGOS","1909","ZAMORA","190909","ZAMORA"]
[null,null,null,null,null,null,"20","GALAPAGOS","2001","ISABELA","200101","PUERTO VILLAMIL"]
[null,null,null,null,null,null,"20","GALAPAGOS","2001","ISABELA","200102","TOMAS DE BERLANGA (SANTO TOMAS)"]
[null,null,null,null,null,null,"20","GALAPAGOS","2002","SAN CRISTOBAL","200201","EL PROGRESO"]
[null,null,null,null,null,null,"20","GALAPAGOS","2002","SAN CRISTOBAL","200202","ISLA SANTA MARIA (FLOREANA) (CAB. EN PTO. VELASCO IBARRA)"]
[null,null,null,null,null,null,"20","GALAPAGOS","2002","SAN CRISTOBAL","200203","PUERTO BAQUERIZO MORENO"]
[null,null,null,null,null,null,"21","SUCUMBIOS","2003","SANTA CRUZ","200301","BELLAVISTA"]
[null,null,null,null,null,null,"21","SUCUMBIOS","2003","SANTA CRUZ","200302","PUERTO AYORA"]
[null,null,null,null,null,null,"21","SUCUMBIOS","2003","SANTA CRUZ","200303","SANTA ROSA (INCLUYE LA ISLA BALTRA)"]
[null,null,null,null,null,null,"21","SUCUMBIOS","2101","CASCALES","210101","EL DORADO DE CASCALES"]
[null,null,null,null,null,null,"21","SUCUMBIOS","2101","CASCALES","210102","SANTA ROSA DE SUCUMBIOS"]
[null,null,null,null,null,null,"21","SUCUMBIOS","2101","CASCALES","210103","SEVILLA"]
[null,null,null,null,null,null,"21","SUCUMBIOS","2102","CUYABENO","210201","AGUAS NEGRAS"]
[null,null,null,null,null,null,"21","SUCUMBIOS","2102","CUYABENO","210202","CUYABENO"]
[null,null,null,null,null,null,"21","SUCUMBIOS","2102","CUYABENO","210203","TARAPOA"]
[null,null,null,null,null,null,"21","SUCUMBIOS","2103","GONZALO PIZARRO","210301","EL REVENTADOR"]
[null,null,null,null,null,null,"21","SUCUMBIOS","2103","GONZALO PIZARRO","210302","GONZALO PIZARRO"]
[null,null,null,null,null,null,"21","SUCUMBIOS","2103","GONZALO PIZARRO","210303","LUMBAQUI"]
[null,null,null,null,null,null,"21","SUCUMBIOS","2103","GONZALO PIZARRO","210304","PUERTO LIBRE"]
[null,null,null,null,null,null,"21","SUCUMBIOS","2104","LAGO AGRIO","210401","DURENO"]
[null,null,null,null,null,null,"21","SUCUMBIOS","2104","LAGO AGRIO","210402","EL ENO"]
[null,null,null,null,null,null,"21","SUCUMBIOS","2104","LAGO AGRIO","210403","GENERAL FARFAN"]
[null,null,null,null,null,null,"21","SUCUMBIOS","2104","LAGO AGRIO","210404","JAMBELI"]
[null,null,null,null,null,null,"21","SUCUMBIOS","2104","LAGO AGRIO","210405","NUEVA LOJA"]
[null,null,null,null,null,null,"21","SUCUMBIOS","2104","LAGO AGRIO","210406","PACAYACU"]
[null,null,null,null,null,null,"21","SUCUMBIOS","2104","LAGO AGRIO","210407","SANTA CECILIA"]
[null,null,null,null,null,null,"21","SUCUMBIOS","2104","LAGO AGRIO","210408","10 DE AGOSTO"]
[null,null,null,null,null,null,"21","SUCUMBIOS","2105","PUTUMAYO","210501","PALMA ROJA"]
[null,null,null,null,null,null,"21","SUCUMBIOS","2105","PUTUMAYO","210502","PUERTO BOLIVAR (PUERTO MONTUFAR)"]
[null,null,null,null,null,null,"21","SUCUMBIOS","2105","PUTUMAYO","210503","PUERTO EL CARMEN DEL PUTUMAYO"]
[null,null,null,null,null,null,"21","SUCUMBIOS","2105","PUTUMAYO","210504","PUERTO RODRIGUEZ"]
[null,null,null,null,null,null,"21","SUCUMBIOS","2105","PUTUMAYO","210505","SANTA ELENA"]
[null,null,null,null,null,null,"21","SUCUMBIOS","2106","SHUSHUFINDI","210601","LIMONCOCHA"]
[null,null,null,null,null,null,"21","SUCUMBIOS","2106","SHUSHUFINDI","210602","PAÑACOCHA"]
[null,null,null,null,null,null,"21","SUCUMBIOS","2106","SHUSHUFINDI","210603","SAN PEDRO DE LOS COFANES"]
[null,null,null,null,null,null,"21","SUCUMBIOS","2106","SHUSHUFINDI","210604","SAN ROQUE (CAB. EN SAN VICENTE)"]
[null,null,null,null,null,null,"21","SUCUMBIOS","2106","SHUSHUFINDI","210605","SHUSHUFINDI"]
[null,null,null,null,null,null,"21","SUCUMBIOS","2106","SHUSHUFINDI","210606","SIETE DE JULIO"]
[null,null,null,null,null,null,"21","SUCUMBIOS","2107","SUCUMBIOS","210701","EL PLAYON DE SAN FRANCISCO"]
[null,null,null,null,null,null,"21","SUCUMBIOS","2107","SUCUMBIOS","210702","LA BONITA"]
[null,null,null,null,null,null,"22","ORELLANA","2107","SUCUMBIOS","210703","LA SOFIA"]
[null,null,null,null,null,null,"22","ORELLANA","2107","SUCUMBIOS","210704","ROSA FLORIDA"]
[null,null,null,null,null,null,"22","ORELLANA","2107","SUCUMBIOS","210705","SANTA BARBARA"]
[null,null,null,null,null,null,"22","ORELLANA","2201","AGUARICO","220101","CAPITAN AUGUSTO RIVADENEYRA"]
[null,null,null,null,null,null,"22","ORELLANA","2201","AGUARICO","220102","CONONACO"]
[null,null,null,null,null,null,"22","ORELLANA","2201","AGUARICO","220103","NUEVO ROCAFUERTE"]
[null,null,null,null,null,null,"22","ORELLANA","2201","AGUARICO","220104","SANTA MARIA DE HUIRIRIMA"]
[null,null,null,null,null,null,"22","ORELLANA","2201","AGUARICO","220105","TIPUTINI"]
[null,null,null,null,null,null,"22","ORELLANA","2201","AGUARICO","220106","YASUNI"]
[null,null,null,null,null,null,"22","ORELLANA","2202","LA JOYA DE LOS SACHAS","220201","ENOKANQUI"]
[null,null,null,null,null,null,"22","ORELLANA","2202","LA JOYA DE LOS SACHAS","220202","LA JOYA DE LOS SACHAS"]
[null,null,null,null,null,null,"22","ORELLANA","2202","LA JOYA DE LOS SACHAS","220203","LAGO SAN PEDRO"]
[null,null,null,null,null,null,"22","ORELLANA","2202","LA JOYA DE LOS SACHAS","220204","POMPEYA"]
[null,null,null,null,null,null,"22","ORELLANA","2202","LA JOYA DE LOS SACHAS","220205","RUMIPAMBA"]
[null,null,null,null,null,null,"22","ORELLANA","2202","LA JOYA DE LOS SACHAS","220206","SAN CARLOS"]
[null,null,null,null,null,null,"22","ORELLANA","2202","LA JOYA DE LOS SACHAS","220207","SAN SEBASTIAN DEL COCA"]
[null,null,null,null,null,null,"22","ORELLANA","2202","LA JOYA DE LOS SACHAS","220208","TRES DE NOVIEMBRE"]
[null,null,null,null,null,null,"22","ORELLANA","2202","LA JOYA DE LOS SACHAS","220209","UNION MILAGREÑA"]
[null,null,null,null,null,null,"22","ORELLANA","2203","LORETO","220301","AVILA (CAB. EN HUIRUNO)"]
[null,null,null,null,null,null,"22","ORELLANA","2203","LORETO","220302","LORETO"]
[null,null,null,null,null,null,"22","ORELLANA","2203","LORETO","220303","PUERTO MURIALDO"]
[null,null,null,null,null,null,"22","ORELLANA","2203","LORETO","220304","SAN JOSE DE DAHUANO"]
[null,null,null,null,null,null,"22","ORELLANA","2203","LORETO","220305","SAN JOSE DE PAYAMINO"]
[null,null,null,null,null,null,"22","ORELLANA","2203","LORETO","220306","SAN VICENTE DE HUATICOCHA"]
[null,null,null,null,null,null,"22","ORELLANA","2204","ORELLANA","220401","ALEJANDRO LABAKA"]
[null,null,null,null,null,null,"22","ORELLANA","2204","ORELLANA","220402","DAYUMA"]
[null,null,null,null,null,null,"22","ORELLANA","2204","ORELLANA","220403","EL DORADO"]
[null,null,null,null,null,null,"22","ORELLANA","2204","ORELLANA","220404","EL EDEN"]
[null,null,null,null,null,null,"22","ORELLANA","2204","ORELLANA","220405","GARCIA MORENO"]
[null,null,null,null,null,null,"22","ORELLANA","2204","ORELLANA","220406","INES ARANGO (CAB. EN WESTERN)"]
[null,null,null,null,null,null,"22","ORELLANA","2204","ORELLANA","220407","LA BELLEZA"]
[null,null,null,null,null,null,"22","ORELLANA","2204","ORELLANA","220408","NUEVO PARAISO (CAB. EN UNION CHIMBORAZO)"]
[null,null,null,null,null,null,"22","ORELLANA","2204","ORELLANA","220409","PUERTO FRANCISCO DE ORELLANA (EL COCA) Y CAPITAL PROVINCIAL"]
[null,null,null,null,null,null,"23","SANTO DOMINGO DE LOS TSACHILAS","2204","ORELLANA","220410","SAN JOSE DE GUAYUSA"]
[null,null,null,null,null,null,"23","SANTO DOMINGO DE LOS TSACHILAS","2204","ORELLANA","220411","SAN LUIS DE ARMENIA"]
[null,null,null,null,null,null,"23","SANTO DOMINGO DE LOS TSACHILAS","2204","ORELLANA","220412","TARACOA (NUEVA ESPERANZA O YUCA)"]
[null,null,null,null,null,null,"23","SANTO DOMINGO DE LOS TSACHILAS","2301","LA CONCORDIA","230101","LA CONCORDIA"]
[null,null,null,null,null,null,"23","SANTO DOMINGO DE LOS TSACHILAS","2301","LA CONCORDIA","230102","LA VILLEGAS"]
[null,null,null,null,null,null,"23","SANTO DOMINGO DE LOS TSACHILAS","2301","LA CONCORDIA","230103","MONTERREY"]
[null,null,null,null,null,null,"23","SANTO DOMINGO DE LOS TSACHILAS","2301","LA CONCORDIA","230104","PLAN PILOTO"]
[null,null,null,null,null,null,"23","SANTO DOMINGO DE LOS TSACHILAS","2302","SANTO DOMINGO","230201","ABRAHAM CALAZACON"]
[null,null,null,null,null,null,"23","SANTO DOMINGO DE LOS TSACHILAS","2302","SANTO DOMINGO","230202","ALLURIQUIN"]
[null,null,null,null,null,null,"23","SANTO DOMINGO DE LOS TSACHILAS","2302","SANTO DOMINGO","230203","BOMBOLI"]
[null,null,null,null,null,null,"23","SANTO DOMINGO DE LOS TSACHILAS","2302","SANTO DOMINGO","230204","CHIGUILPE"]
[null,null,null,null,null,null,"23","SANTO DOMINGO DE LOS TSACHILAS","2302","SANTO DOMINGO","230205","EL ESFUERZO"]
[null,null,null,null,null,null,"23","SANTO DOMINGO DE LOS TSACHILAS","2302","SANTO DOMINGO","230206","LUZ DE AMERICA"]
[null,null,null,null,null,null,"23","SANTO DOMINGO DE LOS TSACHILAS","2302","SANTO DOMINGO","230207","PUERTO LIMON"]
[null,null,null,null,null,null,"23","SANTO DOMINGO DE LOS TSACHILAS","2302","SANTO DOMINGO","230208","RIO TOACHI"]
[null,null,null,null,null,null,"23","SANTO DOMINGO DE LOS TSACHILAS","2302","SANTO DOMINGO","230209","RIO VERDE"]
[null,null,null,null,null,null,"23","SANTO DOMINGO DE LOS TSACHILAS","2302","SANTO DOMINGO","230210","SAN JACINTO DEL BUA"]
[null,null,null,null,null,null,"23","SANTO DOMINGO DE LOS TSACHILAS","2302","SANTO DOMINGO","230211","SANTA MARIA DEL TOACHI"]
[null,null,null,null,null,null,"23","SANTO DOMINGO DE LOS TSACHILAS","2302","SANTO DOMINGO","230212","SANTO DOMINGO DE LOS COLORADOS"]
[null,null,null,null,null,null,"24","SANTA ELENA","2302","SANTO DOMINGO","230213","SANTO DOMINGO DE LOS COLORADOS"]
[null,null,null,null,null,null,"24","SANTA ELENA","2302","SANTO DOMINGO","230214","VALLE HERMOSO"]
[null,null,null,null,null,null,"24","SANTA ELENA","2302","SANTO DOMINGO","230215","ZARACAY"]
[null,null,null,null,null,null,"24","SANTA ELENA","2401","LA LIBERTAD","240101","LA LIBERTAD"]
[null,null,null,null,null,null,"24","SANTA ELENA","2402","SALINAS","240201","ANCONCITO"]
[null,null,null,null,null,null,"24","SANTA ELENA","2402","SALINAS","240202","CARLOS ESPINOZA LARREA"]
[null,null,null,null,null,null,"24","SANTA ELENA","2402","SALINAS","240203","GRAL. ALBERTO ENRIQUEZ GALLO"]
[null,null,null,null,null,null,"24","SANTA ELENA","2402","SALINAS","240204","JOSE LUIS TAMAYO (MUEY)"]
[null,null,null,null,null,null,"24","SANTA ELENA","2402","SALINAS","240205","SALINAS"]
[null,null,null,null,null,null,"24","SANTA ELENA","2402","SALINAS","240206","SANTA ROSA"]
[null,null,null,null,null,null,"24","SANTA ELENA","2402","SALINAS","240207","VICENTE ROCAFUERTE"]
[null,null,null,null,null,null,"24","SANTA ELENA","2403","SANTA ELENA","240301","ATAHUALPA"]
[null,null,null,null,null,null,"24","SANTA ELENA","2403","SANTA ELENA","240302","BALLENITA"]
[null,null,null,null,null,null,"24","SANTA ELENA","2403","SANTA ELENA","240303","CHANDUY"]
[null,null,null,null,null,null,"24","SANTA ELENA","2403","SANTA ELENA","240304","COLONCHE"]
[null,null,null,null,null,null,"24","SANTA ELENA","2403","SANTA ELENA","240305","MANGLARALTO"]
[null,null,null,null,null,null,"24","SANTA ELENA","2403","SANTA ELENA","240306","SAN JOSE DE ANCON"]
[null,null,null,null,null,null,"25","ZONA NO DELIMITADA","2403","SANTA ELENA","240307","SANTA ELENA"]
[null,null,null,null,null,null,"25","ZONA NO DELIMITADA","2403","SANTA ELENA","240308","SANTA ELENA"]
[null,null,null,null,null,null,"25","ZONA NO DELIMITADA","2403","SANTA ELENA","240309","SIMON BOLIVAR (JULIO MORENO)"]
[null,null,null,null,null,null,"25","ZONA NO DELIMITADA","2501","ABDON CALDERON","250101","ABDON CALDERON"]
[null,null,null,null,null,null,"25","ZONA NO DELIMITADA","2502","EL PIEDRERO","250201","EL PIEDRERO"]
[null,null,null,null,null,null,"25","ZONA NO DELIMITADA","2503","JUVAL","250301","JUVAL"]
[null,null,null,null,null,null,"25","ZONA NO DELIMITADA","2504","LAS GOLONDRINAS","250401","LAS GOLONDRINAS"]
[null,null,null,null,null,null,"25","ZONA NO DELIMITADA","2505","MANGA DEL CURA","250501","MANGA DEL CURA"]
[null,null,null,null,null,null,null,null,"2506","MATILDE ESTHER","250601","MATILDE ESTHER"]
[null,null,null,null,null,null,null,null,"2507","SANTA ROSA DE AGUA CLARA","250701","SANTA ROSA DE AGUA CLARA"]
[null,null,null,null,null,null,null,null,"2508","ZONA NO DELIMITADA","250801","ZONA NO DELIMITADA"]

{"sheet":"PDF","index":9,"n_rows":41,"n_cols":6,"rows_kept":41,"cut":false,"hidden":true,"merged":[[27,2,27,3],[28,2,28,3],[22,2,22,3],[23,2,23,3],[24,2,24,3],[25,2,25,3],[26,2,26,3]]}
[]
[]
[null,null,null,"SUPERINTENDENCIA DE ECONOMÍA POPULAR Y SOLIDARIA"]
[null,null,null,"                              Formulario de Certificación"]
[]
[]
[]
[null,null,"FUNDACIÓN"]
[null,null,"RUC",{"$f":"'Representante Legal'!#REF!","v":{"$error":"#REF!"}},"RAZON SOCIAL",{"$f":"'Representante Legal'!#REF!","v":{"$error":"#REF!"}}]
[]
[null,null,"REPRSENTANTE LEGAL:"]
[null,null,"Tipo:",{"$f":"'Representante Legal'!A6","v":0}]
[null,null,"Cédula:",{"$f":"'Representante Legal'!C6","v":0},"Provincia:",{"$f":"'Representante Legal'!I6","v":0}]
[null,null,"Nombre:",{"$f":"'Representante Legal'!D6","v":0},"Canton:",{"$f":"'Representante Legal'!J6","v":0}]
[null,null,"Correo:",{"$f":"'Representante Legal'!F6","v":0},"Parroquia:",{"$f":"'Representante Legal'!K6","v":0}]
[null,null,"Celular:",{"$f":"'Representante Legal'!G6","v":0},"Calle Pri:",{"$f":"'Representante Legal'!L6","v":0}]
[null,null,"Teléfono:",{"$f":"'Representante Legal'!H6","v":0},"Num:",{"$f":"'Representante Legal'!M6","v":0}]
[null,null,"Fec. Nombr:",{"$f":"'Representante Legal'!A6","v":0},"Calle Sec:",{"$f":"'Representante Legal'!N6","v":0}]
[null,null,"País:",{"$f":"'Representante Legal'!E6","v":0},"Barrio:",{"$f":"'Representante Legal'!O6","v":0}]
[null,null,null,null,"Rerencia:",{"$f":"'Representante Legal'!P6","v":0}]
[]
[null,null,"DOCUMENTOS",null,null,"INFOMACIÓN INGRESADA"]
[null,null,{"$f":"'Doc Habilitantes'!E4","v":0},null,null,"Datos Firmas Auditoras Externas"]
[null,null,{"$f":"'Doc Habilitantes'!E5","v":0},null,null,"Listado de miembros"]
[null,null,{"$f":"'Doc Habilitantes'!E6","v":0},null,null,"Datos de la Directiva"]
[null,null,{"$f":"'Doc Habilitantes'!E7","v":0},null,null,"Datos de Auditor Interno"]
[null,null,{"$f":"'Doc Habilitantes'!E8","v":0}]
[null,null,{"$f":"'Doc Habilitantes'!E9","v":0}]
[null,null,{"$f":"'Doc Habilitantes'!E10","v":0}]
[]
[]
[]
[]
[]
[]
[]
[]
[]
[]
[null,null,null,null,{"$f":"'Representante Legal'!D6","v":0}]
[null,null,null,null,"REPRESENTANTE LEGAL"]

{"sheet":"Datos","index":10,"n_rows":1754,"n_cols":3,"rows_kept":1754,"cut":false,"hidden":true,"merged":[[0,0,0,1],[11,0,11,1],[245,0,245,2],[273,0,273,2],[499,0,499,2]]}
["TIPO DOCUMENTO"]
[1,"CEDULA"]
[2,"RUC"]
[3,"PASAPORTE"]
[4,"REFUGIADO"]
[]
[]
[]
[]
[]
[]
["PAIS  DE NACIMIENTO"]
[1555,"ECUADOR"]
[1492,"AFGANISTÁN"]
[1496,"AFGANISTÁN"]
[1509,"ALAND"]
[1499,"ALBANIA"]
[1549,"ALEMANIA"]
[1490,"ANDORRA"]
[1494,"ANDORRA"]
[1502,"ANGOLA"]
[1498,"ANGUILA"]
[1497,"ANTIGUA Y BARBUDA"]
[1493,"ANTIGUA Y BARBUDA"]
[1501,"ANTILLAS NEERLANDESAS"]
[1503,"ANTÁRTIDA"]
[1684,"ARABIA SAUDITA"]
[1554,"ARGELIA"]
[1504,"ARGENTINA"]
[1500,"ARMENIA"]
[1508,"ARUBA"]
[1507,"AUSTRALIA"]
[1506,"AUSTRIA"]
[1510,"AZERBAIYAN"]
[1525,"BAHAMAS"]
[1517,"BAHREIN"]
[1513,"BANGLADESH"]
[1512,"BARBADOS"]
[1514,"BELGICA"]
[1530,"BELICE"]
[1519,"BENIN"]
[1521,"BERMUDAS"]
[1529,"BIELORRUSIA"]
[1637,"BIRMANIA"]
[1523,"BOLIVIA"]
[1511,"BOSNIA Y HERZEGOVINA"]
[1528,"BOTSUANA"]
[1524,"BRASIL"]
[1522,"BRUNEI"]
[1516,"BULGARIA"]
[1515,"BURKINA FASO"]
[1518,"BURUNDI"]
[1526,"BUTAN"]
[1545,"CABO VERDE"]
[1610,"CAMBOYA"]
[1540,"CAMERUN"]
[1531,"CANADA"]
[1705,"CHAD"]
[1539,"CHILE"]
[1541,"CHINA"]
[1547,"CHIPRE"]
[1542,"COLOMBIA"]
[1612,"COMORAS"]
[1614,"COREA DEL NORTE"]
[1615,"COREA DEL SUR"]
[1537,"COSTA DE MARFIL"]
[1543,"COSTA RICA"]
[1591,"CROACIA"]
[1544,"CUBA"]
[1551,"DINAMARCA"]
[1552,"DOMINICA"]
[1557,"EGIPTO"]
[1701,"EL SALVADOR"]
[1491,"EMIRATOS ÁRABES UNIDOS"]
[1495,"EMIRATOS ÁRABES UNIDOS"]
[1559,"ERITREA"]
[1693,"ESLOVAQUIA"]
[1691,"ESLOVENIA"]
[1560,"ESPAÑA"]
[1556,"ESTONIA"]
[1561,"ETIOPÍA"]
[1668,"FILIPINAS"]
[1563,"FINLANDIA"]
[1564,"FIYI"]
[1568,"FRANCIA"]
[1569,"GABON"]
[1578,"GAMBIA"]
[1572,"GEORGIA"]
[1575,"GHANA"]
[1576,"GIBRALTAR"]
[1571,"GRANADA"]
[1582,"GRECIA"]
[1577,"GROENLANDIA"]
[1580,"GUADALUPE"]
[1585,"GUAM"]
[1584,"GUATEMALA"]
[1573,"GUAYANA FRANCESA"]
[1574,"GUERNSEY"]
[1579,"GUINEA"]
[1581,"GUINEA ECUATORIAL"]
[1586,"GUINEA-BISSAU"]
[1587,"GUYANA"]
[1592,"HAITI"]
[1590,"HONDURAS"]
[1588,"HONG KONG"]
[1593,"HUNGRIA"]
[1598,"INDIA"]
[1594,"INDONESIA"]
[1601,"IRAN"]
[1600,"IRAQ"]
[1595,"IRLANDA"]
[1527,"ISLA BOUVET"]
[1597,"ISLA DE MAN"]
[1546,"ISLA DE NAVIDAD"]
[1602,"ISLANDIA"]
[1617,"ISLAS CAIMAN"]
[1532,"ISLAS COCOS"]
[1538,"ISLAS COOK"]
[1567,"ISLAS FEROE"]
[1583,"ISLAS GEORGIAS DEL SUR Y SANDWICH DEL SUR"]
[1589,"ISLAS HEARD Y MCDONALD"]
[1565,"ISLAS MALVINAS"]
[1640,"ISLAS MARIANAS DEL NORTE"]
[1634,"ISLAS MARSHALL"]
[1672,"ISLAS PITCAIRN"]
[1685,"ISLAS SALOMON"]
[1704,"ISLAS TURCAS Y CAICOS"]
[1596,"ISRAEL"]
[1603,"ITALIA"]
[1605,"JAMAICA"]
[1607,"JAPON"]
[1604,"JERSEY"]
[1606,"JORDANIA"]
[1618,"KAZAJISTAN"]
[1608,"KENIA"]
[1609,"KIRGUISTÁN"]
[1611,"KIRIBATI"]
[1616,"KUWAIT"]
[1619,"LAOS"]
[1625,"LESOTO"]
[1628,"LETONIA"]
[1620,"LIBANO"]
[1624,"LIBERIA"]
[1629,"LIBIA"]
[1622,"LIECHTENSTEIN"]
[1626,"LITUANIA"]
[1627,"LUXEMBURGO"]
[1639,"MACAO"]
[1635,"MACEDONIA"]
[1633,"MADAGASCAR"]
[1649,"MALASIA"]
[1647,"MALAUI"]
[1646,"MALDIVAS"]
[1636,"MALI"]
[1644,"MALTA"]
[1630,"MARRUECOS"]
[1641,"MARTINICA"]
[1645,"MAURICIO"]
[1642,"MAURITANIA"]
[1648,"MEXICO"]
[1566,"MICRONESIA"]
[1631,"MONACO"]
[1638,"MONGOLIA"]
[1632,"MONTENEGRO"]
[1643,"MONTSERRAT"]
[1650,"MOZAMBIQUE"]
[1651,"NAMIBIA"]
[1660,"NAURU"]
[1659,"NEPAL"]
[1656,"NICARAGUA"]
[1653,"NIGER"]
[1655,"NIGERIA"]
[1661,"NIUE"]
[1654,"NORFOLK"]
[1658,"NORUEGA"]
[1652,"NUEVA CALEDONIA"]
[1662,"NUEVA ZELANDA"]
[1663,"OMAN"]
[1657,"PAISES BAJOS (HOLANDA)"]
[1669,"PAKISTÁN"]
[1676,"PALAOS"]
[1664,"PANAMÁ"]
[1667,"PAPÚA NUEVA GUINEA"]
[1677,"PARAGUAY"]
[1665,"PERÚ"]
[1666,"POLINESIA FRANCESA"]
[1670,"POLONIA"]
[1675,"PORTUGAL"]
[1673,"PUERTO RICO"]
[1678,"QATAR"]
[1570,"REINO UNIDO (INGLATERRA)"]
[1534,"REPUBLICA CENTROAFRICANA"]
[1548,"REPUBLICA CHECA"]
[1535,"REPUBLICA DEL CONGO"]
[1533,"REPUBLICA DEMOCRATICA DEL CONGO"]
[1553,"REPUBLICA DOMINICANA"]
[1679,"REUNION"]
[1683,"RUANDA"]
[1680,"RUMANIA"]
[1682,"RUSIA"]
[1558,"SAHARA OCCIDENTAL"]
[1505,"SAMOA AMERICANA"]
[1520,"SAN BARTOLOME"]
[1613,"SAN CRISTOBAL Y NIEVES"]
[1695,"SAN MARINO"]
[1671,"SAN PEDRO Y MIQUELON"]
[1690,"SANTA HELENA"]
[1621,"SANTA LUCIA"]
[1699,"SANTO TOME Y PRINCIPE"]
[1696,"SENEGAL"]
[1681,"SERBIA"]
[1686,"SEYCHELLES"]
[1694,"SIERRA LEONA"]
[1689,"SINGAPUR"]
[1702,"SIRIA"]
[1697,"SOMALIA"]
[1623,"SRI LANKA"]
[1703,"SUAZILANDIA"]
[1687,"SUDAN"]
[1688,"SUECIA"]
[1536,"SUIZA"]
[1698,"SURINAM"]
[1692,"SVALBARD Y JAN MAYEN"]
[1708,"TAILANDIA"]
[1718,"TAIWAN"]
[1719,"TANZANIA"]
[1709,"TAYIKISTAN"]
[1599,"TERRITORIO BRITANICO DEL OCEANO INDICO"]
[1706,"TERRITORIOS AUSTRALES FRANCESES"]
[1674,"TERRITORIOS PALESTINOS"]
[1711,"TIMOR ORIENTAL"]
[1707,"TOGO"]
[1710,"TOKELAU"]
[1714,"TONGA"]
[1716,"TRINIDAD Y TOBAGO"]
[1713,"TUNEZ"]
[1712,"TURKMENISTAN"]
[1715,"TURQUIA"]
[1717,"TUVALU"]
[1700,"UNION SOVIETICA"]
[1562,"UNIÓN EUROPEA"]
[1550,"YIBUTI"]
[]
[]
[]
["PROVINCIAS"]
["COD_AMB_GEO","COD_AMB_GEO_PADRE","NOM_NOMBRE"]
[1,1555,"AZUAY"]
[2,1555,"BOLIVAR"]
[3,1555,"CAÑAR"]
[4,1555,"CARCHI"]
[5,1555,"COTOPAXI"]
[6,1555,"CHIMBORAZO"]
[7,1555,"EL ORO"]
[8,1555,"ESMERALDAS"]
[9,1555,"GUAYAS"]
[10,1555,"IMBABURA"]
[11,1555,"LOJA"]
[12,1555,"LOS RIOS"]
[13,1555,"MANABI"]
[14,1555,"MORONA SANTIAGO"]
[15,1555,"NAPO"]
[16,1555,"PASTAZA"]
[17,1555,"PICHINCHA"]
[18,1555,"TUNGURAHUA"]
[19,1555,"ZAMORA CHINCHIPE"]
[20,1555,"GALAPAGOS"]
[21,1555,"SUCUMBIOS"]
[22,1555,"ORELLANA"]
[23,1555,"SANTO DOMINGO DE LOS TSACHILAS"]
[24,1555,"SANTA ELENA"]
[25,1555,"ZONA NO DELIMITADA"]
[]
["CANTONES"]
["COD_AMB_GEO","COD_AMB_GEO_PADRE","NOM_NOMBRE"]
[26,1,"CUENCA"]
[27,1,"GIRON"]
[28,1,"GUALACEO"]
[29,1,"NABON"]
[30,1,"PAUTE"]
[31,1,"PUCARA"]
[32,1,"SAN FERNANDO"]
[33,1,"SANTA ISABEL"]
[34,1,"SIGSIG"]
[35,1,"OÑA"]
[36,1,"CHORDELEG"]
[37,1,"EL PAN"]
[38,1,"SEVILLA DE ORO"]
[39,1,"GUACHAPALA"]
[40,1,"CAMILO PONCE ENRIQUEZ"]
[116,2,"GUARANDA"]
[117,2,"CHILLANES"]
[118,2,"CHIMBO"]
[119,2,"ECHEANDIA"]
[120,2,"SAN MIGUEL"]
[121,2,"CALUMA"]
[122,2,"LAS NAVES"]
[123,3,"AZOGUES"]
[124,3,"BIBLIAN"]
[125,3,"CAÑAR"]
[126,3,"LA TRONCAL"]
[127,3,"EL TAMBO"]
[128,3,"DELEG"]
[129,3,"SUSCAL"]
[130,4,"TULCAN"]
[131,4,"BOLIVAR"]
[132,4,"ESPEJO"]
[133,4,"MIRA"]
[134,4,"MONTUFAR"]
[135,4,"SAN PEDRO DE HUACA"]
[136,5,"LATACUNGA"]
[137,5,"LA MANA"]
[138,5,"PANGUA"]
[139,5,"PUJILI"]
[140,5,"SALCEDO"]
[141,5,"SAQUISILI"]
[142,5,"SIGCHOS"]
[143,6,"RIOBAMBA"]
[144,6,"ALAUSI"]
[145,6,"COLTA"]
[146,6,"CHAMBO"]
[147,6,"CHUNCHI"]
[148,6,"GUAMOTE"]
[149,6,"GUANO"]
[150,6,"PALLATANGA"]
[151,6,"PENIPE"]
[152,6,"CUMANDA"]
[153,7,"MACHALA"]
[154,7,"ARENILLAS"]
[155,7,"ATAHUALPA"]
[156,7,"BALSAS"]
[157,7,"CHILLA"]
[158,7,"EL GUABO"]
[159,7,"HUAQUILLAS"]
[160,7,"MARCABELI"]
[161,7,"PASAJE"]
[162,7,"PIÑAS"]
[163,7,"PORTOVELO"]
[164,7,"SANTA ROSA"]
[165,7,"ZARUMA"]
[166,7,"LAS LAJAS"]
[167,8,"ESMERALDAS"]
[168,8,"ELOY ALFARO"]
[169,8,"MUISNE"]
[170,8,"QUININDE"]
[171,8,"SAN LORENZO"]
[172,8,"ATACAMES"]
[173,8,"RIOVERDE"]
[174,23,"LA CONCORDIA"]
[175,9,"GUAYAQUIL"]
[176,9,"ALFREDO BAQUERIZO MORENO"]
[177,9,"BALAO"]
[178,9,"BALZAR"]
[179,9,"COLIMES"]
[180,9,"DAULE"]
[181,9,"DURAN"]
[182,9,"EL EMPALME"]
[183,9,"EL TRIUNFO"]
[184,9,"MILAGRO"]
[185,9,"NARANJAL"]
[186,9,"NARANJITO"]
[187,9,"PALESTINA"]
[188,9,"PEDRO CARBO"]
[189,9,"SAMBORONDON"]
[190,9,"SANTA LUCIA"]
[191,9,"SALITRE"]
[192,9,"SAN JACINTO DE YAGUACHI"]
[193,9,"PLAYAS"]
[194,9,"SIMON BOLIVAR"]
[195,9,"CORONEL MARCELINO MARIDUEÑA"]
[196,9,"LOMAS DE SARGENTILLO"]
[197,9,"NOBOL"]
[198,9,"GENERAL ANTONIO ELIZALDE"]
[199,9,"ISIDRO AYORA"]
[200,10,"IBARRA"]
[201,10,"ANTONIO ANTE"]
[202,10,"COTACACHI"]
[203,10,"OTAVALO"]
[204,10,"PIMAMPIRO"]
[205,10,"SAN MIGUEL DE URCUQUI"]
[206,11,"LOJA"]
[207,11,"CALVAS"]
[208,11,"CATAMAYO"]
[209,11,"CELICA"]
[210,11,"CHAGUARPAMBA"]
[211,11,"ESPINDOLA"]
[212,11,"GONZANAMA"]
[213,11,"MACARA"]
[214,11,"PALTAS"]
[215,11,"PUYANGO"]
[216,11,"SARAGURO"]
[217,11,"SOZORANGA"]
[218,11,"ZAPOTILLO"]
[219,11,"PINDAL"]
[220,11,"QUILANGA"]
[221,11,"OLMEDO"]
[222,12,"BABAHOYO"]
[223,12,"BABA"]
[224,12,"MONTALVO"]
[225,12,"PUEBLOVIEJO"]
[226,12,"QUEVEDO"]
[227,12,"URDANETA"]
[228,12,"VENTANAS"]
[229,12,"VINCES"]
[230,12,"PALENQUE"]
[231,12,"BUENA FE"]
[232,12,"VALENCIA"]
[233,12,"MOCACHE"]
[234,12,"QUINSALOMA"]
[235,13,"PORTOVIEJO"]
[236,13,"BOLIVAR"]
[237,13,"CHONE"]
[238,13,"EL CARMEN"]
[239,13,"FLAVIO ALFARO"]
[240,13,"JIPIJAPA"]
[241,13,"JUNIN"]
[242,13,"MANTA"]
[243,13,"MONTECRISTI"]
[244,13,"PAJAN"]
[245,13,"PICHINCHA"]
[246,13,"ROCAFUERTE"]
[247,13,"SANTA ANA"]
[248,13,"SUCRE"]
[249,13,"TOSAGUA"]
[250,13,"24 DE MAYO"]
[251,13,"PEDERNALES"]
[252,13,"OLMEDO"]
[253,13,"PUERTO LOPEZ"]
[254,13,"JAMA"]
[255,13,"JARAMIJO"]
[256,13,"SAN VICENTE"]
[257,14,"MORONA"]
[258,14,"GUALAQUIZA"]
[259,14,"LIMON INDANZA"]
[260,14,"PALORA"]
[261,14,"SANTIAGO"]
[262,14,"SUCUA"]
[263,14,"HUAMBOYA"]
[264,14,"SAN JUAN BOSCO"]
[265,14,"TAISHA"]
[266,14,"LOGROÑO"]
[267,14,"PABLO SEXTO"]
[268,14,"TIWINTZA"]
[269,15,"TENA"]
[270,15,"ARCHIDONA"]
[271,15,"EL CHACO"]
[272,15,"QUIJOS"]
[273,15,"CARLOS JULIO AROSEMENA TOLA"]
[274,16,"PASTAZA"]
[275,16,"MERA"]
[276,16,"SANTA CLARA"]
[277,16,"ARAJUNO"]
[278,17,"QUITO"]
[279,17,"CAYAMBE"]
[280,17,"MEJIA"]
[281,17,"PEDRO MONCAYO"]
[282,17,"RUMIÑAHUI"]
[283,17,"SAN MIGUEL DE LOS BANCOS"]
[284,17,"PEDRO VICENTE MALDONADO"]
[285,17,"PUERTO QUITO"]
[286,18,"AMBATO"]
[287,18,"BAÑOS DE AGUA SANTA"]
[288,18,"CEVALLOS"]
[289,18,"MOCHA"]
[290,18,"PATATE"]
[291,18,"QUERO"]
[292,18,"SAN PEDRO DE PELILEO"]
[293,18,"SANTIAGO DE PILLARO"]
[294,18,"TISALEO"]
[295,19,"ZAMORA"]
[296,19,"CHINCHIPE"]
[297,19,"NANGARITZA"]
[298,19,"YACUAMBI"]
[299,19,"YANTZAZA"]
[300,19,"EL PANGUI"]
[301,19,"CENTINELA DEL CONDOR"]
[302,19,"PALANDA"]
[303,19,"PAQUISHA"]
[304,20,"SANTA CRUZ"]
[305,20,"SAN CRISTOBAL"]
[306,20,"ISABELA"]
[307,21,"LAGO AGRIO"]
[308,21,"GONZALO PIZARRO"]
[309,21,"PUTUMAYO"]
[310,21,"SHUSHUFINDI"]
[311,21,"SUCUMBIOS"]
[312,21,"CASCALES"]
[313,21,"CUYABENO"]
[314,22,"ORELLANA"]
[315,22,"AGUARICO"]
[316,22,"LA JOYA DE LOS SACHAS"]
[317,22,"LORETO"]
[318,23,"SANTO DOMINGO"]
[319,24,"SANTA ELENA"]
[320,24,"LA LIBERTAD"]
[321,24,"SALINAS"]
[1930,25,"ZONA NO DELIMITADA"]
[]
[]
["PARROQUIAS"]
["COD_AMB_GEO","COD_AMB_GEO_PADRE","NOM_NOMBRE"]
[42,26,"BAÑOS"]
[43,26,"CUMBE"]
[44,26,"CHAUCHA"]
[45,26,"CHECA (JIDCAY)"]
[46,26,"CHIQUINTAD"]
[47,26,"LLACAO"]
[48,26,"MOLLETURO"]
[49,26,"NULTI"]
[50,26,"OCTAVIO CORDERO PALACIOS (STA. ROSA)"]
[51,26,"PACCHA"]
[52,26,"QUINGEO"]
[53,26,"RICAURTE"]
[54,26,"SAN JOAQUIN"]
[55,26,"SANTA ANA"]
[56,26,"SAYAUSI"]
[57,26,"SIDCAY"]
[58,26,"SININCAY"]
[59,26,"TARQUI"]
[60,26,"TURI"]
[61,26,"VALLE"]
[62,26,"VICTORIA DEL PORTETE (IRQUIS)"]
[63,27,"GIRON"]
[64,27,"LA ASUNCION"]
[65,27,"SAN GERARDO"]
[66,28,"GUALACEO"]
[67,28,"DANIEL CORDOVA TORAL (EL ORIENTE)"]
[68,28,"JADAN"]
[69,28,"MARIANO MORENO"]
[70,28,"REMIGIO CRESPO TORAL (GULAG)"]
[71,28,"SAN JUAN"]
[72,28,"ZHIDMAD"]
[73,28,"LUIS CORDERO VEGA"]
[74,28,"SIMON BOLIVAR (CAB. EN GAÑANZOL)"]
[75,29,"NABON"]
[76,29,"COCHAPATA"]
[77,29,"EL PROGRESO (CAB. EN ZHOTA)"]
[78,29,"LAS NIEVES (CHAYA)"]
[79,30,"PAUTE"]
[80,30,"BULAN (JOSE VICTOR IZQUIERDO)"]
[81,30,"CHICAN (GUILLERMO ORTEGA)"]
[82,30,"EL CABO"]
[83,30,"GUARAINAG"]
[84,30,"SAN CRISTOBAL (CARLOS ORDOÑEZ LAZO)"]
[85,30,"TOMEBAMBA"]
[86,30,"DUG DUG"]
[87,31,"PUCARA"]
[88,31,"SAN RAFAEL DE SHARUG"]
[89,32,"SAN FERNANDO"]
[90,32,"CHUMBLIN"]
[91,33,"SANTA ISABEL (CHAGUARURCO)"]
[92,33,"ABDON CALDERON (LA UNION)"]
[93,33,"EL CARMEN DE PIJILI"]
[94,33,"ZHAGLLI (SHAGLLI)"]
[95,34,"SIGSIG"]
[96,34,"CUCHIL"]
[97,34,"GIMA"]
[98,34,"GUEL"]
[99,34,"LUDO"]
[100,34,"SAN BARTOLOME"]
[101,34,"SAN JOSE DE RARANGA"]
[102,35,"SAN FELIPE DE OÑA"]
[103,35,"SUSUDEL"]
[104,36,"CHORDELEG"]
[105,36,"PRINCIPAL"]
[106,36,"LA UNION"]
[107,36,"LUIS GALARZA ORELLANA (CAB. EN DELEGSOL)"]
[108,36,"SAN MARTIN DE PUZHIO"]
[109,37,"EL PAN"]
[110,37,"SAN VICENTE"]
[111,38,"SEVILLA DE ORO"]
[112,38,"AMALUZA"]
[113,38,"PALMAS"]
[114,39,"GUACHAPALA"]
[115,40,"CAMILO PONCE ENRIQUEZ"]
[326,116,"FACUNDO VELA"]
[327,116,"JULIO E. MORENO (CATANAHUAN GRANDE)"]
[328,116,"SALINAS"]
[329,116,"SAN LORENZO"]
[330,116,"SAN SIMON (YACOTO)"]
[331,116,"SANTA FE (SANTA FE)"]
[332,116,"SIMIATUG"]
[333,116,"SAN LUIS DE PAMBIL"]
[334,117,"CHILLANES"]
[335,117,"SAN JOSE DEL TAMBO (TAMBOPAMBA)"]
[336,118,"SAN JOSE DE CHIMBO"]
[337,118,"ASUNCION (ASANCOTO)"]
[338,118,"LA MAGDALENA (CHAPACOTO)"]
[339,118,"SAN SEBASTIAN"]
[340,118,"TELIMBELA"]
[341,119,"ECHEANDIA"]
[342,120,"SAN MIGUEL"]
[343,120,"BALSAPAMBA"]
[344,120,"BILOVAN"]
[345,120,"REGULO DE MORA"]
[346,120,"SAN PABLO (SAN PABLO DE ATENAS)"]
[347,120,"SANTIAGO"]
[348,120,"SAN VICENTE"]
[349,121,"CALUMA"]
[352,123,"COJITAMBO"]
[353,123,"GUAPAN"]
[354,123,"JAVIER LOYOLA (CHUQUIPATA)"]
[355,123,"LUIS CORDERO"]
[356,123,"PINDILIG"]
[357,123,"RIVERA"]
[358,123,"SAN MIGUEL"]
[359,123,"TADAY"]
[360,124,"BIBLIAN"]
[361,124,"NAZON (CAB. EN PAMPA DE DOMINGUEZ)"]
[362,124,"SAN FRANCISCO DE SAGEO"]
[363,124,"TURUPAMBA"]
[364,124,"JERUSALEN"]
[365,125,"CAÑAR"]
[366,125,"CHONTAMARCA"]
[367,125,"CHOROCOPTE"]
[368,125,"GENERAL MORALES (SOCARTE)"]
[369,125,"GUALLETURO"]
[370,125,"HONORATO VASQUEZ (TAMBO VIEJO)"]
[371,125,"INGAPIRCA"]
[372,125,"JUNCAL"]
[373,125,"SAN ANTONIO"]
[374,125,"ZHUD"]
[375,125,"VENTURA"]
[376,125,"DUCUR"]
[377,126,"LA TRONCAL"]
[378,126,"MANUEL J. CALLE"]
[379,126,"PANCHO NEGRO"]
[380,127,"EL TAMBO"]
[381,128,"DELEG"]
[382,128,"SOLANO"]
[383,129,"SUSCAL"]
[385,130,"EL CARMELO (EL PUN)"]
[386,130,"JULIO ANDRADE (OREJUELA)"]
[387,130,"MALDONADO"]
[388,130,"PIOTER"]
[389,130,"TOBAR DONOSO (LA BOCANA DE CAMUMBI)"]
[390,130,"TUFIÑO"]
[391,130,"URBINA (TAYA)"]
[392,130,"EL CHICAL"]
[393,130,"SANTA MARTHA DE CUBA"]
[394,131,"BOLIVAR"]
[395,131,"GARCIA MORENO"]
[396,131,"LOS ANDES"]
[397,131,"MONTE OLIVO"]
[398,131,"SAN VICENTE DE PUSIR"]
[399,131,"SAN RAFAEL"]
[401,132,"EL GOALTAL"]
[402,132,"LA LIBERTAD (ALIZO)"]
[403,132,"SAN ISIDRO"]
[404,133,"MIRA (CHONTAHUASI)"]
[405,133,"CONCEPCION"]
[406,133,"JIJON Y CAAMAÑO (CAB. EN RIO BLANCO)"]
[407,133,"JUAN MONTALVO (SAN IGNACIO DE QUIL)"]
[409,134,"CRISTOBAL COLON"]
[410,134,"CHITAN DE NAVARRETE"]
[411,134,"FERNANDEZ SALVADOR"]
[412,134,"LA PAZ"]
[413,134,"PIARTAL"]
[414,135,"HUACA"]
[415,135,"MARISCAL SUCRE"]
[417,136,"ALAQUEZ (ALAQUES)"]
[418,136,"BELISARIO QUEVEDO (GUANAILIN)"]
[419,136,"GUAYTACAMA (GUAITACAMA)"]
[420,136,"JOSEGUANGO BAJO"]
[421,136,"MULALO"]
[422,136,"11 DE NOVIEMBRE (ILINCHISI)"]
[423,136,"POALO"]
[424,136,"SAN JUAN DE PASTOCALLE"]
[425,136,"TANICUCHI"]
[426,136,"TOACASO"]
[428,137,"GUASAGANDA (CAB. EN GUASAGANDA CENTRO)"]
[429,137,"PUCAYACU"]
[430,138,"EL CORAZON"]
[431,138,"MORASPUNGO"]
[432,138,"PINLLOPATA"]
[433,138,"RAMON CAMPAÑA"]
[434,139,"PUJILI"]
[435,139,"ANGAMARCA"]
[436,139,"GUANGAJE"]
[437,139,"LA VICTORIA"]
[438,139,"PILALO"]
[439,139,"TINGO"]
[440,139,"ZUMBAHUA"]
[441,140,"SAN MIGUEL"]
[442,140,"ANTONIO JOSE HOLGUIN (SANTA LUCIA)"]
[443,140,"CUSUBAMBA"]
[444,140,"MULALILLO"]
[445,140,"MULLIQUINDIL (SANTA ANA)"]
[446,140,"PANSALEO"]
[447,141,"SAQUISILI"]
[448,141,"CANCHAGUA"]
[449,141,"CHANTILIN"]
[450,141,"COCHAPAMBA"]
[451,142,"SIGCHOS"]
[452,142,"CHUGCHILLAN"]
[453,142,"ISINLIVI"]
[454,142,"LAS PAMPAS"]
[455,142,"PALO QUEMADO"]
[457,143,"CACHA (CAB. EN MACHANGARA)"]
[458,143,"CALPI"]
[459,143,"CUBIJIES"]
[460,143,"FLORES"]
[461,143,"LICTO"]
[462,143,"PUNGALA"]
[463,143,"PUNIN"]
[464,143,"QUIMIAG"]
[465,143,"SAN JUAN"]
[466,143,"SAN LUIS"]
[467,144,"ALAUSI"]
[468,144,"ACHUPALLAS"]
[469,144,"GUASUNTOS"]
[470,144,"HUIGRA"]
[471,144,"MULTITUD"]
[472,144,"PISTISHI (NARIZ DEL DIABLO)"]
[473,144,"PUMALLACTA"]
[474,144,"SEVILLA"]
[475,144,"SIBAMBE"]
[476,144,"TIXAN"]
[478,145,"CAÑI"]
[479,145,"COLUMBE"]
[480,145,"JUAN DE VELASCO (PANGOR)"]
[481,145,"SANTIAGO DE QUITO (CAB. EN SAN ANTONIO DE QUITO)"]
[482,146,"CHAMBO"]
[483,147,"CHUNCHI"]
[484,147,"CAPZOL"]
[485,147,"COMPUD"]
[486,147,"GONZOL"]
[487,147,"LLAGOS"]
[488,148,"GUAMOTE"]
[489,148,"CEBADAS"]
[490,148,"PALMIRA"]
[492,149,"GUANANDO"]
[493,149,"ILAPO"]
[494,149,"LA PROVIDENCIA"]
[495,149,"SAN ANDRES"]
[496,149,"SAN GERARDO DE PACAICAGUAN"]
[497,149,"SAN ISIDRO DE PATULU"]
[498,149,"SAN JOSE DEL CHAZO"]
[499,149,"SANTA FE DE GALAN"]
[500,149,"VALPARAISO"]
[501,150,"PALLATANGA"]
[502,151,"PENIPE"]
[503,151,"EL ALTAR"]
[504,151,"MATUS"]
[505,151,"PUELA"]
[506,151,"SAN ANTONIO DE BAYUSHIG"]
[507,151,"LA CANDELARIA"]
[508,151,"BILBAO (CAB. EN QUILLUYACU)"]
[509,152,"CUMANDA"]
[511,153,"EL RETIRO"]
[512,154,"ARENILLAS"]
[513,154,"CHACRAS"]
[514,154,"PALMALES"]
[515,154,"CARCABON"]
[516,155,"PACCHA"]
[517,155,"AYAPAMBA"]
[518,155,"CORDONCILLO"]
[519,155,"MILAGRO"]
[520,155,"SAN JOSE"]
[521,155,"SAN JUAN DE CERRO AZUL"]
[522,156,"BALSAS"]
[523,156,"BELLAMARIA"]
[524,157,"CHILLA"]
[525,158,"EL GUABO"]
[526,158,"BARBONES (SUCRE)"]
[527,158,"LA IBERIA"]
[528,158,"TENDALES (CAB. EN PUERTO TENDALES)"]
[529,158,"RIO BONITO"]
[531,160,"MARCABELI"]
[532,160,"EL INGENIO"]
[534,161,"BUENAVISTA"]
[535,161,"CASACAY"]
[536,161,"LA PEAÑA"]
[537,161,"PROGRESO"]
[538,161,"UZHCURRUMI"]
[539,161,"CAÑAQUEMADA"]
[541,162,"CAPIRO (CAB. EN LA CAPILLA DE CAPIRO)"]
[542,162,"LA BOCANA"]
[543,162,"MOROMORO (CAB. EN EL VADO)"]
[544,162,"PIEDRAS"]
[545,162,"SAN ROQUE (AMBROSIO MALDONADO)"]
[546,162,"SARACAY"]
[547,163,"PORTOVELO"]
[548,163,"CURTINCAPA"]
[549,163,"MORALES"]
[550,163,"SALATI"]
[552,164,"BELLAVISTA"]
[553,164,"JAMBELI"]
[554,164,"LA AVANZADA"]
[555,164,"SAN ANTONIO"]
[556,164,"TORATA"]
[557,164,"VICTORIA"]
[558,164,"BELLAMARIA"]
[559,165,"ZARUMA"]
[560,165,"ABAÑIN"]
[561,165,"ARCAPAMBA"]
[562,165,"GUANAZAN"]
[563,165,"GUIZHAGUIÑA"]
[564,165,"HUERTAS"]
[565,165,"MALVAS"]
[566,165,"MULUNCAY GRANDE"]
[567,165,"SINSAO"]
[568,165,"SALVIAS"]
[570,166,"LA LIBERTAD"]
[571,166,"EL PARAISO"]
[572,166,"SAN ISIDRO"]
[574,167,"CAMARONES (CAB. EN SAN VICENTE)"]
[575,167,"CORONEL CARLOS CONCHA TORRES (CAB. EN HUELE)"]
[576,167,"CHINCA"]
[577,167,"MAJUA"]
[578,167,"SAN MATEO"]
[579,167,"TABIAZO"]
[580,167,"TACHINA"]
[581,167,"VUELTA LARGA"]
[582,168,"VALDEZ (LIMONES)"]
[583,168,"ANCHAYACU"]
[584,168,"ATAHUALPA (CAB. EN CAMARONES)"]
[585,168,"BORBON"]
[586,168,"LA TOLA"]
[587,168,"LUIS VARGAS TORRES (CAB. EN PLAYA DE ORO)"]
[588,168,"MALDONADO"]
[589,168,"PAMPANAL DE BOLIVAR"]
[590,168,"SAN FRANCISCO DE ONZOLE"]
[591,168,"SANTO DOMINGO DE ONZOLE"]
[592,168,"SELVA ALEGRE"]
[593,168,"TELEMBI"]
[594,168,"COLON ELOY DEL MARIA"]
[595,168,"SAN JOSE DE CAYAPAS"]
[596,168,"TIMBIRE"]
[597,169,"MUISNE"]
[598,169,"BOLIVAR"]
[599,169,"DAULE"]
[600,169,"GALERA"]
[601,169,"QUINGUE (OLMEDO PERDOMO FRANCO)"]
[602,169,"SALIMA"]
[603,169,"SAN FRANCISCO"]
[604,169,"SAN GREGORIO"]
[605,169,"SAN JOSE DE CHAMANGA"]
[606,170,"ROSA ZARATE (QUININDE)"]
[607,170,"CUBE"]
[608,170,"CHURA (CHANCAMA) (CAB. EN EL YERBERO)"]
[609,170,"MALIMPIA"]
[610,170,"VICHE"]
[611,170,"LA UNION"]
[612,171,"SAN LORENZO"]
[613,171,"ALTO TAMBO (CAB EN GUADUAL)"]
[614,171,"ANCON (PICHANGAL) (CAB. EN PALMA REAL)"]
[615,171,"CALDERON"]
[616,171,"CARONDELET"]
[617,171,"5 DE JUNIO (CAB. EN UIMBI)"]
[618,171,"CONCEPCION"]
[619,171,"MATAJE (CAB. EN SANTANDER)"]
[620,171,"SAN JAVIER DE CACHAVI (CAB. EN SAN JAVIER)"]
[621,171,"SANTA RITA"]
[622,171,"TAMBILLO"]
[623,171,"TULULBI (CAB. EN RICAURTE)"]
[624,171,"URBINA"]
[625,172,"ATACAMES"]
[626,172,"LA UNION"]
[627,172,"SUA (CAB. EN LA BOCANA)"]
[628,172,"TONCHIGUE"]
[629,172,"TONSUPA"]
[630,173,"RIOVERDE"]
[631,173,"CHONTADURO"]
[632,173,"CHUMUNDE"]
[633,173,"LAGARTO"]
[634,173,"MONTALVO (CAB EN HORQUETA)"]
[635,173,"ROCAFUERTE"]
[636,174,"LA CONCORDIA"]
[638,175,"JUAN GOMEZ RENDON (PROGRESO)"]
[639,175,"MORRO"]
[640,175,"POSORJA"]
[641,175,"PUNA"]
[642,175,"TENGUEL"]
[643,176,"ALFREDO BAQUERIZO MORENO (JUJAN)"]
[644,177,"BALAO"]
[645,178,"BALZAR"]
[646,179,"COLIMES"]
[647,179,"SAN JACINTO"]
[649,180,"JUAN BAUTISTA AGUIRRE (LOS TINTOS)"]
[650,180,"LAUREL"]
[651,180,"LIMONAL"]
[652,180,"LOS LOJAS (ENRIQUE BAQUERIZO MORENO)"]
[654,182,"VELASCO IBARRA (CAB. EL EMPALME)"]
[655,182,"GUAYAS (PUEBLO NUEVO)"]
[656,182,"EL ROSARIO"]
[657,183,"EL TRIUNFO"]
[659,184,"CHOBO"]
[660,184,"MARISCAL SUCRE (HUAQUES)"]
[661,184,"ROBERTO ASTUDILLO (CAB. EN CRUCE DE VENECIA)"]
[662,185,"NARANJAL"]
[663,185,"JESUS MARIA"]
[664,185,"SAN CARLOS"]
[665,185,"SANTA ROSA DE FLANDES"]
[666,185,"TAURA"]
[667,186,"NARANJITO"]
[668,187,"PALESTINA"]
[669,188,"PEDRO CARBO"]
[670,188,"VALLE DE LA VIRGEN"]
[671,188,"SABANILLA"]
[673,189,"TARIFA"]
[674,190,"SANTA LUCIA"]
[676,191,"GENERAL VERNAZA (DOS ESTEROS)"]
[677,191,"LA VICTORIA (ÑAUZA)"]
[678,191,"JUNQUILLAL"]
[679,192,"SAN JACINTO DE YAGUACHI"]
[680,192,"GENERAL PEDRO J. MONTERO (BOLICHE)"]
[681,192,"YAGUACHI VIEJO (CONE)"]
[682,192,"VIRGEN DE FATIMA"]
[683,193,"GENERAL VILLAMIL (PLAYAS)"]
[684,194,"SIMON BOLIVAR"]
[685,194,"CORONEL LORENZO DE GARAYCOA (PEDREGAL)"]
[686,195,"CORONEL MARCELINO MARIDUEÑA (SAN CARLOS)"]
[687,196,"LOMAS DE SARGENTILLO"]
[688,197,"NARCISA DE JESUS"]
[689,198,"GENERAL ANTONIO ELIZALDE (BUCAY)"]
[690,199,"ISIDRO AYORA"]
[692,200,"AMBUQUI"]
[693,200,"ANGOCHAGUA"]
[694,200,"CAROLINA"]
[695,200,"LA ESPERANZA"]
[696,200,"LITA"]
[697,200,"SALINAS"]
[698,200,"SAN ANTONIO"]
[700,201,"IMBAYA (SAN LUIS DE COBUENDO)"]
[701,201,"SAN FRANCISCO DE NATABUELA"]
[702,201,"SAN JOSE DE CHALTURA"]
[703,201,"SAN ROQUE"]
[705,202,"APUELA"]
[706,202,"GARCIA MORENO (LLURIMAGUA)"]
[707,202,"IMANTAG"]
[708,202,"PEÑAHERRERA"]
[709,202,"PLAZA GUTIERREZ (CALVARIO)"]
[710,202,"QUIROGA"]
[711,202,"SEIS DE JULIO DE CUELLAJE (CAB. EN CUELLAJE)"]
[712,202,"VACAS GALINDO (EL CHURO) (CAB. EN SAN MIGUEL ALTO)"]
[714,203,"DOCTOR MIGUEL EGAS CABEZAS (PEGUCHE)"]
[715,203,"EUGENIO ESPEJO (CALPAQUI)"]
[716,203,"GONZALEZ SUAREZ"]
[717,203,"PATAQUI"]
[718,203,"SAN JOSE DE QUICHINCHE"]
[719,203,"SAN JUAN DE ILUMAN"]
[720,203,"SAN PABLO"]
[721,203,"SAN RAFAEL"]
[722,203,"SELVA ALEGRE (CAB. EN SAN MIGUEL DE PAMPLONA)"]
[723,204,"PIMAMPIRO"]
[724,204,"CHUGA"]
[725,204,"MARIANO ACOSTA"]
[726,204,"SAN FRANCISCO DE SIGSIPAMBA"]
[727,205,"URCUQUI"]
[728,205,"CAHUASQUI"]
[729,205,"LA MERCED DE BUENOS AIRES"]
[730,205,"PABLO ARENAS"]
[731,205,"SAN BLAS"]
[732,205,"TUMBABIRO"]
[734,206,"CHANTACO"]
[735,206,"CHUQUIRIBAMBA"]
[736,206,"EL CISNE"]
[737,206,"GUALEL"]
[738,206,"JIMBILLA"]
[739,206,"MALACATOS (VALLADOLID)"]
[740,206,"SAN LUCAS"]
[741,206,"SAN PEDRO DE VILCABAMBA"]
[742,206,"SANTIAGO"]
[743,206,"TAQUIL (MIGUEL RIOFRIO)"]
[744,206,"VILCABAMBA (VICTORIA)"]
[745,206,"YANGANA (ARSENIO CASTILLO)"]
[746,206,"QUINARA"]
[748,207,"COLAISACA"]
[749,207,"EL LUCERO"]
[750,207,"UTUANA"]
[751,207,"SANGUILLIN"]
[753,208,"EL TAMBO"]
[754,208,"GUAYQUICHUMA"]
[755,208,"SAN PEDRO DE LA BENDITA"]
[756,208,"ZAMBI"]
[757,209,"CELICA"]
[758,209,"CRUZPAMBA (CAB EN CARLOS BUSTAMANTE)"]
[759,209,"POZUL (SAN JUAN DE POZUL)"]
[760,209,"SABANILLA"]
[761,209,"TENIENTE MAXIMILIANO RODRIGUEZ LOAIZA"]
[762,210,"CHAGUARPAMBA"]
[763,210,"BUENAVISTA"]
[764,210,"EL ROSARIO"]
[765,210,"SANTA RUFINA"]
[766,210,"AMARILLOS"]
[767,211,"AMALUZA"]
[768,211,"BELLAVISTA"]
[769,211,"JIMBURA"]
[770,211,"SANTA TERESITA"]
[771,211,"27 DE ABRIL (CAB. EN LA NARANJA)"]
[772,211,"EL INGENIO"]
[773,211,"EL AIRO"]
[774,212,"GONZANAMA"]
[775,212,"CHANGAIMINA (LA LIBERTAD)"]
[776,212,"NAMBACOLA"]
[777,212,"PURUNUMA (EGUIGUREN)"]
[778,212,"SACAPALCA"]
[780,213,"LARAMA"]
[781,213,"LA VICTORIA"]
[782,213,"SABIANGO (LA CAPILLA)"]
[784,214,"CANGONAMA"]
[785,214,"GUACHANAMA"]
[786,214,"LAURO GUERRERO"]
[787,214,"ORIANGA"]
[788,214,"SAN ANTONIO"]
[789,214,"CASANGA"]
[790,214,"YAMANA"]
[791,215,"ALAMOR"]
[792,215,"CIANO"]
[793,215,"EL ARENAL"]
[794,215,"EL LIMO (MARIANA DE JESUS)"]
[795,215,"MERCADILLO"]
[796,215,"VICENTINO"]
[797,216,"SARAGURO"]
[798,216,"EL PARAISO DE CELEN"]
[799,216,"EL TABLON"]
[800,216,"LLUZHAPA"]
[801,216,"MANU"]
[802,216,"SAN ANTONIO DE QUMBE (CUMBE)"]
[803,216,"SAN PABLO DE TENTA"]
[804,216,"SAN SEBASTIAN DE YULUC"]
[805,216,"SELVA ALEGRE"]
[806,216,"URDANETA (PAQUISHAPA)"]
[807,216,"SUMAYPAMBA"]
[808,217,"SOZORANGA"]
[809,217,"NUEVA FATIMA"]
[810,217,"TACAMOROS"]
[811,218,"ZAPOTILLO"]
[812,218,"MANGAHURCO"]
[813,218,"GARZAREAL"]
[814,218,"LIMONES"]
[815,218,"PALETILLAS"]
[816,218,"BOLASPAMBA"]
[817,219,"PINDAL"]
[818,219,"CHAQUINAL"]
[819,219,"12 DE DICIEMBRE (CAB. EN ACHIOTES)"]
[820,220,"QUILANGA"]
[821,220,"FUNDOCHAMBA"]
[822,220,"SAN ANTONIO DE LAS ARADAS (CAB. EN LAS ARADAS)"]
[823,221,"OLMEDO"]
[824,221,"LA TINGUE"]
[826,222,"CARACOL"]
[827,222,"FEBRES CORDERO (LAS JUNTAS)"]
[828,222,"PIMOCHA"]
[829,222,"LA UNION"]
[830,223,"BABA"]
[831,223,"GUARE"]
[832,223,"ISLA DE BEJUCAL"]
[833,224,"MONTALVO"]
[834,225,"PUEBLOVIEJO"]
[835,225,"PUERTO PECHICHE"]
[836,225,"SAN JUAN"]
[838,226,"SAN CARLOS"]
[839,226,"LA ESPERANZA"]
[840,227,"CATARAMA"]
[841,227,"RICAURTE"]
[843,228,"ZAPOTAL"]
[845,229,"ANTONIO SOTOMAYOR (CAB. EN PLAYAS DE VINCES)"]
[846,230,"PALENQUE"]
[848,231,"PATRICIA PILAR"]
[850,233,"MOCACHE"]
[851,234,"QUINSALOMA"]
[853,235,"ABDON CALDERON (SAN FRANCISCO)"]
[854,235,"ALHAJUELA (BAJO GRANDE)"]
[855,235,"CRUCITA"]
[856,235,"PUEBLO NUEVO"]
[857,235,"RIOCHICO (RIO CHICO)"]
[858,235,"SAN PLACIDO"]
[859,235,"CHIRIJOS"]
[860,236,"CALCETA"]
[861,236,"MEMBRILLO"]
[862,236,"QUIROGA"]
[864,237,"BOYACA"]
[865,237,"CANUTO"]
[866,237,"CONVENTO"]
[867,237,"CHIBUNGA"]
[868,237,"ELOY ALFARO"]
[869,237,"RICAURTE"]
[870,237,"SAN ANTONIO"]
[872,238,"WILFRIDO LOOR MOREIRA (MAICITO)"]
[873,238,"SAN PEDRO DE SUMA"]
[874,239,"FLAVIO ALFARO"]
[875,239,"SAN FRANCISCO DE NOVILLO (CAB. EN NOVILLO)"]
[876,239,"ZAPALLO"]
[878,240,"AMERICA"]
[879,240,"EL ANEGADO (CAB. EN ELOY ALFARO)"]
[880,240,"JULCUY"]
[881,240,"LA UNION"]
[882,240,"MEMBRILLAL"]
[883,240,"PEDRO PABLO GOMEZ"]
[884,240,"PUERTO DE CAYO"]
[885,241,"JUNIN"]
[887,242,"SAN LORENZO"]
[888,242,"SANTA MARIANITA (BOCA DE PACOCHE)"]
[890,243,"LA PILA"]
[891,244,"PAJAN"]
[892,244,"CAMPOZANO (LA PALMA DE PAJAN)"]
[893,244,"CASCOL"]
[894,244,"GUALE"]
[895,244,"LASCANO"]
[896,245,"PICHINCHA"]
[897,245,"BARRAGANETE"]
[898,245,"SAN SEBASTIAN"]
[899,246,"ROCAFUERTE"]
[901,247,"AYACUCHO"]
[902,247,"HONORATO VASQUEZ (CAB EN VASQUEZ)"]
[903,247,"LA UNION"]
[904,247,"SAN PABLO (CAB EN PUEBLO NUEVO)"]
[905,248,"SAN ISIDRO"]
[907,248,"CHARAPOTO"]
[908,249,"TOSAGUA"]
[909,249,"BACHILLERO"]
[910,249,"ANGEL PEDRO GILER (LA ESTANCILLA)"]
[911,250,"SUCRE"]
[912,250,"BELLAVISTA"]
[913,250,"NOBOA"]
[914,250,"ARQUITECTO SIXTO DURAN BALLEN"]
[915,251,"PEDERNALES"]
[916,251,"COJIMIES"]
[917,251,"DIEZ DE AGOSTO"]
[918,251,"ATAHUALPA"]
[919,252,"OLMEDO"]
[920,253,"PUERTO LOPEZ"]
[921,253,"MACHALILLA"]
[922,253,"SALANGO"]
[923,254,"JAMA"]
[924,255,"JARAMIJO"]
[925,256,"SAN VICENTE"]
[926,256,"CANOA"]
[927,257,"MACAS"]
[928,257,"ALSHI (CAB EN 9 DE OCTUBRE)"]
[929,257,"GENERAL PROAÑO"]
[930,257,"SAN ISIDRO"]
[931,257,"SEVILLA DON BOSCO"]
[932,257,"SINAI"]
[933,257,"ZUÑA (ZUÑAC)"]
[934,257,"CUCHAENTZA"]
[935,257,"RIO BLANCO"]
[937,258,"AMAZONAS (ROSARIO DE CUYES)"]
[938,258,"BERMEJOS"]
[939,258,"BOMBOIZA"]
[940,258,"CHIGUINDA"]
[941,258,"EL ROSARIO"]
[942,258,"NUEVA TARQUI"]
[943,258,"SAN MIGUEL DE CUYES"]
[944,258,"EL IDEAL"]
[945,259,"GENERAL LEONIDAS PLAZA GUTIERREZ"]
[946,259,"INDANZA"]
[947,259,"SAN ANTONIO (CAB EN SAN ANTONIO CENTRO)"]
[948,259,"SAN MIGUEL DE CONCHAY"]
[949,259,"STA SUSANA DE CHIVIAZA (CAB EN CHIVIAZA)"]
[950,259,"YUNGANZA (CAB EN EL ROSARIO)"]
[951,260,"PALORA (METZERA)"]
[952,260,"ARAPICOS"]
[953,260,"CUMANDA (CAB EN COLONIA AGRICOLA SEVILLA DEL ORO)"]
[954,260,"SANGAY (CAB EN NAYAMANACA)"]
[955,260,"16 DE AGOSTO"]
[956,261,"SANTIAGO DE MENDEZ"]
[957,261,"COPAL"]
[958,261,"CHUPIANZA"]
[959,261,"PATUCA"]
[960,261,"SAN LUIS DE EL ACHO (CAB EN EL ACHO)"]
[961,261,"TAYUZA"]
[962,261,"SAN FRANCISCO DE CHINIMBIMI"]
[963,262,"SUCUA"]
[964,262,"ASUNCION"]
[965,262,"HUAMBI"]
[966,262,"SANTA MARIANITA DE JESUS"]
[967,263,"HUAMBOYA"]
[968,263,"CHIGUAZA"]
[969,264,"SAN JUAN BOSCO"]
[970,264,"PAN DE AZUCAR"]
[971,264,"SAN CARLOS DE LIMON"]
[972,264,"SAN JACINTO DE WAKAMBEIS"]
[973,264,"SANTIAGO DE PANANZA"]
[974,265,"TAISHA"]
[975,265,"HUASAGA (CAB EN WAMPUIK)"]
[976,265,"MACUMA"]
[977,265,"TUUTINENTZA"]
[978,266,"LOGROÑO"]
[979,266,"YAUPI"]
[980,266,"SHIMPIS"]
[981,267,"PABLO SEXTO"]
[982,268,"SANTIAGO"]
[983,268,"SAN JOSE DE MORONA"]
[984,269,"TENA"]
[985,269,"AHUANO"]
[986,269,"CHONTAPUNTA"]
[987,269,"PANO"]
[988,269,"PUERTO MISAHUALLI"]
[989,269,"PUERTO NAPO"]
[990,269,"TALAG"]
[991,270,"ARCHIDONA"]
[992,270,"COTUNDO"]
[993,270,"SAN PABLO DE USHPAYACU"]
[994,271,"EL CHACO"]
[995,271,"GONZALO DIAZ DE PINEDA (EL BOMBON)"]
[996,271,"LINARES"]
[997,271,"OYACACHI"]
[998,271,"SANTA ROSA"]
[999,271,"SARDINAS"]
[1000,272,"BAEZA"]
[1001,272,"COSANGA"]
[1002,272,"CUYUJA"]
[1003,272,"PAPALLACTA"]
[1004,272,"SAN FRANCISCO DE BORJA (VIRGILIO DAVILA)"]
[1005,272,"SUMACO"]
[1006,273,"CARLOS JULIO AROSEMENA TOLA"]
[1007,274,"PUYO"]
[1008,274,"CANELOS"]
[1009,274,"DIEZ DE AGOSTO"]
[1010,274,"FATIMA"]
[1011,274,"MONTALVO (ANDOAS)"]
[1012,274,"POMONA"]
[1013,274,"RIO CORRIENTES"]
[1014,274,"RIO TIGRE"]
[1015,274,"SARAYACU"]
[1016,274,"SIMON BOLIVAR (CAB. EN MUSHULLACTA)"]
[1017,274,"TARQUI"]
[1018,274,"TENIENTE HUGO ORTIZ"]
[1019,274,"VERACRUZ (INDILLAMA) (CAB. EN INDILLAMA)"]
[1020,274,"EL TRIUNFO"]
[1021,275,"MERA"]
[1022,275,"MADRE TIERRA"]
[1023,275,"SHELL"]
[1024,276,"SANTA CLARA"]
[1025,276,"SAN JOSE"]
[1026,277,"ARAJUNO"]
[1027,277,"CURARAY"]
[1029,278,"ALANGASI"]
[1030,278,"AMAGUAÑA"]
[1031,278,"ATAHUALPA (HABASPAMBA)"]
[1032,278,"CALACALI"]
[1033,278,"CALDERON (CARAPUNGO)"]
[1034,278,"CONOCOTO"]
[1035,278,"CUMBAYA"]
[1036,278,"CHAVEZPAMBA"]
[1037,278,"CHECA (CHILPA)"]
[1038,278,"EL QUINCHE"]
[1039,278,"GUALEA"]
[1040,278,"GUANGOPOLO"]
[1041,278,"GUAYLLABAMBA"]
[1042,278,"LA MERCED"]
[1043,278,"LLANO CHICO"]
[1044,278,"LLOA"]
[1045,278,"NANEGAL"]
[1046,278,"NANEGALITO"]
[1047,278,"NAYON"]
[1048,278,"NONO"]
[1049,278,"PACTO"]
[1050,278,"PERUCHO"]
[1051,278,"PIFO"]
[1052,278,"PINTAG"]
[1053,278,"POMASQUI"]
[1054,278,"PUELLARO"]
[1055,278,"PUEMBO"]
[1056,278,"SAN ANTONIO"]
[1057,278,"SAN JOSE DE MINAS"]
[1058,278,"TABABELA"]
[1059,278,"TUMBACO"]
[1060,278,"YARUQUI"]
[1061,278,"ZAMBIZA"]
[1063,279,"ASCAZUBI"]
[1064,279,"CANGAHUA"]
[1065,279,"OLMEDO (PESILLO)"]
[1066,279,"OTON"]
[1067,279,"SANTA ROSA DE CUZUBAMBA"]
[1068,280,"MACHACHI"]
[1069,280,"ALOAG"]
[1070,280,"ALOASI"]
[1071,280,"CUTUGLAHUA"]
[1072,280,"EL CHAUPI"]
[1073,280,"MANUEL CORNEJO ASTORGA (TANDAPI)"]
[1074,280,"TAMBILLO"]
[1075,280,"UYUMBICHO"]
[1076,281,"TABACUNDO"]
[1077,281,"LA ESPERANZA"]
[1078,281,"MALCHINGUI"]
[1079,281,"TOCACHI"]
[1080,281,"TUPIGACHI"]
[1082,282,"COTOGCHOA"]
[1083,282,"RUMIPAMBA"]
[1084,283,"SAN MIGUEL DE LOS BANCOS"]
[1085,283,"MINDO"]
[1086,284,"PEDRO VICENTE MALDONADO"]
[1087,285,"PUERTO QUITO"]
[1089,286,"AMBATILLO"]
[1090,286,"ATAHUALPA (CHISALATA)"]
[1091,286,"AUGUSTO N. MARTINEZ (MUNDUGLEO)"]
[1092,286,"CONSTANTINO FERNANDEZ (CAB. EN CULLITAHUA)"]
[1093,286,"HUACHI GRANDE"]
[1094,286,"IZAMBA"]
[1095,286,"JUAN BENIGNO VELA"]
[1096,286,"MONTALVO"]
[1097,286,"PASA"]
[1098,286,"PICAIGUA"]
[1099,286,"PILAGUIN (PILAHUIN)"]
[1100,286,"QUISAPINCHA (QUIZAPINCHA)"]
[1101,286,"SAN BARTOLOME DE PINLLOG"]
[1102,286,"SAN FERNANDO (PASA SAN FERNANDO)"]
[1103,286,"SANTA ROSA"]
[1104,286,"TOTORAS"]
[1105,286,"CUNCHIBAMBA"]
[1106,286,"UNAMUNCHO"]
[1107,287,"BAÑOS DE AGUA SANTA"]
[1108,287,"LLIGUA"]
[1109,287,"RIO NEGRO"]
[1110,287,"RIO VERDE"]
[1111,287,"ULBA"]
[1112,288,"CEVALLOS"]
[1113,289,"MOCHA"]
[1114,289,"PINGUILI"]
[1115,290,"PATATE"]
[1116,290,"EL TRIUNFO"]
[1117,290,"LOS ANDES (CAB. EN POATUG)"]
[1118,290,"SUCRE (CAB. EN SUCRE-PATATE URCU)"]
[1119,291,"QUERO"]
[1120,291,"RUMIPAMBA"]
[1121,291,"YANAYACU - MOCHAPATA (CAB. EN YANAYACU)"]
[1123,292,"BENITEZ (PACHANLICA)"]
[1124,292,"BOLIVAR"]
[1125,292,"COTALO"]
[1126,292,"CHIQUICHA (CAB. EN CHIQUICHA GRANDE)"]
[1127,292,"EL ROSARIO (RUMICHACA)"]
[1128,292,"GARCIA MORENO (CHUMAQUI)"]
[1129,292,"GUAMBALO (HUAMBALO)"]
[1130,292,"SALASACA"]
[1132,293,"BAQUERIZO MORENO"]
[1133,293,"EMILIO MARIA TERAN (RUMIPAMBA)"]
[1134,293,"MARCOS ESPINEL (CHACATA)"]
[1135,293,"PRESIDENTE URBINA (CHAGRAPAMBA -PATZUCUL)"]
[1136,293,"SAN ANDRES"]
[1137,293,"SAN JOSE DE POALO"]
[1138,293,"SAN MIGUELITO"]
[1139,294,"TISALEO"]
[1140,294,"QUINCHICOTO"]
[1142,295,"CUMBARATZA"]
[1143,295,"GUADALUPE"]
[1144,295,"IMBANA (LA VICTORIA DE IMBANA)"]
[1145,295,"SABANILLA"]
[1146,295,"TIMBARA"]
[1147,295,"SAN CARLOS DE LAS MINAS"]
[1148,296,"ZUMBA"]
[1149,296,"CHITO"]
[1150,296,"EL CHORRO"]
[1151,296,"LA CHONTA"]
[1152,296,"PUCAPAMBA"]
[1153,296,"SAN ANDRES"]
[1154,297,"GUAYZIMI"]
[1155,297,"ZURMI"]
[1156,298,"28 DE MAYO (SAN JOSE DE YACUAMBI)"]
[1157,298,"LA PAZ"]
[1158,298,"TUTUPALI"]
[1159,299,"YANTZAZA (YANZATZA)"]
[1160,299,"CHICAÑA"]
[1161,299,"LOS ENCUENTROS"]
[1162,300,"EL PANGUI"]
[1163,300,"EL GUISME"]
[1164,300,"PACHICUTZA"]
[1165,300,"TUNDAYME"]
[1166,301,"ZUMBI"]
[1167,302,"PALANDA"]
[1168,302,"EL PORVENIR DEL CARMEN"]
[1169,302,"SAN FRANCISCO DEL VERGEL"]
[1170,302,"VALLADOLID"]
[1171,302,"LA CANELA"]
[1172,303,"PAQUISHA"]
[1173,303,"BELLAVISTA"]
[1174,303,"NUEVO QUITO"]
[1175,304,"PUERTO AYORA"]
[1176,304,"BELLA VISTA"]
[1177,304,"SANTA ROSA"]
[1178,305,"PUERTO BAQUERIZO MORENO"]
[1179,305,"EL PROGRESO"]
[1180,305,"ISLA SANTA MARÍA (FLOREANA) (CAB. EN  PTO. VELASCO IBARRA)"]
[1181,306,"PUERTO VILLAMIL"]
[1182,306,"TOMAS DE BERLANGA (SANTO TOMAS)"]
[1183,307,"NUEVA LOJA"]
[1184,307,"DURENO"]
[1185,307,"GENERAL FARFAN"]
[1186,307,"EL ENO"]
[1187,307,"PACAYACU"]
[1188,307,"JAMBELI"]
[1189,307,"SANTA CECILIA"]
[1190,308,"LUMBAQUI"]
[1191,308,"EL REVENTADOR"]
[1192,308,"GONZALO PIZARRO"]
[1193,308,"PUERTO LIBRE"]
[1194,309,"PUERTO EL CARMEN DEL PUTUMAYO"]
[1195,309,"PALMA ROJA"]
[1196,309,"PUERTO BOLIVAR (PUERTO MONTUFAR)"]
[1197,309,"PUERTO RODRIGUEZ"]
[1198,309,"SANTA ELENA"]
[1199,310,"SHUSHUFINDI"]
[1200,310,"LIMONCOCHA"]
[1201,310,"PAÑACOCHA"]
[1202,310,"SAN ROQUE (CAB. EN SAN VICENTE)"]
[1203,310,"SAN PEDRO DE LOS COFANES"]
[1204,310,"SIETE DE JULIO"]
[1205,311,"LA BONITA"]
[1206,311,"EL PLAYON DE SAN FRANCISCO"]
[1207,311,"LA SOFIA"]
[1208,311,"ROSA FLORIDA"]
[1209,311,"SANTA BARBARA"]
[1210,312,"EL DORADO DE CASCALES"]
[1211,312,"SANTA ROSA DE SUCUMBIOS"]
[1212,312,"SEVILLA"]
[1213,313,"TARAPOA"]
[1214,313,"CUYABENO"]
[1215,313,"AGUAS NEGRAS"]
[1216,314,"PUERTO FRANCISCO DE ORELLANA (EL COCA)"]
[1217,314,"DAYUMA"]
[1218,314,"TARACOA (NUEVA ESPERANZA: YUCA)"]
[1219,314,"ALEJANDRO LABAKA"]
[1220,314,"EL DORADO"]
[1221,314,"EL EDEN"]
[1222,314,"GARCIA MORENO"]
[1223,314,"INES ARANGO (CAB. EN WESTERN)"]
[1224,314,"LA BELLEZA"]
[1225,314,"NUEVO PARAISO (CAB. EN UNION )"]
[1226,314,"SAN JOSE DE GUAYUSA"]
[1227,314,"SAN LUIS DE ARMENIA"]
[1228,315,"NUEVO ROCAFUERTE"]
[1229,315,"CAPITAN AUGUSTO RIVADENEYRA"]
[1230,315,"CONONACO"]
[1231,315,"SANTA MARIA DE HUIRIRIMA"]
[1232,315,"TIPUTINI"]
[1233,315,"YASUNI"]
[1234,316,"LA JOYA DE LOS SACHAS"]
[1235,316,"ENOKANQUI"]
[1236,316,"POMPEYA"]
[1237,316,"SAN CARLOS"]
[1238,316,"SAN SEBASTIAN DEL COCA"]
[1239,316,"LAGO SAN PEDRO"]
[1240,316,"RUMIPAMBA"]
[1241,316,"TRES DE NOVIEMBRE"]
[1242,316,"UNION MILAGREÑA"]
[1243,317,"LORETO"]
[1244,317,"AVILA (CAB. EN HUIRUNO)"]
[1245,317,"PUERTO MURIALDO"]
[1246,317,"SAN JOSE DE PAYAMINO"]
[1247,317,"SAN JOSE DE DAHUANO"]
[1248,317,"SAN VICENTE DE HUATICOCHA"]
[1250,318,"ALLURIQUIN"]
[1251,318,"PUERTO LIMON"]
[1252,318,"LUZ DE AMERICA"]
[1253,318,"SAN JACINTO DEL BUA"]
[1254,318,"VALLE HERMOSO"]
[1255,318,"EL ESFUERZO"]
[1256,318,"SANTA MARIA DEL TOACHI"]
[1258,319,"ATAHUALPA"]
[1259,319,"COLONCHE"]
[1260,319,"CHANDUY"]
[1261,319,"MANGLARALTO"]
[1262,319,"SIMON BOLIVAR (JULIO MORENO)"]
[1263,319,"SAN JOSE DE ANCON"]
[1264,320,"LA LIBERTAD"]
[1266,321,"ANCONCITO"]
[1267,321,"JOSE LUIS TAMAYO (MUEY)"]
[1271,26,"BELLAVISTA"]
[1272,26,"CAÑARIBAMBA"]
[1273,26,"EL BATÁN"]
[1274,26,"EL SAGRARIO"]
[1275,26,"EL VECINO"]
[1276,26,"GIL RAMÍREZ DÁVALOS"]
[1277,26,"HUAYNACÁPAC"]
[1278,26,"MACHÁNGARA"]
[1279,26,"MONAY"]
[1280,26,"SAN BLAS"]
[1281,26,"SAN SEBASTIÁN"]
[1282,26,"SUCRE"]
[1283,26,"TOTORACOCHA"]
[1284,26,"YANUNCAY"]
[1286,116,"ÁNGEL POLIBIO CHÁVES"]
[1287,116,"GABRIEL IGNACIO VEINTIMILLA"]
[1288,116,"GUANUJO"]
[1289,123,"AURELIO BAYAS MARTÍNEZ"]
[1291,123,"BORRERO"]
[1292,123,"SAN FRANCISCO"]
[1293,130,"GONZÁLEZ SUÁREZ"]
[1294,136,"ELOY ALFARO (SAN FELIPE)"]
[1295,136,"IGNACIO FLORES (PARQUE FLORES)"]
[1296,136,"JUAN MONTALVO (SAN SEBASTIÁN)"]
[1297,136,"LA MATRIZ"]
[1298,136,"SAN BUENAVENTURA"]
[1299,143,"LIZARZABURU"]
[1300,143,"MALDONADO"]
[1301,143,"VELASCO"]
[1302,143,"VELOZ"]
[1303,143,"YARUQUÍES"]
[1304,149,"EL ROSARIO"]
[1305,149,"LA MATRIZ"]
[1306,122,"LAS MERCEDES"]
[1307,132,"27 DE SEPTIEMBRE"]
[1308,134,"GONZÁLEZ SUÁREZ"]
[1309,134,"SAN JOSÉ"]
[1310,137,"EL CARMEN"]
[1311,137,"EL TRIUNFO"]
[1312,145,"CAJABAMBA"]
[1313,145,"SICALPA"]
[1314,153,"LA PROVIDENCIA"]
[1316,153,"PUERTO BOLÍVAR"]
[1317,153,"NUEVE DE MAYO"]
[1318,153,"EL CAMBIO"]
[1319,159,"ECUADOR"]
[1320,159,"EL PARAÍSO"]
[1321,159,"HUALTACO"]
[1322,159,"MILTON REYES"]
[1323,159,"UNIÓN LOJANA"]
[1324,161,"BOLÍVAR"]
[1325,161,"LOMA DE FRANCO"]
[1326,161,"OCHOA LEÓN (MATRIZ)"]
[1327,161,"TRES CERRITOS"]
[1328,162,"LA MATRIZ"]
[1329,162,"LA SUSAYA"]
[1330,162,"PIÑAS GRANDE"]
[1332,164,"PUERTO JELÍ"]
[1333,164,"BALNEARIO JAMBELÍ (SATÉLITE)"]
[1334,164,"JUMÓN (SATÉLITE)"]
[1335,164,"NUEVO SANTA ROSA"]
[1337,166,"PLATANILLOS"]
[1338,166,"VALLE HERMOSO"]
[1339,167,"BARTOLOMÉ RUIZ (CÉSAR FRANCO CARRIÓN)"]
[1340,167,"5 DE AGOSTO"]
[1342,167,"LUIS TELLO (LAS PALMAS)"]
[1343,167,"SIMÓN PLATA TORRES"]
[1344,175,"AYACUCHO"]
[1345,175,"BOLÍVAR  (SAGRARIO)"]
[1346,175,"CARBO (CONCEPCIÓN)"]
[1347,175,"FEBRES CORDERO"]
[1348,175,"GARCÍA MORENO"]
[1349,175,"LETAMENDI"]
[1350,175,"NUEVE DE OCTUBRE"]
[1351,175,"OLMEDO (SAN ALEJO)"]
[1352,175,"ROCA"]
[1353,175,"ROCAFUERTE"]
[1354,175,"SUCRE"]
[1355,175,"TARQUI"]
[1356,175,"URDANETA"]
[1357,175,"XIMENA"]
[1358,175,"PASCUALES"]
[1360,180,"LA AURORA (SATÉLITE)"]
[1361,180,"BANIFE"]
[1362,180,"EMILIANO CAICEDO MARCOS"]
[1363,180,"MAGRO"]
[1364,180,"PADRE JUAN BAUTISTA AGUIRRE"]
[1365,180,"SANTA CLARA"]
[1366,180,"VICENTE PIEDRAHITA"]
[1368,189,"LA PUNTILLA (SATÉLITE)"]
[1369,191,"BOCANA"]
[1370,191,"CANDILEJOS"]
[1371,191,"CENTRAL"]
[1372,191,"PARAÍSO"]
[1373,191,"SAN MATEO"]
[1374,200,"CARANQUI"]
[1375,200,"GUAYAQUIL DE ALPACHACA"]
[1376,200,"SAGRARIO"]
[1377,200,"SAN FRANCISCO"]
[1378,200,"LA DOLOROSA DEL PRIORATO"]
[1379,201,"ANDRADE MARÍN  (LOURDES)"]
[1380,202,"SAGRARIO"]
[1381,202,"SAN FRANCISCO"]
[1382,203,"JORDÁN"]
[1383,203,"SAN LUIS"]
[1384,206,"EL SAGRARIO"]
[1385,206,"SAN SEBASTIÁN"]
[1386,206,"SUCRE"]
[1387,206,"VALLE"]
[1388,207,"CHILE"]
[1389,207,"SAN VICENTE"]
[1390,208,"SAN JOSÉ"]
[1391,213,"GENERAL ELOY ALFARO (SAN SEBASTIÁN)"]
[1392,214,"LOURDES"]
[1393,222,"CLEMENTE BAQUERIZO"]
[1394,222,"DOCTOR CAMILO PONCE"]
[1395,222,"BARREIRO"]
[1396,222,"EL SALTO"]
[1397,226,"SAN CAMILO"]
[1399,226,"GUAYACÁN"]
[1400,226,"NICOLÁS INFANTE DÍAZ"]
[1401,226,"SAN CRISTÓBAL"]
[1402,226,"SIETE DE OCTUBRE"]
[1403,226,"24 DE MAYO"]
[1404,226,"VENUS DEL RÍO QUEVEDO"]
[1405,226,"VIVA ALFARO"]
[1406,231,"7 DE AGOSTO"]
[1407,231,"11 DE OCTUBRE"]
[1408,235,"12 DE MARZO"]
[1409,235,"COLÓN"]
[1410,235,"PICOAZÁ"]
[1411,235,"SAN PABLO"]
[1412,235,"ANDRÉS DE VERA"]
[1413,235,"FRANCISCO PACHECO"]
[1414,235,"18 DE OCTUBRE"]
[1415,235,"SIMÓN BOLÍVAR"]
[1416,237,"SANTA RITA"]
[1417,238,"4 DE DICIEMBRE"]
[1418,240,"DOCTOR MIGUEL MORÁN LUCIO"]
[1419,240,"MANUEL INOCENCIO PARRALES Y GUALE"]
[1420,240,"SAN LORENZO DE JIPIJAPA"]
[1421,242,"LOS ESTEROS"]
[1422,242,"SAN MATEO"]
[1423,242,"TARQUI"]
[1424,242,"ELOY ALFARO"]
[1425,243,"ANÍBAL SAN ANDRÉS"]
[1426,243,"EL COLORADO"]
[1427,243,"GENERAL ELOY ALFARO"]
[1428,243,"LEONIDAS PROAÑO"]
[1429,248,"LEONIDAS PLAZA GUTIÉRREZ"]
[1430,258,"MERCEDES MOLINA"]
[1431,278,"BELISARIO QUEVEDO"]
[1432,278,"CARCELÉN"]
[1433,278,"CENTRO HISTÓRICO"]
[1434,278,"COCHAPAMBA"]
[1435,278,"COMITÉ DEL PUEBLO"]
[1436,278,"COTOCOLLAO"]
[1437,278,"CHILIBULO"]
[1438,278,"CHILLOGALLO"]
[1439,278,"CHIMBACALLE"]
[1440,278,"EL CONDADO"]
[1441,278,"GUAMANÍ"]
[1442,278,"IÑAQUITO"]
[1443,278,"ITCHIMBIA"]
[1444,278,"JIPIJAPA"]
[1445,278,"KENNEDY"]
[1446,278,"LA ARGELIA"]
[1447,278,"LA CONCEPCIÓN"]
[1448,278,"LA ECUATORIANA"]
[1449,278,"LA FERROVIARIA"]
[1450,278,"LA LIBERTAD"]
[1451,278,"LA MAGDALENA"]
[1452,278,"LA MENA"]
[1453,278,"MARISCAL SUCRE"]
[1454,278,"PONCEANO"]
[1455,278,"PUENGASÍ"]
[1456,278,"QUITUMBE"]
[1457,278,"RUMIPAMBA"]
[1458,278,"SAN BARTOLO"]
[1459,278,"SAN ISIDRO DEL INCA"]
[1460,278,"SAN JUAN"]
[1461,278,"SOLANDA"]
[1462,278,"TURUBAMBA"]
[1464,279,"JUAN MONTALVO"]
[1465,282,"SAN PEDRO DE TABOADA"]
[1466,282,"SAN RAFAEL"]
[1467,286,"ATOCHA – FICOA"]
[1468,286,"CELIANO MONGE"]
[1469,286,"HUACHI CHICO"]
[1470,286,"HUACHI LORETO"]
[1471,286,"LA MERCED"]
[1472,286,"LA PENÍNSULA"]
[1473,286,"MATRIZ"]
[1474,286,"PISHILATA"]
[1475,286,"SAN FRANCISCO"]
[1476,292,"PELILEO GRANDE"]
[1477,293,"CIUDAD NUEVA"]
[1478,295,"EL LIMÓN"]
[1479,318,"ABRAHAM CALAZACÓN"]
[1480,318,"BOMBOLÍ"]
[1481,318,"CHIGUILPE"]
[1482,318,"RÍO TOACHI"]
[1483,318,"RÍO VERDE"]
[1484,318,"ZARACAY"]
[1485,319,"BALLENITA"]
[1486,321,"CARLOS ESPINOZA LARREA"]
[1487,321,"GENERAL ALBERTO ENRÍQUEZ GALLO"]
[1488,321,"VICENTE ROCAFUERTE"]
[1489,321,"SANTA ROSA"]
[1736,122,"LAS NAVES"]
[1737,123,"AZOGUES"]
[1742,130,"TULCÁN"]
[1745,132,"EL ÁNGEL"]
[1752,143,"LICAN"]
[1754,153,"MACHALA"]
[1758,164,"SANTA ROSA"]
[1759,166,"LA VICTORIA"]
[1771,167,"ESMERALDAS"]
[1774,180,"DAULE"]
[1776,319,"SANTA ELENA"]
[1777,318,"SANTO DOMINGO DE LOS COLORADOS"]
[1785,297,"NUEVO PARAISO"]
[1792,295,"ZAMORA"]
[1793,293,"PÍLLARO"]
[1794,292,"PELILEO"]
[1797,282,"SANGOLQUÍ"]
[1798,279,"CAYAMBE"]
[1810,265,"PUMPUENTSA"]
[1819,258,"GUALAQUIZA"]
[1832,248,"BAHÍA DE CARÁQUEZ"]
[1834,247,"LODANA"]
[1835,247,"SANTA ANA"]
[1837,243,"MONTECRISTI"]
[1838,242,"MANTA"]
[1841,238,"EL CARMEN"]
[1842,237,"CHONE"]
[1843,235,"PORTOVIEJO"]
[1844,231,"SAN JACINTO DE BUENA FÉ"]
[1850,226,"QUEVEDO"]
[1854,214,"CATACOCHA"]
[1855,213,"MACARÁ  (MANUEL ENRIQUE RENGEL SUQUILANDA)"]
[1862,208,"CATAMAYO"]
[1863,207,"CARIAMANGA"]
[1864,201,"ATUNTAQUI"]
[1869,189,"SAMBORONDÓN"]
[1871,181,"EL RECREO"]
[1872,181,"ELOY ALFARO (DURÁN)"]
[1875,137,"LA MANÁ"]
[1876,26,"HERMANO MIGUEL"]
[1877,33,"SAN SALVADOR DE CAÑARIBAMBA"]
[1878,174,"MONTERREY"]
[1879,174,"LA VILLEGAS"]
[1880,174,"PLAN PILOTO"]
[1882,168,"SANTA LUCIA DE LAS PEÑAS"]
[1883,218,"CAZADEROS"]
[1884,219,"MILAGROS"]
[1885,224,"LA ESMERALDA"]
[1886,228,"10 DE NOVIEMBRE"]
[1887,228,"CHACARITA"]
[1888,228,"LOS ANGELES"]
[1889,269,"SAN JUAN DE MUYUNA"]
[1890,270,"HATUN SUMAKU "]
[1891,279,"SAN JOSE DE AYORA"]
[1892,301,"TRIUNFO-DORADO"]
[1893,301,"PANGUINTZA"]
[1894,307,"10 DE AGOSTO"]
[1895,308,"LUMBAQUI"]
[1897,206,"CARIGÁN"]
[1898,206,"PUNZARA"]
[1927,26,"CHIQUINTAD"]
[1928,286,"HUACHI CHICO"]
[1929,282,"FAJARDO"]
[1932,154,"LA CUCA"]
[1933,181,"DIVINO NIÑO"]
[1934,184,"CAMILO ANDRADE"]
[1935,184,"ELOY ALFARO"]
[1936,184,"CHIRIJOS"]
[1937,184,"CORONEL ENRIQUE VALDEZ"]
[1938,184,"ROSA MARIA"]
[1939,184,"JOSE MARIA VELASCO IBARRA"]
[1940,184,"VICENTE ROCAFUERTE"]
[1941,184,"ERNESTO SEMINARIO"]
[1942,184,"LAS PIÑAS"]
[1943,228,"VENTANAS"]
[1944,229,"BALZAR DE VINCES"]
[1945,229,"VINCES CENTRAL"]
[1946,229,"SAN LORENZO DE VINCES"]
[1947,232,"VALENCIA"]
[1948,232,"LA UNION"]
[1949,232,"LA NUEVA UNION"]
[1950,238,"SANTA MARIA (CAB EN SANTA MARIA)"]
[1951,238,"EL PARAISO LA 14 (CAB EN EL PARAISO)"]
[1952,297,"NANKAIS (CAB EN SANTA ELENA)"]
[1953,312,"NUEVA TRONCAL (CAB EN NUEVA TRONCAL)"]